{"text_format":"1","workbook":"xlsx","n_sheets":7,"sheets":["1. Ajuste horas formación","2. Distribución centro+empresa","3. Resumen por periodos"," 4. Coste alumnado","5. Exclusión de bonificaciones","Ciclos Nº RA","Módulos"],"not_rendered":{"charts":0,"images":8,"macros":1,"external_links":0,"defined_names":50,"comments":0,"pivot_tables":0},"unopened":[],"bounds":{"document_bytes":16777216,"sheet_cells":100000,"rows_first":2000,"rows_last":500,"rows_between":2000,"halvings":0,"cell_chars":16384,"cell_head_chars":4096},"cells_cut":0,"cells_raw":0,"read":"whole","date_system":"1900"}

{"sheet":"1. Ajuste horas formación","index":0,"n_rows":47,"n_cols":21,"rows_kept":47,"cut":false,"hidden":false,"merged":[[38,1,38,2],[39,1,39,2],[40,1,40,2],[41,1,41,2],[36,1,36,2],[37,1,37,2],[30,1,30,2],[31,1,31,2],[32,1,32,2],[33,1,33,2],[34,1,34,2],[43,9,44,9],[43,7,44,7],[43,8,44,8],[46,10,46,11],[44,10,44,11],[45,10,45,11],[45,7,45,9],[46,7,46,9],[14,16,14,22],[15,16,15,22],[28,1,28,2],[29,1,29,2],[26,1,27,2],[24,1,24,3],[23,7,23,8],[42,1,42,2],[4,2,4,6],[26,3,26,5],[26,6,26,11],[5,2,5,3],[17,2,17,5],[19,5,19,7],[20,5,20,7],[6,3,6,6],[16,2,16,8],[11,1,11,3],[12,1,12,3],[6,1,6,2],[11,6,11,9],[12,6,12,9],[35,1,35,2]]}
[]
[null,"Organización Proyectos FP Dual Intensiva Grados D"]
[null,null,null,null,null,null,"Curso académico ","2025 / 2026"]
[null,null,null,null,null,null,null,null,null,"Criterio de colores de celdas"]
[null,"CENTRO FORMATIVO:","IES Ejemplo de Centro",null,null,null,null,null,null,null,"Deben rellenarse sus datos"]
[null,"CÓDIGO DEL CICLO FORMATIVO:","ADG201 (LFP)",null,null,null,null,null,null,null,"Son resultados de cálculo",null,null,null,null,"Dualizado","Coexiste formación en centro educativo con jornada trabajo en misma semana",null,null,"NO","Contrato formación en alternancia"]
[null,"TÍTULO FP VINCULADO AL PROYECTO:",null,{"$f":"VLOOKUP(C6,Módulos!A$2:B$3000,2,FALSE)","v":"Gestión Administrativa"},null,null,null,null,null,null,null,null,null,null,null,"No dualizado","Semanas alternas formación en centro y laborales, no coexiste formación centro y trabajo en misma semana",null,null,"SI","Beca formación"]
[]
[]
[null,"Información horas máximas a realizar en empresa y RA mínimos a dualizar"]
[null,null,null,null,null,null,null,null,null,null,null,null,null,null,null,{"$f":"1000/30","v":33.333333333333336}]
[null,{"$f":"IF(C6<>\"TMV302 (LFP)\",\"Nº horas realizadas en 1º curso en Dual General en empresa\",\"Nº horas realizadas en 2º curso en Dual General en empresa\")","v":"Nº horas realizadas en 1º curso en Dual General en empresa"},null,null,140,null,{"$f":"IF(C6<>\"TMV302 (LFP)\",\"Nº RA realizados en 1º curso\",\"Nº RA realizados en 2º curso\")","v":"Nº RA realizados en 1º curso"},null,null,null,5,null,null,null,null,{"$f":"IF(J21=\"SI\",Mod_sem_min_1año,Sem_min_1año)","v":0},null,700]
[null,{"$f":"IF(C6<>\"TMV302 (LFP)\",\"Nº máximo de horas a realizar en empresa en 2º curso en Dual Intensiva\",\"Nº máximo horas a realizar en empresa en 3º curso en Dual Intensiva\")","v":"Nº máximo de horas a realizar en empresa en 2º curso en Dual Intensiva"},null,null,{"$f":"IF(C6<>\"TMV302 (LFP)\",Max_horas_en_empresa_en_total-E12,0.5*2762-E12)","v":860},null,{"$f":"IF(C6<>\"TMV302 (LFP)\",\"Nº RA mínimo a realizar en 2º curso\",\"Nº RA mínimo a realizar en 3º curso\")","v":"Nº RA mínimo a realizar en 2º curso"},null,null,null,{"$f":"ROUND(IF(C6=\"\",\"\",VLOOKUP(C6,'Ciclos Nº RA'!B4:F122,5,FALSE))*P18-K12,0)","v":19},null,null,null,null,{"$f":"IF(ROUNDUP(MAX(J29:J43),0)>Semanas_max_en_2,Semanas_max_en_2,ROUNDUP(MAX(J29:J43),0))","v":0},null,20,"(horas máximas / semana coexistencia formación empresa - trabajo por Resolución Proyecto)"]
[null,null,null,null,null,null,null,null,null,null,null,null,null,null,null,{"$f":"IF(Tipo_relación_laboral=\"Beca formación\",F44/I22,0.35)","v":0.35},{"$f":"ROUND(P14*100,0)","v":35}]
[null,"Información modelo alternancia y datos de la relación laboral",null,null,null,null,null,null,null,null,null,null,null,null,null,1000,"nº máximo horas a en empresa entre 1º y 2º curso"]
[null,null,null,null,null,null,null,null,null,null,null,null,null,null,null,700,"nº mínimo horas a en empresa entre 2º curso"]
[null,"Tipo proyecto modelo de alternancia","Semanas alternas formación en centro y laborales, no coexiste formación centro y trabajo en misma semana"]
[null,"Tipo de relación laboral","Contrato formación en alternancia",null,null,null,null,null,null,null,null,null,null,null,null,0.3,"Nº RA mínimos en empresa"]
[null,null,null,null,null,null,null,null,null,null,"Nº horas máximas docencia/semana ",null,null,null,null,0.35,"%  Mínimo horas de formación en centro"]
[null,"Horas convenio en empresa ",1780,null,null,"Días contrato ",null,null,{"$f":"C22-C21+1","v":281},null,{"$f":"IF(C17=$Q$6,R13,30)","v":30}]
[null,"Incio contrato","2025-09-12",null,null,"Días vacaciones ",null,null,{"$f":"I20*22/365","v":16.936986301369863}]
[null,"Final contrato","2026-06-19",null,null,null,null,"Horas máximas contrato (centro+empresa) ",{"$f":"ROUND(Horas_convenio*I20/365,0)","v":1370}]
[null,null,null,null,null,null,null,{"$f":"IF(K20=\"SI\",IF(Mod_sem_min_1año<Sem_min_1año,\"Debe incrementar semanas mínimas a dualizar\",\"\"),\"\")","v":""}]
[null,null,null,null,null,null,null,"Distribución horaria en centro formativo"]
[null,null,null,null,null,null,null,"Semanas 1º periodo","Semanas 2º periodo"]
[]
[null,"CÓDIGO - NOMBRE DEL MÓDULO",null,"DATOS CURRICULARES DE LOS MÓDULOS",null,null,"PROYECTO DUAL EN RÉGIMEN INTENSIVO"]
[null,null,null,"HORAS MÓDULOS FIJADAS EN EL CURRÍCULO","Nº HORAS / SEMANA DE MÓDULOS","Nº HORAS MÍNIMAS FORMACIÓN EN CENTRO","TIPO MÓDULO","Nº horas/semana impartidas en CENTRO 1º periodo","Nº horas/semana impartidas en CENTRO 2º periodo","ESTIMACIÓN SEMANAS MÍNIMAS DUALIZADAS con sólo 1º periodo","HORAS FORMACIÓN EN EL CENTRO","HORAS FORMACIÓN EN LA EMPRESA"]
[1,{"$f":"IF(VLOOKUP(C$6,'Ciclos Nº RA'!B$4:V$123,9+A29,FALSE)=\"\",\"\",(VLOOKUP(C$6,'Ciclos Nº RA'!B$4:V$123,9+A29,FALSE)))","v":"0442 - Operaciones Administrativas de Recursos Humanos"},null,{"$f":"IF(B29=\"\",\"\",VLOOKUP(CONCATENATE($C$6,\" - \",MID(B29,1,4)),Módulos!$E$2:$H$3000,4,FALSE))","v":167},{"$f":"IF(B29=\"\",\"\",VLOOKUP(CONCATENATE($C$6,\" - \",MID(B29,1,4)),Módulos!$E$2:$H$3000,3,FALSE))","v":5},{"$f":"IF(OR(B29=\"\",G29=\"\"),\"\",ROUND(IF(G29=\"Dualizado\",D29*Porcentaje_min_en_centro,D29),0))","v":""},null,null,null,{"$f":"IF(OR(B29=\"\",G29=\"\",H29=\"\"),\"\",IF(G29=\"Dualizado\",ROUND(IF(H29=\"\",\"\",F29/H29),0),\"\"))","v":""},{"$f":"IF(AND(G29<>\"\",OR(H29<>\"\",I29<>\"\")),IF(G29=\"No dualizado\",IF(AND((H29*Horas_1_periodo+I29*Horas_2_periodo)>=F29-1,(H29*Horas_1_periodo+I29*Horas_2_periodo)<=F29+1),F29,H29*Horas_1_periodo+I29*Horas_2_periodo),H29*Horas_1_periodo+I29*Horas_2_periodo),\"\")","v":""},{"$f":"IF(OR(B29=\"\",K29=\"\"),\"\",IF(G29=\"Dualizado\",D29-K29,\"\"))","v":""},{"$f":"IF(F29=\"\",\"\",IF(K29=\"\",\"Falta definir horas/semana\",IF(F29>K29,\"Debe incremetar horas del módulo\",IF(K29>D29,\"Debe reducir horas formación\",\"\"))))","v":""}]
[{"$f":"A29+1","v":2},{"$f":"IF(VLOOKUP(C$6,'Ciclos Nº RA'!B$4:V$123,9+A30,FALSE)=\"\",\"\",(VLOOKUP(C$6,'Ciclos Nº RA'!B$4:V$123,9+A30,FALSE)))","v":"0443 - Tratamiento de la Documentación Contable"},null,{"$f":"IF(B30=\"\",\"\",VLOOKUP(CONCATENATE($C$6,\" - \",MID(B30,1,4)),Módulos!$E$2:$H$3000,4,FALSE))","v":167},{"$f":"IF(B30=\"\",\"\",VLOOKUP(CONCATENATE($C$6,\" - \",MID(B30,1,4)),Módulos!$E$2:$H$3000,3,FALSE))","v":5},"",null,null,null,{"$f":"IF(OR(B30=\"\",G30=\"\",H30=\"\"),\"\",IF(G30=\"Dualizado\",ROUND(IF(H30=\"\",\"\",F30/H30),0),\"\"))","v":""},"","",{"$f":"IF(F30=\"\",\"\",IF(K30=\"\",\"Falta definir horas/semana\",IF(F30>K30,\"Debe incremetar horas del módulo\",IF(K30>D30,\"Debe reducir horas formación\",\"\"))))","v":""}]
[{"$f":"A30+1","v":3},{"$f":"IF(VLOOKUP(C$6,'Ciclos Nº RA'!B$4:V$123,9+A31,FALSE)=\"\",\"\",(VLOOKUP(C$6,'Ciclos Nº RA'!B$4:V$123,9+A31,FALSE)))","v":"0446 - Empresa en el aula"},null,{"$f":"IF(B31=\"\",\"\",VLOOKUP(CONCATENATE($C$6,\" - \",MID(B31,1,4)),Módulos!$E$2:$H$3000,4,FALSE))","v":200},{"$f":"IF(B31=\"\",\"\",VLOOKUP(CONCATENATE($C$6,\" - \",MID(B31,1,4)),Módulos!$E$2:$H$3000,3,FALSE))","v":6},"",null,null,null,"","","",""]
[4,{"$f":"IF(VLOOKUP(C$6,'Ciclos Nº RA'!B$4:V$123,9+A32,FALSE)=\"\",\"\",(VLOOKUP(C$6,'Ciclos Nº RA'!B$4:V$123,9+A32,FALSE)))","v":"0448 - Operaciones Auxiliares de Gestión de Tesorería"},null,{"$f":"IF(B32=\"\",\"\",VLOOKUP(CONCATENATE($C$6,\" - \",MID(B32,1,4)),Módulos!$E$2:$H$3000,4,FALSE))","v":167},{"$f":"IF(B32=\"\",\"\",VLOOKUP(CONCATENATE($C$6,\" - \",MID(B32,1,4)),Módulos!$E$2:$H$3000,3,FALSE))","v":5},"",null,null,null,"","","",""]
[5,{"$f":"IF(VLOOKUP(C$6,'Ciclos Nº RA'!B$4:V$123,9+A33,FALSE)=\"\",\"\",(VLOOKUP(C$6,'Ciclos Nº RA'!B$4:V$123,9+A33,FALSE)))","v":"1708 - Sostenibilidad aplicada al sistema productivo"},null,{"$f":"IF(B33=\"\",\"\",VLOOKUP(CONCATENATE($C$6,\" - \",MID(B33,1,4)),Módulos!$E$2:$H$3000,4,FALSE))","v":33},{"$f":"IF(B33=\"\",\"\",VLOOKUP(CONCATENATE($C$6,\" - \",MID(B33,1,4)),Módulos!$E$2:$H$3000,3,FALSE))","v":1},"",null,null,null,"","","",""]
[6,{"$f":"IF(VLOOKUP(C$6,'Ciclos Nº RA'!B$4:V$123,9+A34,FALSE)=\"\",\"\",(VLOOKUP(C$6,'Ciclos Nº RA'!B$4:V$123,9+A34,FALSE)))","v":"1710 - Itinerario personal para la empleabilidad II"},null,{"$f":"IF(B34=\"\",\"\",VLOOKUP(CONCATENATE($C$6,\" - \",MID(B34,1,4)),Módulos!$E$2:$H$3000,4,FALSE))","v":67},{"$f":"IF(B34=\"\",\"\",VLOOKUP(CONCATENATE($C$6,\" - \",MID(B34,1,4)),Módulos!$E$2:$H$3000,3,FALSE))","v":2},"",null,null,null,"","","",""]
[7,{"$f":"IF(VLOOKUP(C$6,'Ciclos Nº RA'!B$4:V$123,9+A35,FALSE)=\"\",\"\",(VLOOKUP(C$6,'Ciclos Nº RA'!B$4:V$123,9+A35,FALSE)))","v":""},null,{"$f":"IF(B35=\"\",\"\",VLOOKUP(CONCATENATE($C$6,\" - \",MID(B35,1,4)),Módulos!$E$2:$H$3000,4,FALSE))","v":""},{"$f":"IF(B35=\"\",\"\",VLOOKUP(CONCATENATE($C$6,\" - \",MID(B35,1,4)),Módulos!$E$2:$H$3000,3,FALSE))","v":""},"",null,null,null,"","","",""]
[8,{"$f":"IF(VLOOKUP(C$6,'Ciclos Nº RA'!B$4:V$123,9+A36,FALSE)=\"\",\"\",(VLOOKUP(C$6,'Ciclos Nº RA'!B$4:V$123,9+A36,FALSE)))","v":""},null,{"$f":"IF(B36=\"\",\"\",VLOOKUP(CONCATENATE($C$6,\" - \",MID(B36,1,4)),Módulos!$E$2:$H$3000,4,FALSE))","v":""},{"$f":"IF(B36=\"\",\"\",VLOOKUP(CONCATENATE($C$6,\" - \",MID(B36,1,4)),Módulos!$E$2:$H$3000,3,FALSE))","v":""},"",null,null,null,"","","",""]
[9,{"$f":"IF(VLOOKUP(C$6,'Ciclos Nº RA'!B$4:V$123,9+A37,FALSE)=\"\",\"\",(VLOOKUP(C$6,'Ciclos Nº RA'!B$4:V$123,9+A37,FALSE)))","v":""},null,{"$f":"IF(B37=\"\",\"\",VLOOKUP(CONCATENATE($C$6,\" - \",MID(B37,1,4)),Módulos!$E$2:$H$3000,4,FALSE))","v":""},{"$f":"IF(B37=\"\",\"\",VLOOKUP(CONCATENATE($C$6,\" - \",MID(B37,1,4)),Módulos!$E$2:$H$3000,3,FALSE))","v":""},"",null,null,null,"","","",""]
[10,{"$f":"IF(VLOOKUP(C$6,'Ciclos Nº RA'!B$4:V$123,9+A38,FALSE)=\"\",\"\",(VLOOKUP(C$6,'Ciclos Nº RA'!B$4:V$123,9+A38,FALSE)))","v":""},null,{"$f":"IF(B38=\"\",\"\",VLOOKUP(CONCATENATE($C$6,\" - \",MID(B38,1,4)),Módulos!$E$2:$H$3000,4,FALSE))","v":""},{"$f":"IF(B38=\"\",\"\",VLOOKUP(CONCATENATE($C$6,\" - \",MID(B38,1,4)),Módulos!$E$2:$H$3000,3,FALSE))","v":""},"",null,null,null,"","","",""]
[11,{"$f":"IF(VLOOKUP(C$6,'Ciclos Nº RA'!B$4:V$123,9+A39,FALSE)=\"\",\"\",(VLOOKUP(C$6,'Ciclos Nº RA'!B$4:V$123,9+A39,FALSE)))","v":""},null,{"$f":"IF(B39=\"\",\"\",VLOOKUP(CONCATENATE($C$6,\" - \",MID(B39,1,4)),Módulos!$E$2:$H$3000,4,FALSE))","v":""},{"$f":"IF(B39=\"\",\"\",VLOOKUP(CONCATENATE($C$6,\" - \",MID(B39,1,4)),Módulos!$E$2:$H$3000,3,FALSE))","v":""},"",null,null,null,"","","",""]
[12,{"$f":"IF(VLOOKUP(C$6,'Ciclos Nº RA'!B$4:V$123,9+A40,FALSE)=\"\",\"\",(VLOOKUP(C$6,'Ciclos Nº RA'!B$4:V$123,9+A40,FALSE)))","v":""},null,{"$f":"IF(B40=\"\",\"\",VLOOKUP(CONCATENATE($C$6,\" - \",MID(B40,1,4)),Módulos!$E$2:$H$3000,4,FALSE))","v":""},{"$f":"IF(B40=\"\",\"\",VLOOKUP(CONCATENATE($C$6,\" - \",MID(B40,1,4)),Módulos!$E$2:$H$3000,3,FALSE))","v":""},"",null,null,null,"","","",""]
[13,{"$f":"IF(C6=\"\",\"\",IF(MID(C6,4,1)=\"2\",\"A996 - Tutoría II\",IF(C6=\"TMV302 (LFP)\",\"1710 - Itinerario personal para la Empleabilidad II\",\"0OPT - Módulo profesional optativo\")))","v":"A996 - Tutoría II"},null,{"$f":"IF(B41=\"\",\"\",VLOOKUP(CONCATENATE($C$6,\" - \",MID(B41,1,4)),Módulos!$E$2:$H$3000,4,FALSE))","v":33},{"$f":"IF(B41=\"\",\"\",VLOOKUP(CONCATENATE($C$6,\" - \",MID(B41,1,4)),Módulos!$E$2:$H$3000,3,FALSE))","v":1},"",null,null,null,"","","",""]
[14,{"$f":"IF(C6=\"\",\"\",IF(MID(C6,4,1)=\"2\",\"1713 - Proyecto intermodular\",\"\"))","v":"1713 - Proyecto intermodular"},null,{"$f":"IF(B42=\"\",\"\",VLOOKUP(CONCATENATE($C$6,\" - \",MID(B42,1,4)),Módulos!$E$2:$H$3000,4,FALSE))","v":67},{"$f":"IF(B42=\"\",\"\",VLOOKUP(CONCATENATE($C$6,\" - \",MID(B42,1,4)),Módulos!$E$2:$H$3000,3,FALSE))","v":2},"",null,null,null,"","","",""]
[15,{"$f":"IF(C6=\"\",\"\",IF(MID(C6,4,1)=\"2\",\"0OPT - Módulo profesional optativo\",\"\"))","v":"0OPT - Módulo profesional optativo"},null,{"$f":"IF(B43=\"\",\"\",VLOOKUP(CONCATENATE($C$6,\" - \",MID(B43,1,4)),Módulos!$E$2:$H$3000,4,FALSE))","v":100},{"$f":"IF(B43=\"\",\"\",VLOOKUP(CONCATENATE($C$6,\" - \",MID(B43,1,4)),Módulos!$E$2:$H$3000,3,FALSE))","v":3},"",null,null,null,"","","",""]
[null,null,null,{"$f":"IF(AND(SUM(D29:D43)>998,SUM(D29:D43)<1002),1000,SUM(D29:D43))","v":1000},{"$f":"SUM(E29:E43)","v":30},{"$f":"SUM(F29:F43)","v":0},null,{"$f":"IF(Horas_max_semana=20,IF(SUM(H29:H43)>Horas_max_semana,CONCATENATE(\"Reducir horas < \",SUM(H29:H43)),SUM(H29:H43)),IF(SUM(H29:H43)=30,30,CONCATENATE(\"Corregir (30) <> \",SUM(H29:H43))))","v":"Corregir (30) <> 0"},{"$f":"IF(Horas_max_semana<SUM(I29:I43),CONCATENATE(\"Debe reducir < \",SUM(I29:I43)),SUM(I29:I43))","v":0},{"$f":"CONCATENATE(\"Estimación semanas mínimas a dualizar con sólo 1º periodo = \",ROUND(Sem_1,0))","v":"Estimación semanas mínimas a dualizar con sólo 1º periodo = 0"},{"$f":"ROUND(SUM(K29:K43),0)","v":0},{"$f":"SUM(L29:L43)","v":0}]
[null,null,null,null,null,null,null,null,null,null,{"$f":"IF(AND(SUM(K29:L43)>998,SUM(K29:L43)<1002),1000,SUM(K44:L44))","v":0}]
[null,null,null,null,null,null,null,"Porcentaje horas formación en centro respecto horas máximas contrato = ",null,null,{"$f":"IF(Horas_convenio=\"\",\"\",IF(K44=0,\"\",K44/I22))","v":""}]
[null,null,null,null,null,null,null,{"$f":"IF(Tipo_relación_laboral=\"Beca formación\",IF(F44>K44,CONCATENATE(\"Debe incrementar el nº horas en centro > \",F44),\"\"),IF(K46<P14,CONCATENATE(\"Incrementar horas formación, % debe ser >= \",Q14,\" %\"),\"\"))","v":""},null,null,{"$f":"IF(COUNTBLANK(M29:M43)=15,\"Cumple ajustes mínimos de módulos\",\"Debe corregir horas módulos\")","v":"Cumple ajustes mínimos de módulos"}]

{"sheet":"2. Distribución centro+empresa","index":1,"n_rows":106,"n_cols":33,"rows_kept":106,"cut":false,"hidden":false,"merged":[[14,20,15,28],[21,11,21,12],[22,11,22,12],[20,5,20,6],[20,7,20,8],[21,5,21,6],[21,7,21,8],[22,5,22,6],[22,7,22,8],[19,7,19,8],[18,5,18,8],[19,5,19,6],[54,10,54,16],[54,18,54,24],[54,26,54,32],[54,2,54,8],[89,18,89,24],[89,26,89,32],[71,2,71,8],[80,2,80,8],[71,10,71,16],[71,18,71,24],[71,26,71,32],[80,10,80,16],[80,18,80,24],[80,26,80,32],[98,2,98,8],[98,10,98,16],[98,18,98,24],[98,26,98,32],[89,2,89,8],[89,10,89,16],[48,38,49,39],[27,2,27,8],[27,10,27,16],[27,18,27,24],[27,26,27,32],[30,38,30,39],[31,38,32,38],[31,39,32,39],[45,18,45,24],[45,26,45,32],[36,2,36,8],[36,10,36,16],[36,18,36,24],[36,26,36,32],[45,2,45,8],[45,10,45,16],[1,21,1,22],[1,24,1,25],[8,6,8,8],[7,18,7,19],[3,4,3,12],[5,4,5,17],[4,4,4,6],[7,6,7,8],[8,18,8,19],[8,21,11,32],[9,18,9,19],[10,18,10,19],[11,18,11,19],[24,11,24,12],[20,9,20,10],[24,13,24,14],[24,1,25,10],[20,13,20,14],[21,13,21,14],[22,13,22,14],[25,11,25,14],[23,5,23,6],[23,7,23,8],[23,9,23,10],[23,11,23,12],[23,13,23,14],[12,9,12,10],[21,9,21,10],[20,11,20,12],[22,9,22,10],[18,11,18,14],[19,11,19,12],[18,9,19,10],[19,13,19,14]]}
[]
[null,null,"Calendario FP-DUAL Intensiva",null,null,null,null,null,null,null,null,null,null,null,null,null,null,null,null,null,"Año académico:     ",{"$f":"MID('1. Ajuste horas formación'!H3,1,4)","v":"2025"},null," /",{"$f":"AñoActual+1","v":2026}]
[]
[null,null,"Centro",null,{"$f":"IF('1. Ajuste horas formación'!C5=\"\",\"\",'1. Ajuste horas formación'!C5)","v":"IES Ejemplo de Centro"}]
[null,null,"Ciclo",null,{"$f":"IF('1. Ajuste horas formación'!C6=\"\",\"\",'1. Ajuste horas formación'!C6)","v":"ADG201 (LFP)"}]
[null,null,"Ciclo",null,{"$f":"IF('1. Ajuste horas formación'!D7=\"\",\"\",'1. Ajuste horas formación'!D7)","v":"Gestión Administrativa"}]
[]
[null,null,"Inicio contrato",null,null,null,{"$f":"'1. Ajuste horas formación'!C21","v":"2025-09-12"},null,null,null,null,"Horas máximas contrato",null,null,null,null,null,null,{"$f":"'1. Ajuste horas formación'!I22","v":1370},null,"(horas en centro + horas en empresa)"]
[null,null,"Fin de contrato",null,null,null,{"$f":"'1. Ajuste horas formación'!C22","v":"2026-06-19"},null,null,null,null,"Horas minimas centro educativo",null,null,null,null,null,null,{"$f":"'1. Ajuste horas formación'!K44","v":0},null,null,"Depedende del proyecto a veces no se alcanza las horas máximas de contrato, pero deben cumplirse la mínimas en centro educativo y las de empresa situarse entre su mínimo y máximo, siendo su suma inferior a las máximas de contrato."]
[null,null,null,null,null,null,null,null,null,null,null,"Horas máximas en empresa",null,null,null,null,null,null,{"$f":"'1. Ajuste horas formación'!E13","v":860}]
[null,null,null,null,null,null,null,null,null,null,null,"Horas mínimas en empresa",null,null,null,null,null,null,{"$f":"'1. Ajuste horas formación'!P16","v":700}]
[null,null,null,null,null,null,null,null,null,null,null,"Días vacaciones",null,null,null,null,null,null,{"$f":"ROUND('1. Ajuste horas formación'!I21,0)","v":17}]
[null,null,"Tipos de días"]
[null,null,null,"Marcar los días con los colores según el tipo de día en el calendario"]
[null,null,null,null,null,"Nº días",null,null,null,null,null,null,null,null,null,null,null,null,null,null,"Festivos adicionales no incluidos inicialmente en el calendario para  2025/2026:"]
[null,null,"Festivos",null,null,{"$f":"COUNTIF($C$74:$AG$106,ObtenerColorCelda(E16))","v":24}]
[null,null,"Vacaciones",null,null,{"$f":"COUNTIF($C$74:$AG$106,ObtenerColorCelda(E17))","v":0},{"$f":"IF(F17<Dias_vacaciones,CONCATENATE(\"Incluir \",Dias_vacaciones,\" días de vacaciones\"),\"Ajustadas vacaciones\")","v":"Incluir 17 días de vacaciones"},null,null,null,null,null,null,null,null,null,null,null,null,null,null,"Provinciales"]
[null,null,null,null,null,null,null,null,null,null,null,null,null,null,null,null,null,null,null,null,null,null,"Huesca: 12 y 13 de febrero"]
[null,null,null,null,null,"Nº horas/día en",null,null,null,"Nº días según tipo",null,"Nº horas en",null,null,null,null,null,null,null,null,null,null,"Teruel: 20 y 23 de febrero"]
[null,null,null,null,null,"Centro",null,"Empresa",null,null,null,"Centro",null,"Empresa",null,null,null,null,null,null,null,null,"Zaragoza: 10 de octubre y 6 de marzo"]
[null,null,"Tipo día 1",null,null,6,null,0,null,{"$f":"COUNTIF($C$74:$AG$106,ObtenerColorCelda(E21))","v":177},null,{"$f":"F21*J21","v":1062},null,{"$f":"J21*H21","v":0},null,null,null,null,null,null,null,"Locales"]
[null,null,"Tipo día 2",null,null,0,null,8,null,{"$f":"COUNTIF($C$74:$AG$106,ObtenerColorCelda(E22))","v":0},null,{"$f":"F22*J22","v":0},null,{"$f":"J22*H22","v":0},null,null,null,null,null,null,null,null,"Faltan por definir dos días de fiesta local"]
[null,null,"Tipo día 3",null,null,4,null,4,null,{"$f":"COUNTIF($C$74:$AG$106,ObtenerColorCelda(E23))","v":0},null,0,null,0]
[null,null,"Tipo día 4",null,null,null,null,6,null,{"$f":"COUNTIF($C$74:$AG$106,ObtenerColorCelda(E24))","v":0},null,0,null,0]
[null,{"$f":"IF('1. Ajuste horas formación'!K44=0,\"\",IF(L25<Horas_min_formacion,CONCATENATE(\"Incrementar días en centro hasta \",Horas_min_formacion,\" h\"),IF(L25>Horas_min_formacion,CONCATENATE(\"Cuanto más cerca las horas en centro a \",Horas_min_formacion,,\" h \",\" mejor se ajusta a la organización del proyecto\"),\"Ajustada correctamente horas formación en centro educativo\")))","v":""},null,null,null,null,null,null,null,null,null,{"$f":"SUM(L21:M24)","v":1062},null,{"$f":"SUM(N21:O24)","v":0},null,{"$f":"IF(N25<S11,CONCATENATE(\"Debe incrementar horas en empresa con mínimo de \",S11,\" h\",\" y máximo de \",S10,\" h\"),IF(N25<=S10,CONCATENATE(\"Si queda margen entre inicio y fin del contrato puede incrementar horas en empresa hasta \",S10,\" h\"),CONCATENATE(\"Debe reducir horas en empresa como máximo pueden ser \",S10,\" h\")))","v":"Debe incrementar horas en empresa con mínimo de 700 h y máximo de 860 h"}]
[null,null,null,null,null,null,null,null,null,null,null,{"$f":"ROUND(SUM(L25:O25),0)","v":1062},null,null,null,{"$f":"IF(N25>S10,CONCATENATE(\"Debe reducir horas en empresa, máximo = \",S10,\" h\"),IF(AND(L25>=Horas_min_formacion,N25>=N25,N25<=S10,L26<=Horas_max_contrato),\"<--- Horas en centro + empresa organizadas en el Proyecto\",IF(L26>Horas_max_contrato,CONCATENATE(\"Debe reducir máximo a \",Horas_max_contrato,\" h\",\"Debe corregir mensajes de ajuste de horas en centro o en empresa\"))))","v":"<--- Horas en centro + empresa organizadas en el Proyecto"}]
[]
[null,null,{"$f":"\"JUNIO \"&AñoActual","v":"JUNIO 2025"},null,null,null,null,null,null,null,{"$f":"\"JULIO \"&AñoActual","v":"JULIO 2025"},null,null,null,null,null,null,null,{"$f":"\"AGOSTO \"&AñoActual","v":"AGOSTO 2025"},null,null,null,null,null,null,null,{"$f":"\"SEPTIEMBRE \"&AñoActual","v":"SEPTIEMBRE 2025"}]
[null,null,"L","M","X","J","V","S","D",null,"L","M","X","J","V","S","D",null,"L","M","X","J","V","S","D",null,"L","M","X","J","V","S","D"]
[null,null,{"$f":"IF(MONTH(DATE(AñoActual,6,1))<>MONTH(DATE(AñoActual,6,1)-(WEEKDAY(DATE(AñoActual,6,1),2)-1)+{0;1;2;3;4;5}*7+{1,2,3,4,5,6,7}-1),\"\",DATE(AñoActual,6,1)-(WEEKDAY(DATE(AñoActual,6,1),2)-1)+{0;1;2;3;4;5}*7+{1,2,3,4,5,6,7}-1)","v":""},"","","","","","2025-06-01",null,{"$f":"IF(MONTH(DATE(AñoActual,7,1))<>MONTH(DATE(AñoActual,7,1)-(WEEKDAY(DATE(AñoActual,7,1),2)-1)+{0;1;2;3;4;5}*7+{1,2,3,4,5,6,7}-1),\"\",DATE(AñoActual,7,1)-(WEEKDAY(DATE(AñoActual,7,1),2)-1)+{0;1;2;3;4;5}*7+{1,2,3,4,5,6,7}-1)","v":""},"2025-07-01","2025-07-02","2025-07-03","2025-07-04","2025-07-05","2025-07-06",null,{"$f":"IF(MONTH(DATE(AñoActual,8,1))<>MONTH(DATE(AñoActual,8,1)-(WEEKDAY(DATE(AñoActual,8,1),2)-1)+{0;1;2;3;4;5}*7+{1,2,3,4,5,6,7}-1),\"\",DATE(AñoActual,8,1)-(WEEKDAY(DATE(AñoActual,8,1),2)-1)+{0;1;2;3;4;5}*7+{1,2,3,4,5,6,7}-1)","v":""},"","","","2025-08-01","2025-08-02","2025-08-03",null,{"$f":"IF(MONTH(DATE(AñoActual,9,1))<>MONTH(DATE(AñoActual,9,1)-(WEEKDAY(DATE(AñoActual,9,1),2)-1)+{0;1;2;3;4;5}*7+{1,2,3,4,5,6,7}-1),\"\",DATE(AñoActual,9,1)-(WEEKDAY(DATE(AñoActual,9,1),2)-1)+{0;1;2;3;4;5}*7+{1,2,3,4,5,6,7}-1)","v":"2025-09-01"},"2025-09-02","2025-09-03","2025-09-04","2025-09-05","2025-09-06","2025-09-07"]
[null,null,"2025-06-02","2025-06-03","2025-06-04","2025-06-05","2025-06-06","2025-06-07","2025-06-08",null,"2025-07-07","2025-07-08","2025-07-09","2025-07-10","2025-07-11","2025-07-12","2025-07-13",null,"2025-08-04","2025-08-05","2025-08-06","2025-08-07","2025-08-08","2025-08-09","2025-08-10",null,"2025-09-08","2025-09-09","2025-09-10","2025-09-11","2025-09-12","2025-09-13","2025-09-14"]
[null,null,"2025-06-09","2025-06-10","2025-06-11","2025-06-12","2025-06-13","2025-06-14","2025-06-15",null,"2025-07-14","2025-07-15","2025-07-16","2025-07-17","2025-07-18","2025-07-19","2025-07-20",null,"2025-08-11","2025-08-12","2025-08-13","2025-08-14","2025-08-15","2025-08-16","2025-08-17",null,"2025-09-15","2025-09-16","2025-09-17","2025-09-18","2025-09-19","2025-09-20","2025-09-21"]
[null,null,"2025-06-16","2025-06-17","2025-06-18","2025-06-19","2025-06-20","2025-06-21","2025-06-22",null,"2025-07-21","2025-07-22","2025-07-23","2025-07-24","2025-07-25","2025-07-26","2025-07-27",null,"2025-08-18","2025-08-19","2025-08-20","2025-08-21","2025-08-22","2025-08-23","2025-08-24",null,"2025-09-22","2025-09-23","2025-09-24","2025-09-25","2025-09-26","2025-09-27","2025-09-28"]
[null,null,"2025-06-23","2025-06-24","2025-06-25","2025-06-26","2025-06-27","2025-06-28","2025-06-29",null,"2025-07-28","2025-07-29","2025-07-30","2025-07-31","","","",null,"2025-08-25","2025-08-26","2025-08-27","2025-08-28","2025-08-29","2025-08-30","2025-08-31",null,"2025-09-29","2025-09-30","","","","",""]
[null,null,"2025-06-30","","","","","","",null,"","","","","","","",null,"","","","","","","",null,"","","","","","",""]
[]
[null,null,{"$f":"\"OCTUBRE \"&AñoActual","v":"OCTUBRE 2025"},null,null,null,null,null,null,null,{"$f":"\"NOVIEMBRE \"&AñoActual","v":"NOVIEMBRE 2025"},null,null,null,null,null,null,null,{"$f":"\"DICIEMBRE \"&AñoActual","v":"DICIEMBRE 2025"},null,null,null,null,null,null,null,{"$f":"\"ENERO \"&AñoSiguiente","v":"ENERO 2026"}]
[null,null,"L","M","X","J","V","S","D",null,"L","M","X","J","V","S","D",null,"L","M","X","J","V","S","D",null,"L","M","X","J","V","S","D"]
[null,null,{"$f":"IF(MONTH(DATE(AñoActual,10,1))<>MONTH(DATE(AñoActual,10,1)-(WEEKDAY(DATE(AñoActual,10,1),2)-1)+{0;1;2;3;4;5}*7+{1,2,3,4,5,6,7}-1),\"\",DATE(AñoActual,10,1)-(WEEKDAY(DATE(AñoActual,10,1),2)-1)+{0;1;2;3;4;5}*7+{1,2,3,4,5,6,7}-1)","v":""},"","2025-10-01","2025-10-02","2025-10-03","2025-10-04","2025-10-05",null,{"$f":"IF(MONTH(DATE(AñoActual,11,1))<>MONTH(DATE(AñoActual,11,1)-(WEEKDAY(DATE(AñoActual,11,1),2)-1)+{0;1;2;3;4;5}*7+{1,2,3,4,5,6,7}-1),\"\",DATE(AñoActual,11,1)-(WEEKDAY(DATE(AñoActual,11,1),2)-1)+{0;1;2;3;4;5}*7+{1,2,3,4,5,6,7}-1)","v":""},"","","","","2025-11-01","2025-11-02",null,{"$f":"IF(MONTH(DATE(AñoActual,12,1))<>MONTH(DATE(AñoActual,12,1)-(WEEKDAY(DATE(AñoActual,12,1),2)-1)+{0;1;2;3;4;5}*7+{1,2,3,4,5,6,7}-1),\"\",DATE(AñoActual,12,1)-(WEEKDAY(DATE(AñoActual,12,1),2)-1)+{0;1;2;3;4;5}*7+{1,2,3,4,5,6,7}-1)","v":"2025-12-01"},"2025-12-02","2025-12-03","2025-12-04","2025-12-05","2025-12-06","2025-12-07",null,{"$f":"IF(MONTH(DATE(AñoSiguiente,1,1))<>MONTH(DATE(AñoSiguiente,1,1)-(WEEKDAY(DATE(AñoSiguiente,1,1),2)-1)+{0;1;2;3;4;5}*7+{1,2,3,4,5,6,7}-1),\"\",DATE(AñoSiguiente,1,1)-(WEEKDAY(DATE(AñoSiguiente,1,1),2)-1)+{0;1;2;3;4;5}*7+{1,2,3,4,5,6,7}-1)","v":""},"","","2026-01-01","2026-01-02","2026-01-03","2026-01-04"]
[null,null,"2025-10-06","2025-10-07","2025-10-08","2025-10-09","2025-10-10","2025-10-11","2025-10-12",null,"2025-11-03","2025-11-04","2025-11-05","2025-11-06","2025-11-07","2025-11-08","2025-11-09",null,"2025-12-08","2025-12-09","2025-12-10","2025-12-11","2025-12-12","2025-12-13","2025-12-14",null,"2026-01-05","2026-01-06","2026-01-07","2026-01-08","2026-01-09","2026-01-10","2026-01-11"]
[null,null,"2025-10-13","2025-10-14","2025-10-15","2025-10-16","2025-10-17","2025-10-18","2025-10-19",null,"2025-11-10","2025-11-11","2025-11-12","2025-11-13","2025-11-14","2025-11-15","2025-11-16",null,"2025-12-15","2025-12-16","2025-12-17","2025-12-18","2025-12-19","2025-12-20","2025-12-21",null,"2026-01-12","2026-01-13","2026-01-14","2026-01-15","2026-01-16","2026-01-17","2026-01-18"]
[null,null,"2025-10-20","2025-10-21","2025-10-22","2025-10-23","2025-10-24","2025-10-25","2025-10-26",null,"2025-11-17","2025-11-18","2025-11-19","2025-11-20","2025-11-21","2025-11-22","2025-11-23",null,"2025-12-22","2025-12-23","2025-12-24","2025-12-25","2025-12-26","2025-12-27","2025-12-28",null,"2026-01-19","2026-01-20","2026-01-21","2026-01-22","2026-01-23","2026-01-24","2026-01-25"]
[null,null,"2025-10-27","2025-10-28","2025-10-29","2025-10-30","2025-10-31","","",null,"2025-11-24","2025-11-25","2025-11-26","2025-11-27","2025-11-28","2025-11-29","2025-11-30",null,"2025-12-29","2025-12-30","2025-12-31","","","","",null,"2026-01-26","2026-01-27","2026-01-28","2026-01-29","2026-01-30","2026-01-31",""]
[null,null,"","","","","","","",null,"","","","","","","",null,"","","","","","","",null,"","","","","","",""]
[]
[null,null,{"$f":"\"FEBRERO \"&AñoSiguiente","v":"FEBRERO 2026"},null,null,null,null,null,null,null,{"$f":"\"MARZO \"&AñoSiguiente","v":"MARZO 2026"},null,null,null,null,null,null,null,{"$f":"\"ABRIL \"&AñoSiguiente","v":"ABRIL 2026"},null,null,null,null,null,null,null,{"$f":"\"MAYO \"&AñoSiguiente","v":"MAYO 2026"}]
[null,null,"L","M","X","J","V","S","D",null,"L","M","X","J","V","S","D",null,"L","M","X","J","V","S","D",null,"L","M","X","J","V","S","D"]
[null,null,{"$f":"IF(MONTH(DATE(AñoSiguiente,2,1))<>MONTH(DATE(AñoSiguiente,2,1)-(WEEKDAY(DATE(AñoSiguiente,2,1),2)-1)+{0;1;2;3;4;5}*7+{1,2,3,4,5,6,7}-1),\"\",DATE(AñoSiguiente,2,1)-(WEEKDAY(DATE(AñoSiguiente,2,1),2)-1)+{0;1;2;3;4;5}*7+{1,2,3,4,5,6,7}-1)","v":""},"","","","","","2026-02-01",null,{"$f":"IF(MONTH(DATE(AñoSiguiente,3,1))<>MONTH(DATE(AñoSiguiente,3,1)-(WEEKDAY(DATE(AñoSiguiente,3,1),2)-1)+{0;1;2;3;4;5}*7+{1,2,3,4,5,6,7}-1),\"\",DATE(AñoSiguiente,3,1)-(WEEKDAY(DATE(AñoSiguiente,3,1),2)-1)+{0;1;2;3;4;5}*7+{1,2,3,4,5,6,7}-1)","v":""},"","","","","","2026-03-01",null,{"$f":"IF(MONTH(DATE(AñoSiguiente,4,1))<>MONTH(DATE(AñoSiguiente,4,1)-(WEEKDAY(DATE(AñoSiguiente,4,1),2)-1)+{0;1;2;3;4;5}*7+{1,2,3,4,5,6,7}-1),\"\",DATE(AñoSiguiente,4,1)-(WEEKDAY(DATE(AñoSiguiente,4,1),2)-1)+{0;1;2;3;4;5}*7+{1,2,3,4,5,6,7}-1)","v":""},"","2026-04-01","2026-04-02","2026-04-03","2026-04-04","2026-04-05",null,{"$f":"IF(MONTH(DATE(AñoSiguiente,5,1))<>MONTH(DATE(AñoSiguiente,5,1)-(WEEKDAY(DATE(AñoSiguiente,5,1),2)-1)+{0;1;2;3;4;5}*7+{1,2,3,4,5,6,7}-1),\"\",DATE(AñoSiguiente,5,1)-(WEEKDAY(DATE(AñoSiguiente,5,1),2)-1)+{0;1;2;3;4;5}*7+{1,2,3,4,5,6,7}-1)","v":""},"","","","2026-05-01","2026-05-02","2026-05-03"]
[null,null,"2026-02-02","2026-02-03","2026-02-04","2026-02-05","2026-02-06","2026-02-07","2026-02-08",null,"2026-03-02","2026-03-03","2026-03-04","2026-03-05","2026-03-06","2026-03-07","2026-03-08",null,"2026-04-06","2026-04-07","2026-04-08","2026-04-09","2026-04-10","2026-04-11","2026-04-12",null,"2026-05-04","2026-05-05","2026-05-06","2026-05-07","2026-05-08","2026-05-09","2026-05-10"]
[null,null,"2026-02-09","2026-02-10","2026-02-11","2026-02-12","2026-02-13","2026-02-14","2026-02-15",null,"2026-03-09","2026-03-10","2026-03-11","2026-03-12","2026-03-13","2026-03-14","2026-03-15",null,"2026-04-13","2026-04-14","2026-04-15","2026-04-16","2026-04-17","2026-04-18","2026-04-19",null,"2026-05-11","2026-05-12","2026-05-13","2026-05-14","2026-05-15","2026-05-16","2026-05-17"]
[null,null,"2026-02-16","2026-02-17","2026-02-18","2026-02-19","2026-02-20","2026-02-21","2026-02-22",null,"2026-03-16","2026-03-17","2026-03-18","2026-03-19","2026-03-20","2026-03-21","2026-03-22",null,"2026-04-20","2026-04-21","2026-04-22","2026-04-23","2026-04-24","2026-04-25","2026-04-26",null,"2026-05-18","2026-05-19","2026-05-20","2026-05-21","2026-05-22","2026-05-23","2026-05-24"]
[null,null,"2026-02-23","2026-02-24","2026-02-25","2026-02-26","2026-02-27","2026-02-28","",null,"2026-03-23","2026-03-24","2026-03-25","2026-03-26","2026-03-27","2026-03-28","2026-03-29",null,"2026-04-27","2026-04-28","2026-04-29","2026-04-30","","","",null,"2026-05-25","2026-05-26","2026-05-27","2026-05-28","2026-05-29","2026-05-30","2026-05-31"]
[null,null,"","","","","","","",null,"2026-03-30","2026-03-31","","","","","",null,"","","","","","","",null,"","","","","","",""]
[]
[null,null,{"$f":"\"JUNIO \"&AñoSiguiente","v":"JUNIO 2026"},null,null,null,null,null,null,null,{"$f":"\"JULIO \"&AñoSiguiente","v":"JULIO 2026"},null,null,null,null,null,null,null,{"$f":"\"AGOSTO \"&AñoSiguiente","v":"AGOSTO 2026"},null,null,null,null,null,null,null,{"$f":"\"SEPTIEMBRE \"&AñoActual+1","v":"SEPTIEMBRE 2026"}]
[null,null,"L","M","X","J","V","S","D",null,"L","M","X","J","V","S","D",null,"L","M","X","J","V","S","D",null,"L","M","X","J","V","S","D"]
[null,null,{"$f":"IF(MONTH(DATE(AñoSiguiente,6,1))<>MONTH(DATE(AñoSiguiente,6,1)-(WEEKDAY(DATE(AñoSiguiente,6,1),2)-1)+{0;1;2;3;4;5}*7+{1,2,3,4,5,6,7}-1),\"\",DATE(AñoSiguiente,6,1)-(WEEKDAY(DATE(AñoSiguiente,6,1),2)-1)+{0;1;2;3;4;5}*7+{1,2,3,4,5,6,7}-1)","v":"2026-06-01"},"2026-06-02","2026-06-03","2026-06-04","2026-06-05","2026-06-06","2026-06-07",null,{"$f":"IF(MONTH(DATE(AñoSiguiente,7,1))<>MONTH(DATE(AñoSiguiente,7,1)-(WEEKDAY(DATE(AñoSiguiente,7,1),2)-1)+{0;1;2;3;4;5}*7+{1,2,3,4,5,6,7}-1),\"\",DATE(AñoSiguiente,7,1)-(WEEKDAY(DATE(AñoSiguiente,7,1),2)-1)+{0;1;2;3;4;5}*7+{1,2,3,4,5,6,7}-1)","v":""},"","2026-07-01","2026-07-02","2026-07-03","2026-07-04","2026-07-05",null,{"$f":"IF(MONTH(DATE(AñoSiguiente,8,1))<>MONTH(DATE(AñoSiguiente,8,1)-(WEEKDAY(DATE(AñoSiguiente,8,1),2)-1)+{0;1;2;3;4;5}*7+{1,2,3,4,5,6,7}-1),\"\",DATE(AñoSiguiente,8,1)-(WEEKDAY(DATE(AñoSiguiente,8,1),2)-1)+{0;1;2;3;4;5}*7+{1,2,3,4,5,6,7}-1)","v":""},"","","","","2026-08-01","2026-08-02",null,{"$f":"IF(MONTH(DATE(AñoSiguiente,9,1))<>MONTH(DATE(AñoSiguiente,9,1)-(WEEKDAY(DATE(AñoSiguiente,9,1),2)-1)+{0;1;2;3;4;5}*7+{1,2,3,4,5,6,7}-1),\"\",DATE(AñoSiguiente,9,1)-(WEEKDAY(DATE(AñoSiguiente,9,1),2)-1)+{0;1;2;3;4;5}*7+{1,2,3,4,5,6,7}-1)","v":""},"2026-09-01","2026-09-02","2026-09-03","2026-09-04","2026-09-05","2026-09-06"]
[null,null,"2026-06-08","2026-06-09","2026-06-10","2026-06-11","2026-06-12","2026-06-13","2026-06-14",null,"2026-07-06","2026-07-07","2026-07-08","2026-07-09","2026-07-10","2026-07-11","2026-07-12",null,"2026-08-03","2026-08-04","2026-08-05","2026-08-06","2026-08-07","2026-08-08","2026-08-09",null,"2026-09-07","2026-09-08","2026-09-09","2026-09-10","2026-09-11","2026-09-12","2026-09-13"]
[null,null,"2026-06-15","2026-06-16","2026-06-17","2026-06-18","2026-06-19","2026-06-20","2026-06-21",null,"2026-07-13","2026-07-14","2026-07-15","2026-07-16","2026-07-17","2026-07-18","2026-07-19",null,"2026-08-10","2026-08-11","2026-08-12","2026-08-13","2026-08-14","2026-08-15","2026-08-16",null,"2026-09-14","2026-09-15","2026-09-16","2026-09-17","2026-09-18","2026-09-19","2026-09-20"]
[null,null,"2026-06-22","2026-06-23","2026-06-24","2026-06-25","2026-06-26","2026-06-27","2026-06-28",null,"2026-07-20","2026-07-21","2026-07-22","2026-07-23","2026-07-24","2026-07-25","2026-07-26",null,"2026-08-17","2026-08-18","2026-08-19","2026-08-20","2026-08-21","2026-08-22","2026-08-23",null,"2026-09-21","2026-09-22","2026-09-23","2026-09-24","2026-09-25","2026-09-26","2026-09-27"]
[null,null,"2026-06-29","2026-06-30","","","","","",null,"2026-07-27","2026-07-28","2026-07-29","2026-07-30","2026-07-31","","",null,"2026-08-24","2026-08-25","2026-08-26","2026-08-27","2026-08-28","2026-08-29","2026-08-30",null,"2026-09-28","2026-09-29","2026-09-30","","","",""]
[null,null,"","","","","","","",null,"","","","","","","",null,"2026-08-31","","","","","","",null,"","","","","","",""]
[]
[]
[]
[]
[]
[]
[]
[]
[null,null,"Tabla con colores de las celdas"]
[null,null,{"$f":"\"JUNIO \"&AñoActual","v":"JUNIO 2025"},null,null,null,null,null,null,null,{"$f":"\"JULIO \"&AñoActual","v":"JULIO 2025"},null,null,null,null,null,null,null,{"$f":"\"AGOSTO \"&AñoActual","v":"AGOSTO 2025"},null,null,null,null,null,null,null,{"$f":"\"SEPTIEMBRE \"&AñoActual","v":"SEPTIEMBRE 2025"}]
[null,null,"L","M","X","J","V","S","D",null,"L","M","X","J","V","S","D",null,"L","M","X","J","V","S","D",null,"L","M","X","J","V","S","D"]
[null,null,{"$f":"ObtenerColorCelda(C30)","v":16777215},16777215,16777215,16777215,16777215,10092543,10092543,null,{"$f":"ObtenerColorCelda(K30)","v":16777215},16777215,16777215,16777215,16777215,10092543,10092543,null,{"$f":"ObtenerColorCelda(S30)","v":16777215},16777215,16777215,16777215,16777215,10092543,10092543,null,{"$f":"ObtenerColorCelda(AA30)","v":16777215},16777215,16777215,16777215,16777215,10092543,10092543]
[null,null,{"$f":"ObtenerColorCelda(C31)","v":16777215},16777215,16777215,16777215,16777215,10092543,10092543,null,{"$f":"ObtenerColorCelda(K31)","v":16777215},16777215,16777215,16777215,16777215,10092543,10092543,null,{"$f":"ObtenerColorCelda(S31)","v":16777215},16777215,16777215,16777215,16777215,10092543,10092543,null,{"$f":"ObtenerColorCelda(AA31)","v":16777215},16777215,16777215,16777215,49407,10092543,10092543]
[null,null,{"$f":"ObtenerColorCelda(C32)","v":16777215},16777215,16777215,16777215,16777215,10092543,10092543,null,{"$f":"ObtenerColorCelda(K32)","v":16777215},16777215,16777215,16777215,16777215,10092543,10092543,null,{"$f":"ObtenerColorCelda(S32)","v":16777215},16777215,16777215,16777215,16777215,10092543,10092543,null,{"$f":"ObtenerColorCelda(AA32)","v":49407},49407,49407,49407,49407,10092543,10092543]
[null,null,{"$f":"ObtenerColorCelda(C33)","v":16777215},16777215,16777215,16777215,16777215,10092543,10092543,null,{"$f":"ObtenerColorCelda(K33)","v":16777215},16777215,16777215,16777215,16777215,10092543,10092543,null,{"$f":"ObtenerColorCelda(S33)","v":16777215},16777215,16777215,16777215,16777215,10092543,10092543,null,{"$f":"ObtenerColorCelda(AA33)","v":49407},49407,49407,49407,49407,10092543,10092543]
[null,null,{"$f":"ObtenerColorCelda(C34)","v":16777215},16777215,16777215,16777215,16777215,10092543,10092543,null,{"$f":"ObtenerColorCelda(K34)","v":16777215},16777215,16777215,16777215,16777215,10092543,10092543,null,{"$f":"ObtenerColorCelda(S34)","v":16777215},16777215,16777215,16777215,16777215,10092543,10092543,null,{"$f":"ObtenerColorCelda(AA34)","v":49407},49407,16777215,16777215,16777215,10092543,10092543]
[null,null,{"$f":"ObtenerColorCelda(C35)","v":16777215},16777215,16777215,16777215,16777215,10092543,10092543,null,{"$f":"ObtenerColorCelda(K35)","v":16777215},16777215,16777215,16777215,16777215,10092543,10092543,null,{"$f":"ObtenerColorCelda(S35)","v":16777215},16777215,16777215,16777215,16777215,10092543,10092543,null,{"$f":"ObtenerColorCelda(AA35)","v":16777215},16777215,16777215,16777215,16777215,10092543,10092543]
[]
[null,null,{"$f":"\"OCTUBRE \"&AñoActual","v":"OCTUBRE 2025"},null,null,null,null,null,null,null,{"$f":"\"NOVIEMBRE \"&AñoActual","v":"NOVIEMBRE 2025"},null,null,null,null,null,null,null,{"$f":"\"DICIEMBRE \"&AñoActual","v":"DICIEMBRE 2025"},null,null,null,null,null,null,null,{"$f":"\"ENERO \"&AñoSiguiente","v":"ENERO 2026"}]
[null,null,"L","M","X","J","V","S","D",null,"L","M","X","J","V","S","D",null,"L","M","X","J","V","S","D",null,"L","M","X","J","V","S","D"]
[null,null,{"$f":"ObtenerColorCelda(C39)","v":16777215},16777215,49407,49407,49407,10092543,10092543,null,{"$f":"ObtenerColorCelda(K39)","v":16777215},16777215,16777215,16777215,16777215,10092543,10092543,null,{"$f":"ObtenerColorCelda(S39)","v":49407},49407,49407,49407,49407,10092543,10092543,null,{"$f":"ObtenerColorCelda(AA39)","v":16777215},16777215,16777215,255,255,10092543,10092543]
[null,null,{"$f":"ObtenerColorCelda(C40)","v":49407},49407,49407,49407,49407,10092543,10092543,null,{"$f":"ObtenerColorCelda(K40)","v":49407},49407,49407,49407,49407,10092543,10092543,null,{"$f":"ObtenerColorCelda(S40)","v":255},49407,49407,49407,49407,10092543,10092543,null,{"$f":"ObtenerColorCelda(AA40)","v":255},255,255,49407,49407,10092543,10092543]
[null,null,{"$f":"ObtenerColorCelda(C41)","v":255},49407,49407,49407,49407,10092543,10092543,null,{"$f":"ObtenerColorCelda(K41)","v":49407},49407,49407,49407,49407,10092543,10092543,null,{"$f":"ObtenerColorCelda(S41)","v":49407},49407,49407,49407,49407,10092543,10092543,null,{"$f":"ObtenerColorCelda(AA41)","v":49407},49407,49407,49407,49407,10092543,10092543]
[null,null,{"$f":"ObtenerColorCelda(C42)","v":49407},49407,49407,49407,49407,10092543,10092543,null,{"$f":"ObtenerColorCelda(K42)","v":49407},49407,49407,49407,49407,10092543,10092543,null,{"$f":"ObtenerColorCelda(S42)","v":255},255,255,255,255,10092543,10092543,null,{"$f":"ObtenerColorCelda(AA42)","v":49407},49407,49407,49407,49407,10092543,10092543]
[null,null,{"$f":"ObtenerColorCelda(C43)","v":49407},49407,49407,49407,49407,10092543,10092543,null,{"$f":"ObtenerColorCelda(K43)","v":49407},49407,49407,49407,49407,10092543,10092543,null,{"$f":"ObtenerColorCelda(S43)","v":255},255,255,16777215,16777215,10092543,10092543,null,{"$f":"ObtenerColorCelda(AA43)","v":49407},49407,49407,49407,49407,10092543,10092543]
[null,null,{"$f":"ObtenerColorCelda(C44)","v":16777215},16777215,16777215,16777215,16777215,10092543,10092543,null,{"$f":"ObtenerColorCelda(K44)","v":16777215},16777215,16777215,16777215,16777215,10092543,10092543,null,{"$f":"ObtenerColorCelda(S44)","v":16777215},16777215,16777215,16777215,16777215,10092543,10092543,null,{"$f":"ObtenerColorCelda(AA44)","v":16777215},16777215,16777215,16777215,16777215,10092543,10092543]
[]
[null,null,{"$f":"\"FEBRERO \"&AñoSiguiente","v":"FEBRERO 2026"},null,null,null,null,null,null,null,{"$f":"\"MARZO \"&AñoSiguiente","v":"MARZO 2026"},null,null,null,null,null,null,null,{"$f":"\"ABRIL \"&AñoSiguiente","v":"ABRIL 2026"},null,null,null,null,null,null,null,{"$f":"\"MAYO \"&AñoSiguiente","v":"MAYO 2026"}]
[null,null,"L","M","X","J","V","S","D",null,"L","M","X","J","V","S","D",null,"L","M","X","J","V","S","D",null,"L","M","X","J","V","S","D"]
[null,null,{"$f":"ObtenerColorCelda(C48)","v":16777215},16777215,16777215,16777215,16777215,10092543,10092543,null,{"$f":"ObtenerColorCelda(K48)","v":16777215},16777215,16777215,16777215,16777215,10092543,10092543,null,{"$f":"ObtenerColorCelda(S48)","v":16777215},16777215,255,255,255,10092543,10092543,null,{"$f":"ObtenerColorCelda(AA48)","v":16777215},16777215,16777215,16777215,255,10092543,10092543]
[null,null,{"$f":"ObtenerColorCelda(C49)","v":49407},49407,49407,49407,49407,10092543,10092543,null,{"$f":"ObtenerColorCelda(K49)","v":49407},49407,49407,49407,49407,10092543,10092543,null,{"$f":"ObtenerColorCelda(S49)","v":255},49407,49407,49407,49407,10092543,10092543,null,{"$f":"ObtenerColorCelda(AA49)","v":49407},49407,49407,49407,49407,10092543,10092543]
[null,null,{"$f":"ObtenerColorCelda(C50)","v":49407},49407,49407,49407,49407,10092543,10092543,null,{"$f":"ObtenerColorCelda(K50)","v":49407},49407,49407,49407,49407,10092543,10092543,null,{"$f":"ObtenerColorCelda(S50)","v":49407},49407,49407,49407,49407,10092543,10092543,null,{"$f":"ObtenerColorCelda(AA50)","v":49407},49407,49407,49407,49407,10092543,10092543]
[null,null,{"$f":"ObtenerColorCelda(C51)","v":49407},49407,49407,49407,49407,10092543,10092543,null,{"$f":"ObtenerColorCelda(K51)","v":49407},49407,49407,49407,49407,10092543,10092543,null,{"$f":"ObtenerColorCelda(S51)","v":49407},49407,49407,255,255,10092543,10092543,null,{"$f":"ObtenerColorCelda(AA51)","v":49407},49407,49407,49407,49407,10092543,10092543]
[null,null,{"$f":"ObtenerColorCelda(C52)","v":49407},49407,49407,49407,49407,10092543,10092543,null,{"$f":"ObtenerColorCelda(K52)","v":49407},49407,49407,49407,49407,10092543,10092543,null,{"$f":"ObtenerColorCelda(S52)","v":49407},49407,49407,49407,16777215,10092543,10092543,null,{"$f":"ObtenerColorCelda(AA52)","v":49407},49407,49407,49407,49407,10092543,10092543]
[null,null,{"$f":"ObtenerColorCelda(C53)","v":16777215},16777215,16777215,16777215,16777215,10092543,10092543,null,{"$f":"ObtenerColorCelda(K53)","v":255},255,16777215,16777215,16777215,10092543,10092543,null,{"$f":"ObtenerColorCelda(S53)","v":16777215},16777215,16777215,16777215,16777215,10092543,10092543,null,{"$f":"ObtenerColorCelda(AA53)","v":16777215},16777215,16777215,16777215,16777215,10092543,10092543]
[]
[null,null,{"$f":"\"JUNIO \"&AñoSiguiente","v":"JUNIO 2026"},null,null,null,null,null,null,null,{"$f":"\"JULIO \"&AñoSiguiente","v":"JULIO 2026"},null,null,null,null,null,null,null,{"$f":"\"AGOSTO \"&AñoSiguiente","v":"AGOSTO 2026"},null,null,null,null,null,null,null,{"$f":"\"SEPTIEMBRE \"&AñoActual+1","v":"SEPTIEMBRE 2026"}]
[null,null,"L","M","X","J","V","S","D",null,"L","M","X","J","V","S","D",null,"L","M","X","J","V","S","D",null,"L","M","X","J","V","S","D"]
[null,null,{"$f":"ObtenerColorCelda(C57)","v":49407},49407,49407,49407,49407,10092543,10092543,null,{"$f":"ObtenerColorCelda(K57)","v":16777215},16777215,16777215,16777215,16777215,10092543,10092543,null,{"$f":"ObtenerColorCelda(S57)","v":16777215},16777215,16777215,16777215,16777215,10092543,10092543,null,{"$f":"ObtenerColorCelda(AA57)","v":16777215},16777215,16777215,16777215,16777215,10092543,10092543]
[null,null,{"$f":"ObtenerColorCelda(C58)","v":49407},49407,49407,49407,49407,10092543,10092543,null,{"$f":"ObtenerColorCelda(K58)","v":16777215},16777215,16777215,16777215,16777215,10092543,10092543,null,{"$f":"ObtenerColorCelda(S58)","v":16777215},16777215,16777215,16777215,16777215,10092543,10092543,null,{"$f":"ObtenerColorCelda(AA58)","v":16777215},16777215,16777215,16777215,16777215,10092543,10092543]
[null,null,{"$f":"ObtenerColorCelda(C59)","v":49407},49407,49407,49407,49407,10092543,10092543,null,{"$f":"ObtenerColorCelda(K59)","v":16777215},16777215,16777215,16777215,16777215,10092543,10092543,null,{"$f":"ObtenerColorCelda(S59)","v":16777215},16777215,16777215,16777215,16777215,10092543,10092543,null,{"$f":"ObtenerColorCelda(AA59)","v":16777215},16777215,16777215,16777215,16777215,10092543,10092543]
[null,null,{"$f":"ObtenerColorCelda(C60)","v":16777215},16777215,16777215,16777215,16777215,10092543,10092543,null,{"$f":"ObtenerColorCelda(K60)","v":16777215},16777215,16777215,16777215,16777215,10092543,10092543,null,{"$f":"ObtenerColorCelda(S60)","v":16777215},16777215,16777215,16777215,16777215,10092543,10092543,null,{"$f":"ObtenerColorCelda(AA60)","v":16777215},16777215,16777215,16777215,16777215,10092543,10092543]
[null,null,{"$f":"ObtenerColorCelda(C61)","v":16777215},16777215,16777215,16777215,16777215,10092543,10092543,null,{"$f":"ObtenerColorCelda(K61)","v":16777215},16777215,16777215,16777215,16777215,10092543,10092543,null,{"$f":"ObtenerColorCelda(S61)","v":16777215},16777215,16777215,16777215,16777215,10092543,10092543,null,{"$f":"ObtenerColorCelda(AA61)","v":16777215},16777215,16777215,16777215,16777215,10092543,10092543]
[null,null,{"$f":"ObtenerColorCelda(C62)","v":16777215},16777215,16777215,16777215,16777215,10092543,10092543,null,{"$f":"ObtenerColorCelda(K62)","v":16777215},16777215,16777215,16777215,16777215,10092543,10092543,null,{"$f":"ObtenerColorCelda(S62)","v":16777215},16777215,16777215,16777215,16777215,10092543,10092543,null,{"$f":"ObtenerColorCelda(AA62)","v":16777215},16777215,16777215,16777215,16777215,10092543,10092543]

{"sheet":"3. Resumen por periodos","index":2,"n_rows":15,"n_cols":8,"rows_kept":15,"cut":false,"hidden":false,"merged":[[12,6,13,6],[0,3,1,3],[0,5,1,5],[12,7,13,7],[14,2,17,5],[14,6,17,7],[0,6,1,6],[0,7,1,7],[12,5,13,5],[0,0,1,0],[0,1,1,1],[0,2,1,2],[0,4,1,4],[12,2,13,2],[12,3,13,3],[12,0,13,0],[12,1,13,1],[12,4,13,4]]}
["PERIODO (Insertar un nuevo periodo cada vez que haya un cambio en el horario o la distribución de jornada. Completar únicamente desde la fecha de firma de contrato o beca)","Fechas del periodo\n\n(Ejemplo: De 12/09/2025 a 20/12/2025)","Horas semanales de formación en el centro (completar únicamente desde la fecha de firma de contrato o beca con número de periodos lectivos)*\n\n(Ejemplo: 20)","Horas totales en el PERIODO de formación en el centro (completar únicamente desde la fecha de firma de contrato o beca con número de periodos lectivos)\n\n(Ejemplo: 120)","Horas semanales de trabajo efectivo en la empresa*\n\n(Ejemplo: 10)","Horas en el PERIODO de trabajo efectivo en la empresa\n\n(Ejemplo: 60)","Distribución horario en el centro educativo\n\n(Ejemplo: De L a V de 8:30 a 14:30)","Horario laboral en la empresa\n\n(Ejemplo: De L a V de 16:00 a 18:00)"]
[]
["PERIODO 1"]
["PERIODO 2"]
["PERIODO 3"]
["PERIODO 4"]
["PERIODO 5"]
["PERIODO 6"]
["PERIODO 7"]
["PERIODO 8"]
["PERIODO 9"]
["PERIODO 10"]
["Horas jornada máxima anual según convenio colectivo aplicable:",{"$f":"'1. Ajuste horas formación'!I22","v":1370},"Horas de formación en Centro Educativo:",{"$f":"SUM(D3:D12)","v":0},"Horas de trabajo efectivo en empresa:",{"$f":"SUM(F3:F12)","v":0},"Horas totales contrato",{"$f":"ROUND((D13+F13),0)","v":0}]
[]
[null,null,{"$f":"CONCATENATE(\"(1) El porcentaje de las horas de formación en el centro debe ser de un \",'1. Ajuste horas formación'!Q14,\"%\")","v":"(1) El porcentaje de las horas de formación en el centro debe ser de un 35%"},null,null,null,"(2) La suma total de horas (centro educativo y empresa) debe ser como máximo la del periodo del contrato del convenio colectivo aplicable."]

{"sheet":" 4. Coste alumnado","index":3,"n_rows":32,"n_cols":14,"rows_kept":32,"cut":false,"hidden":false,"merged":[[31,7,31,8],[25,7,25,8],[27,7,28,7],[27,8,28,8],[29,2,29,6],[29,7,30,7],[29,8,30,8],[30,2,30,6],[7,7,7,8],[8,0,9,2],[8,7,8,8],[10,7,10,8],[21,3,22,3],[21,4,22,4],[21,5,22,5],[21,6,22,6],[21,7,22,7],[21,8,22,8],[2,9,2,11],[2,12,2,13],[4,7,4,8],[5,7,6,8],[5,9,6,9],[5,10,6,10],[5,11,6,11],[5,12,6,12],[5,13,6,13]]}
["Coste para la empresa del alumnado (2025)",null,null,null,null,null,null,"Cotizaciones contrato formación en alternancia (2025) - (Orden PJC/178/2025, de 25 febrero de 2025)"]
[]
[null,"Salario mínimo interprofesional (2025)",null,null,null,null,null,null,null,"Contrato en alternancia",null,null,"Beca de formación"]
[null,null,"SMI (€/año)",16576,null,null,null,null,null,"Empresa","Trabajador","Total","Empresa","Trabajador"]
[null,null,"SMI (€/mes)",{"$f":"D4/12","v":1381.3333333333333},"(12 pagas)",null,null,"Contingencias comunes",null,55.97,11.16,{"$f":"J5+K5","v":67.13},63.44]
[null,null,null,null,null,null,null,"Accidentes de trabajo y enfermedades profesionales",null,7.71,null,{"$f":"J6+K6","v":7.71},7.71]
[]
[null,"Cálculo medio mensual pago y cotizaciones",null,null,null,null,null,"Desempleo",null,75.97,21.41,97.38]
["% formación mínima en centro educativo",null,null,0.35,null,null,null,"Formación",null,2.09,0.27,2.36]
[null,null,null,null,null,null,null,"Fondo garancia salarial",null,4.25,null,{"$f":"J10+K10","v":4.25}]
[null,null,null,null,null,null,null,"MEI (no se puede bonificar)",null,9.25,1.8,{"$f":"J11+K11","v":11.05}]
[null,null,null,null,null,null,null,null,null,{"$f":"SUM(J5:J11)","v":155.24},{"$f":"SUM(K5:K11)","v":34.64},189.88,71.149999999999991,0]
[]
[null,null,null,null,null,null,null,null,"Bonificaciones contrato en alternancia","Empresa","Trabajador","Total"]
[null,null,null,null,null,null,null,null,"Bonificaciones (RD Ley 1/2023)",91,28,{"$f":"J15+K15","v":119}]
[null,null,null,null,null,null,null,null,"Tutorización más de 5 trabajadores",60]
[null,null,null,null,null,null,null,null,"Tutorización igual o menos de 5 trabajadores",80]
[]
[null,null,null,null,null,null,null,null,"Bonificaciones beca de formación",0.95,"(de contigencias comunes)"]
[]
[]
[null,null,null,"Retribución bruta media mensual (€/mes)","Pago cotizaciones empresa (€/mes)","Bonificación (€/mes)","Bonif. Tutorización (< 5 trabaj.) (€/mes)","Bonif. Tutorización (> 5 trabaj.) (€/mes)"]
[]
[null,null,"Contrato Formación en Alternancia",{"$f":"D5*(1-D9)","v":897.86666666666667},{"$f":"J12","v":155.24},{"$f":"J15","v":91},{"$f":"J17","v":80},{"$f":"J16","v":60}]
[null,null,"Beca de Formación",{"$f":"D24","v":897.86666666666667},{"$f":"M12","v":71.149999999999991},{"$f":"J19*M5","v":60.267999999999994},0,0]
[null,null,null,null,null,null,null,"(Bonif. con tutorización máximo 40 horas/mes)"]
[]
[null,null,null,null,null,null,null,"Contrato Formac. en Alternancia","Beca de Formación"]
[]
[null,null,"Coste medio mensual para empresa de más de 5 empleados",null,null,null,null,{"$f":"D24+J11","v":907.11666666666667},{"$f":"D25+M12-F25","v":908.74866666666662}]
[null,null,"Coste medio mensual para empresa de menos  de 5 empleados"]
[null,null,"Aplicacando máxima bonificación por tutorización, no se puede bonificar el MEI",null,null,null,null,"(Costes en €/mes)"]

{"sheet":"5. Exclusión de bonificaciones","index":4,"n_rows":4,"n_cols":3,"rows_kept":4,"cut":false,"hidden":false,"merged":[]}
[]
[null,"Exclusiones de bonificación / reducción de cuotas SS "]
[]
[null,null,"Acceso al último documento de Beneficios en la Cotización de la Seguridad Social"]

{"sheet":"Ciclos Nº RA","index":5,"n_rows":122,"n_cols":22,"rows_kept":122,"cut":false,"hidden":true,"merged":[[1,3,1,5],[1,6,1,8]]}
[null,"Ciclos de GM implantados en Aragón",null,null,null,"% RA-->",0.2,null,"% formación en 1º-->",null,0.28000000000000003]
[null,null,null,"Nº resultados de aprendizaje (RA)",null,null,"Propuesta RA por curso en % horas estancia formación"]
[null,"Código ciclos","Ciclo","1º","2º","1º + 2º","RA máx (1º+2º)","1º","2º",null,"1º","2º","3º","4º","5º","6º","7º","8º","9º","10º","11º","12º"]
[1,"ADG201 (LFP)","Gestión Administrativa",48,32,80,16,4,12,null,"0442 - Operaciones Administrativas de Recursos Humanos","0443 - Tratamiento de la Documentación Contable","0446 - Empresa en el aula","0448 - Operaciones Auxiliares de Gestión de Tesorería","1708 - Sostenibilidad aplicada al sistema productivo","1710 - Itinerario personal para la empleabilidad II"]
[2,"ADG301 (LFP)","Administración y finanzas",49,42,91,18,5,13,null,"0652 - Gestión de recursos humanos","0653 - Gestión financiera","0654 - Contabilidad y fiscalidad","0655 - Gestión logística y comercial","0656 - Simulación empresarial","0657 - Proyecto intermodular de administración y finanzas","1710 - Itinerario personal para la empleabilidad II","1708 - Sostenibilidad aplicada al sistema productivo"]
[3,"ADG302 (LFP)","Asistencia a la dirección",49,36,85,17,5,12,null,"0180 - Segunda lengua extranjera","0661 - Protocolo empresarial","0662 - Organización de eventos empresariales","0663 - Gestión avanzada de la información","0664 - Proyecto intermodular de asistencia a la dirección","1710 - Itinerario personal para la empleabilidad II","1708 - Sostenibilidad aplicada al sistema productivo"]
[4,"AFD201 (LFP)","Guía en el medio natural y de tiempo libre",50,42,92,18,5,13,null,"1327 -  Guía ecuestre","1335 -  Técnicas de tiempo libre","1337 -  Socorrismo en el medio natural","1338 -  Guía en el medio natural acuático","1339 -  Maniobras con cuerdas","1708 - Sostenibilidad aplicada al sistema productivo","1710 - Itinerario personal para la empleabilidad II"]
[5,"AFD301 (LFP)","Enseñanza y animación sociodeportiva",48,38,86,17,5,12,null,"1123 - Actividades de ocio y tiempo libre","1137 - Planificación de la animación sociodeportiva","1140 - Actividades físico-deportivas de equipo","1141 - Actividades físico-deportivas de implementos","1142 - Actividades físico-deportivas para la inclusión social","1144 - Proyecto intermodular de enseñanza y animación\nsociodeportiva\nfísicodeportivas","1710 - Itinerario personal para la empleabilidad II","1708 - Sostenibilidad aplicada al sistema productivo"]
[6,"AFD302 (LFP)","Acondicionamiento físico",46,32,78,15,4,11,null,"1148 - Fitness en sala de entrenamiento polivalente","1150 - Actividades especializadas de acondicionamiento físico con soporte musical","1151 - Acondicionamiento físico en el agua","1154 - Proyecto intermodular de acondicionamiento físico","1710 - Itinerario personal para la empleabilidad II","1708 - Sostenibilidad aplicada al sistema productivo"]
[7,"AGA201 (LFP)","Producción agropecuaria",43,40,83,16,4,12,null,"0477 - Producción de Leche, Huevos y Animales para Vida","0478 - Producción de Carne y otras Producciones Ganaderas","0479 - Control Fitosanitario","0408 - Infraestructuras e Instalaciones Agrícolas","0475 - Implantación de Cultivos","1708 - Sostenibilidad aplicada al sistema productivo","1710 - Itinerario personal para la empleabilidad II"]
[8,"AGA202 (LFP)","Producción agroecológica",43,43,86,17,5,12,null,"0408 - Infraestructuras e instalaciones agrícolas","0410 - Producción vegetal ecológica","0411 - Producción ganadera ecológica","0412 - Manejo sanitario del agrosistema","0413 - Comercialización de productos agroecológicos","1708 - Sostenibilidad aplicada al sistema productivo","1710 - Itinerario personal para la empleabilidad II"]
[9,"AGA204 (LFP)","Jardinería y floristería",42,44,86,17,5,12,null,"0408 - Infraestructuras e instalaciones agrícolas","0479 - Control fitosanitario","0578 - Producción de plantas y tepes en vivero","0579 - Composiciones florales y con plantas","0580 - Establecimientos de floristería","0581 - Técnicas de venta en jardinería y floristería","1708 - Sostenibilidad aplicada al sistema productivo","1710 - Itinerario personal para la empleabilidad II"]
[10,"AGA205 (LFP)","Aprovechamiento del medio natural",44,42,86,17,5,12,null,"0479 - Control fitosanitario","0833 - Aprovechamiento del medio natural","0834 - Conservación de las especies cinegéticas y piscícolas","0835 - Producción de planta forestal en vivero","0838 - Uso público en espacios naturales","1708 - Sostenibilidad aplicada al sistema productivo","1710 - Itinerario personal para la empleabilidad II"]
[11,"AGA302 (LFP)","Gestión forestal y del medio natural",51,47,98,19,5,14,null,"0692 - Fitopatología","0790 - Técnicas de educación ambiental","0810 - Gestión de los aprovechamientos del medio forestal","0812 - Gestión cinegética","0813 - Gestión de la pesca continental","0816 - Defensa contra incendios forestales","0817 - Proyecto intermodular de gestión forestal y conservación del medio","1710 - Itinerario personal para la empleabilidad II","1708 - Sostenibilidad aplicada al sistema productivo"]
[12,"AGA303 (LFP)","Paisajismo y medio rural",48,37,85,17,5,12,null,"0692 - Fitopatología","0696 - Gestión de cultivos","0697 - Diseño de jardines y restauración del paisaje","0698 - Conservación de jardines y céspedes deportivos","0699 -  Proyecto intermodular de paisajismo y medio rural","1710 - Itinerario personal para la empleabilidad II","1708 - Sostenibilidad aplicada al sistema productivo"]
[13,"AGA304 (LFP)","Ganadería y asistencia en sanidad animal",39,41,80,16,4,12,null,"1276 - Gestión de la recría de caballos","1277 - Organización y supervisión de la doma y manejo de équidos","1279 - Saneamiento ganadero","1280 - Asistencia a la atención veterinaria","1281 - Bioseguridad","1283 - Proyecto intermodal de ganadería y asistencia en sanidad animal","1710 - Itinerario personal para la empleabilidad II","1708 - Sostenibilidad aplicada al sistema productivo"]
[14,"ARG202 (LFP)","Impresión gráfica",36,37,73,14,4,10,null,"0869 - Impresión digital","0878 - Desarrollo de la tirada offset","0879 - Impresión en flexografía","0883 - Impresión en bajorrelieve","1708 - Sostenibilidad aplicada al sistema productivo","1710 - Itinerario personal para la empleabilidad II"]
[15,"ARG203 (LFP)","Preimpresión digital",39,38,77,15,4,11,null,"0868 - Imposición y obtención digital de la forma impresora","0869 - Impresión digital","0870 - Compaginación","0872 - Ensamblado de publicaciones electrónicas","1708 - Sostenibilidad aplicada al sistema productivo","1710 - Itinerario personal para la empleabilidad II"]
[16,"ARG301 (LFP)","Diseño y edición de publicaciones impresas y multimedia",40,39,79,15,4,11,null,"1481 - Gestión de la producción en procesos de edición","1482 - Producción editorial","1483 - Diseño estructural de envase y embalaje","1484 - Diseño y planificación de proyectos editoriales multimedia","1485 - Desarrollo y publicación de productos editoriales multimedia","1486 - Proyecto intermodular de diseño y edición de publicaciones impresas y multimedia","1710 - Itinerario personal para la empleabilidad II","1708 - Sostenibilidad aplicada al sistema productivo"]
[17,"ARG302 (LFP)","Diseño y gestión de la producción gráfica",40,42,82,16,4,12,null,"1538 -  Gestión de la producción en la industria gráfica","1539 -  Gestión del color","1540 -  Organización de los procesos de impresión gráfica","1541 -  Organización de los procesos de postimpresión, transformados y acabados","1542 -  Proyecto de diseño y gestión de la producción gráfica","1710 - Itinerario personal para la empleabilidad II","1708 - Sostenibilidad aplicada al sistema productivo"]
[18,"COM201 (LFP)","Actividades comerciales",48,44,92,18,5,13,null,"1227 - Gestión de un pequeño comercio","1228 - Técnicas de almacén","1230 - Venta técnica","1234 - Servicios de atención comercial","1235 - Comercio electrónicol","1708 - Sostenibilidad aplicada al sistema productivo","1710 - Itinerario personal para la empleabilidad II"]
[19,"COM202 (LFP)","Comercialización de productos alimentarios",45,31,76,15,4,11,null,"1611 - Preparación y acondicionamiento de productos frescos y transformados","1612 - Logística de productos alimentarios","1613 - Comercio electrónico en negocios alimentarios","1615 - Gestión de un comercio alimentario","1708 - Sostenibilidad aplicada al sistema productivo","1710 - Itinerario personal para la empleabilidad II"]
[20,"COM301 (LFP)","Comercio internacional",41,46,87,17,5,12,null,"0822 -  Sistema de información de mercados","0823 -  Marketing internacional","0824 -  Negociación internacional","0825 -  Financiación internacional","0826 -  Medios de pago internacionales","0827 -  Comercio digital internacional","0828 -  Proyecto intermodular de comercio internacional","1710 - Itinerario personal para la empleabilidad II","1708 - Sostenibilidad aplicada al sistema productivo"]
[21,"COM302 (LFP)","Gestión de ventas y espacios comerciales",45,54,99,19,5,14,null,"0926 - Escaparatismo y diseño de espacios comerciales","0927 - Gestión de productos y promociones en el punto de venta","0928 - Organización de equipos de venta","0929 - Técnicas de venta y negociación","0625 - Logística de almacenamiento","0626 - Logística de aprovisionamiento","0932 - Proyecto intermodular de gestión de ventas y espacios comerciales","1710 - Itinerario personal para la empleabilidad II","1708 - Sostenibilidad aplicada al sistema productivo"]
[22,"COM303 (LFP)","Transporte y logística",41,47,88,17,5,12,null,"0621 - Gestión administrativa del transporte y la logística","0624 - Comercialización del transporte y la logística","0626 -  Logística de aprovisionamiento","0628 -  Organización del transporte de viajeros","0629 -  Organización del transporte de mercancías","0630 -  Proyecto de transporte y logística","1710 - Itinerario personal para la empleabilidad II","1708 - Sostenibilidad aplicada al sistema productivo"]
[23,"COM304 (LFP)","Marketing y publicidad",46,49,95,19,5,14,null,"1007 - Diseño y elaboración de material de comunicación","1008 - Medios y soportes de comunicación","1009 - Relaciones públicas y organización de eventos de marketing","1011 - Trabajo de campo en la investigación comercial","1109 - Lanzamiento de productos y servicios","1110 - Atención al cliente, consumidor y usuario","1012 - Proyecto intermodular  de marketing y publicidad","1710 - Itinerario personal para la empleabilidad II","1708 - Sostenibilidad aplicada al sistema productivo"]
[24,"ELE202 (LFP)","Instalaciones eléctricas y automáticas",48,46,94,18,5,13,null,"0236 - Instalaciones de distribución","0237 - Infraestructuras comunes de telecomunicación en viviendas y edificios","0238 - Instalaciones domóticas","0239 - Instalaciones solares fotovoltaicas","0240 - Máquinas eléctricas","1708 - Sostenibilidad aplicada al sistema productivo","1710 - Itinerario personal para la empleabilidad II"]
[25,"ELE203 (LFP)","Instaciones de telecomunicaciones",53,40,93,18,5,13,null,"0238 - Instalaciones Domóticas","0363 -  Instalaciones de Megafonía y Sonorización","0364 -  Circuito Cerrado de Televisión y Seguridad Electrónica","0365 -  Instalaciones de radiocomunicaciones","1708 - Sostenibilidad aplicada al sistema productivo","1710 - Itinerario personal para la empleabilidad II"]
[26,"ELE301 (LFP)","Mantenimiento electrónico",42,46,88,17,5,12,null,"1053 - Mantenimiento de equipos de radiocomunicaciones","1054 - Mantenimiento de equipos de voz y datos","1056 - Mantenimiento de equipos de audio","1057 - Mantenimiento de equipos de vídeo","1059 - Infraestructuras y desarrollo del mantenimiento electrónico","1060 - Proyecto intermodular de mantenimiento electrónico","1710 - Itinerario personal para la empleabilidad II","1708 - Sostenibilidad aplicada al sistema productivo"]
[27,"ELE302 (LFP)","Sistemas electrónicos y automatizados",53,38,91,18,5,13,null,"0518 - Técnicas y procesos en instalaciones eléctricas","0521 - Técnicas y procesos en instalaciones domóticas y automáticas","0522 -  Desarrollo de redes eléctricas y centros de transformación","0526 -  Proyecto intermodular de sistemas electrotécnicos y automatizados","1710 - Itinerario personal para la empleabilidad II","1708 - Sostenibilidad aplicada al sistema productivo"]
[28,"ELE303 (LFP)","Automatización y robótica industrial",54,40,94,18,5,13,null,"0965 - Sistemas programables avanzados","0966 - Robótica industrial","0967 - Comunicaciones industriales","0968 - Integración de sistemas de automatización industrial","0969 - Proyecto intermodular de automatización y robótica industrial","1710 - Itinerario personal para la empleabilidad II","1708 - Sostenibilidad aplicada al sistema productivo"]
[29,"ELE304 (LFP)","Sistemas de telecomunicaciones e informáticas",59,43,102,20,6,14,null,"0553 - Técnicas y procesos en infraestructuras de telecomunicaciones","0555 - Redes telemáticas","0556 - Sistemas de radiocomunicaciones","0557 - Sistemas integrados y hogar digital","0558 - Proyecto intermodular de sistemas de telecomunicaciones e informáticos","1710 - Itinerario personal para la empleabilidad II","1708 - Sostenibilidad aplicada al sistema productivo"]
[30,"ELE305 (LFP)","Electromedecina clínica",51,53,104,20,6,14,null,"1586 - Sistemas electromecánicos y de fluidos","1590 - Sistemas de laboratorio y hemodiálisis","1591 - Sistemas de rehabilitación y pruebas funcionales","1593 - Planificación de la adquisición de sistemas de electromedicina","1594 - Gestión del montaje y mantenimiento de sistemas de electromedicina","1595 - Proyecto intermodular de electromedicina clínica","1710 - Itinerario personal para la empleabilidad II","1708 - Sostenibilidad aplicada al sistema productivo"]
[31,"ENA201 (LFP)","Redes y estaciones de tratamientos de agua",48,40,80,17,5,12,null,"1560 - Estaciones de tratamiento de aguas","1563 - Montaje y puesta en servicio de redes de agua","1566 - Mantenimiento de equipos e instalaciones","1708 - Sostenibilidad aplicada al sistema productivo","1568 - Mantenimiento de redes","0310 - Montaje y mantenimiento de instalaciones de agua","1710 - Itinerario personal para la empleabilidad II"]
[32,"ENA301 (LFP)","Eficiencia energética y energía solar térmica",47,37,84,16,4,12,null,"0349 - Eficiencia energética de instalaciones","0350 - Certificación energética de edificios","0353 - Gestión del montaje y mantenimiento de instalaciones solares térmicas","0354 - Promoción del uso eficiente de la energía y del agua","0355 - Proyecto intermodular de eficiencia energética y energía solar térmica","1710 - Itinerario personal para la empleabilidad II","1708 - Sostenibilidad aplicada al sistema productivo"]
[33,"ENA302 (LFP)","Energías renovables",56,48,104,20,6,14,null,"0669 - Subestaciones eléctricas","0682 - Gestión del montaje de instalaciones solares fotovoltaicas","0683 - Gestión del montaje de parques eólicos","0684 - Operación y mantenimiento de parques eólicos","0686 - Proyecto intermodular de energías renovables","1710 - Itinerario personal para la empleabilidad II","1708 - Sostenibilidad aplicada al sistema productivo"]
[34,"EOC201 (LFP)","Obras de interior, decoración y rehabilitación",43,42,85,17,5,12,null,"1195 - Particiones prefabricadas","1197 - Techos suspendidos","1198 - Revestimientos ligeros","1199 - Pintura decorativa en construcción","1200 - Organización de trabajos de interior, decoración y rehabilitación","1708 - Sostenibilidad aplicada al sistema productivo","1710 - Itinerario personal para la empleabilidad II"]
[35,"EOC203 (LFP)","Construcción",51,41,92,18,5,13,null,"0999 - Encofrados","1000 - Hormigón armado","1001 - Organización de trabajos de construcción","1002 - Obras de urbanización","1004 - Cubiertas","1708 - Sostenibilidad aplicada al sistema productivo","1710 - Itinerario personal para la empleabilidad II"]
[36,"EOC301 (LFP)","Proyectos de edificación",49,45,94,18,5,13,null,"0569 - Eficiencia energética en edificación","0571 - Desarrollo de proyectos de edificación no residencial","0572 - Proyecto intermodular en edificación","0564 - Mediciones y valoraciones de construcción","0566 - Planificación de construcción","0570 - Desarrollo de proyectos de edificación residencial","1710 - Itinerario personal para la empleabilidad II","1708 - Sostenibilidad aplicada al sistema productivo"]
[37,"EOC302 (LFP)","Proyectos de obra civil",47,44,91,18,5,13,null,"0564 - Mediciones y valoraciones de construcción","0566 - Planificación de construcción","0771 - Levantamientos topográficos","0772 - Desarrollo de proyectos urbanísticos","0773 - Desarrollo de proyectos de obras lineales","0774 - Proyecto intermodular en obra civil","1710 - Itinerario personal para la empleabilidad II","1708 - Sostenibilidad aplicada al sistema productivo"]
[38,"EOC303 (LFP)","Organización y control de obras de construcción",47,55,102,20,6,14,null,"0564 - Mediciones y valoraciones de construcción","0566 - Planificación de construcción","1290 - Control de estructuras de construcción","1291 - Control de ejecución en obras de edificación","1292 - Control de ejecución en obra civil","1293 - Rehabilitación y conservación de obras de construcción","1294 - Proyecto intermodular de organización y control de obras de construcción","1710 - Itinerario personal para la empleabilidad II","1708 - Sostenibilidad aplicada al sistema productivo"]
[39,"FME201 (LFP)","Conformado por moldeo de metales y polímeros",34,25,59,11,3,8,null,"0006 - Metrología y ensayos","0722 - Preparación de máquinas e instalaciones de procesos automáticos","0724 - Conformado por moldeo cerrado","1708 - Sostenibilidad aplicada al sistema productivo","1710 - Itinerario personal para la empleabilidad II"]
[40,"FME202 (LFP)","Mecanizado",33,27,60,12,3,9,null,"0002 - Mecanizado por Control Numérico","0003 - Fabricación por Abrasión, Electroerosión, Corte y Conformado y por Procesos Especiales","0006 - Metrología y Ensayos","1708 - Sostenibilidad aplicada al sistema productivo","1710 - Itinerario personal para la empleabilidad II"]
[41,"FME203 (LFP)","Soldadura y calderería",38,29,67,13,4,9,null,"0006 - Metrología y ensayos","0094 - Soldadura en atmósfera protegida","0095 - Montaje","1708 - Sostenibilidad aplicada al sistema productivo","1710 - Itinerario personal para la empleabilidad II"]
[42,"FME301 (LFP)","Construcciones metálicas",40,31,71,14,4,10,null,"0246 - Diseño de construcciones metálica","0162 - Programación de sistemas automáticos de fabricación mecánica","0163 - Programación de la producción","0250 - Proyecto intermodular de construcciones metálicas","1710 - Itinerario personal para la empleabilidad II","1708 - Sostenibilidad aplicada al sistema productivo"]
[43,"FME302 (LFP)","Diseño en fabricación mecánica",37,30,67,13,4,9,null,"0428 - Diseño de Útiles de Procesado de Chapa y Estampación","0430 - Diseño de Moldes para Productos Poliméricos","0431 - Automatización de la Fabricación","0433 - Proyecto intermodular de Diseño de Productos Mecánicos","1710 - Itinerario personal para la empleabilidad II","1708 - Sostenibilidad aplicada al sistema productivo"]
[44,"FME304 (LFP)","Programación de la producción en fabricación mecánica",39,33,72,14,4,10,null,"0002 - Mecanizado por control numérico","0161 - Fabricación asistida por ordenador (CAM)","0162 - Programación de sistemas automáticos de fabricación mecánica","0163 - Programación de la producción","0167 - Proyecto intermodular de fabricación de productos mecánicos","1710 - Itinerario personal para la empleabilidad II","1708 - Sostenibilidad aplicada al sistema productivo"]
[45,"FME305 (LFP)","Programación de la producción en moldeo de metales y polímeros",38,30,68,13,4,9,null,"0532 - Moldeo abierto","0163 - Programación de la producción","0533 - Verificación de productos conformados","0534 - Proyecto intermodular de la programación de la producción en moldeo de metales y polímeros","1710 - Itinerario personal para la empleabilidad II","1708 - Sostenibilidad aplicada al sistema productivo"]
[46,"HOT201 (LFP)","Cocina y gratronomía",38,26,64,12,3,9,null,"0028 - Postres en restauración","0045 - Ofertas gastronómicas","0048 - Productos culinarios","1708 - Sostenibilidad aplicada al sistema productivo","1710 - Itinerario personal para la empleabilidad II"]
[47,"HOT203 (LFP)","Servicio en restauración",39,28,67,13,4,9,null,"0045 - Ofertas gastronómicas","0152 - Servicios en bar-cafetería","0153 - Servicio en restaurante y eventos especiales","0155 - Técnicas de comunicación en restauración","1708 - Sostenibilidad aplicada al sistema productivo","1710 - Itinerario personal para la empleabilidad II"]
[48,"HOT301 (LFP)","Agencias de viajes y gestión de eventos",41,37,78,15,4,11,null,"0173 - Marketing turístico","0397 - Gestión de productos turísticos","0398 - Venta de servicios turísticos","0180 - Segunda lengua extranjera","0400 - Proyecto intermodular de agencias de viajes y gestión de evento","1710 - Itinerario personal para la empleabilidad II","1708 - Sostenibilidad aplicada al sistema productivo"]
[49,"HOT302 (LFP)","Gestión de alojamientos turísticos",41,38,79,15,4,11,null,"0173 - Marketing turístico","0174 - Dirección de alojamientos turísticos","0178 - Comercialización de eventos","0180 - Segunda lengua extranjera","0181 - Proyecto intermodular de gestión de alojamiento turístico","1710 - Itinerario personal para la empleabilidad II","1708 - Sostenibilidad aplicada al sistema productivo"]
[50,"HOT303 (LFP)","Guía, información y asistencias turísticas",40,38,78,15,4,11,null,"0173 - Marketing turístico","0385 - Servicios de información turística","0386 - Procesos de guía y asistencia turística","0180 - Segunda lengua extranjera","0388 - Proyecto intermodular de guía, información y asistencia turísticas","1710 - Itinerario personal para la empleabilidad II","1708 - Sostenibilidad aplicada al sistema productivo"]
[51,"HOT304 (LFP)","Dirección de servicios de restauración",41,42,83,16,4,12,null,"0511 - Sumillería","0512 - Planificación y dirección de servicios y eventos en restauración","0503 - Gestión administrativa y comercial en restauración","0504 - Recursos humanos y dirección de equipos en restauración","0180 - Segunda lengua extranjera","0513 - Proyecto intermodular de dirección de servicios en restauración","1710 - Itinerario personal para la empleabilidad II","1708 - Sostenibilidad aplicada al sistema productivo"]
[52,"HOT305 (LFP)","Dirección de cocina",39,33,72,14,4,10,null,"0498 - Elaboraciones de pastelería y repostería en cocina","0500 - Gestión de la producción en cocina","0503 - Gestión administrativa y comercial en restauración","0504 - Recursos humanos y dirección de equipos en restauración","0505 - Proyecto intermodular de dirección de cocina","1710 - Itinerario personal para la empleabilidad II","1708 - Sostenibilidad aplicada al sistema productivo"]
[53,"IEX201 (LFP)","Excavaciones y sondeos",47,35,82,16,4,12,null,"1031 - Técnicas de voladuras","1077 - Sostenimiento","1079 - Excavaciones con arranque selectivo","1080 - Operaciones de carga y transporte en excavaciones","1708 - Sostenibilidad aplicada al sistema productivo","1710 - Itinerario personal para la empleabilidad II"]
[54,"IFC201 (LFP)","Sistemas microinformáticos y redes",43,35,78,15,4,11,null,"0224 - Sistemas operativos en red","0226 - Seguridad informática","0227 - Servicios en red","0228 - Aplicaciones web","1708 - Sostenibilidad aplicada al sistema productivo","1710 - Itinerario personal para la empleabilidad II"]
[55,"IFC301 (LFP)","Administración de sistemas informáticos en red",49,50,99,19,5,14,null,"0374 - Administración de sistema operativos","0375 - Servicios de red e internets","0376 - Implantación de aplicaciones web","0377 - Administración de sistemas gestores de bases de datos","0378 - Seguridad y alta disponibilidad","0379 - Proyecto intermodular de administración de sistemas informáticos en red","1710 - Itinerario personal para la empleabilidad II","1708 - Sostenibilidad aplicada al sistema productivo"]
[56,"IFC302 (LFP)","Desarrollo de aplicaciones multiplataforma",52,44,96,19,5,14,null,"0486 - Acceso a datos","0488 - Desarrollo de interfaces","0489 - Programación multimedia y dispositivos móviles","0490 - Programación de servicios y procesos","0491 - Sistemas de gestión empresarial","0492 - Proyecto intermodular de desarrollo de aplicaciones multiplataforma","1710 - Itinerario personal para la empleabilidad II","1708 - Sostenibilidad aplicada al sistema productivo"]
[57,"IFC303 (LFP)","Desarrollo de aplicaciones web",52,43,95,19,5,14,null,"0612 - Desarrollo web en entorno cliente","0613 - Desarrollo web en entorno servidor","0614 - Despliegue de aplicaciones web","0615 - Diseño de interfaces web","0616 - Proyecto intermodular de desarrollo de aplicaciones Web","1710 - Itinerario personal para la empleabilidad II","1708 - Sostenibilidad aplicada al sistema productivo"]
[58,"IMA201 (LFP)","Mantenimiento electromecánico",44,32,76,15,4,11,null,"0953 - Montaje y mantenimiento mecánico","0954 - Montaje y mantenimiento eléctrico-electrónico","0955 - Montaje y mantenimiento de líneas automatizadas","1708 - Sostenibilidad aplicada al sistema productivo","1710 - Itinerario personal para la empleabilidad II"]
[59,"IMA202 (LFP)","Instalaciones frigoríficas y de climatización",39,40,79,15,4,11,null,"0039 - Configuración de instalaciones de frío y climatización","0040 - Montaje y mantenimiento de equipos de refrigeración comercial","0041 - Montaje y mantenimiento de instalaciones frigoríficas industriales","0042 - Montaje y mantenimiento de instalaciones de climatización, ventilación y extracción","1708 - Sostenibilidad aplicada al sistema productivo","1710 - Itinerario personal para la empleabilidad II"]
[60,"IMA203 (LFP)","Instalaciones de producción de calor",39,47,86,17,5,12,null,"0266 - Configuración de instalaciones caloríficas","0302 - Montaje y mantenimiento de instalaciones caloríficas","0310 - Montaje y mantenimiento de instalaciones de agua","0392 - Montaje y mantenimiento de instalaciones de energía solar","0393 - Montaje y mantenimiento de instalaciones de gas y\ncombustibles líquidos","1708 - Sostenibilidad aplicada al sistema productivo","1710 - Itinerario personal para la empleabilidad II"]
[61,"IMA301 (LFP)","Mantenimiento de instalaciones térmicas y de fluidos",44,43,87,17,5,12,null,"0124 - Energías renovables y eficiencia energética","0133 - Gestión del montaje, de la calidad y del mantenimiento","0134 - Configuración de instalaciones térmicas y de fluidos","0135 - Mantenimiento de instalaciones frigoríficas y de climatización","0136 - Mantenimiento de instalaciones caloríficas y de fluidos","0137 - Proyecto intermodular de mantenimiento de instalaciones térmicas y de fluidos","1710 - Itinerario personal para la empleabilidad II","1708 - Sostenibilidad aplicada al sistema productivo"]
[62,"IMA302 (LFP)","Mecatrónica industrial",46,44,90,18,5,13,null,"0935 - Sistemas mecánicos","0941 - Configuración de sistemas mecatrónicos","0942 - Procesos y gestión del mantenimiento y de la calidad","0943 - Integración de sistemas","0944 - Simulación de sistemas mecatrónicos","0945 - Proyecto intermodular de mecatrónica industrial","1710 - Itinerario personal para la empleabilidad II","1708 - Sostenibilidad aplicada al sistema productivo"]
[63,"IMA303 (LFP)","Desarrollo de proyectos de instalaciones térmicas y de fluidos",44,40,84,16,4,12,null,"0124 - Energías renovables y eficiencia energética","0125 - Configuración de instalaciones de climatización, calefacción y ACS","0126 - Configuración de instalaciones frigoríficas","0127 - Configuración de instalaciones de fluidos","0128 - Planificación del montaje de instalaciones","0129 - Proyecto intermodular de instalaciones térmicas y de fluidos","1710 - Itinerario personal para la empleabilidad II","1708 - Sostenibilidad aplicada al sistema productivo"]
[64,"IMP202 (LFP)","Estética y belleza",46,46,92,18,5,13,null,"0635 - Depilación mecánica y decoloración del vello","0637 - Técnicas de uñas artificiales","0639 - Actividades en cabina de estética","0640 - Imagen corporal y hábitos saludables","0642 - Perfumería y cosmética natural","0643 - Marketing y venta en Imagen Personal","1708 - Sostenibilidad aplicada al sistema productivo","1710 - Itinerario personal para la empleabilidad II"]
[65,"IMP203 (LFP)","Peluquería y cosmética capilar",46,43,89,17,5,12,null,"0640 - Imagen corporal y hábitos saludables","0643 - Marketing y venta en imagen personal","0843 - Coloración capilar","0846 - Cambios de forma permanente del cabello","0848 - Peluquería y estilismo masculino","1708 - Sostenibilidad aplicada al sistema productivo","1710 - Itinerario personal para la empleabilidad II"]
[66,"IMP301 (LFP)","Asesoría de imagen personal y corporativa",48,48,96,19,5,14,null,"1184 - Asesoría de peluquería","1185 - Protocolo y organización de eventos","1186 - Usos sociales","1189 - Imagen corporativa","1071 - Dirección y comercialización","1190 - Proyecto intermodular de asesoría de imagen personal y corporativa","1710 - Itinerario personal para la empleabilidad II","1708 - Sostenibilidad aplicada al sistema productivo"]
[67,"IMP302 (LFP)","Estética integral y biesnestar",55,42,97,19,5,14,null,"0745 - Estética hidrotermal","0746 - Depilación avanzada","0748 - Drenaje estético y técnicas por presión","0753 - Tratamiento estéticos integrales","0754 - Proyecto intermodular de estética integral y bienestar","1710 - Itinerario personal para la empleabilidad II","1708 - Sostenibilidad aplicada al sistema productivo"]
[68,"IMP303 (LFP)","Estilismo y dirección de peluquería",49,51,100,20,6,14,null,"1066 - Tratamientos capilares","1068 - Peinados para producciones audiovisuales y de moda","1069 - Estilismo en peluquería","1070 - Estudio de la imagen","1071 - Dirección y comercialización","1073 - Proyecto intermodular de estilismo y dirección de peluquería","1710 - Itinerario personal para la empleabilidad II","1708 - Sostenibilidad aplicada al sistema productivo"]
[69,"IMP304 (LFP)","Termalismo y bienestar",43,38,81,16,4,12,null,"0212 - Características y necesidades de las personas en situación de dependencia","0745 - Estética hidrotermal","1124 - Dinamización grupal","1152 - Técnicas de hidrocinesia","1647 - Proyecto intermodular de termalismo y bienestar","1710 - Itinerario personal para la empleabilidad II","1708 - Sostenibilidad aplicada al sistema productivo"]
[70,"IMS202 (LFP)","Vídeo disc - jokey y sonido",36,27,63,12,3,9,null,"1300 - Control, edición y mezcla de sonido","1302 - Animación musical en vivo","1303 - Animación visual en vivo","1708 - Sostenibilidad aplicada al sistema productivo","1710 - Itinerario personal para la empleabilidad II"]
[71,"IMS301 (LFP)","Iluminación, captación y tratamiento de imagen",50,36,86,17,5,12,null,"1158 - Planificación de cámara en audiovisuales","1159 - Toma de imagen audiovisual","1160 - Proyectos de iluminación","1167 - Grabación y edición de reportajes audiovisuales","1168 - Proyecto intermodular de iluminación, captación y tratamiento de imagen","1710 - Itinerario personal para la empleabilidad II","1708 - Sostenibilidad aplicada al sistema productivo"]
[72,"IMS302 (LFP)","Producción de audiovisuales y espectáculos",41,36,77,15,4,11,null,"0916 - Gestión de proyectos de cine, vídeo y multimedia","0917 - Gestión de proyectos de televisión y radio","0919 - Gestión de proyectos de espectáculos y eventos","0921 - Administración y promoción de audiovisuales y espectáculos","0922 - Proyecto intermodular de producción de audiovisuales y espectáculos","1710 - Itinerario personal para la empleabilidad II","1708 - Sostenibilidad aplicada al sistema productivo"]
[73,"IMS303 (LFP)","Realización de proyectos audiovisuales y espectáculos",45,38,83,16,4,12,null,"0904 - Planificación de la realización en televisión","0905 - Procesos de realización en televisión","0907 - Realización del montaje y postproducción de audiovisuales","0909 - Procesos de regiduría de espectáculos y eventos","0911 - Proyecto intermodular de realización de proyectos de audiovisuales y espectáculos","1710 - Itinerario personal para la empleabilidad II","1708 - Sostenibilidad aplicada al sistema productivo"]
[74,"IMS304 (LFP)","Sonido para audivisuales y espectáctulos",43,35,78,15,4,11,null,"1099 - Control de sonido en directo","1100 - Grabación en estudio","1101 - Ajustes de sistemas de sonorización","1102 - Postproducción de sonido","1105 - Proyecto intermodular de sonido para audiovisuales y espectáculos","1710 - Itinerario personal para la empleabilidad II","1708 - Sostenibilidad aplicada al sistema productivo"]
[75,"IMS305 (LFP)","Animaciones 3D, juegos y entornos interactivos",40,36,76,15,4,11,null,"1085 - Proyectos de animación audiovisual 2D y 3D","1089 - Proyectos de juegos y entornos interactivos","1091 - Desarrollo de entornos interactivos multidispositivo","0907 - Realización del montaje y postproducción de audiovisuales","1093 - Proyecto intermodular de animaciones 3D, juegos y entornos interactivos","1710 - Itinerario personal para la empleabilidad II","1708 - Sostenibilidad aplicada al sistema productivo"]
[76,"INA201 (LFP)","Elaboración de productos alimenticios",41,32,73,14,4,10,null,"0030 - Operaciones y control de almacén en la industria alimentaria","0116 - Principios de mantenimiento electromecánico","0144 - Procesado de productos alimenticios","0146 - Venta y comercialización de productos alimentarios","1708 - Sostenibilidad aplicada al sistema productivo","1710 - Itinerario personal para la empleabilidad II"]
[77,"INA204 (LFP)","Aceites de oliva y vinos",43,37,80,16,4,12,null,"0030 - Operaciones y control de almacén en la industria alimentaria","0116 - Principios de mantenimiento electromecánico","0318 - Elaboración de vinos","0319 - Acondicionamiento de aceites de oliva","0321 - Análisis sensorial","1708 - Sostenibilidad aplicada al sistema productivo","1710 - Itinerario personal para la empleabilidad II"]
[78,"INA207 (LFP)","Pandería, respostería y confetería",43,35,78,15,4,11,null,"0027 - Elaboraciones de confitería y otras especialidades","0028 - Postres en restauración","0029 - Productos de obrador","0032 - Presentación y venta de productos de panadería y pastelería","1708 - Sostenibilidad aplicada al sistema productivo","1710 - Itinerario personal para la empleabilidad II"]
[79,"INA301 (LFP)","Procesos y calidad en la industria alimentaria",43,48,91,18,5,13,null,"0463 - Biotecnología alimentaria","0466 - Organización de la producción alimentaria","0084 - Comercialización y logística en la industria alimentaria","0086 - Gestión de calidad y ambiental en la industria alimentaria","0191 - Mantenimiento electromecánico en industrias de proceso","0469 - Procesos integrados en la industria alimentaria","0470 - Innovación alimentaria","0471 - Proyecto intermodular en procesos y calidad en la industria alimentaria","1710 - Itinerario personal para la empleabilidad II","1708 - Sostenibilidad aplicada al sistema productivo"]
[80,"INA302 (LFP)","Vitinivicultura",44,42,86,17,5,12,null,"0080 - Estabilización, crianza y envasado","0082 - Industrias derivadas","0083 - Cata y cultura vitivinícola","0084 - Comercialización y logística en la industria alimentaria","0086 - Gestión de calidad y ambiental en la industria alimentaria","0087 - Proyecto intermodular en la industria vitivinícola","1710 - Itinerario personal para la empleabilidad II","1708 - Sostenibilidad aplicada al sistema productivo"]
[81,"MAM201 (LFP)","Instalación y amueblamiento",46,35,81,16,4,12,null,"0778 - Planificación de la instalación","0779 - Instalación de mobiliario","0780 - Instalación de carpintería","0781 - Instalación de estructuras de madera","1708 - Sostenibilidad aplicada al sistema productivo","1710 - Itinerario personal para la empleabilidad II"]
[82,"MAM202 (LFP)","Carpintería y mueble",46,38,84,16,4,12,null,"0543 - Documentación técnica","0544 - Mecanizado de madera y derivados","0545 - Mecanizado por control numérico en carpintería y mueble","0546 - Montaje de carpintería y mueble","0547 - Acabados en carpintería y mueble","1708 - Sostenibilidad aplicada al sistema productivo","1710 - Itinerario personal para la empleabilidad II"]
[83,"MAM301 (LFP)","Diseño y amueblamiento",48,40,88,17,5,12,null,"0987 - Automatización en carpintería y mueble","0988 - Instalaciones en carpintería y mobiliario","0989 - Diseño de carpintería y mueble","0990 - Gestión de la producción en carpintería y mueble","0991 - Proyecto intermodular de diseño y amueblamiento","1710 - Itinerario personal para la empleabilidad II","1708 - Sostenibilidad aplicada al sistema productivo"]
[84,"QUI201 (LFP)","Operaciones de laboratorio",44,32,76,15,4,11,null,"1252 - Servicios auxiliares en el laboratorio","1255 - Operaciones de análisis químico","1256 - Ensayos de materiales","1257 - Almacenamiento y distribución en el laboratorio","0116 - Principios de mantenimiento electromecánico","1708 - Sostenibilidad aplicada al sistema productivo","1710 - Itinerario personal para la empleabilidad II"]
[85,"QUI204 (LFP)","Planta química",32,33,65,13,4,9,null,"0112 - Control de procesos químicos industriales","0113 - Operaciones de generación y transferencia de energía en proceso químico","0115 - Tratamiento de aguas","0116 - Principios de mantenimiento electromecánico","1708 - Sostenibilidad aplicada al sistema productivo","1710 - Itinerario personal para la empleabilidad II"]
[86,"QUI301 (LFP)","Laboratorio de análisis y control de calidad",33,32,65,13,4,9,null,"0067 -  Análisis instrumental","0068 -  Ensayos físicos","0071 -  Ensayos biotecnológicos","0072 -  Calidad y seguridad en el laboratorio","0073 - Proyecto de laboratorio de análisis y de control de calidad","1710 - Itinerario personal para la empleabilidad II","1708 - Sostenibilidad aplicada al sistema productivo"]
[87,"QUI302 (LFP)","Fabricación de productos farmacéuticos, biotecnológicos y afines",50,42,92,18,5,13,null,"1393 - Técnicas de producción biotecnológic","1394 - Técnicas de producción farmacéutica y afine","1395 - Regulación y control en la industria farmacéutica, biotecnológica y afine","1396 - Acondicionamiento y almacenamiento de productos farmacéuticos, biotecnológicos y afine","0191 - Mantenimiento electromecánico en industrias de proces","1397 - Proyecto intermodular de fabricación de productos farmacéuticos, biotecnológicos y afine","1710 - Itinerario personal para la empleabilidad II","1708 - Sostenibilidad aplicada al sistema productivo"]
[88,"QUI304 (LFP)","Química industrial",40,35,75,15,4,11,null,"0185 - Organización y gestión en industrias químicas","0187 - Generación y recuperación de energía","0190 - Regulación y control de proceso químico","0191 - Mantenimiento electromecánico en industrias de proceso","0195 - Proyecto intermodular de industrias de proceso químicos","1710 - Itinerario personal para la empleabilidad II","1708 - Sostenibilidad aplicada al sistema productivo"]
[89,"SAN202 (LFP)","Farmacia y parfarmacia",46,26,72,14,4,10,null,"0102 - Dispensación de productos parafarmacéuticos","0104 - Formulación magistral","0105 - Promoción de la salud","1708 - Sostenibilidad aplicada al sistema productivo","1710 - Itinerario personal para la empleabilidad II"]
[90,"SAN203 (LFP)","Emergencias sanitarias",43,31,74,14,4,10,null,"0053 - Logística sanitaria en emergencias","0056 - Atención sanitaria especial en situaciones de emergencia","0059 - Planes de emergencias y dispositivos de riesgos previsibles","0060 - Teleemergencia","1708 - Sostenibilidad aplicada al sistema productivo","1710 - Itinerario personal para la empleabilidad II"]
[91,"SAN301 (LFP)","Anatomía patológica y citodiagnóstico",45,40,85,17,5,12,null,"1379 - Necropsias","1380 - Procesamiento citológico y tisular","1381 - Citología ginecológica","1382 - Citología general","1383 - Proyecto intermodular de laboratorio de patología y citodiagnóstico","1710 - Itinerario personal para la empleabilidad II","1708 - Sostenibilidad aplicada al sistema productivo"]
[92,"SAN303 (LFP)","Documentación y administración sanitarias",57,38,95,19,5,14,null,"1520 - Codificación sanitaria","1521 - Atención psicosocial al paciente/usuario","1522 - Validación y explotación de datos","1523 - Gestión administrativa sanitaria","1524 - Proyecto intermodular de documentación y administración sanitarias","1710 - Itinerario personal para la empleabilidad II","1708 - Sostenibilidad aplicada al sistema productivo"]
[93,"SAN304 (LFP)","Higiene bucodental",57,38,95,19,5,14,null,"0734 - Epidemiología en salud oral","0735 - Educación para la salud oral","0736 - Conservadora, periodoncia, cirugía e implantes","0737 - Prótesis y ortodoncia","0738 - Proyecto intermodular de higiene bucodental","1710 - Itinerario personal para la empleabilidad II","1708 - Sostenibilidad aplicada al sistema productivo"]
[94,"SAN305 (LFP)","Imagen para el diagnóstico y medicina nuclear",45,51,96,19,5,14,null,"1349 - Técnicas de radiología simple","1350 - Técnicas de radiología especial","1351 - Técnicas de tomografía computarizada y ecografía","1352 - Técnicas de imagen por resonancia magnética","1353 - Técnicas de imagen en medicina nuclear","1354 - Técnicas de radiofarmacia","1355 - Proyecto intermodular de imagen para el diagnóstico y medicina nuclear","1710 - Itinerario personal para la empleabilidad II","1708 - Sostenibilidad aplicada al sistema productivo"]
[95,"SAN306 (LFP)","Laboratorio clínico y biomédico",44,44,88,17,5,12,null,"1371 - Análisis bioquímicol","1372 - Técnicas de inmunodiagnóstico","1373 - Microbiología clínica","1374 - Técnicas de análisis hematológico","1375 - Proyecto intermodular de laboratorio clínico y biomédic","1710 - Itinerario personal para la empleabilidad II","1708 - Sostenibilidad aplicada al sistema productivo"]
[96,"SAN308 (LFP)","Prótesis dentales",43,42,85,17,5,12,null,"0857 - Restauraciones y estructuras metálicas en prótesis fija","0858 - Prótesis parciales y removibles metálicas, de resina y mixta","0859 - Restauraciones y recubrimientos estéticos","0860 - Prótesis sobre implantes","0861 - Proyecto intermodular de prótesis dentales","1710 - Itinerario personal para la empleabilidad II","1708 - Sostenibilidad aplicada al sistema productivo"]
[97,"SAN309 (LFP)","Radioterapia y dosimetría",45,41,86,17,5,12,null,"1359 - Simulación del tratamiento","1360 - Dosimetría física y clínica","1361 - Tratamientos con teleterapia","1362 - Tratamientos con braquiterapia","1363 - Proyecto intermodular de radioterapia y dosimetría","1710 - Itinerario personal para la empleabilidad II","1708 - Sostenibilidad aplicada al sistema productivo"]
[98,"SAN311 (LFP)","Ortoprótesis y productos de apoyo",46,39,85,17,5,12,null,"0327 - Adaptación de ortesis prefabricadas","0329 - Elaboración y adaptación de prótesis externas","0330 - Adaptación de productos de apoyo","0332 - Atención psicosocial","0333 - Proyecto intermodular de ortoprótesis y productos de apoyo","1710 - Itinerario personal para la empleabilidad II","1708 - Sostenibilidad aplicada al sistema productivo"]
[99,"SEA201 (LFP)","Emergencias y protección civil",33,34,67,13,4,9,null,"1528 - Mantenimiento y comprobación del funcionamiento de los medios materiales empleados en la prevención de riesgos de incendios y emergencias","1531 - Intervención operativa en sucesos de origen natural, tecnológico y antrópico","1532 - Intervención operativa en actividades de salvamento y rescate","1533 - Inspección de establecimientos, eventos e instalaciones para la prevención de incendios y emergencias","1708 - Sostenibilidad aplicada al sistema productivo","1710 - Itinerario personal para la empleabilidad II"]
[100,"SEA202 (LFP)","Seguridad",45,33,78,15,4,11,null,"1675 - Habilidades sociopersonales","1677 - Acondicionamiento físico y defensa personal","1679 - Vigilancia y protección","1708 - Sostenibilidad aplicada al sistema productivo","1710 - Itinerario personal para la empleabilidad II"]
[101,"SEA301 (LFP)","Educación y control ambiental",46,40,86,17,5,12,null,"0787 - Actividades humanas y problemática ambiental","0790 - Técnicas de educación ambiental","0792 - Actividades de uso público","0793 - Desenvolvimiento en el medio","0017 - Habilidades sociales","0794 - Proyecto intermodular de educación y control ambiental","1710 - Itinerario personal para la empleabilidad II","1708 - Sostenibilidad aplicada al sistema productivo"]
[102,"SEA302 (LFP)","Coordinación de emergencias y protección civil",42,41,83,16,4,12,null,"1503 - Planificación y desarrollo de acciones formativas, informativas y divulgativas en protección civil y emergencias","1504 - Supervisión de la intervención en riesgos producidos por fenómenos naturales","1505 - Supervisión de la intervención en riesgos tecnológicos y antrópicos","1508 - Supervisión de la intervención en operaciones de salvamento y rescate","1509 - Supervisión de las acciones de apoyo a las personas afectadas por desastres y catástrofes","1511 - Proyecto intermodular de coordinación de emergencias y protección civil","1710 - Itinerario personal para la empleabilidad II","1708 - Sostenibilidad aplicada al sistema productivo"]
[103,"SEA303 (LFP)","Química y salud ambiental",45,36,81,16,4,12,null,"1547 - Educación para la salud y el medio ambiente","1550 - Salud y riesgos del medio construido","1551 - Control y seguridad alimentaria","1553 - Control de organismos nocivos","1555 - Proyecto intermodular de química y salud ambiental","1710 - Itinerario personal para la empleabilidad II","1708 - Sostenibilidad aplicada al sistema productivo"]
[104,"SSC201 (LFP)","Atención a personas en situación de dependencia",39,34,73,14,4,10,null,"0210 - Organización de la atención a las personas en situación de dependencia","0214 - Apoyo a la comunicación","0215 - Apoyo domiciliario","0217 - Atención higiénica","0831 - Teleasistencia","1708 - Sostenibilidad aplicada al sistema productivo","1710 - Itinerario personal para la empleabilidad II"]
[105,"SSC301 (LFP)","Animación sociocultural y turística",47,40,87,17,5,12,null,"1125 - Animación y gestión cultural","1126 - Animación turística","1129 - Información juvenil","1130 - Intervención socioeducativa con jóvenes","1132 - Proyecto intermodular de animación sociocultural y turístic","1710 - Itinerario personal para la empleabilidad II","1708 - Sostenibilidad aplicada al sistema productivo"]
[106,"SSC302 (LFP)","Educación infantil",44,39,83,16,4,12,null,"0013 - El juego infantil y su metodología.","0014 - Expresión y comunicación","0016 - Desarrollo socio afectivo","0018 - Intervención con familias y atención a menores en riesgo social","0019 - Proyecto intermodular de atención a la infancia","1710 - Itinerario personal para la empleabilidad II","1708 - Sostenibilidad aplicada al sistema productivo"]
[107,"SSC303 (LFP)","Integración social",47,34,81,16,4,12,null,"0339 - Atención a las unidades de convivencia","0340 - Mediación comunitaria","0341 - Apoyo a la intervención educativa","0343 - Sistemas aumentativos y alternativos de comunicación","0345 - Proyecto inermodular de integración socia","1710 - Itinerario personal para la empleabilidad II","1708 - Sostenibilidad aplicada al sistema productivo"]
[108,"SSC304 (LFP)","Mediación comunicativa",46,41,87,17,5,12,null,"0343 - Sistemas aumentativos y alternativos de comunicación","1112 - Sensibilización social y participación","1113 - Intervención socioeducativa con personas sordociegas","1116 - Ámbitos de aplicación de la lengua de signos","1117 - Intervención con personas con dificultades de comunicación","1119 - Proyecto intermodular de mediación comunicativa","1710 - Itinerario personal para la empleabilidad II","1708 - Sostenibilidad aplicada al sistema productivo"]
[109,"SSC305 (LFP)","Promoción de igualdad de género",46,36,82,16,4,12,null,"1402 - Prevención de la violencia de género","1403 - Promoción del empleo femenino","1405 - Participación social de las mujeres","1406 - Intervención socioeducativa para la igualdad","1407 - Proyecto intermodular de promoción de igualdad de género","1710 - Itinerario personal para la empleabilidad II","1708 - Sostenibilidad aplicada al sistema productivo"]
[110,"SSC306 (LFP)","Formación para la movilidad segura y sostenible",49,38,87,17,5,12,null,"1652 - Organización de la formación de las personas conductoras","1655 - Didáctica de la enseñanza práctica de la conducción","1658 - Didáctica de la formación para la seguridad vial","1659 - Movilidad segura y sostenible","1660 - Proyecto intermodular de formación para la movilidad segura y sostenible","1710 - Itinerario personal para la empleabilidad II","1708 - Sostenibilidad aplicada al sistema productivo"]
[111,"TCP202 (LFP)","Confección y moda",39,31,70,14,4,10,null,"0267 - Corte de materiales","0269 - Confección industrial","0270 - Acabados en confección","0271 - Información y atención al cliente","1708 - Sostenibilidad aplicada al sistema productivo","1710 - Itinerario personal para la empleabilidad II"]
[112,"TCP301 (LFP)","Patronaje y moda",43,38,81,16,4,12,null,"0165 - Gestión de la calidad, prevención de riesgos laborales y protección ambiental","0280 - Organización de la producción en confección industrial","0283 - Análisis de diseños en textil y piel","0284 - Elaboración de prototipos","0286 - Industrialización y escalado de patrone","0287 - Proyecto intermodular de patronaje y moda","1710 - Itinerario personal para la empleabilidad II","1708 - Sostenibilidad aplicada al sistema productivo"]
[113,"TMV201 (LFP)","Carrocería",36,29,65,13,4,9,null,"0257 - Preparación de superficies","0258 - Elementos estructurales del vehículo","0259 - Embellecimiento de superficies","1708 - Sostenibilidad aplicada al sistema productivo","1710 - Itinerario personal para la empleabilidad II"]
[114,"TMV202 (LFP)","Electromecánica de vehículos automoviles",44,29,73,14,4,10,null,"0453 - Sistemas auxiliares del motor","0457 - Circuitos eléctricos auxiliares del vehículo","0458 - Sistemas de seguridad y confortabilidad","1708 - Sostenibilidad aplicada al sistema productivo","1710 - Itinerario personal para la empleabilidad II"]
[115,"TMV203 (LFP)","Conducción de vehículos de transporte por carretera",43,28,71,14,4,10,null,"0020 - Primeros auxilios","1205 - Conducción racional y segura","1207 - Servicios de transporte de mercancías","1708 - Sostenibilidad aplicada al sistema productivo","1710 - Itinerario personal para la empleabilidad II"]
[116,"TMV204 (LFP)","Electromecánica de maquinaria",46,32,78,15,4,11,null,"0715 - Sistemas de fuerza y detención","0716 - Sistemas de accionamiento de equipos y aperos","0718 - Circuitos eléctricos, electrónicos y de confortabilidad","0742 - Sistemas auxiliares del motor diésel","1708 - Sostenibilidad aplicada al sistema productivo","1710 - Itinerario personal para la empleabilidad II"]
[117,"TMV205 (LFP)","Montaje de estructuras e instalaciones de sistemas aeronáuticos",48,31,79,15,4,11,null,"1600 - Protección y pintado de aeronaves","1601 - Sistemas de distribución de corriente, telecomunicaciones y aviónica","1602 - Sistemas de mandos de vuelo, trenes de aterrizaje y de propulsión","1708 - Sostenibilidad aplicada al sistema productivo","1710 - Itinerario personal para la empleabilidad II"]
[118,"TMV301 (LFP)","Automoción",42,38,80,16,4,12,null,"0293 - Motores térmicos y sus sistemas auxiliares","0295 - Tratamiento y recubrimiento de superficies","0296 - Estructuras del vehículo","0309 - Técnicas de comunicación y de relaciones","0298 - Proyecto intermodular en automoción","1710 - Itinerario personal para la empleabilidad II","1708 - Sostenibilidad aplicada al sistema productivo"]
[119,"TMV302 (LFP)","Mantenimiento aeromecánico de aviones con motor de turbina",68,35,103,20,6,14,null,"1428 - Técnicas digitales y sistemas de instrumentos electrónicos en aeromecánica","1433 - Prácticas de mantenimiento con elementos de aviónica y servicios de las aeronaves","1438 - Aerodinámica, estructuras y sistemas eléctricos y de aviónica de aviones con motor de turbina","1455 - Motores de turbinas de gas","1458 - Proyecto intermodular de mantenimiento aeromecánico de aviones con motor de turbina"]

{"sheet":"Módulos","index":6,"n_rows":2502,"n_cols":8,"rows_kept":2502,"cut":false,"hidden":true,"merged":[]}
["Código Ciclo","Ciclo Formativo","Código Módulo","Módulo",null,"Curso","Horas Semanales","Horas Totales"]
["ADG201 (LFP)","Gestión Administrativa","0156","Inglés Profesional (GM)",{"$f":"CONCATENATE(A2,\" - \",C2)","v":"ADG201 (LFP) - 0156"},1,2,67]
["ADG201 (LFP)","Gestión Administrativa","0437","Comunicación empresarial y atención al cliente",{"$f":"CONCATENATE(A3,\" - \",C3)","v":"ADG201 (LFP) - 0437"},1,4,133]
["ADG201 (LFP)","Gestión Administrativa","0438","Operaciones administrativas de compra-venta","ADG201 (LFP) - 0438",1,4,133]
["ADG201 (LFP)","Gestión Administrativa","0439","Empresa y Administración","ADG201 (LFP) - 0439",1,4,133]
["ADG201 (LFP)","Gestión Administrativa","0440","Tratamiento informático de la información","ADG201 (LFP) - 0440",1,7,233]
["ADG201 (LFP)","Gestión Administrativa","0441","Técnica Contable","ADG201 (LFP) - 0441",1,4,133]
["ADG201 (LFP)","Gestión Administrativa","1664","Digitalización aplicada a los sectores productivos (GM)","ADG201 (LFP) - 1664",1,1,33]
["ADG201 (LFP)","Gestión Administrativa","1709","Itinerario personal para la empleabilidad I","ADG201 (LFP) - 1709",1,3,100]
["ADG201 (LFP)","Gestión Administrativa","A997","Tutoría I","ADG201 (LFP) - A997",1,1,33]
["ADG201 (LFP)","Gestión Administrativa","0442","Operaciones Administrativas de Recursos Humanos","ADG201 (LFP) - 0442",2,5,167]
["ADG201 (LFP)","Gestión Administrativa","0443","Tratamiento de la Documentación Contable","ADG201 (LFP) - 0443",2,5,167]
["ADG201 (LFP)","Gestión Administrativa","0446","Empresa en el aula","ADG201 (LFP) - 0446",2,6,200]
["ADG201 (LFP)","Gestión Administrativa","0448","Operaciones Auxiliares de Gestión de Tesorería","ADG201 (LFP) - 0448",2,5,167]
["ADG201 (LFP)","Gestión Administrativa","1708","Sostenibilidad aplicada al sistema productivo","ADG201 (LFP) - 1708",2,1,33]
["ADG201 (LFP)","Gestión Administrativa","1710","Itinerario personal para la empleabilidad II","ADG201 (LFP) - 1710",2,2,67]
["ADG201 (LFP)","Gestión Administrativa","1713","Proyecto Intermodular","ADG201 (LFP) - 1713",2,2,67]
["ADG201 (LFP)","Gestión Administrativa","A996","Tutoría II","ADG201 (LFP) - A996",2,1,33]
["ADG201 (LFP)","Gestión Administrativa","0OPT","Módulo profesional optativo","ADG201 (LFP) - 0OPT",2,3,100]
["ADG301 (LFP)","Administración y Finanzas","0179","Inglés Profesional (GS)","ADG301 (LFP) - 0179",1,2,67]
["ADG301 (LFP)","Administración y Finanzas","0647","Gestión de la documentación jurídica y empresarial","ADG301 (LFP) - 0647",1,3,100]
["ADG301 (LFP)","Administración y Finanzas","0648","Recursos humanos y responsabilidad social corporativa","ADG301 (LFP) - 0648",1,2,67]
["ADG301 (LFP)","Administración y Finanzas","0649","Ofimática y proceso de la información","ADG301 (LFP) - 0649",1,7,233]
["ADG301 (LFP)","Administración y Finanzas","0650","Proceso integral de la actividad comercial","ADG301 (LFP) - 0650",1,7,233]
["ADG301 (LFP)","Administración y Finanzas","0651","Comunicación y atención al cliente","ADG301 (LFP) - 0651",1,5,167]
["ADG301 (LFP)","Administración y Finanzas","1665","Digitalización aplicada a los sectores productivos (GS)","ADG301 (LFP) - 1665",1,1,33]
["ADG301 (LFP)","Administración y Finanzas","1709","Itinerario personal para la empleabilidad I","ADG301 (LFP) - 1709",1,3,100]
["ADG301 (LFP)","Administración y Finanzas","0652","Gestión de recursos humanos","ADG301 (LFP) - 0652",2,4,133]
["ADG301 (LFP)","Administración y Finanzas","0653","Gestión financiera","ADG301 (LFP) - 0653",2,4,133]
["ADG301 (LFP)","Administración y Finanzas","0654","Contabilidad y fiscalidad","ADG301 (LFP) - 0654",2,6,200]
["ADG301 (LFP)","Administración y Finanzas","0655","Gestión logística y comercial","ADG301 (LFP) - 0655",2,4,133]
["ADG301 (LFP)","Administración y Finanzas","0656","Simulación empresarial","ADG301 (LFP) - 0656",2,4,133]
["ADG301 (LFP)","Administración y Finanzas","0657","Proyecto Intermodular de administración y finanzas","ADG301 (LFP) - 0657",2,2,67]
["ADG301 (LFP)","Administración y Finanzas","1708","Sostenibilidad aplicada al sistema productivo","ADG301 (LFP) - 1708",2,1,33]
["ADG301 (LFP)","Administración y Finanzas","1710","Itinerario personal para la empleabilidad II","ADG301 (LFP) - 1710",2,2,67]
["ADG301 (LFP)","Administración y Finanzas","0OPT","Módulo profesional optativo","ADG301 (LFP) - 0OPT",2,3,100]
["ADG302 (LFP)","Asistencia a la Dirección","0179","Inglés Profesional (GS)","ADG302 (LFP) - 0179",1,2,67]
["ADG302 (LFP)","Asistencia a la Dirección","0647","Gestión de la documentación jurídica y empresarial","ADG302 (LFP) - 0647",1,3,100]
["ADG302 (LFP)","Asistencia a la Dirección","0648","Recursos humanos y responsabilidad social corporativa","ADG302 (LFP) - 0648",1,2,67]
["ADG302 (LFP)","Asistencia a la Dirección","0649","Ofimática y proceso de la información","ADG302 (LFP) - 0649",1,7,233]
["ADG302 (LFP)","Asistencia a la Dirección","0650","Proceso integral de la actividad comercial","ADG302 (LFP) - 0650",1,7,233]
["ADG302 (LFP)","Asistencia a la Dirección","0651","Comunicación y atención al cliente","ADG302 (LFP) - 0651",1,5,167]
["ADG302 (LFP)","Asistencia a la Dirección","1665","Digitalización aplicada a los sectores productivos (GS)","ADG302 (LFP) - 1665",1,1,33]
["ADG302 (LFP)","Asistencia a la Dirección","1709","Itinerario personal para la empleabilidad I","ADG302 (LFP) - 1709",1,3,100]
["ADG302 (LFP)","Asistencia a la Dirección","0180","Segunda lengua extranjera","ADG302 (LFP) - 0180",2,4,133]
["ADG302 (LFP)","Asistencia a la Dirección","0661","Protocolo empresarial","ADG302 (LFP) - 0661",2,6,200]
["ADG302 (LFP)","Asistencia a la Dirección","0662","Organización de eventos empresariales","ADG302 (LFP) - 0662",2,6,200]
["ADG302 (LFP)","Asistencia a la Dirección","0663","Gestión avanzada de la información","ADG302 (LFP) - 0663",2,6,200]
["ADG302 (LFP)","Asistencia a la Dirección","0664","Proyecto Intermodular de asistencia a la dirección","ADG302 (LFP) - 0664",2,2,67]
["ADG302 (LFP)","Asistencia a la Dirección","1708","Sostenibilidad aplicada al sistema productivo","ADG302 (LFP) - 1708",2,1,33]
["ADG302 (LFP)","Asistencia a la Dirección","1710","Itinerario personal para la empleabilidad II","ADG302 (LFP) - 1710",2,2,67]
["ADG302 (LFP)","Asistencia a la Dirección","0OPT","Módulo profesional optativo","ADG302 (LFP) - 0OPT",2,3,100]
["AFD201 (LFP)","Guía en el Medio Natural y de Tiempo Libre","0156","Inglés Profesional (GM)","AFD201 (LFP) - 0156",1,2,67]
["AFD201 (LFP)","Guía en el Medio Natural y de Tiempo Libre","1325","Técnicas de equitación","AFD201 (LFP) - 1325",1,3,100]
["AFD201 (LFP)","Guía en el Medio Natural y de Tiempo Libre","1328","Atención a grupos","AFD201 (LFP) - 1328",1,2,67]
["AFD201 (LFP)","Guía en el Medio Natural y de Tiempo Libre","1329","Organización de itinerarios","AFD201 (LFP) - 1329",1,3,100]
["AFD201 (LFP)","Guía en el Medio Natural y de Tiempo Libre","1333","Guía de baja y media montaña","AFD201 (LFP) - 1333",1,6,200]
["AFD201 (LFP)","Guía en el Medio Natural y de Tiempo Libre","1334","Guía de bicicleta","AFD201 (LFP) - 1334",1,6,200]
["AFD201 (LFP)","Guía en el Medio Natural y de Tiempo Libre","1336","Técnicas de natación","AFD201 (LFP) - 1336",1,3,100]
["AFD201 (LFP)","Guía en el Medio Natural y de Tiempo Libre","1664","Digitalización aplicada a los sectores productivos (GM)","AFD201 (LFP) - 1664",1,1,33]
["AFD201 (LFP)","Guía en el Medio Natural y de Tiempo Libre","1709","Itinerario personal para la empleabilidad I","AFD201 (LFP) - 1709",1,3,100]
["AFD201 (LFP)","Guía en el Medio Natural y de Tiempo Libre","A997","Tutoría I","AFD201 (LFP) - A997",1,1,33]
["AFD201 (LFP)","Guía en el Medio Natural y de Tiempo Libre","1327","Guía ecuestre","AFD201 (LFP) - 1327",2,3,100]
["AFD201 (LFP)","Guía en el Medio Natural y de Tiempo Libre","1335","Técnicas de tiempo libre","AFD201 (LFP) - 1335",2,3,100]
["AFD201 (LFP)","Guía en el Medio Natural y de Tiempo Libre","1337","Socorrismo en el medio natural","AFD201 (LFP) - 1337",2,6,200]
["AFD201 (LFP)","Guía en el Medio Natural y de Tiempo Libre","1338","Guía en el medio natural acuático","AFD201 (LFP) - 1338",2,4,133]
["AFD201 (LFP)","Guía en el Medio Natural y de Tiempo Libre","1339","Maniobras con cuerdas",{"$f":"CONCATENATE(A67,\" - \",C67)","v":"AFD201 (LFP) - 1339"},2,5,167]
["AFD201 (LFP)","Guía en el Medio Natural y de Tiempo Libre","1708","Sostenibilidad aplicada al sistema productivo","AFD201 (LFP) - 1708",2,1,33]
["AFD201 (LFP)","Guía en el Medio Natural y de Tiempo Libre","1710","Itinerario personal para la empleabilidad II","AFD201 (LFP) - 1710",2,2,67]
["AFD201 (LFP)","Guía en el Medio Natural y de Tiempo Libre","1713","Proyecto Intermodular","AFD201 (LFP) - 1713",2,2,67]
["AFD201 (LFP)","Guía en el Medio Natural y de Tiempo Libre","A996","Tutoría II","AFD201 (LFP) - A996",2,1,33]
["AFD201 (LFP)","Guía en el Medio Natural y de Tiempo Libre","0OPT","Módulo profesional optativo","AFD201 (LFP) - 0OPT",2,3,100]
["AFD301 (LFP)","Enseñanza y Animación Sociodeportiva","0179","Inglés Profesional (GS)","AFD301 (LFP) - 0179",1,2,67]
["AFD301 (LFP)","Enseñanza y Animación Sociodeportiva","1124","Dinamización grupal","AFD301 (LFP) - 1124",1,4,133]
["AFD301 (LFP)","Enseñanza y Animación Sociodeportiva","1136","Valoración de la condición física e intervención en accidentes","AFD301 (LFP) - 1136",1,6,200]
["AFD301 (LFP)","Enseñanza y Animación Sociodeportiva","1138","Juegos y actividades físico-recreativas y de animación turística","AFD301 (LFP) - 1138",1,5,167]
["AFD301 (LFP)","Enseñanza y Animación Sociodeportiva","1139","Actividades físico-deportivas individuales","AFD301 (LFP) - 1139",1,6,200]
["AFD301 (LFP)","Enseñanza y Animación Sociodeportiva","1143","Metodología de la enseñanza de actividades físico-deportivas","AFD301 (LFP) - 1143",1,3,100]
["AFD301 (LFP)","Enseñanza y Animación Sociodeportiva","1665","Digitalización aplicada a los sectores productivos (GS)","AFD301 (LFP) - 1665",1,1,33]
["AFD301 (LFP)","Enseñanza y Animación Sociodeportiva","1709","Itinerario personal para la empleabilidad I","AFD301 (LFP) - 1709",1,3,100]
["AFD301 (LFP)","Enseñanza y Animación Sociodeportiva","1123","Actividades de ocio y tiempo libre","AFD301 (LFP) - 1123",2,7,233]
["AFD301 (LFP)","Enseñanza y Animación Sociodeportiva","1137","Planificación de la animación sociodeportiva","AFD301 (LFP) - 1137",2,2,67]
["AFD301 (LFP)","Enseñanza y Animación Sociodeportiva","1140","Actividades físico-deportivas de equipo","AFD301 (LFP) - 1140",2,5,167]
["AFD301 (LFP)","Enseñanza y Animación Sociodeportiva","1141","Actividades físico-deportivas de implementos","AFD301 (LFP) - 1141",2,4,133]
["AFD301 (LFP)","Enseñanza y Animación Sociodeportiva","1142","Actividades físico-deportivas para la inclusión social","AFD301 (LFP) - 1142",2,4,133]
["AFD301 (LFP)","Enseñanza y Animación Sociodeportiva","1144","Proyecto Intermodular de enseñanza y animación sociodeportiva","AFD301 (LFP) - 1144",2,2,67]
["AFD301 (LFP)","Enseñanza y Animación Sociodeportiva","1708","Sostenibilidad aplicada al sistema productivo","AFD301 (LFP) - 1708",2,1,33]
["AFD301 (LFP)","Enseñanza y Animación Sociodeportiva","1710","Itinerario personal para la empleabilidad II","AFD301 (LFP) - 1710",2,2,67]
["AFD301 (LFP)","Enseñanza y Animación Sociodeportiva","0OPT","Módulo profesional optativo","AFD301 (LFP) - 0OPT",2,3,100]
["AFD302 (LFP)","Acondicionamiento Físico","0017","Habilidades sociales","AFD302 (LFP) - 0017",1,4,133]
["AFD302 (LFP)","Acondicionamiento Físico","0179","Inglés Profesional (GS)","AFD302 (LFP) - 0179",1,2,67]
["AFD302 (LFP)","Acondicionamiento Físico","1136","Valoración de la condición física e intervención en accidentes","AFD302 (LFP) - 1136",1,6,200]
["AFD302 (LFP)","Acondicionamiento Físico","1149","Actividades básicas de acondicionamiento físico con soporte musical","AFD302 (LFP) - 1149",1,4,133]
["AFD302 (LFP)","Acondicionamiento Físico","1152","Técnicas de hidrocinesia","AFD302 (LFP) - 1152",1,4,133]
["AFD302 (LFP)","Acondicionamiento Físico","1153","Control postural, bienestar y mantenimiento funcional","AFD302 (LFP) - 1153",1,6,200]
["AFD302 (LFP)","Acondicionamiento Físico","16165","Digitalización aplicada a los sectores productivos (GS)","AFD302 (LFP) - 16165",1,1,33]
["AFD302 (LFP)","Acondicionamiento Físico","1709","Itinerario personal para la empleabilidad I","AFD302 (LFP) - 1709",1,3,100]
["AFD302 (LFP)","Acondicionamiento Físico","1148","Fitness en sala de entrenamiento polivalente","AFD302 (LFP) - 1148",2,10,333]
["AFD302 (LFP)","Acondicionamiento Físico","1150","Actividades especializadas de acondicionamiento físico con soporte musical","AFD302 (LFP) - 1150",2,6,200]
["AFD302 (LFP)","Acondicionamiento Físico","1151","Acondicionamiento físico en el agua","AFD302 (LFP) - 1151",2,6,200]
["AFD302 (LFP)","Acondicionamiento Físico","1154","Proyecto Intermodular de acondicionamiento físico","AFD302 (LFP) - 1154",2,2,67]
["AFD302 (LFP)","Acondicionamiento Físico","1708","Sostenibilidad aplicada al sistema productivo","AFD302 (LFP) - 1708",2,1,33]
["AFD302 (LFP)","Acondicionamiento Físico","1710","Itinerario personal para la empleabilidad II","AFD302 (LFP) - 1710",2,2,67]
["AFD302 (LFP)","Acondicionamiento Físico","0OPT","Módulo profesional optativo","AFD302 (LFP) - 0OPT",2,3,100]
["AGA201 (LFP)","Producción Agropecuaria","0156","Inglés Profesional (GM)","AGA201 (LFP) - 0156",1,2,67]
["AGA201 (LFP)","Producción Agropecuaria","0404","Fundamentos Agronómicos","AGA201 (LFP) - 0404",1,6,200]
["AGA201 (LFP)","Producción Agropecuaria","0405","Fundamentos Zootécnicos","AGA201 (LFP) - 0405",1,4,133]
["AGA201 (LFP)","Producción Agropecuaria","0407","Taller y Equipos de Tracción","AGA201 (LFP) - 0407",1,4,133]
["AGA201 (LFP)","Producción Agropecuaria","0409","Principios de Sanidad Vegetal","AGA201 (LFP) - 0409",1,3,100]
["AGA201 (LFP)","Producción Agropecuaria","0476","Producción Agrícola","AGA201 (LFP) - 0476",1,6,200]
["AGA201 (LFP)","Producción Agropecuaria","1664","Digitalización aplicada a los sectores productivos (GM)","AGA201 (LFP) - 1664",1,1,33]
["AGA201 (LFP)","Producción Agropecuaria","1709","Itinerario personal para la empleabilidad I","AGA201 (LFP) - 1709",1,3,100]
["AGA201 (LFP)","Producción Agropecuaria","A997","Tutoría I","AGA201 (LFP) - A997",1,1,33]
["AGA201 (LFP)","Producción Agropecuaria","0408","Infraestructuras e Instalaciones Agrícolas","AGA201 (LFP) - 0408",2,3,100]
["AGA201 (LFP)","Producción Agropecuaria","0475","Implantación de Cultivos","AGA201 (LFP) - 0475",2,6,200]
["AGA201 (LFP)","Producción Agropecuaria","0477","Producción de Leche, Huevos y Animales para Vida","AGA201 (LFP) - 0477",2,5,167]
["AGA201 (LFP)","Producción Agropecuaria","0478","Producción de Carne y otras Producciones Ganaderas","AGA201 (LFP) - 0478",2,4,133]
["AGA201 (LFP)","Producción Agropecuaria","0479","Control Fitosanitario","AGA201 (LFP) - 0479",2,3,100]
["AGA201 (LFP)","Producción Agropecuaria","1708","Sostenibilidad aplicada al sistema productivo","AGA201 (LFP) - 1708",2,1,33]
["AGA201 (LFP)","Producción Agropecuaria","1710","Itinerario personal para la empleabilidad II","AGA201 (LFP) - 1710",2,2,67]
["AGA201 (LFP)","Producción Agropecuaria","1713","Proyecto Intermodular","AGA201 (LFP) - 1713",2,2,67]
["AGA201 (LFP)","Producción Agropecuaria","A996","Tutoría II","AGA201 (LFP) - A996",2,1,33]
["AGA201 (LFP)","Producción Agropecuaria","0OPT","Módulo profesional optativo","AGA201 (LFP) - 0OPT",2,3,100]
["AGA202 (LFP)","Producción Agroecológica","0156","Inglés Profesional (GM)","AGA202 (LFP) - 0156",1,2,67]
["AGA202 (LFP)","Producción Agroecológica","0404","Fundamentos Agronómicos","AGA202 (LFP) - 0404",1,6,200]
["AGA202 (LFP)","Producción Agroecológica","0405","Fundamentos Zootécnicos","AGA202 (LFP) - 0405",1,4,133]
["AGA202 (LFP)","Producción Agroecológica","0406","Implantación de Cultivos Ecológicos","AGA202 (LFP) - 0406",1,6,200]
["AGA202 (LFP)","Producción Agroecológica","0407","Taller y Equipos de Tracción","AGA202 (LFP) - 0407",1,4,133]
["AGA202 (LFP)","Producción Agroecológica","0409","Principios de Sanidad Vegetal","AGA202 (LFP) - 0409",1,3,100]
["AGA202 (LFP)","Producción Agroecológica","1664","Digitalización aplicada a los sectores productivos (GM)","AGA202 (LFP) - 1664",1,1,33]
["AGA202 (LFP)","Producción Agroecológica","1709","Itinerario personal para la empleabilidad I",{"$f":"CONCATENATE(A131,\" - \",C131)","v":"AGA202 (LFP) - 1709"},1,3,100]
["AGA202 (LFP)","Producción Agroecológica","A997","Tutoría I","AGA202 (LFP) - A997",1,1,33]
["AGA202 (LFP)","Producción Agroecológica","0408","Infraestructuras e Instalaciones Agrícolas","AGA202 (LFP) - 0408",2,3,100]
["AGA202 (LFP)","Producción Agroecológica","0410","Producción Vegetal Ecológica","AGA202 (LFP) - 0410",2,7,233]
["AGA202 (LFP)","Producción Agroecológica","0411","Producción Ganadera Ecológica","AGA202 (LFP) - 0411",2,5,167]
["AGA202 (LFP)","Producción Agroecológica","0412","Manejo Sanitario del Agrosistema","AGA202 (LFP) - 0412",2,4,133]
["AGA202 (LFP)","Producción Agroecológica","0413","Comercialización de Productos Agroecológicos","AGA202 (LFP) - 0413",2,2,67]
["AGA202 (LFP)","Producción Agroecológica","1708","Sostenibilidad aplicada al sistema productivo","AGA202 (LFP) - 1708",2,1,33]
["AGA202 (LFP)","Producción Agroecológica","1710","Itinerario personal para la empleabilidad II","AGA202 (LFP) - 1710",2,2,67]
["AGA202 (LFP)","Producción Agroecológica","1713","Proyecto Intermodular","AGA202 (LFP) - 1713",2,2,67]
["AGA202 (LFP)","Producción Agroecológica","A996","Tutoría II","AGA202 (LFP) - A996",2,1,33]
["AGA202 (LFP)","Producción Agroecológica","0OPT","Módulo profesional optativo","AGA202 (LFP) - 0OPT",2,3,100]
["AGA204 (LFP)","Jardinería y Floristería","0156","Inglés Profesional (GM)","AGA204 (LFP) - 0156",1,2,67]
["AGA204 (LFP)","Jardinería y Floristería","0404","Fundamentos Agronómicos","AGA204 (LFP) - 0404",1,6,200]
["AGA204 (LFP)","Jardinería y Floristería","0407","Taller y Equipos de Tracción","AGA204 (LFP) - 0407",1,4,133]
["AGA204 (LFP)","Jardinería y Floristería","0409","Principios de Sanidad Vegetal","AGA204 (LFP) - 0409",1,3,100]
["AGA204 (LFP)","Jardinería y Floristería","0576","Implantación de jardines y zonas verdes","AGA204 (LFP) - 0576",1,4,133]
["AGA204 (LFP)","Jardinería y Floristería","0577","Mantenimiento y mejora de jardines y zonas verdes","AGA204 (LFP) - 0577",1,6,200]
["AGA204 (LFP)","Jardinería y Floristería","1664","Digitalización aplicada a los sectores productivos (GM)","AGA204 (LFP) - 1664",1,1,33]
["AGA204 (LFP)","Jardinería y Floristería","1709","Itinerario personal para la empleabilidad I","AGA204 (LFP) - 1709",1,3,100]
["AGA204 (LFP)","Jardinería y Floristería","A997","Tutoría I","AGA204 (LFP) - A997",1,1,33]
["AGA204 (LFP)","Jardinería y Floristería","0408","Infraestructuras e Instalaciones Agrícolas","AGA204 (LFP) - 0408",2,3,100]
["AGA204 (LFP)","Jardinería y Floristería","0479","Control Fitosanitario","AGA204 (LFP) - 0479",2,3,100]
["AGA204 (LFP)","Jardinería y Floristería","0578","Producción de plantas y tepes en vivero","AGA204 (LFP) - 0578",2,7,233]
["AGA204 (LFP)","Jardinería y Floristería","0579","Composiciones florales y con plantas","AGA204 (LFP) - 0579",2,4,133]
["AGA204 (LFP)","Jardinería y Floristería","0580","Establecimientos de floristería","AGA204 (LFP) - 0580",2,2,67]
["AGA204 (LFP)","Jardinería y Floristería","0581","Técnicas de venta en jardinería y floristería","AGA204 (LFP) - 0581",2,2,67]
["AGA204 (LFP)","Jardinería y Floristería","1708","Sostenibilidad aplicada al sistema productivo","AGA204 (LFP) - 1708",2,1,33]
["AGA204 (LFP)","Jardinería y Floristería","1710","Itinerario personal para la empleabilidad II","AGA204 (LFP) - 1710",2,2,67]
["AGA204 (LFP)","Jardinería y Floristería","1713","Proyecto Intermodular","AGA204 (LFP) - 1713",2,2,67]
["AGA204 (LFP)","Jardinería y Floristería","A996","Tutoría II","AGA204 (LFP) - A996",2,1,33]
["AGA204 (LFP)","Jardinería y Floristería","0OPT","Módulo profesional optativo","AGA204 (LFP) - 0OPT",2,3,100]
["AGA205 (LFP)","Aprovechamiento y Conservación del Medio Natural","0156","Inglés Profesional (GM)","AGA205 (LFP) - 0156",1,2,67]
["AGA205 (LFP)","Aprovechamiento y Conservación del Medio Natural","0404","Fundamentos Agronómicos","AGA205 (LFP) - 0404",1,6,200]
["AGA205 (LFP)","Aprovechamiento y Conservación del Medio Natural","0409","Principios de Sanidad Vegetal","AGA205 (LFP) - 0409",1,3,100]
["AGA205 (LFP)","Aprovechamiento y Conservación del Medio Natural","0832","Repoblaciones forestales y tratamientos selvícolas","AGA205 (LFP) - 0832",1,6,200]
["AGA205 (LFP)","Aprovechamiento y Conservación del Medio Natural","0836","Prevención de incendios forestales","AGA205 (LFP) - 0836",1,2,67]
["AGA205 (LFP)","Aprovechamiento y Conservación del Medio Natural","0837","Maquinaria e instalaciones forestales","AGA205 (LFP) - 0837",1,6,200]
["AGA205 (LFP)","Aprovechamiento y Conservación del Medio Natural","1664","Digitalización aplicada a los sectores productivos (GM)","AGA205 (LFP) - 1664",1,1,33]
["AGA205 (LFP)","Aprovechamiento y Conservación del Medio Natural","1709","Itinerario personal para la empleabilidad I","AGA205 (LFP) - 1709",1,3,100]
["AGA205 (LFP)","Aprovechamiento y Conservación del Medio Natural","A997","Tutoría I","AGA205 (LFP) - A997",1,1,33]
["AGA205 (LFP)","Aprovechamiento y Conservación del Medio Natural","0479","Control Fitosanitario","AGA205 (LFP) - 0479",2,3,100]
["AGA205 (LFP)","Aprovechamiento y Conservación del Medio Natural","0833","Aprovechamiento del medio natural","AGA205 (LFP) - 0833",2,6,200]
["AGA205 (LFP)","Aprovechamiento y Conservación del Medio Natural","0834","Conservación de las especies cinegéticas y piscícolas","AGA205 (LFP) - 0834",2,3,100]
["AGA205 (LFP)","Aprovechamiento y Conservación del Medio Natural","0835","Producción de planta forestal en vivero","AGA205 (LFP) - 0835",2,6,200]
["AGA205 (LFP)","Aprovechamiento y Conservación del Medio Natural","0838","Uso público en espacios naturales","AGA205 (LFP) - 0838",2,3,100]
["AGA205 (LFP)","Aprovechamiento y Conservación del Medio Natural","1708","Sostenibilidad aplicada al sistema productivo","AGA205 (LFP) - 1708",2,1,33]
["AGA205 (LFP)","Aprovechamiento y Conservación del Medio Natural","1710","Itinerario personal para la empleabilidad II","AGA205 (LFP) - 1710",2,2,67]
["AGA205 (LFP)","Aprovechamiento y Conservación del Medio Natural","1713","Proyecto Intermodular","AGA205 (LFP) - 1713",2,2,67]
["AGA205 (LFP)","Aprovechamiento y Conservación del Medio Natural","A996","Tutoría II","AGA205 (LFP) - A996",2,1,33]
["AGA205 (LFP)","Aprovechamiento y Conservación del Medio Natural","0OPT","Módulo profesional optativo","AGA205 (LFP) - 0OPT",2,3,100]
["AGA302 (LFP)","Gestión Forestal y del Medio Natural","0179","Inglés Profesional (GS)","AGA302 (LFP) - 0179",1,2,67]
["AGA302 (LFP)","Gestión Forestal y del Medio Natural","0013","Botánica agronómica","AGA302 (LFP) - 0013",1,3,100]
["AGA302 (LFP)","Gestión Forestal y del Medio Natural","0014","Topografía agraria","AGA302 (LFP) - 0014",1,3,100]
["AGA302 (LFP)","Gestión Forestal y del Medio Natural","0016","Maquinaria e instalaciones agroforestales","AGA302 (LFP) - 0016",1,6,200]
["AGA302 (LFP)","Gestión Forestal y del Medio Natural","0018","Gestión y organización del vivero forestal","AGA302 (LFP) - 0018",1,3,100]
["AGA302 (LFP)","Gestión Forestal y del Medio Natural","0019","Gestión de montes","AGA302 (LFP) - 0019",1,5,167]
["AGA302 (LFP)","Gestión Forestal y del Medio Natural","0017","Gestión de la conservación del medio natural","AGA302 (LFP) - 0017",1,4,133]
["AGA302 (LFP)","Gestión Forestal y del Medio Natural","1665","Digitalización aplicada a los sectores productivos (GS)","AGA302 (LFP) - 1665",1,1,33]
["AGA302 (LFP)","Gestión Forestal y del Medio Natural","0017","Itinerario personal para la empleabilidad I","AGA302 (LFP) - 0017",1,3,100]
["AGA302 (LFP)","Gestión Forestal y del Medio Natural","0692","Fitopatología","AGA302 (LFP) - 0692",2,5,167]
["AGA302 (LFP)","Gestión Forestal y del Medio Natural","0017","Técnicas de educación ambiental","AGA302 (LFP) - 0017",2,4,133]
["AGA302 (LFP)","Gestión Forestal y del Medio Natural","0810","Gestión de los aprovechamientos del medio forestal","AGA302 (LFP) - 0810",2,5,167]
["AGA302 (LFP)","Gestión Forestal y del Medio Natural","0812","Gestión cinegética","AGA302 (LFP) - 0812",2,3,100]
["AGA302 (LFP)","Gestión Forestal y del Medio Natural","0813","Gestión de la pesca continental",{"$f":"CONCATENATE(A195,\" - \",C195)","v":"AGA302 (LFP) - 0813"},2,2,67]
["AGA302 (LFP)","Gestión Forestal y del Medio Natural","0816","Defensa contra incendios forestales","AGA302 (LFP) - 0816",2,3,100]
["AGA302 (LFP)","Gestión Forestal y del Medio Natural","0817","Proyecto Intermodular de gestión forestal y conservación del medio","AGA302 (LFP) - 0817",2,2,67]
["AGA302 (LFP)","Gestión Forestal y del Medio Natural","1708","Sostenibilidad aplicada al sistema productivo","AGA302 (LFP) - 1708",2,1,33]
["AGA302 (LFP)","Gestión Forestal y del Medio Natural","1710","Itinerario personal para la empleabilidad II","AGA302 (LFP) - 1710",2,2,67]
["AGA302 (LFP)","Gestión Forestal y del Medio Natural","0OPT","Módulo profesional optativo","AGA302 (LFP) - 0OPT",2,3,100]
["AGA303 (LFP)","Paisajismo y Medio Rural","0179","Inglés Profesional (GS)","AGA303 (LFP) - 0179",1,2,67]
["AGA303 (LFP)","Paisajismo y Medio Rural","0690","Botánica agronómica","AGA303 (LFP) - 0690",1,3,100]
["AGA303 (LFP)","Paisajismo y Medio Rural","0691","Gestión y organización del vivero","AGA303 (LFP) - 0691",1,6,200]
["AGA303 (LFP)","Paisajismo y Medio Rural","0693","Topografía agraria","AGA303 (LFP) - 0693",1,3,100]
["AGA303 (LFP)","Paisajismo y Medio Rural","0694","Maquinaria e instalaciones agroforestales","AGA303 (LFP) - 0694",1,6,200]
["AGA303 (LFP)","Paisajismo y Medio Rural","0695","Planificación de cultivos","AGA303 (LFP) - 0695",1,6,200]
["AGA303 (LFP)","Paisajismo y Medio Rural","1665","Digitalización aplicada a los sectores productivos (GS)","AGA303 (LFP) - 1665",1,1,33]
["AGA303 (LFP)","Paisajismo y Medio Rural","1709","Itinerario personal para la empleabilidad I","AGA303 (LFP) - 1709",1,3,100]
["AGA303 (LFP)","Paisajismo y Medio Rural","0692","Fitopatología","AGA303 (LFP) - 0692",2,5,167]
["AGA303 (LFP)","Paisajismo y Medio Rural","0696","Gestión de cultivos","AGA303 (LFP) - 0696",2,7,233]
["AGA303 (LFP)","Paisajismo y Medio Rural","0697","Diseño de jardines y restauración del paisaje","AGA303 (LFP) - 0697",2,5,167]
["AGA303 (LFP)","Paisajismo y Medio Rural","0698","Conservación de jardines y céspedes deportivos","AGA303 (LFP) - 0698",2,5,167]
["AGA303 (LFP)","Paisajismo y Medio Rural","0699","Proyecto Intermodular de paisajismo y medio rural","AGA303 (LFP) - 0699",2,2,67]
["AGA303 (LFP)","Paisajismo y Medio Rural","1708","Sostenibilidad aplicada al sistema productivo","AGA303 (LFP) - 1708",2,1,33]
["AGA303 (LFP)","Paisajismo y Medio Rural","1710","Itinerario personal para la empleabilidad II","AGA303 (LFP) - 1710",2,2,67]
["AGA303 (LFP)","Paisajismo y Medio Rural","0OPT","Módulo profesional optativo","AGA303 (LFP) - 0OPT",2,3,100]
["AGA304 (LFP)","Ganadería y Asistencia en Sanidad Animal","0179","Inglés Profesional (GS)","AGA304 (LFP) - 0179",1,2,67]
["AGA304 (LFP)","Ganadería y Asistencia en Sanidad Animal","1274","Organización y control de la reproducción y cría","AGA304 (LFP) - 1274",1,7,233]
["AGA304 (LFP)","Ganadería y Asistencia en Sanidad Animal","1275","Gestión de la producción animal","AGA304 (LFP) - 1275",1,8,267]
["AGA304 (LFP)","Ganadería y Asistencia en Sanidad Animal","1278","Maquinaria e instalaciones ganaderas","AGA304 (LFP) - 1278",1,5,167]
["AGA304 (LFP)","Ganadería y Asistencia en Sanidad Animal","1282","Gestión de centros veterinarios","AGA304 (LFP) - 1282",1,4,133]
["AGA304 (LFP)","Ganadería y Asistencia en Sanidad Animal","1665","Digitalización aplicada a los sectores productivos (GS)","AGA304 (LFP) - 1665",1,1,33]
["AGA304 (LFP)","Ganadería y Asistencia en Sanidad Animal","1709","Itinerario personal para la empleabilidad I","AGA304 (LFP) - 1709",1,3,100]
["AGA304 (LFP)","Ganadería y Asistencia en Sanidad Animal","1276","Gestión de la recría de caballos","AGA304 (LFP) - 1276",2,2,67]
["AGA304 (LFP)","Ganadería y Asistencia en Sanidad Animal","1277","Organización y supervisión de la doma y manejo de équidos","AGA304 (LFP) - 1277",2,3,100]
["AGA304 (LFP)","Ganadería y Asistencia en Sanidad Animal","1279","Saneamiento ganadero","AGA304 (LFP) - 1279",2,7,233]
["AGA304 (LFP)","Ganadería y Asistencia en Sanidad Animal","1280","Asistencia a la atención veterinaria","AGA304 (LFP) - 1280",2,6,200]
["AGA304 (LFP)","Ganadería y Asistencia en Sanidad Animal","1281","Bioseguridad","AGA304 (LFP) - 1281",2,4,133]
["AGA304 (LFP)","Ganadería y Asistencia en Sanidad Animal","1283","Proyecto Intermodular de ganadería y asistencia en sanidad animal","AGA304 (LFP) - 1283",2,2,67]
["AGA304 (LFP)","Ganadería y Asistencia en Sanidad Animal","1708","Sostenibilidad aplicada al sistema productivo","AGA304 (LFP) - 1708",2,1,33]
["AGA304 (LFP)","Ganadería y Asistencia en Sanidad Animal","1710","Itinerario personal para la empleabilidad II","AGA304 (LFP) - 1710",2,2,67]
["AGA304 (LFP)","Ganadería y Asistencia en Sanidad Animal","0OPT","Módulo profesional optativo","AGA304 (LFP) - 0OPT",2,3,100]
["ARG202 (LFP)","Impresión Gráfica","0156","Inglés Profesional (GM)","ARG202 (LFP) - 0156",1,2,67]
["ARG202 (LFP)","Impresión Gráfica","0877","Preparación y regulación de máquinas offset","ARG202 (LFP) - 0877",1,10,333]
["ARG202 (LFP)","Impresión Gráfica","0880","Impresión en serigrafía","ARG202 (LFP) - 0880",1,7,233]
["ARG202 (LFP)","Impresión Gráfica","0882","Preparación de materiales para impresión","ARG202 (LFP) - 0882",1,6,200]
["ARG202 (LFP)","Impresión Gráfica","1664","Digitalización aplicada a los sectores productivos (GM)","ARG202 (LFP) - 1664",1,1,33]
["ARG202 (LFP)","Impresión Gráfica","1709","Itinerario personal para la empleabilidad I","ARG202 (LFP) - 1709",1,3,100]
["ARG202 (LFP)","Impresión Gráfica","A997","Tutoría I","ARG202 (LFP) - A997",1,1,33]
["ARG202 (LFP)","Impresión Gráfica","0869","Impresión digital","ARG202 (LFP) - 0869",2,5,167]
["ARG202 (LFP)","Impresión Gráfica","0878","Desarrollo de la tirada offset","ARG202 (LFP) - 0878",2,10,333]
["ARG202 (LFP)","Impresión Gráfica","0879","Impresión en flexografía","ARG202 (LFP) - 0879",2,4,133]
["ARG202 (LFP)","Impresión Gráfica","0883","Impresión en bajorrelieve","ARG202 (LFP) - 0883",2,2,67]
["ARG202 (LFP)","Impresión Gráfica","1708","Sostenibilidad aplicada al sistema productivo","ARG202 (LFP) - 1708",2,1,33]
["ARG202 (LFP)","Impresión Gráfica","1710","Itinerario personal para la empleabilidad II","ARG202 (LFP) - 1710",2,2,67]
["ARG202 (LFP)","Impresión Gráfica","1713","Proyecto Intermodular","ARG202 (LFP) - 1713",2,2,67]
["ARG202 (LFP)","Impresión Gráfica","A996","Tutoría II","ARG202 (LFP) - A996",2,1,33]
["ARG202 (LFP)","Impresión Gráfica","0OPT","Módulo profesional optativo","ARG202 (LFP) - 0OPT",2,3,100]
["ARG203 (LFP)","Preimpresión Digital","0156","Inglés Profesional (GM)","ARG203 (LFP) - 0156",1,2,67]
["ARG203 (LFP)","Preimpresión Digital","0866","Tratamiento de textos","ARG203 (LFP) - 0866",1,6,200]
["ARG203 (LFP)","Preimpresión Digital","0867","Tratamiento de imagen en mapa de bits","ARG203 (LFP) - 0867",1,9,300]
["ARG203 (LFP)","Preimpresión Digital","0871","Identificación de materiales en preimpresión","ARG203 (LFP) - 0871",1,4,133]
["ARG203 (LFP)","Preimpresión Digital","0873","Ilustración vectorial","ARG203 (LFP) - 0873",1,4,133]
["ARG203 (LFP)","Preimpresión Digital","1664","Digitalización aplicada a los sectores productivos (GM)","ARG203 (LFP) - 1664",1,1,33]
["ARG203 (LFP)","Preimpresión Digital","1709","Itinerario personal para la empleabilidad I","ARG203 (LFP) - 1709",1,3,100]
["ARG203 (LFP)","Preimpresión Digital","A997","Tutoría I","ARG203 (LFP) - A997",1,1,33]
["ARG203 (LFP)","Preimpresión Digital","0868","Imposición y obtención digital de la forma impresora","ARG203 (LFP) - 0868",2,3,100]
["ARG203 (LFP)","Preimpresión Digital","0869","Impresión digital","ARG203 (LFP) - 0869",2,5,167]
["ARG203 (LFP)","Preimpresión Digital","0870","Compaginación",{"$f":"CONCATENATE(A259,\" - \",C259)","v":"ARG203 (LFP) - 0870"},2,9,300]
["ARG203 (LFP)","Preimpresión Digital","0872","Ensamblado de publicaciones electrónicas","ARG203 (LFP) - 0872",2,4,133]
["ARG203 (LFP)","Preimpresión Digital","1708","Sostenibilidad aplicada al sistema productivo","ARG203 (LFP) - 1708",2,1,33]
["ARG203 (LFP)","Preimpresión Digital","1710","Itinerario personal para la empleabilidad II","ARG203 (LFP) - 1710",2,2,67]
["ARG203 (LFP)","Preimpresión Digital","1713","Proyecto Intermodular","ARG203 (LFP) - 1713",2,2,67]
["ARG203 (LFP)","Preimpresión Digital","A996","Tutoría II","ARG203 (LFP) - A996",2,1,33]
["ARG203 (LFP)","Preimpresión Digital","0OPT","Módulo profesional optativo","ARG203 (LFP) - 0OPT",2,3,100]
["ARG301 (LFP)","Diseño y Edición de Publicaciones Impresas y Multimedia","0179","Inglés Profesional (GS)","ARG301 (LFP) - 0179",1,2,67]
["ARG301 (LFP)","Diseño y Edición de Publicaciones Impresas y Multimedia","1417","Materiales de producción gráfica","ARG301 (LFP) - 1417",1,4,133]
["ARG301 (LFP)","Diseño y Edición de Publicaciones Impresas y Multimedia","1478","Organización de los procesos de preimpresión digital","ARG301 (LFP) - 1478",1,9,300]
["ARG301 (LFP)","Diseño y Edición de Publicaciones Impresas y Multimedia","1479","Diseño de productos gráficos","ARG301 (LFP) - 1479",1,8,267]
["ARG301 (LFP)","Diseño y Edición de Publicaciones Impresas y Multimedia","1480","Comercialización de productos gráficos y atención al cliente","ARG301 (LFP) - 1480",1,3,100]
["ARG301 (LFP)","Diseño y Edición de Publicaciones Impresas y Multimedia","1665","Digitalización aplicada a los sectores productivos (GS)","ARG301 (LFP) - 1665",1,1,33]
["ARG301 (LFP)","Diseño y Edición de Publicaciones Impresas y Multimedia","1709","Itinerario personal para la empleabilidad I","ARG301 (LFP) - 1709",1,3,100]
["ARG301 (LFP)","Diseño y Edición de Publicaciones Impresas y Multimedia","1481","Gestión de la producción en procesos de edición","ARG301 (LFP) - 1481",2,4,133]
["ARG301 (LFP)","Diseño y Edición de Publicaciones Impresas y Multimedia","1482","Producción editorial","ARG301 (LFP) - 1482",2,5,167]
["ARG301 (LFP)","Diseño y Edición de Publicaciones Impresas y Multimedia","1483","Diseño estructural de envase y embalaje","ARG301 (LFP) - 1483",2,4,133]
["ARG301 (LFP)","Diseño y Edición de Publicaciones Impresas y Multimedia","1484","Diseño y planificación de proyectos editoriales multimedia","ARG301 (LFP) - 1484",2,4,133]
["ARG301 (LFP)","Diseño y Edición de Publicaciones Impresas y Multimedia","1485","Desarrollo y publicación de productos editoriales multimedia","ARG301 (LFP) - 1485",2,5,167]
["ARG301 (LFP)","Diseño y Edición de Publicaciones Impresas y Multimedia","1486","Proyecto Intermodular de diseño y edición de publicaciones impresas y multimedia","ARG301 (LFP) - 1486",2,2,67]
["ARG301 (LFP)","Diseño y Edición de Publicaciones Impresas y Multimedia","1708","Sostenibilidad aplicada al sistema productivo","ARG301 (LFP) - 1708",2,1,33]
["ARG301 (LFP)","Diseño y Edición de Publicaciones Impresas y Multimedia","1710","Itinerario personal para la empleabilidad II","ARG301 (LFP) - 1710",2,2,67]
["ARG301 (LFP)","Diseño y Edición de Publicaciones Impresas y Multimedia","0OPT","Módulo profesional optativo","ARG301 (LFP) - 0OPT",2,3,100]
["ARG302 (LFP)","Diseño y Gestión de la Producción Gráfica","0179","Inglés Profesional (GS)","ARG302 (LFP) - 0179",1,2,67]
["ARG302 (LFP)","Diseño y Gestión de la Producción Gráfica","1417","Materiales de producción gráfica","ARG302 (LFP) - 1417",1,4,133]
["ARG302 (LFP)","Diseño y Gestión de la Producción Gráfica","1478","Organización de los procesos de preimpresión digital","ARG302 (LFP) - 1478",1,9,300]
["ARG302 (LFP)","Diseño y Gestión de la Producción Gráfica","1479","Diseño de productos gráficos","ARG302 (LFP) - 1479",1,8,267]
["ARG302 (LFP)","Diseño y Gestión de la Producción Gráfica","1480","Comercialización de productos gráficos y atención al cliente","ARG302 (LFP) - 1480",1,3,100]
["ARG302 (LFP)","Diseño y Gestión de la Producción Gráfica","1665","Digitalización aplicada a los sectores productivos (GS)","ARG302 (LFP) - 1665",1,1,33]
["ARG302 (LFP)","Diseño y Gestión de la Producción Gráfica","1709","Itinerario personal para la empleabilidad I","ARG302 (LFP) - 1709",1,3,100]
["ARG302 (LFP)","Diseño y Gestión de la Producción Gráfica","1538","Gestión de la producción en la industria gráfica","ARG302 (LFP) - 1538",2,5,167]
["ARG302 (LFP)","Diseño y Gestión de la Producción Gráfica","1539","Gestión del color","ARG302 (LFP) - 1539",2,4,133]
["ARG302 (LFP)","Diseño y Gestión de la Producción Gráfica","1540","Organización de los procesos de impresión gráfica","ARG302 (LFP) - 1540",2,8,267]
["ARG302 (LFP)","Diseño y Gestión de la Producción Gráfica","1541","Organización de los procesos de postimpresión, transformados y acabados","ARG302 (LFP) - 1541",2,5,167]
["ARG302 (LFP)","Diseño y Gestión de la Producción Gráfica","1542","Proyecto Intermodular de diseño y gestión de la producción gráfica","ARG302 (LFP) - 1542",2,2,67]
["ARG302 (LFP)","Diseño y Gestión de la Producción Gráfica","1708","Sostenibilidad aplicada al sistema productivo","ARG302 (LFP) - 1708",2,1,33]
["ARG302 (LFP)","Diseño y Gestión de la Producción Gráfica","1710","Itinerario personal para la empleabilidad II","ARG302 (LFP) - 1710",2,2,67]
["ARG302 (LFP)","Diseño y Gestión de la Producción Gráfica","0OPT","Módulo profesional optativo","ARG302 (LFP) - 0OPT",2,3,100]
["CEMELE01 (LFP)","Implementación de Redes 5G","5053","Implementación de redes 5G","CEMELE01 (LFP) - 5053","No especificado",0,200]
["CEMELE01 (LFP)","Implementación de Redes 5G","5054","Mantenimiento de infraestructuras y redes 5G","CEMELE01 (LFP) - 5054","No especificado",0,100]
["CEMHOT01 (LFP)","Panadería y Bollería Artesanales","5016","Masas madre de cultivo y prefermentos","CEMHOT01 (LFP) - 5016","No especificado",0,118]
["CEMHOT01 (LFP)","Panadería y Bollería Artesanales","5017","Tecnología del frío aplicada a la panadería artesanal","CEMHOT01 (LFP) - 5017","No especificado",0,100]
["CEMHOT01 (LFP)","Panadería y Bollería Artesanales","5018","Panes artesanos de cereales tradicionales, especiales y pseudocereales","CEMHOT01 (LFP) - 5018","No especificado",0,164]
["CEMHOT01 (LFP)","Panadería y Bollería Artesanales","5019","Bollería artesanal y hojaldres","CEMHOT01 (LFP) - 5019","No especificado",0,164]
["CEMTMV01 (LFP)","Mantenimiento de Vehículos Híbridos y Eléctricos","5060","Seguridad en vehículos híbridos y eléctricos","CEMTMV01 (LFP) - 5060","No especificado",0,82]
["CEMTMV01 (LFP)","Mantenimiento de Vehículos Híbridos y Eléctricos","5061","Sistemas de propulsión en vehículos híbridos y eléctricos","CEMTMV01 (LFP) - 5061","No especificado",0,154]
["CEMTMV01 (LFP)","Mantenimiento de Vehículos Híbridos y Eléctricos","5062","Sistemas eléctricos de alto voltaje, baterías y recarga","CEMTMV01 (LFP) - 5062","No especificado",0,144]
["CEMTMV01 (LFP)","Mantenimiento de Vehículos Híbridos y Eléctricos","5063","Transmisión de fuerzas y gestión térmica","CEMTMV01 (LFP) - 5063","No especificado",0,126]
["CESELE01 (LFP)","Robótica Colaborativa","5087","Robótica colaborativa","CESELE01 (LFP) - 5087","No especificado",0,80]
["CESELE01 (LFP)","Robótica Colaborativa","5088","Configuración y programación","CESELE01 (LFP) - 5088","No especificado",0,180]
["CESELE01 (LFP)","Robótica Colaborativa","5089","Robots móviles autónomos","CESELE01 (LFP) - 5089","No especificado",0,80]
["CESELE01 (LFP)","Robótica Colaborativa","5090","Seguridad y mantenimiento","CESELE01 (LFP) - 5090","No especificado",0,60]
["CESENA01 (LFP)","Auditoría Energética","5105","Procesos de una auditoría energética","CESENA01 (LFP) - 5105","No especificado",0,90]
["CESENA01 (LFP)","Auditoría Energética","5106","Toma de datos y mediciones de consumos energéticos","CESENA01 (LFP) - 5106","No especificado",0,120]
["CESENA01 (LFP)","Auditoría Energética","5107","Análisis de la situación energética de edificios e instalaciones","CESENA01 (LFP) - 5107","No especificado",0,90]
["CESENA01 (LFP)","Auditoría Energética","5108","Evaluación de la mejora energética de edificios e instalaciones","CESENA01 (LFP) - 5108","No especificado",0,120]
["CESFME01 (LFP)","Fabricación aditiva","5065","Tecnologías de fabricación aditiva","CESFME01 (LFP) - 5065","No especificado",0,82]
["CESFME01 (LFP)","Fabricación aditiva","5066","Diseño de estructuras aligeradas y optimización topológica en fabricación","CESFME01 (LFP) - 5066","No especificado",0,82]
["CESFME01 (LFP)","Fabricación aditiva","5067","Modelado, laminado e impresión 3d","CESFME01 (LFP) - 5067","No especificado",0,200]
["CESFME01 (LFP)","Fabricación aditiva","5068","Escaneado y reparación de mallas 3d","CESFME01 (LFP) - 5068","No especificado",0,64]
["CESFME01 (LFP)","Fabricación aditiva","5069","Post procesado","CESFME01 (LFP) - 5069","No especificado",0,72]
["CESFME01 (LFP)","Fabricación aditiva","5070","Manejo, reparación y costos de la fabricación aditiva","CESFME01 (LFP) - 5070","No especificado",0,100]
["CESIFC01 (LFP)","Ciberseguridad en Entornos de las Tecnologías de la Información","5021","Incidentes de ciberseguridad","CESIFC01 (LFP) - 5021","No especificado",0,144]
["CESIFC01 (LFP)","Ciberseguridad en Entornos de las Tecnologías de la Información","5022","Bastionado de redes y sistemas","CESIFC01 (LFP) - 5022","No especificado",0,171]
["CESIFC01 (LFP)","Ciberseguridad en Entornos de las Tecnologías de la Información","5023","Puesta en producción segura",{"$f":"CONCATENATE(A323,\" - \",C323)","v":"CESIFC01 (LFP) - 5023"},"No especificado",0,117]
["CESIFC01 (LFP)","Ciberseguridad en Entornos de las Tecnologías de la Información","5024","Análisis forense informático","CESIFC01 (LFP) - 5024","No especificado",0,117]
["CESIFC01 (LFP)","Ciberseguridad en Entornos de las Tecnologías de la Información","5025","Hacking ético","CESIFC01 (LFP) - 5025","No especificado",0,117]
["CESIFC01 (LFP)","Ciberseguridad en Entornos de las Tecnologías de la Información","5026","Normativa de ciberseguridad","CESIFC01 (LFP) - 5026","No especificado",0,54]
["CESIFC02 (LFP)","Inteligencia Artificial y Big Data","5071","Modelos de inteligencia artificial","CESIFC02 (LFP) - 5071","No especificado",0,72]
["CESIFC02 (LFP)","Inteligencia Artificial y Big Data","5072","Sistemas de aprendizaje automático","CESIFC02 (LFP) - 5072","No especificado",0,92]
["CESIFC02 (LFP)","Inteligencia Artificial y Big Data","5073","Programación de inteligencia artificial","CESIFC02 (LFP) - 5073","No especificado",0,200]
["CESIFC02 (LFP)","Inteligencia Artificial y Big Data","5074","Sistemas de big data","CESIFC02 (LFP) - 5074","No especificado",0,100]
["CESIFC02 (LFP)","Inteligencia Artificial y Big Data","5075","Big data aplicado","CESIFC02 (LFP) - 5075","No especificado",0,136]
["CESIFC03 (LFP)","Desarrollo de Videojuegos y Realidad Virtual","5048","Programación y motores de videojuegos","CESIFC03 (LFP) - 5048","No especificado",0,146]
["CESIFC03 (LFP)","Desarrollo de Videojuegos y Realidad Virtual","5049","Diseño gráfico 2d y 3d","CESIFC03 (LFP) - 5049","No especificado",0,136]
["CESIFC03 (LFP)","Desarrollo de Videojuegos y Realidad Virtual","5050","Programación en red e inteligencia artificial","CESIFC03 (LFP) - 5050","No especificado",0,91]
["CESIFC03 (LFP)","Desarrollo de Videojuegos y Realidad Virtual","5051","Realidad virtual y realidad aumentada","CESIFC03 (LFP) - 5051","No especificado",0,91]
["CESIFC03 (LFP)","Desarrollo de Videojuegos y Realidad Virtual","5052","Diseño, gestión, publicación y producción","CESIFC03 (LFP) - 5052","No especificado",0,136]
["CESIMA01 (LFP)","Digitalización del Mantenimiento Industrial","5012","Metrología e instrumentación inteligente","CESIMA01 (LFP) - 5012","No especificado",0,100]
["CESIMA01 (LFP)","Digitalización del Mantenimiento Industrial","5032","Estrategias del mantenimiento industrial","CESIMA01 (LFP) - 5032","No especificado",0,164]
["CESIMA01 (LFP)","Digitalización del Mantenimiento Industrial","5033","Seguridad en el mantenimiento industrial","CESIMA01 (LFP) - 5033","No especificado",0,118]
["CESIMA01 (LFP)","Digitalización del Mantenimiento Industrial","5034","Monitorización de maquinaria, sistemas y equipos","CESIMA01 (LFP) - 5034","No especificado",0,82]
["CESIMA01 (LFP)","Digitalización del Mantenimiento Industrial","5035","Sistemas avanzados de ayuda al mantenimiento","CESIMA01 (LFP) - 5035","No especificado",0,136]
["CESIMA02 (LFP)","Fabricación Inteligente","5011","Procesos productivos inteligentes","CESIMA02 (LFP) - 5011","No especificado",0,200]
["CESIMA02 (LFP)","Fabricación Inteligente","5012","Metrología e instrumentación inteligente","CESIMA02 (LFP) - 5012","No especificado",0,100]
["CESIMA02 (LFP)","Fabricación Inteligente","5013","Entornos conectados a red e internet de las cosas","CESIMA02 (LFP) - 5013","No especificado",0,100]
["CESIMA02 (LFP)","Fabricación Inteligente","5014","Virtualización de máquinas y procesos productivos","CESIMA02 (LFP) - 5014","No especificado",0,100]
["CESIMA03 (LFP)","Modelado de la Información de la Construcción (BIM)","5055","Metodología bim","CESIMA03 (LFP) - 5055","No especificado",0,100]
["CESIMA03 (LFP)","Modelado de la Información de la Construcción (BIM)","5056","Modelos de arquitectura y estructuras","CESIMA03 (LFP) - 5056","No especificado",0,155]
["CESIMA03 (LFP)","Modelado de la Información de la Construcción (BIM)","5057","Modelos de instalaciones mecánicas y sostenibilidad","CESIMA03 (LFP) - 5057","No especificado",0,145]
["CESIMA03 (LFP)","Modelado de la Información de la Construcción (BIM)","5058","Modelos de instalaciones eléctricas y comunicaciones","CESIMA03 (LFP) - 5058","No especificado",0,118]
["CESTMV01 (LFP)","Mantenimiento y Seguridad en Sistemas de Vehículos Híbridos y Eléctricos","5076","Seguridad en vehículos con sistemas de alto voltaje","CESTMV01 (LFP) - 5076","No especificado",0,80]
["CESTMV01 (LFP)","Mantenimiento y Seguridad en Sistemas de Vehículos Híbridos y Eléctricos","5077","Tracción eléctrica e híbrida en vehículos","CESTMV01 (LFP) - 5077","No especificado",0,160]
["CESTMV01 (LFP)","Mantenimiento y Seguridad en Sistemas de Vehículos Híbridos y Eléctricos","5078","Sistemas de alto voltaje, almacenamiento y recarga eléctrica","CESTMV01 (LFP) - 5078","No especificado",0,160]
["CESTMV01 (LFP)","Mantenimiento y Seguridad en Sistemas de Vehículos Híbridos y Eléctricos","5079","Sistemas de transmisión, freno regenerativo y control térmico","CESTMV01 (LFP) - 5079","No especificado",0,120]
["CESTMV02 (LFP)","Aeronaves Pilotadas de forma Remota - Drones","5091","Sistemas aéreos no tripulados","CESTMV02 (LFP) - 5091","No especificado",0,80]
["CESTMV02 (LFP)","Aeronaves Pilotadas de forma Remota - Drones","5092","Partes y componentes","CESTMV02 (LFP) - 5092","No especificado",0,50]
["CESTMV02 (LFP)","Aeronaves Pilotadas de forma Remota - Drones","5093","Electrónica y sistemas","CESTMV02 (LFP) - 5093","No especificado",0,90]
["CESTMV02 (LFP)","Aeronaves Pilotadas de forma Remota - Drones","5094","Configuración y control","CESTMV02 (LFP) - 5094","No especificado",0,90]
["CESTMV02 (LFP)","Aeronaves Pilotadas de forma Remota - Drones","5095","Mantenimiento y pruebas","CESTMV02 (LFP) - 5095","No especificado",0,120]
["CESTMV02 (LFP)","Aeronaves Pilotadas de forma Remota - Drones","5096","Aplicaciones profesionales","CESTMV02 (LFP) - 5096","No especificado",0,30]
["CESTMV02 (LFP)","Aeronaves Pilotadas de forma Remota - Drones","5097","Legislación y procedimientos de aplicación","CESTMV02 (LFP) - 5097","No especificado",0,40]
["COM201 (LFP)","Actividades Comerciales","0156","Inglés Profesional (GM)","COM201 (LFP) - 0156",1,2,67]
["COM201 (LFP)","Actividades Comerciales","1226","Marketing en la actividad comercial","COM201 (LFP) - 1226",1,5,167]
["COM201 (LFP)","Actividades Comerciales","1229","Gestión de compras","COM201 (LFP) - 1229",1,3,100]
["COM201 (LFP)","Actividades Comerciales","1231","Dinamización del punto de venta","COM201 (LFP) - 1231",1,6,200]
["COM201 (LFP)","Actividades Comerciales","1232","Procesos de venta","COM201 (LFP) - 1232",1,5,167]
["COM201 (LFP)","Actividades Comerciales","1233","Aplicaciones informáticas para el comercio","COM201 (LFP) - 1233",1,4,133]
["COM201 (LFP)","Actividades Comerciales","1664","Digitalización aplicada a los sectores productivos (GM)","COM201 (LFP) - 1664",1,1,33]
["COM201 (LFP)","Actividades Comerciales","1709","Itinerario personal para la empleabilidad I","COM201 (LFP) - 1709",1,3,100]
["COM201 (LFP)","Actividades Comerciales","A997","Tutoría I","COM201 (LFP) - A997",1,1,33]
["COM201 (LFP)","Actividades Comerciales","1227","Gestión de un pequeño comercio","COM201 (LFP) - 1227",2,4,133]
["COM201 (LFP)","Actividades Comerciales","1228","Técnicas de almacén","COM201 (LFP) - 1228",2,5,167]
["COM201 (LFP)","Actividades Comerciales","1230","Venta técnica","COM201 (LFP) - 1230",2,5,167]
["COM201 (LFP)","Actividades Comerciales","1234","Servicios de atención comercial","COM201 (LFP) - 1234",2,2,67]
["COM201 (LFP)","Actividades Comerciales","1235","Comercio electrónico","COM201 (LFP) - 1235",2,5,167]
["COM201 (LFP)","Actividades Comerciales","1708","Sostenibilidad aplicada al sistema productivo","COM201 (LFP) - 1708",2,1,33]
["COM201 (LFP)","Actividades Comerciales","1710","Itinerario personal para la empleabilidad II","COM201 (LFP) - 1710",2,2,67]
["COM201 (LFP)","Actividades Comerciales","1713","Proyecto Intermodular","COM201 (LFP) - 1713",2,2,67]
["COM201 (LFP)","Actividades Comerciales","A996","Tutoría II","COM201 (LFP) - A996",2,1,33]
["COM201 (LFP)","Actividades Comerciales","0OPT","Módulo profesional optativo","COM201 (LFP) - 0OPT",2,3,100]
["COM202 (LFP)","Comercialización de Productos Alimentarios","0156","Inglés Profesional (GM)","COM202 (LFP) - 0156",1,2,67]
["COM202 (LFP)","Comercialización de Productos Alimentarios","1606","Constitución de pequeños negocios alimentarios","COM202 (LFP) - 1606",1,3,100]
["COM202 (LFP)","Comercialización de Productos Alimentarios","1607","Mercadotecnia del comercio alimentario","COM202 (LFP) - 1607",1,5,167]
["COM202 (LFP)","Comercialización de Productos Alimentarios","1608","Dinamización del punto de venta en comercios de alimentación","COM202 (LFP) - 1608",1,5,167]
["COM202 (LFP)","Comercialización de Productos Alimentarios","1609","Atención comercial en negocios alimentarios","COM202 (LFP) - 1609",1,2,67]
["COM202 (LFP)","Comercialización de Productos Alimentarios","1610","Seguridad y calidad alimentaria en el comercio","COM202 (LFP) - 1610",1,3,100]
["COM202 (LFP)","Comercialización de Productos Alimentarios","1614","Ofimática aplicada al comercio alimentario","COM202 (LFP) - 1614",1,5,167]
["COM202 (LFP)","Comercialización de Productos Alimentarios","1664","Digitalización aplicada a los sectores productivos (GM)",{"$f":"CONCATENATE(A387,\" - \",C387)","v":"COM202 (LFP) - 1664"},1,1,33]
["COM202 (LFP)","Comercialización de Productos Alimentarios","1709","Itinerario personal para la empleabilidad I","COM202 (LFP) - 1709",1,3,100]
["COM202 (LFP)","Comercialización de Productos Alimentarios","A997","Tutoría I","COM202 (LFP) - A997",1,1,33]
["COM202 (LFP)","Comercialización de Productos Alimentarios","1611","Preparación y acondicionamiento de productos frescos y transformados","COM202 (LFP) - 1611",2,7,233]
["COM202 (LFP)","Comercialización de Productos Alimentarios","1612","Logística de productos alimentarios","COM202 (LFP) - 1612",2,5,167]
["COM202 (LFP)","Comercialización de Productos Alimentarios","1613","Comercio electrónico en negocios alimentarios","COM202 (LFP) - 1613",2,5,167]
["COM202 (LFP)","Comercialización de Productos Alimentarios","1615","Gestión de un comercio alimentario","COM202 (LFP) - 1615",2,4,133]
["COM202 (LFP)","Comercialización de Productos Alimentarios","1708","Sostenibilidad aplicada al sistema productivo","COM202 (LFP) - 1708",2,1,33]
["COM202 (LFP)","Comercialización de Productos Alimentarios","1710","Itinerario personal para la empleabilidad II","COM202 (LFP) - 1710",2,2,67]
["COM202 (LFP)","Comercialización de Productos Alimentarios","1713","Proyecto Intermodular","COM202 (LFP) - 1713",2,2,67]
["COM202 (LFP)","Comercialización de Productos Alimentarios","A996","Tutoría II","COM202 (LFP) - A996",2,1,33]
["COM202 (LFP)","Comercialización de Productos Alimentarios","0OPT","Módulo profesional optativo","COM202 (LFP) - 0OPT",2,3,100]
["COM301 (LFP)","Comercio Internacional","0179","Inglés Profesional (GS)","COM301 (LFP) - 0179",1,2,67]
["COM301 (LFP)","Comercio Internacional","0622","Transporte internacional de mercancías","COM301 (LFP) - 0622",1,6,200]
["COM301 (LFP)","Comercio Internacional","0623","Gestión económica y financiera de la empresa","COM301 (LFP) - 0623",1,5,167]
["COM301 (LFP)","Comercio Internacional","0625","Logística de almacenamiento","COM301 (LFP) - 0625",1,5,167]
["COM301 (LFP)","Comercio Internacional","0627","Gestión administrativa del comercio internacional","COM301 (LFP) - 0627",1,8,267]
["COM301 (LFP)","Comercio Internacional","1665","Digitalización aplicada a los sectores productivos (GS)","COM301 (LFP) - 1665",1,1,33]
["COM301 (LFP)","Comercio Internacional","1709","Itinerario personal para la empleabilidad I","COM301 (LFP) - 1709",1,3,100]
["COM301 (LFP)","Comercio Internacional","0822","Sistema de información de mercados","COM301 (LFP) - 0822",2,3,100]
["COM301 (LFP)","Comercio Internacional","0823","Marketing internacional","COM301 (LFP) - 0823",2,5,167]
["COM301 (LFP)","Comercio Internacional","0824","Negociación internacional","COM301 (LFP) - 0824",2,3,100]
["COM301 (LFP)","Comercio Internacional","0825","Financiación internacional","COM301 (LFP) - 0825",2,5,167]
["COM301 (LFP)","Comercio Internacional","0826","Medios de pago internacionales","COM301 (LFP) - 0826",2,3,100]
["COM301 (LFP)","Comercio Internacional","0827","Comercio digital internacional","COM301 (LFP) - 0827",2,3,100]
["COM301 (LFP)","Comercio Internacional","0828","Proyecto Intermodular de comercio internacional","COM301 (LFP) - 0828",2,2,67]
["COM301 (LFP)","Comercio Internacional","1708","Sostenibilidad aplicada al sistema productivo","COM301 (LFP) - 1708",2,1,33]
["COM301 (LFP)","Comercio Internacional","1710","Itinerario personal para la empleabilidad II","COM301 (LFP) - 1710",2,2,67]
["COM301 (LFP)","Comercio Internacional","0OPT","Módulo profesional optativo","COM301 (LFP) - 0OPT",2,3,100]
["COM302 (LFP)","Gestión de Ventas y Espacios Comerciales","0179","Inglés Profesional (GS)","COM302 (LFP) - 0179",1,2,67]
["COM302 (LFP)","Gestión de Ventas y Espacios Comerciales","0623","Gestión económica y financiera de la empresa","COM302 (LFP) - 0623",1,5,167]
["COM302 (LFP)","Gestión de Ventas y Espacios Comerciales","0930","Políticas de marketing","COM302 (LFP) - 0930",1,7,233]
["COM302 (LFP)","Gestión de Ventas y Espacios Comerciales","0931","Marketing digital","COM302 (LFP) - 0931",1,7,233]
["COM302 (LFP)","Gestión de Ventas y Espacios Comerciales","1010","Investigación comercial","COM302 (LFP) - 1010",1,5,167]
["COM302 (LFP)","Gestión de Ventas y Espacios Comerciales","1665","Digitalización aplicada a los sectores productivos (GS)","COM302 (LFP) - 1665",1,1,33]
["COM302 (LFP)","Gestión de Ventas y Espacios Comerciales","1709","Itinerario personal para la empleabilidad I","COM302 (LFP) - 1709",1,3,100]
["COM302 (LFP)","Gestión de Ventas y Espacios Comerciales","0625","Logística de almacenamiento","COM302 (LFP) - 0625",2,5,167]
["COM302 (LFP)","Gestión de Ventas y Espacios Comerciales","0626","Logística de aprovisionamiento","COM302 (LFP) - 0626",2,4,133]
["COM302 (LFP)","Gestión de Ventas y Espacios Comerciales","0926","Escaparatismo y diseño de espacios comerciales","COM302 (LFP) - 0926",2,3,100]
["COM302 (LFP)","Gestión de Ventas y Espacios Comerciales","0927","Gestión de productos y promociones en el punto de venta","COM302 (LFP) - 0927",2,4,133]
["COM302 (LFP)","Gestión de Ventas y Espacios Comerciales","0928","Organización de equipos de ventas","COM302 (LFP) - 0928",2,3,100]
["COM302 (LFP)","Gestión de Ventas y Espacios Comerciales","0929","Técnicas de venta y negociación","COM302 (LFP) - 0929",2,3,100]
["COM302 (LFP)","Gestión de Ventas y Espacios Comerciales","0932","Proyecto Intermodular de gestión de ventas y espacios comerciales","COM302 (LFP) - 0932",2,2,67]
["COM302 (LFP)","Gestión de Ventas y Espacios Comerciales","1708","Sostenibilidad aplicada al sistema productivo","COM302 (LFP) - 1708",2,1,33]
["COM302 (LFP)","Gestión de Ventas y Espacios Comerciales","1710","Itinerario personal para la empleabilidad II","COM302 (LFP) - 1710",2,2,67]
["COM302 (LFP)","Gestión de Ventas y Espacios Comerciales","0OPT","Módulo profesional optativo","COM302 (LFP) - 0OPT",2,3,100]
["COM303 (LFP)","Transporte y Logística","0179","Inglés Profesional (GS)","COM303 (LFP) - 0179",1,2,67]
["COM303 (LFP)","Transporte y Logística","0622","Transporte internacional de mercancías","COM303 (LFP) - 0622",1,6,200]
["COM303 (LFP)","Transporte y Logística","0623","Gestión económica y financiera de la empresa","COM303 (LFP) - 0623",1,5,167]
["COM303 (LFP)","Transporte y Logística","0625","Logística de almacenamiento","COM303 (LFP) - 0625",1,5,167]
["COM303 (LFP)","Transporte y Logística","0627","Gestión administrativa del comercio internacional","COM303 (LFP) - 0627",1,8,267]
["COM303 (LFP)","Transporte y Logística","1665","Digitalización aplicada a los sectores productivos (GS)","COM303 (LFP) - 1665",1,1,33]
["COM303 (LFP)","Transporte y Logística","1709","Itinerario personal para la empleabilidad I","COM303 (LFP) - 1709",1,3,100]
["COM303 (LFP)","Transporte y Logística","0621","Gestión administrativa del transporte y la logística","COM303 (LFP) - 0621",2,6,200]
["COM303 (LFP)","Transporte y Logística","0624","Comercialización del transporte y la logística","COM303 (LFP) - 0624",2,4,133]
["COM303 (LFP)","Transporte y Logística","0626","Logística de aprovisionamiento","COM303 (LFP) - 0626",2,4,133]
["COM303 (LFP)","Transporte y Logística","0628","Organización del transporte de viajeros","COM303 (LFP) - 0628",2,4,133]
["COM303 (LFP)","Transporte y Logística","0629","Organización del transporte de mercancías","COM303 (LFP) - 0629",2,4,133]
["COM303 (LFP)","Transporte y Logística","0630","Proyecto Intermodular de transporte y logística","COM303 (LFP) - 0630",2,2,67]
["COM303 (LFP)","Transporte y Logística","1708","Sostenibilidad aplicada al sistema productivo","COM303 (LFP) - 1708",2,1,33]
["COM303 (LFP)","Transporte y Logística","1710","Itinerario personal para la empleabilidad II","COM303 (LFP) - 1710",2,2,67]
["COM303 (LFP)","Transporte y Logística","0OPT","Módulo profesional optativo","COM303 (LFP) - 0OPT",2,3,100]
["COM304 (LFP)","Marketing y Publicidad","0179","Inglés Profesional (GS)","COM304 (LFP) - 0179",1,2,67]
["COM304 (LFP)","Marketing y Publicidad","0623","Gestión económica y financiera de la empresa","COM304 (LFP) - 0623",1,5,167]
["COM304 (LFP)","Marketing y Publicidad","0930","Políticas de marketing",{"$f":"CONCATENATE(A451,\" - \",C451)","v":"COM304 (LFP) - 0930"},1,7,233]
["COM304 (LFP)","Marketing y Publicidad","0931","Marketing digital","COM304 (LFP) - 0931",1,7,233]
["COM304 (LFP)","Marketing y Publicidad","1010","Investigación comercial","COM304 (LFP) - 1010",1,5,167]
["COM304 (LFP)","Marketing y Publicidad","1665","Digitalización aplicada a los sectores productivos (GS)","COM304 (LFP) - 1665",1,1,33]
["COM304 (LFP)","Marketing y Publicidad","1709","Itinerario personal para la empleabilidad I","COM304 (LFP) - 1709",1,3,100]
["COM304 (LFP)","Marketing y Publicidad","1007","Diseño y elaboración de material de comunicación","COM304 (LFP) - 1007",2,4,133]
["COM304 (LFP)","Marketing y Publicidad","1008","Medios y soportes de comunicación","COM304 (LFP) - 1008",2,3,100]
["COM304 (LFP)","Marketing y Publicidad","1009","Relaciones públicas y organización de eventos de marketing","COM304 (LFP) - 1009",2,4,133]
["COM304 (LFP)","Marketing y Publicidad","1011","Trabajo de campo en la investigación comercial","COM304 (LFP) - 1011",2,4,133]
["COM304 (LFP)","Marketing y Publicidad","1012","Proyecto Intermodular de marketing y publicidad","COM304 (LFP) - 1012",2,2,67]
["COM304 (LFP)","Marketing y Publicidad","1109","Lanzamiento de productos y servicios","COM304 (LFP) - 1109",2,4,133]
["COM304 (LFP)","Marketing y Publicidad","1110","Atención al cliente, consumidor y usuario","COM304 (LFP) - 1110",2,3,100]
["COM304 (LFP)","Marketing y Publicidad","1708","Sostenibilidad aplicada al sistema productivo","COM304 (LFP) - 1708",2,1,33]
["COM304 (LFP)","Marketing y Publicidad","1710","Itinerario personal para la empleabilidad II","COM304 (LFP) - 1710",2,2,67]
["COM304 (LFP)","Marketing y Publicidad","0OPT","Módulo profesional optativo","COM304 (LFP) - 0OPT",2,3,100]
["ELE202 (LFP)","Instalaciones Eléctricas y Automáticas","0156","Inglés Profesional (GM)","ELE202 (LFP) - 0156",1,2,66]
["ELE202 (LFP)","Instalaciones Eléctricas y Automáticas","0156","Inglés Profesional (GM)","ELE202 (LFP) - 0156",1,2,67]
["ELE202 (LFP)","Instalaciones Eléctricas y Automáticas","0232","Automatismos industriales","ELE202 (LFP) - 0232",1,8,267]
["ELE202 (LFP)","Instalaciones Eléctricas y Automáticas","0233","Electrónica","ELE202 (LFP) - 0233",1,2,67]
["ELE202 (LFP)","Instalaciones Eléctricas y Automáticas","0234","Electrotecnia","ELE202 (LFP) - 0234",1,5,164]
["ELE202 (LFP)","Instalaciones Eléctricas y Automáticas","0234","Electrotecnia","ELE202 (LFP) - 0234",1,5,167]
["ELE202 (LFP)","Instalaciones Eléctricas y Automáticas","0235","Instalaciones eléctricas interiores","ELE202 (LFP) - 0235",1,8,262]
["ELE202 (LFP)","Instalaciones Eléctricas y Automáticas","0235","Instalaciones eléctricas interiores","ELE202 (LFP) - 0235",1,8,267]
["ELE202 (LFP)","Instalaciones Eléctricas y Automáticas","1664","Digitalización aplicada a los sectores productivos (GM)","ELE202 (LFP) - 1664",1,1,33]
["ELE202 (LFP)","Instalaciones Eléctricas y Automáticas","1709","Itinerario personal para la empleabilidad I","ELE202 (LFP) - 1709",1,3,98]
["ELE202 (LFP)","Instalaciones Eléctricas y Automáticas","1709","Itinerario personal para la empleabilidad I","ELE202 (LFP) - 1709",1,3,100]
["ELE202 (LFP)","Instalaciones Eléctricas y Automáticas","A997","Tutoría I","ELE202 (LFP) - A997",1,1,33]
["ELE202 (LFP)","Instalaciones Eléctricas y Automáticas","0232","Automatismos industriales","ELE202 (LFP) - 0232",2,8,262]
["ELE202 (LFP)","Instalaciones Eléctricas y Automáticas","0233","Electrónica","ELE202 (LFP) - 0233",2,2,66]
["ELE202 (LFP)","Instalaciones Eléctricas y Automáticas","0236","Instalaciones de distribución","ELE202 (LFP) - 0236",2,4,133]
["ELE202 (LFP)","Instalaciones Eléctricas y Automáticas","0237","Infraestructuras comunes de telecomunicación en viviendas y edificios","ELE202 (LFP) - 0237",2,5,164]
["ELE202 (LFP)","Instalaciones Eléctricas y Automáticas","0237","Infraestructuras comunes de telecomunicación en viviendas y edificios","ELE202 (LFP) - 0237",2,5,167]
["ELE202 (LFP)","Instalaciones Eléctricas y Automáticas","0238","Instalaciones Domóticas","ELE202 (LFP) - 0238",2,4,133]
["ELE202 (LFP)","Instalaciones Eléctricas y Automáticas","0239","Instalaciones solares fotovoltaicas","ELE202 (LFP) - 0239",2,4,133]
["ELE202 (LFP)","Instalaciones Eléctricas y Automáticas","0239","Instalaciones solares fotovoltaicas","ELE202 (LFP) - 0239",2,4,131]
["ELE202 (LFP)","Instalaciones Eléctricas y Automáticas","0240","Máquinas eléctricas","ELE202 (LFP) - 0240",2,4,133]
["ELE202 (LFP)","Instalaciones Eléctricas y Automáticas","1708","Sostenibilidad aplicada al sistema productivo","ELE202 (LFP) - 1708",2,1,33]
["ELE202 (LFP)","Instalaciones Eléctricas y Automáticas","1710","Itinerario personal para la empleabilidad II","ELE202 (LFP) - 1710",2,2,67]
["ELE202 (LFP)","Instalaciones Eléctricas y Automáticas","1710","Itinerario personal para la empleabilidad II","ELE202 (LFP) - 1710",2,2,66]
["ELE202 (LFP)","Instalaciones Eléctricas y Automáticas","1713","Proyecto Intermodular","ELE202 (LFP) - 1713",2,2,67]
["ELE202 (LFP)","Instalaciones Eléctricas y Automáticas","A996","Tutoría II","ELE202 (LFP) - A996",2,1,33]
["ELE202 (LFP)","Instalaciones Eléctricas y Automáticas","0OPT","Módulo profesional optativo","ELE202 (LFP) - 0OPT",2,3,100]
["ELE202 (LFP)","Instalaciones Eléctricas y Automáticas","0236","Instalaciones de distribución","ELE202 (LFP) - 0236",3,4,131]
["ELE202 (LFP)","Instalaciones Eléctricas y Automáticas","0238","Instalaciones Domóticas","ELE202 (LFP) - 0238",3,4,131]
["ELE202 (LFP)","Instalaciones Eléctricas y Automáticas","0240","Máquinas eléctricas","ELE202 (LFP) - 0240",3,4,131]
["ELE202 (LFP)","Instalaciones Eléctricas y Automáticas","1708","Sostenibilidad aplicada al sistema productivo","ELE202 (LFP) - 1708",3,1,33]
["ELE202 (LFP)","Instalaciones Eléctricas y Automáticas","1713","Proyecto Intermodular","ELE202 (LFP) - 1713",3,2,66]
["ELE202 (LFP)","Instalaciones Eléctricas y Automáticas","A995","Tutoría III","ELE202 (LFP) - A995",3,1,33]
["ELE202 (LFP)","Instalaciones Eléctricas y Automáticas","0OPT","Módulo profesional optativo","ELE202 (LFP) - 0OPT",3,3,98]
["ELE203 (LFP)","Instalaciones de Telecomunicaciones","0156","Inglés Profesional (GM)","ELE203 (LFP) - 0156",1,2,67]
["ELE203 (LFP)","Instalaciones de Telecomunicaciones","0237","Infraestructuras comunes de telecomunicación en viviendas y edificios","ELE203 (LFP) - 0237",1,5,167]
["ELE203 (LFP)","Instalaciones de Telecomunicaciones","0359","Electrónica Aplicada","ELE203 (LFP) - 0359",1,5,167]
["ELE203 (LFP)","Instalaciones de Telecomunicaciones","0360","Equipos Microinformáticos","ELE203 (LFP) - 0360",1,3,100]
["ELE203 (LFP)","Instalaciones de Telecomunicaciones","0361","Infraestructuras de redes de datos y sistemas de telefonía","ELE203 (LFP) - 0361",1,4,133]
["ELE203 (LFP)","Instalaciones de Telecomunicaciones","0362","Instalaciones Eléctricas Básicas","ELE203 (LFP) - 0362",1,6,200]
["ELE203 (LFP)","Instalaciones de Telecomunicaciones","1664","Digitalización aplicada a los sectores productivos (GM)","ELE203 (LFP) - 1664",1,1,33]
["ELE203 (LFP)","Instalaciones de Telecomunicaciones","1709","Itinerario personal para la empleabilidad I","ELE203 (LFP) - 1709",1,3,100]
["ELE203 (LFP)","Instalaciones de Telecomunicaciones","A997","Tutoría I","ELE203 (LFP) - A997",1,1,33]
["ELE203 (LFP)","Instalaciones de Telecomunicaciones","0238","Instalaciones Domóticas","ELE203 (LFP) - 0238",2,4,133]
["ELE203 (LFP)","Instalaciones de Telecomunicaciones","0363","Instalaciones de Megafonía y Sonorización","ELE203 (LFP) - 0363",2,6,200]
["ELE203 (LFP)","Instalaciones de Telecomunicaciones","0364","Circuito Cerrado de Televisión y Seguridad Electrónica","ELE203 (LFP) - 0364",2,6,200]
["ELE203 (LFP)","Instalaciones de Telecomunicaciones","0365","Instalaciones de radiocomunicaciones","ELE203 (LFP) - 0365",2,5,167]
["ELE203 (LFP)","Instalaciones de Telecomunicaciones","1708","Sostenibilidad aplicada al sistema productivo","ELE203 (LFP) - 1708",2,1,33]
["ELE203 (LFP)","Instalaciones de Telecomunicaciones","1710","Itinerario personal para la empleabilidad II","ELE203 (LFP) - 1710",2,2,67]
["ELE203 (LFP)","Instalaciones de Telecomunicaciones","1713","Proyecto Intermodular",{"$f":"CONCATENATE(A515,\" - \",C515)","v":"ELE203 (LFP) - 1713"},2,2,67]
["ELE203 (LFP)","Instalaciones de Telecomunicaciones","A996","Tutoría II","ELE203 (LFP) - A996",2,1,33]
["ELE203 (LFP)","Instalaciones de Telecomunicaciones","0OPT","Módulo profesional optativo","ELE203 (LFP) - 0OPT",2,3,100]
["ELE301 (LFP)","Mantenimiento Electrónico","0179","Inglés Profesional (GS)","ELE301 (LFP) - 0179",1,2,67]
["ELE301 (LFP)","Mantenimiento Electrónico","1051","Circuitos electrónicos analógicos","ELE301 (LFP) - 1051",1,6,200]
["ELE301 (LFP)","Mantenimiento Electrónico","1052","Equipos microprogramables","ELE301 (LFP) - 1052",1,6,200]
["ELE301 (LFP)","Mantenimiento Electrónico","1055","Mantenimiento de equipos de electrónica industrial","ELE301 (LFP) - 1055",1,6,200]
["ELE301 (LFP)","Mantenimiento Electrónico","1058","Técnicas y procesos de montaje y mantenimiento de equipos electrónicos","ELE301 (LFP) - 1058",1,6,200]
["ELE301 (LFP)","Mantenimiento Electrónico","1665","Digitalización aplicada a los sectores productivos (GS)","ELE301 (LFP) - 1665",1,1,33]
["ELE301 (LFP)","Mantenimiento Electrónico","1709","Itinerario personal para la empleabilidad I","ELE301 (LFP) - 1709",1,3,100]
["ELE301 (LFP)","Mantenimiento Electrónico","1053","Mantenimiento de equipos de radiocomunicaciones","ELE301 (LFP) - 1053",2,6,200]
["ELE301 (LFP)","Mantenimiento Electrónico","1054","Mantenimiento de equipos de voz y datos","ELE301 (LFP) - 1054",2,7,233]
["ELE301 (LFP)","Mantenimiento Electrónico","1056","Mantenimiento de equipos de audio","ELE301 (LFP) - 1056",2,4,133]
["ELE301 (LFP)","Mantenimiento Electrónico","1057","Mantenimiento de equipos de vídeo","ELE301 (LFP) - 1057",2,3,100]
["ELE301 (LFP)","Mantenimiento Electrónico","1059","Infraestructuras y desarrollo del mantenimiento electrónico","ELE301 (LFP) - 1059",2,2,67]
["ELE301 (LFP)","Mantenimiento Electrónico","1060","Proyecto Intermodular de mantenimiento electrónico","ELE301 (LFP) - 1060",2,2,67]
["ELE301 (LFP)","Mantenimiento Electrónico","1708","Sostenibilidad aplicada al sistema productivo","ELE301 (LFP) - 1708",2,1,33]
["ELE301 (LFP)","Mantenimiento Electrónico","1710","Itinerario personal para la empleabilidad II","ELE301 (LFP) - 1710",2,2,67]
["ELE301 (LFP)","Mantenimiento Electrónico","0OPT","Módulo profesional optativo","ELE301 (LFP) - 0OPT",2,3,100]
["ELE302 (LFP)","Sistemas Electrotécnicos y Automatizados","0179","Inglés Profesional (GS)","ELE302 (LFP) - 0179",1,2,67]
["ELE302 (LFP)","Sistemas Electrotécnicos y Automatizados","0517","Procesos en instalaciones de infraestructuras comunes de telecomunicaciones","ELE302 (LFP) - 0517",1,4,133]
["ELE302 (LFP)","Sistemas Electrotécnicos y Automatizados","0519","Documentación técnica en instalaciones eléctricas","ELE302 (LFP) - 0519",1,3,100]
["ELE302 (LFP)","Sistemas Electrotécnicos y Automatizados","0520","Sistemas y circuitos eléctricos","ELE302 (LFP) - 0520",1,5,167]
["ELE302 (LFP)","Sistemas Electrotécnicos y Automatizados","0523","Configuración de instalaciones domóticas y automáticas","ELE302 (LFP) - 0523",1,5,167]
["ELE302 (LFP)","Sistemas Electrotécnicos y Automatizados","0524","Configuración de instalaciones eléctricas","ELE302 (LFP) - 0524",1,5,167]
["ELE302 (LFP)","Sistemas Electrotécnicos y Automatizados","0602","Gestión del montaje y del mantenimiento de instalaciones eléctricas","ELE302 (LFP) - 0602",1,2,67]
["ELE302 (LFP)","Sistemas Electrotécnicos y Automatizados","1665","Digitalización aplicada a los sectores productivos (GS)","ELE302 (LFP) - 1665",1,1,33]
["ELE302 (LFP)","Sistemas Electrotécnicos y Automatizados","1709","Itinerario personal para la empleabilidad I","ELE302 (LFP) - 1709",1,3,100]
["ELE302 (LFP)","Sistemas Electrotécnicos y Automatizados","0518","Técnicas y procesos en instalaciones eléctricas","ELE302 (LFP) - 0518",2,8,267]
["ELE302 (LFP)","Sistemas Electrotécnicos y Automatizados","0521","Técnicas y procesos en instalaciones domóticas y automáticas","ELE302 (LFP) - 0521",2,8,267]
["ELE302 (LFP)","Sistemas Electrotécnicos y Automatizados","0522","Desarrollo de redes eléctricas y centros de transformación","ELE302 (LFP) - 0522",2,6,200]
["ELE302 (LFP)","Sistemas Electrotécnicos y Automatizados","0526","Proyecto Intermodular de sistemas electrotécnicos y automatizados","ELE302 (LFP) - 0526",2,2,67]
["ELE302 (LFP)","Sistemas Electrotécnicos y Automatizados","1708","Sostenibilidad aplicada al sistema productivo","ELE302 (LFP) - 1708",2,1,33]
["ELE302 (LFP)","Sistemas Electrotécnicos y Automatizados","1710","Itinerario personal para la empleabilidad II","ELE302 (LFP) - 1710",2,2,67]
["ELE302 (LFP)","Sistemas Electrotécnicos y Automatizados","0OPT","Módulo profesional optativo","ELE302 (LFP) - 0OPT",2,3,100]
["ELE303 (LFP)","Automatización y Robótica Industrial","0179","Inglés Profesional (GS)","ELE303 (LFP) - 0179",1,2,67]
["ELE303 (LFP)","Automatización y Robótica Industrial","0959","Sistemas eléctricos neumáticos e hidráulicos","ELE303 (LFP) - 0959",1,5,167]
["ELE303 (LFP)","Automatización y Robótica Industrial","0960","Sistemas secuenciales programables","ELE303 (LFP) - 0960",1,4,133]
["ELE303 (LFP)","Automatización y Robótica Industrial","0961","Sistemas de medida y regulación","ELE303 (LFP) - 0961",1,5,167]
["ELE303 (LFP)","Automatización y Robótica Industrial","0962","Sistemas de potencia","ELE303 (LFP) - 0962",1,5,167]
["ELE303 (LFP)","Automatización y Robótica Industrial","0963","Documentación técnica","ELE303 (LFP) - 0963",1,2,67]
["ELE303 (LFP)","Automatización y Robótica Industrial","0964","Informática industrial","ELE303 (LFP) - 0964",1,3,100]
["ELE303 (LFP)","Automatización y Robótica Industrial","1665","Digitalización aplicada a los sectores productivos (GS)","ELE303 (LFP) - 1665",1,1,33]
["ELE303 (LFP)","Automatización y Robótica Industrial","1709","Itinerario personal para la empleabilidad I","ELE303 (LFP) - 1709",1,3,100]
["ELE303 (LFP)","Automatización y Robótica Industrial","0965","Sistemas programables avanzados","ELE303 (LFP) - 0965",2,4,133]
["ELE303 (LFP)","Automatización y Robótica Industrial","0966","Robótica industrial","ELE303 (LFP) - 0966",2,6,200]
["ELE303 (LFP)","Automatización y Robótica Industrial","0967","Comunicaciones industriales","ELE303 (LFP) - 0967",2,6,200]
["ELE303 (LFP)","Automatización y Robótica Industrial","0968","Integración de sistemas de automatización industrial","ELE303 (LFP) - 0968",2,6,200]
["ELE303 (LFP)","Automatización y Robótica Industrial","0969","Proyecto intermodular de automatización y robótica industrial","ELE303 (LFP) - 0969",2,2,67]
["ELE303 (LFP)","Automatización y Robótica Industrial","1708","Sostenibilidad aplicada al sistema productivo","ELE303 (LFP) - 1708",2,1,33]
["ELE303 (LFP)","Automatización y Robótica Industrial","1710","Itinerario personal para la empleabilidad II","ELE303 (LFP) - 1710",2,2,67]
["ELE303 (LFP)","Automatización y Robótica Industrial","0OPT","Módulo profesional optativo","ELE303 (LFP) - 0OPT",2,3,100]
["ELE304 (LFP)","Sistemas de Telecomunicaciones e Informáticos","0179","Inglés Profesional (GS)","ELE304 (LFP) - 0179",1,2,67]
["ELE304 (LFP)","Sistemas de Telecomunicaciones e Informáticos","0525","Configuración de infraestructuras de sistemas de telecomunicaciones","ELE304 (LFP) - 0525",1,4,133]
["ELE304 (LFP)","Sistemas de Telecomunicaciones e Informáticos","0551","Elementos de sistemas de telecomunicaciones","ELE304 (LFP) - 0551",1,4,133]
["ELE304 (LFP)","Sistemas de Telecomunicaciones e Informáticos","0552","Sistemas informáticos y redes locales","ELE304 (LFP) - 0552",1,4,133]
["ELE304 (LFP)","Sistemas de Telecomunicaciones e Informáticos","0554","Sistemas de producción audiovisual","ELE304 (LFP) - 0554",1,6,200]
["ELE304 (LFP)","Sistemas de Telecomunicaciones e Informáticos","0601","Gestión de proyectos de instalaciones de telecomunicaciones","ELE304 (LFP) - 0601",1,2,67]
["ELE304 (LFP)","Sistemas de Telecomunicaciones e Informáticos","0713","Sistemas de telefonía fija y móvil","ELE304 (LFP) - 0713",1,4,133]
["ELE304 (LFP)","Sistemas de Telecomunicaciones e Informáticos","1665","Digitalización aplicada a los sectores productivos (GS)","ELE304 (LFP) - 1665",1,1,33]
["ELE304 (LFP)","Sistemas de Telecomunicaciones e Informáticos","1709","Itinerario personal para la empleabilidad I","ELE304 (LFP) - 1709",1,3,100]
["ELE304 (LFP)","Sistemas de Telecomunicaciones e Informáticos","0553","Técnicas y procesos en infraestructuras de telecomunicaciones","ELE304 (LFP) - 0553",2,4,133]
["ELE304 (LFP)","Sistemas de Telecomunicaciones e Informáticos","0555","Redes telemáticas","ELE304 (LFP) - 0555",2,7,233]
["ELE304 (LFP)","Sistemas de Telecomunicaciones e Informáticos","0556","Sistemas de radiocomunicaciones","ELE304 (LFP) - 0556",2,6,200]
["ELE304 (LFP)","Sistemas de Telecomunicaciones e Informáticos","0557","Sistemas integrados y hogar digital",{"$f":"CONCATENATE(A579,\" - \",C579)","v":"ELE304 (LFP) - 0557"},2,5,167]
["ELE304 (LFP)","Sistemas de Telecomunicaciones e Informáticos","0558","Proyecto Intermodular de sistemas de telecomunicaciones e informáticos","ELE304 (LFP) - 0558",2,2,67]
["ELE304 (LFP)","Sistemas de Telecomunicaciones e Informáticos","1708","Sostenibilidad aplicada al sistema productivo","ELE304 (LFP) - 1708",2,1,33]
["ELE304 (LFP)","Sistemas de Telecomunicaciones e Informáticos","1710","Itinerario personal para la empleabilidad II","ELE304 (LFP) - 1710",2,2,67]
["ELE304 (LFP)","Sistemas de Telecomunicaciones e Informáticos","0OPT","Módulo profesional optativo","ELE304 (LFP) - 0OPT",2,3,100]
["ELE305 (LFP)","Electromedicina Clínica","0179","Inglés Profesional (GS)","ELE305 (LFP) - 0179",1,2,67]
["ELE305 (LFP)","Electromedicina Clínica","1585","Instalaciones eléctricas","ELE305 (LFP) - 1585",1,4,133]
["ELE305 (LFP)","Electromedicina Clínica","1587","Sistemas electrónicos y fotónicos","ELE305 (LFP) - 1587",1,5,167]
["ELE305 (LFP)","Electromedicina Clínica","1588","Sistemas de radiodiagnóstico, radioterapia e imagen médica","ELE305 (LFP) - 1588",1,5,167]
["ELE305 (LFP)","Electromedicina Clínica","1589","Sistemas de monitorización, registro y cuidados críticos","ELE305 (LFP) - 1589",1,7,233]
["ELE305 (LFP)","Electromedicina Clínica","1592","Tecnología sanitaria en el ámbito clínico","ELE305 (LFP) - 1592",1,3,100]
["ELE305 (LFP)","Electromedicina Clínica","1665","Digitalización aplicada a los sectores productivos (GS)","ELE305 (LFP) - 1665",1,1,33]
["ELE305 (LFP)","Electromedicina Clínica","1709","Itinerario personal para la empleabilidad I","ELE305 (LFP) - 1709",1,3,100]
["ELE305 (LFP)","Electromedicina Clínica","1586","Sistemas electromecánicos y de fluidos","ELE305 (LFP) - 1586",2,3,100]
["ELE305 (LFP)","Electromedicina Clínica","1590","Sistemas de laboratorio y hemodiálisis","ELE305 (LFP) - 1590",2,5,167]
["ELE305 (LFP)","Electromedicina Clínica","1591","Sistemas de rehabilitación y pruebas funcionales","ELE305 (LFP) - 1591",2,4,133]
["ELE305 (LFP)","Electromedicina Clínica","1593","Planificación de la adquisición de sistemas de electromedicina","ELE305 (LFP) - 1593",2,5,167]
["ELE305 (LFP)","Electromedicina Clínica","1594","Gestión del montaje y mantenimiento de sistemas de electromedicina","ELE305 (LFP) - 1594",2,5,167]
["ELE305 (LFP)","Electromedicina Clínica","1595","Proyecto Intermodular de electromedicina clínica","ELE305 (LFP) - 1595",2,2,67]
["ELE305 (LFP)","Electromedicina Clínica","1708","Sostenibilidad aplicada al sistema productivo","ELE305 (LFP) - 1708",2,1,33]
["ELE305 (LFP)","Electromedicina Clínica","1710","Itinerario personal para la empleabilidad II","ELE305 (LFP) - 1710",2,2,67]
["ELE305 (LFP)","Electromedicina Clínica","0OPT","Módulo profesional optativo","ELE305 (LFP) - 0OPT",2,3,100]
["ENA201 (LFP)","Redes y Estaciones de Tratamiento de Aguas","0156","Inglés Profesional (GM)","ENA201 (LFP) - 0156",1,2,67]
["ENA201 (LFP)","Redes y Estaciones de Tratamiento de Aguas","1559","Replanteo en redes de agua","ENA201 (LFP) - 1559",1,2,67]
["ENA201 (LFP)","Redes y Estaciones de Tratamiento de Aguas","1561","Instalaciones eléctricas en redes de agua","ENA201 (LFP) - 1561",1,5,167]
["ENA201 (LFP)","Redes y Estaciones de Tratamiento de Aguas","1562","Técnicas de mecanizado y unión","ENA201 (LFP) - 1562",1,5,167]
["ENA201 (LFP)","Redes y Estaciones de Tratamiento de Aguas","1564","Calidad del agua","ENA201 (LFP) - 1564",1,2,67]
["ENA201 (LFP)","Redes y Estaciones de Tratamiento de Aguas","1565","Construcción en redes y estaciones de tratamiento de agua","ENA201 (LFP) - 1565",1,6,200]
["ENA201 (LFP)","Redes y Estaciones de Tratamiento de Aguas","1567","Hidráulica y redes de agua","ENA201 (LFP) - 1567",1,3,100]
["ENA201 (LFP)","Redes y Estaciones de Tratamiento de Aguas","1664","Digitalización aplicada a los sectores productivos (GM)","ENA201 (LFP) - 1664",1,1,33]
["ENA201 (LFP)","Redes y Estaciones de Tratamiento de Aguas","1709","Itinerario personal para la empleabilidad I","ENA201 (LFP) - 1709",1,3,100]
["ENA201 (LFP)","Redes y Estaciones de Tratamiento de Aguas","A997","Tutoría I","ENA201 (LFP) - A997",1,1,33]
["ENA201 (LFP)","Redes y Estaciones de Tratamiento de Aguas","0310","Montaje y mantenimiento de instalaciones de agua","ENA201 (LFP) - 0310",2,4,133]
["ENA201 (LFP)","Redes y Estaciones de Tratamiento de Aguas","1560","Estaciones de tratamiento de aguas","ENA201 (LFP) - 1560",2,4,133]
["ENA201 (LFP)","Redes y Estaciones de Tratamiento de Aguas","1563","Montaje y puesta en servicio de redes de agua","ENA201 (LFP) - 1563",2,7,233]
["ENA201 (LFP)","Redes y Estaciones de Tratamiento de Aguas","1566","Mantenimiento de equipos e instalaciones","ENA201 (LFP) - 1566",2,5,167]
["ENA201 (LFP)","Redes y Estaciones de Tratamiento de Aguas","1568","Mantenimiento de redes","ENA201 (LFP) - 1568",2,1,33]
["ENA201 (LFP)","Redes y Estaciones de Tratamiento de Aguas","1708","Sostenibilidad aplicada al sistema productivo","ENA201 (LFP) - 1708",2,1,33]
["ENA201 (LFP)","Redes y Estaciones de Tratamiento de Aguas","1710","Itinerario personal para la empleabilidad II","ENA201 (LFP) - 1710",2,2,67]
["ENA201 (LFP)","Redes y Estaciones de Tratamiento de Aguas","1713","Proyecto Intermodular","ENA201 (LFP) - 1713",2,2,67]
["ENA201 (LFP)","Redes y Estaciones de Tratamiento de Aguas","A996","Tutoría II","ENA201 (LFP) - A996",2,1,33]
["ENA201 (LFP)","Redes y Estaciones de Tratamiento de Aguas","0OPT","Módulo profesional optativo","ENA201 (LFP) - 0OPT",2,3,100]
["ENA301 (LFP)","Eficiencia Energética y Energía Solar Térmica","0121","Equipos e instalaciones térmicas","ENA301 (LFP) - 0121",1,8,267]
["ENA301 (LFP)","Eficiencia Energética y Energía Solar Térmica","0122","Procesos de montaje de instalaciones","ENA301 (LFP) - 0122",1,8,267]
["ENA301 (LFP)","Eficiencia Energética y Energía Solar Térmica","0123","Representación gráfica de instalaciones","ENA301 (LFP) - 0123",1,2,67]
["ENA301 (LFP)","Eficiencia Energética y Energía Solar Térmica","0179","Inglés Profesional (GS)","ENA301 (LFP) - 0179",1,2,67]
["ENA301 (LFP)","Eficiencia Energética y Energía Solar Térmica","0351","Gestión eficiente del agua en edificación","ENA301 (LFP) - 0351",1,2,67]
["ENA301 (LFP)","Eficiencia Energética y Energía Solar Térmica","0352","Configuración de instalaciones solares térmicas","ENA301 (LFP) - 0352",1,4,133]
["ENA301 (LFP)","Eficiencia Energética y Energía Solar Térmica","1665","Digitalización aplicada a los sectores productivos (GS)","ENA301 (LFP) - 1665",1,1,33]
["ENA301 (LFP)","Eficiencia Energética y Energía Solar Térmica","1709","Itinerario personal para la empleabilidad I","ENA301 (LFP) - 1709",1,3,100]
["ENA301 (LFP)","Eficiencia Energética y Energía Solar Térmica","0349","Eficiencia energética de instalaciones","ENA301 (LFP) - 0349",2,8,267]
["ENA301 (LFP)","Eficiencia Energética y Energía Solar Térmica","0350","Certificación energética de edificios","ENA301 (LFP) - 0350",2,9,300]
["ENA301 (LFP)","Eficiencia Energética y Energía Solar Térmica","0353","Gestión del montaje y mantenimiento de instalaciones solares térmicas","ENA301 (LFP) - 0353",2,3,100]
["ENA301 (LFP)","Eficiencia Energética y Energía Solar Térmica","0354","Promoción del uso eficiente de la energía y del agua","ENA301 (LFP) - 0354",2,2,67]
["ENA301 (LFP)","Eficiencia Energética y Energía Solar Térmica","0355","Proyecto Intermodular de eficiencia energética y energía solar térmica","ENA301 (LFP) - 0355",2,2,67]
["ENA301 (LFP)","Eficiencia Energética y Energía Solar Térmica","1708","Sostenibilidad aplicada al sistema productivo","ENA301 (LFP) - 1708",2,1,33]
["ENA301 (LFP)","Eficiencia Energética y Energía Solar Térmica","1710","Itinerario personal para la empleabilidad II","ENA301 (LFP) - 1710",2,2,67]
["ENA301 (LFP)","Eficiencia Energética y Energía Solar Térmica","0OPT","Módulo profesional optativo","ENA301 (LFP) - 0OPT",2,3,100]
["ENA302 (LFP)","Energías Renovables","0179","Inglés Profesional (GS)","ENA302 (LFP) - 0179",1,2,67]
["ENA302 (LFP)","Energías Renovables","0668","Sistemas eléctricos en centrales","ENA302 (LFP) - 0668",1,6,200]
["ENA302 (LFP)","Energías Renovables","0670","Telecontrol y automatismos","ENA302 (LFP) - 0670",1,7,233]
["ENA302 (LFP)","Energías Renovables","0671","Prevención de riesgos eléctricos","ENA302 (LFP) - 0671",1,2,67]
["ENA302 (LFP)","Energías Renovables","0680","Sistemas de energías renovables","ENA302 (LFP) - 0680",1,3,100]
["ENA302 (LFP)","Energías Renovables","0681","Configuración de instalaciones solares fotovoltaicas","ENA302 (LFP) - 0681",1,6,200]
["ENA302 (LFP)","Energías Renovables","1665","Digitalización aplicada a los sectores productivos (GS)",{"$f":"CONCATENATE(A643,\" - \",C643)","v":"ENA302 (LFP) - 1665"},1,1,33]
["ENA302 (LFP)","Energías Renovables","1709","Itinerario personal para la empleabilidad I","ENA302 (LFP) - 1709",1,3,100]
["ENA302 (LFP)","Energías Renovables","0669","Subestaciones eléctricas","ENA302 (LFP) - 0669",2,5,167]
["ENA302 (LFP)","Energías Renovables","0682","Gestión del montaje de instalaciones solares fotovoltaicas","ENA302 (LFP) - 0682",2,6,200]
["ENA302 (LFP)","Energías Renovables","0683","Gestión del montaje de parques eólicos","ENA302 (LFP) - 0683",2,5,167]
["ENA302 (LFP)","Energías Renovables","0684","Operación y mantenimiento de parques eólicos","ENA302 (LFP) - 0684",2,6,200]
["ENA302 (LFP)","Energías Renovables","0686","Proyecto Intermodular de energías renovables","ENA302 (LFP) - 0686",2,2,67]
["ENA302 (LFP)","Energías Renovables","1708","Sostenibilidad aplicada al sistema productivo","ENA302 (LFP) - 1708",2,1,33]
["ENA302 (LFP)","Energías Renovables","1710","Itinerario personal para la empleabilidad II","ENA302 (LFP) - 1710",2,2,67]
["ENA302 (LFP)","Energías Renovables","0OPT","Módulo profesional optativo","ENA302 (LFP) - 0OPT",2,3,100]
["EOC201 (LFP)","Obras de Interior, Decoración y Rehabilitación","0156","Inglés Profesional (GM)","EOC201 (LFP) - 0156",1,2,67]
["EOC201 (LFP)","Obras de Interior, Decoración y Rehabilitación","0995","Construcción","EOC201 (LFP) - 0995",1,4,133]
["EOC201 (LFP)","Obras de Interior, Decoración y Rehabilitación","0996","Interpretación de planos de construcción","EOC201 (LFP) - 0996",1,3,100]
["EOC201 (LFP)","Obras de Interior, Decoración y Rehabilitación","1003","Solados, alicatados y chapados","EOC201 (LFP) - 1003",1,7,233]
["EOC201 (LFP)","Obras de Interior, Decoración y Rehabilitación","1194","Revestimientos continuos","EOC201 (LFP) - 1194",1,7,233]
["EOC201 (LFP)","Obras de Interior, Decoración y Rehabilitación","1196","Mamparas y suelos técnicos","EOC201 (LFP) - 1196",1,2,67]
["EOC201 (LFP)","Obras de Interior, Decoración y Rehabilitación","1664","Digitalización aplicada a los sectores productivos (GM)","EOC201 (LFP) - 1664",1,1,33]
["EOC201 (LFP)","Obras de Interior, Decoración y Rehabilitación","1709","Itinerario personal para la empleabilidad I","EOC201 (LFP) - 1709",1,3,100]
["EOC201 (LFP)","Obras de Interior, Decoración y Rehabilitación","A997","Tutoría I","EOC201 (LFP) - A997",1,1,33]
["EOC201 (LFP)","Obras de Interior, Decoración y Rehabilitación","1195","Particiones prefabricadas","EOC201 (LFP) - 1195",2,8,267]
["EOC201 (LFP)","Obras de Interior, Decoración y Rehabilitación","1197","Techos suspendidos","EOC201 (LFP) - 1197",2,3,100]
["EOC201 (LFP)","Obras de Interior, Decoración y Rehabilitación","1198","Revestimientos ligeros","EOC201 (LFP) - 1198",2,3,100]
["EOC201 (LFP)","Obras de Interior, Decoración y Rehabilitación","1199","Pintura decorativa en construcción","EOC201 (LFP) - 1199",2,5,167]
["EOC201 (LFP)","Obras de Interior, Decoración y Rehabilitación","1200","Organización de trabajos de interior, decoración y rehabilitación","EOC201 (LFP) - 1200",2,2,67]
["EOC201 (LFP)","Obras de Interior, Decoración y Rehabilitación","1708","Sostenibilidad aplicada al sistema productivo","EOC201 (LFP) - 1708",2,1,33]
["EOC201 (LFP)","Obras de Interior, Decoración y Rehabilitación","1710","Itinerario personal para la empleabilidad II","EOC201 (LFP) - 1710",2,2,67]
["EOC201 (LFP)","Obras de Interior, Decoración y Rehabilitación","1713","Proyecto Intermodular","EOC201 (LFP) - 1713",2,2,67]
["EOC201 (LFP)","Obras de Interior, Decoración y Rehabilitación","A996","Tutoría II","EOC201 (LFP) - A996",2,1,33]
["EOC201 (LFP)","Obras de Interior, Decoración y Rehabilitación","0OPT","Módulo profesional optativo","EOC201 (LFP) - 0OPT",2,3,100]
["EOC203 (LFP)","Construcción","0156","Inglés Profesional (GM)","EOC203 (LFP) - 0156",1,2,67]
["EOC203 (LFP)","Construcción","0995","Construcción","EOC203 (LFP) - 0995",1,4,133]
["EOC203 (LFP)","Construcción","0996","Interpretación de planos de construcción","EOC203 (LFP) - 0996",1,3,100]
["EOC203 (LFP)","Construcción","0997","Fábricas","EOC203 (LFP) - 0997",1,4,133]
["EOC203 (LFP)","Construcción","0998","Revestimientos","EOC203 (LFP) - 0998",1,3,100]
["EOC203 (LFP)","Construcción","1003","Solados, alicatados y chapados","EOC203 (LFP) - 1003",1,7,233]
["EOC203 (LFP)","Construcción","1005","Impermeabilizaciones y aislamientos","EOC203 (LFP) - 1005",1,2,67]
["EOC203 (LFP)","Construcción","1664","Digitalización aplicada a los sectores productivos (GM)","EOC203 (LFP) - 1664",1,1,33]
["EOC203 (LFP)","Construcción","1709","Itinerario personal para la empleabilidad I","EOC203 (LFP) - 1709",1,3,100]
["EOC203 (LFP)","Construcción","A997","Tutoría I","EOC203 (LFP) - A997",1,1,33]
["EOC203 (LFP)","Construcción","0999","Encofrados","EOC203 (LFP) - 0999",2,6,200]
["EOC203 (LFP)","Construcción","1000","Hormigón armado","EOC203 (LFP) - 1000",2,4,133]
["EOC203 (LFP)","Construcción","1001","Organización de trabajos de construcción","EOC203 (LFP) - 1001",2,2,67]
["EOC203 (LFP)","Construcción","1002","Obras de urbanización","EOC203 (LFP) - 1002",2,4,133]
["EOC203 (LFP)","Construcción","1004","Cubiertas","EOC203 (LFP) - 1004",2,5,167]
["EOC203 (LFP)","Construcción","1708","Sostenibilidad aplicada al sistema productivo","EOC203 (LFP) - 1708",2,1,33]
["EOC203 (LFP)","Construcción","1710","Itinerario personal para la empleabilidad II","EOC203 (LFP) - 1710",2,2,67]
["EOC203 (LFP)","Construcción","1713","Proyecto Intermodular","EOC203 (LFP) - 1713",2,2,67]
["EOC203 (LFP)","Construcción","A996","Tutoría II","EOC203 (LFP) - A996",2,1,33]
["EOC203 (LFP)","Construcción","0OPT","Módulo profesional optativo","EOC203 (LFP) - 0OPT",2,3,100]
["EOC301 (LFP)","Proyectos de Edificación","0179","Inglés Profesional (GS)","EOC301 (LFP) - 0179",1,2,67]
["EOC301 (LFP)","Proyectos de Edificación","0562","Estructuras de construcción","EOC301 (LFP) - 0562",1,3,100]
["EOC301 (LFP)","Proyectos de Edificación","0563","Representaciones de construcción","EOC301 (LFP) - 0563",1,10,333]
["EOC301 (LFP)","Proyectos de Edificación","0565","Replanteos de construcción","EOC301 (LFP) - 0565",1,3,100]
["EOC301 (LFP)","Proyectos de Edificación","0567","Diseño y construcción de edificios","EOC301 (LFP) - 0567",1,5,167]
["EOC301 (LFP)","Proyectos de Edificación","0568","Instalaciones en edificación","EOC301 (LFP) - 0568",1,3,100]
["EOC301 (LFP)","Proyectos de Edificación","1665","Digitalización aplicada a los sectores productivos (GS)","EOC301 (LFP) - 1665",1,1,33]
["EOC301 (LFP)","Proyectos de Edificación","1709","Itinerario personal para la empleabilidad I","EOC301 (LFP) - 1709",1,3,100]
["EOC301 (LFP)","Proyectos de Edificación","0564","Mediciones y valoraciones de construcción","EOC301 (LFP) - 0564",2,4,133]
["EOC301 (LFP)","Proyectos de Edificación","0566","Planificación de construcción","EOC301 (LFP) - 0566",2,3,100]
["EOC301 (LFP)","Proyectos de Edificación","0569","Eficiencia energética en edificación","EOC301 (LFP) - 0569",2,2,67]
["EOC301 (LFP)","Proyectos de Edificación","0570","Desarrollo de proyectos de edificación residencial","EOC301 (LFP) - 0570",2,9,300]
["EOC301 (LFP)","Proyectos de Edificación","0571","Desarrollo de proyectos de edificación no residencial","EOC301 (LFP) - 0571",2,4,133]
["EOC301 (LFP)","Proyectos de Edificación","0572","Proyecto Intermodular de edificación","EOC301 (LFP) - 0572",2,2,67]
["EOC301 (LFP)","Proyectos de Edificación","1708","Sostenibilidad aplicada al sistema productivo","EOC301 (LFP) - 1708",2,1,33]
["EOC301 (LFP)","Proyectos de Edificación","1710","Itinerario personal para la empleabilidad II",{"$f":"CONCATENATE(A707,\" - \",C707)","v":"EOC301 (LFP) - 1710"},2,2,67]
["EOC301 (LFP)","Proyectos de Edificación","0OPT","Módulo profesional optativo","EOC301 (LFP) - 0OPT",2,3,100]
["EOC302 (LFP)","Proyectos de Obra Civil","0179","Inglés Profesional (GS)","EOC302 (LFP) - 0179",1,2,67]
["EOC302 (LFP)","Proyectos de Obra Civil","0562","Estructuras de construcción","EOC302 (LFP) - 0562",1,3,100]
["EOC302 (LFP)","Proyectos de Obra Civil","0563","Representaciones de construcción","EOC302 (LFP) - 0563",1,10,333]
["EOC302 (LFP)","Proyectos de Obra Civil","0565","Replanteos de construcción","EOC302 (LFP) - 0565",1,3,100]
["EOC302 (LFP)","Proyectos de Obra Civil","0769","Urbanismo y obra civil","EOC302 (LFP) - 0769",1,4,133]
["EOC302 (LFP)","Proyectos de Obra Civil","0770","Redes y servicios en obra civil","EOC302 (LFP) - 0770",1,4,133]
["EOC302 (LFP)","Proyectos de Obra Civil","1665","Digitalización aplicada a los sectores productivos (GS)","EOC302 (LFP) - 1665",1,1,33]
["EOC302 (LFP)","Proyectos de Obra Civil","1709","Itinerario personal para la empleabilidad I","EOC302 (LFP) - 1709",1,3,100]
["EOC302 (LFP)","Proyectos de Obra Civil","0564","Mediciones y valoraciones de construcción","EOC302 (LFP) - 0564",2,4,133]
["EOC302 (LFP)","Proyectos de Obra Civil","0566","Planificación de construcción","EOC302 (LFP) - 0566",2,3,100]
["EOC302 (LFP)","Proyectos de Obra Civil","0771","Levantamientos topográficos","EOC302 (LFP) - 0771",2,3,100]
["EOC302 (LFP)","Proyectos de Obra Civil","0772","Desarrollo de proyectos urbanísticos","EOC302 (LFP) - 0772",2,6,200]
["EOC302 (LFP)","Proyectos de Obra Civil","0773","Desarrollo de proyectos de obras lineales","EOC302 (LFP) - 0773",2,6,200]
["EOC302 (LFP)","Proyectos de Obra Civil","0774","Proyecto Intermodular de obra civil","EOC302 (LFP) - 0774",2,2,67]
["EOC302 (LFP)","Proyectos de Obra Civil","1708","Sostenibilidad aplicada al sistema productivo","EOC302 (LFP) - 1708",2,1,33]
["EOC302 (LFP)","Proyectos de Obra Civil","1710","Itinerario personal para la empleabilidad II","EOC302 (LFP) - 1710",2,2,67]
["EOC302 (LFP)","Proyectos de Obra Civil","0OPT","Módulo profesional optativo","EOC302 (LFP) - 0OPT",2,3,100]
["EOC303 (LFP)","Realización y Planes de Obra","0179","Inglés Profesional (GS)","EOC303 (LFP) - 0179",1,2,67]
["EOC303 (LFP)","Realización y Planes de Obra","0562","Estructuras de construcción","EOC303 (LFP) - 0562",1,3,100]
["EOC303 (LFP)","Realización y Planes de Obra","0565","Replanteos de construcción","EOC303 (LFP) - 0565",1,3,100]
["EOC303 (LFP)","Realización y Planes de Obra","1287","Documentación de proyectos y obras de construcción","EOC303 (LFP) - 1287",1,6,200]
["EOC303 (LFP)","Realización y Planes de Obra","1288","Procesos constructivos en edificación","EOC303 (LFP) - 1288",1,7,233]
["EOC303 (LFP)","Realización y Planes de Obra","1289","Procesos constructivos en obra civil","EOC303 (LFP) - 1289",1,5,167]
["EOC303 (LFP)","Realización y Planes de Obra","1665","Digitalización aplicada a los sectores productivos (GS)","EOC303 (LFP) - 1665",1,1,33]
["EOC303 (LFP)","Realización y Planes de Obra","1709","Itinerario personal para la empleabilidad I","EOC303 (LFP) - 1709",1,3,100]
["EOC303 (LFP)","Realización y Planes de Obra","0564","Mediciones y valoraciones de construcción","EOC303 (LFP) - 0564",2,4,133]
["EOC303 (LFP)","Realización y Planes de Obra","0566","Planificación de construcción","EOC303 (LFP) - 0566",2,3,100]
["EOC303 (LFP)","Realización y Planes de Obra","1290","Control de estructuras de construcción","EOC303 (LFP) - 1290",2,4,133]
["EOC303 (LFP)","Realización y Planes de Obra","1291","Control de ejecución en obras de edificación","EOC303 (LFP) - 1291",2,4,133]
["EOC303 (LFP)","Realización y Planes de Obra","1292","Control de ejecución en obra civil","EOC303 (LFP) - 1292",2,3,100]
["EOC303 (LFP)","Realización y Planes de Obra","1293","Rehabilitación y conservación de obras de construcción","EOC303 (LFP) - 1293",2,4,133]
["EOC303 (LFP)","Realización y Planes de Obra","1294","Proyecto Intermodular de organización y control de obras de construcción","EOC303 (LFP) - 1294",2,2,67]
["EOC303 (LFP)","Realización y Planes de Obra","1708","Sostenibilidad aplicada al sistema productivo","EOC303 (LFP) - 1708",2,1,33]
["EOC303 (LFP)","Realización y Planes de Obra","1710","Itinerario personal para la empleabilidad II","EOC303 (LFP) - 1710",2,2,67]
["EOC303 (LFP)","Realización y Planes de Obra","0OPT","Módulo profesional optativo","EOC303 (LFP) - 0OPT",2,3,100]
["FME201 (LFP)","Conformado por Moldeo de Metales y Polímeros","0007","Interpretación gráfica","FME201 (LFP) - 0007",1,4,133]
["FME201 (LFP)","Conformado por Moldeo de Metales y Polímeros","0156","Inglés Profesional (GM)","FME201 (LFP) - 0156",1,2,67]
["FME201 (LFP)","Conformado por Moldeo de Metales y Polímeros","0723","Elaboración de moldes y modelos","FME201 (LFP) - 0723",1,8,267]
["FME201 (LFP)","Conformado por Moldeo de Metales y Polímeros","0725","Conformado por moldeo abierto","FME201 (LFP) - 0725",1,7,233]
["FME201 (LFP)","Conformado por Moldeo de Metales y Polímeros","0726","Preparación de materias primas","FME201 (LFP) - 0726",1,4,133]
["FME201 (LFP)","Conformado por Moldeo de Metales y Polímeros","1664","Digitalización aplicada a los sectores productivos (GM)","FME201 (LFP) - 1664",1,1,33]
["FME201 (LFP)","Conformado por Moldeo de Metales y Polímeros","1709","Itinerario personal para la empleabilidad I","FME201 (LFP) - 1709",1,3,100]
["FME201 (LFP)","Conformado por Moldeo de Metales y Polímeros","A997","Tutoría I","FME201 (LFP) - A997",1,1,33]
["FME201 (LFP)","Conformado por Moldeo de Metales y Polímeros","0006","Metrología y ensayos","FME201 (LFP) - 0006",2,4,133]
["FME201 (LFP)","Conformado por Moldeo de Metales y Polímeros","0722","Preparación de máquinas e instalaciones de procesos automáticos","FME201 (LFP) - 0722",2,9,300]
["FME201 (LFP)","Conformado por Moldeo de Metales y Polímeros","0724","Conformado por moldeo cerrado","FME201 (LFP) - 0724",2,8,267]
["FME201 (LFP)","Conformado por Moldeo de Metales y Polímeros","1708","Sostenibilidad aplicada al sistema productivo","FME201 (LFP) - 1708",2,1,33]
["FME201 (LFP)","Conformado por Moldeo de Metales y Polímeros","1710","Itinerario personal para la empleabilidad II","FME201 (LFP) - 1710",2,2,67]
["FME201 (LFP)","Conformado por Moldeo de Metales y Polímeros","1713","Proyecto Intermodular","FME201 (LFP) - 1713",2,2,67]
["FME201 (LFP)","Conformado por Moldeo de Metales y Polímeros","A996","Tutoría II","FME201 (LFP) - A996",2,1,33]
["FME201 (LFP)","Conformado por Moldeo de Metales y Polímeros","0OPT","Módulo profesional optativo","FME201 (LFP) - 0OPT",2,3,100]
["FME202 (LFP)","Mecanizado","0001","Procesos de Mecanizado","FME202 (LFP) - 0001",1,4,133]
["FME202 (LFP)","Mecanizado","0004","Fabricación por Arranque de Viruta","FME202 (LFP) - 0004",1,11,367]
["FME202 (LFP)","Mecanizado","0005","Sistemas Automatizados","FME202 (LFP) - 0005",1,4,133]
["FME202 (LFP)","Mecanizado","0007","Interpretación gráfica","FME202 (LFP) - 0007",1,4,133]
["FME202 (LFP)","Mecanizado","0156","Inglés Profesional (GM)","FME202 (LFP) - 0156",1,2,67]
["FME202 (LFP)","Mecanizado","1664","Digitalización aplicada a los sectores productivos (GM)","FME202 (LFP) - 1664",1,1,33]
["FME202 (LFP)","Mecanizado","1709","Itinerario personal para la empleabilidad I","FME202 (LFP) - 1709",1,3,100]
["FME202 (LFP)","Mecanizado","A997","Tutoría I","FME202 (LFP) - A997",1,1,33]
["FME202 (LFP)","Mecanizado","0002","Mecanizado por Control Numérico","FME202 (LFP) - 0002",2,9,300]
["FME202 (LFP)","Mecanizado","0003","Fabricación por Abrasión, Electroerosión, Corte y Conformado y por Procesos Especiales","FME202 (LFP) - 0003",2,8,267]
["FME202 (LFP)","Mecanizado","0006","Metrología y ensayos","FME202 (LFP) - 0006",2,4,133]
["FME202 (LFP)","Mecanizado","1708","Sostenibilidad aplicada al sistema productivo",{"$f":"CONCATENATE(A771,\" - \",C771)","v":"FME202 (LFP) - 1708"},2,1,33]
["FME202 (LFP)","Mecanizado","1710","Itinerario personal para la empleabilidad II","FME202 (LFP) - 1710",2,2,67]
["FME202 (LFP)","Mecanizado","1713","Proyecto Intermodular","FME202 (LFP) - 1713",2,2,67]
["FME202 (LFP)","Mecanizado","A996","Tutoría II","FME202 (LFP) - A996",2,1,33]
["FME202 (LFP)","Mecanizado","0OPT","Módulo profesional optativo","FME202 (LFP) - 0OPT",2,3,100]
["FME203 (LFP)","Soldadura y Calderería","0007","Interpretación gráfica","FME203 (LFP) - 0007",1,4,133]
["FME203 (LFP)","Soldadura y Calderería","0091","Trazado, corte y conformado","FME203 (LFP) - 0091",1,6,200]
["FME203 (LFP)","Soldadura y Calderería","0092","Mecanizado","FME203 (LFP) - 0092",1,5,167]
["FME203 (LFP)","Soldadura y Calderería","0093","Soldadura en atmósfera natural","FME203 (LFP) - 0093",1,8,267]
["FME203 (LFP)","Soldadura y Calderería","0156","Inglés Profesional (GM)","FME203 (LFP) - 0156",1,2,67]
["FME203 (LFP)","Soldadura y Calderería","1664","Digitalización aplicada a los sectores productivos (GM)","FME203 (LFP) - 1664",1,1,33]
["FME203 (LFP)","Soldadura y Calderería","1709","Itinerario personal para la empleabilidad I","FME203 (LFP) - 1709",1,3,100]
["FME203 (LFP)","Soldadura y Calderería","A997","Tutoría I","FME203 (LFP) - A997",1,1,33]
["FME203 (LFP)","Soldadura y Calderería","0006","Metrología y ensayos","FME203 (LFP) - 0006",2,4,133]
["FME203 (LFP)","Soldadura y Calderería","0094","Soldadura en atmósfera protegida","FME203 (LFP) - 0094",2,10,333]
["FME203 (LFP)","Soldadura y Calderería","0095","Montaje","FME203 (LFP) - 0095",2,7,233]
["FME203 (LFP)","Soldadura y Calderería","1708","Sostenibilidad aplicada al sistema productivo","FME203 (LFP) - 1708",2,1,33]
["FME203 (LFP)","Soldadura y Calderería","1710","Itinerario personal para la empleabilidad II","FME203 (LFP) - 1710",2,2,67]
["FME203 (LFP)","Soldadura y Calderería","1713","Proyecto Intermodular","FME203 (LFP) - 1713",2,2,67]
["FME203 (LFP)","Soldadura y Calderería","A996","Tutoría II","FME203 (LFP) - A996",2,1,33]
["FME203 (LFP)","Soldadura y Calderería","0OPT","Módulo profesional optativo","FME203 (LFP) - 0OPT",2,3,100]
["FME301 (LFP)","Construcciones Metálicas","0165","Gestión de la calidad, prevención de riesgos laborales y protección ambiental","FME301 (LFP) - 0165",1,3,100]
["FME301 (LFP)","Construcciones Metálicas","0179","Inglés Profesional (GS)","FME301 (LFP) - 0179",1,2,67]
["FME301 (LFP)","Construcciones Metálicas","0245","Representación Gráfica en Fabricación Mecánica","FME301 (LFP) - 0245",1,4,133]
["FME301 (LFP)","Construcciones Metálicas","0247","Definición de procesos de construcciones metálicas","FME301 (LFP) - 0247",1,5,167]
["FME301 (LFP)","Construcciones Metálicas","0248","Procesos de mecanizado, corte y conformado en construcciones metálicas","FME301 (LFP) - 0248",1,5,167]
["FME301 (LFP)","Construcciones Metálicas","0249","Procesos de unión y montaje en construcciones metálicas","FME301 (LFP) - 0249",1,7,233]
["FME301 (LFP)","Construcciones Metálicas","1665","Digitalización aplicada a los sectores productivos (GS)","FME301 (LFP) - 1665",1,1,33]
["FME301 (LFP)","Construcciones Metálicas","1709","Itinerario personal para la empleabilidad I","FME301 (LFP) - 1709",1,3,100]
["FME301 (LFP)","Construcciones Metálicas","0162","Programación de sistemas automáticos de fabricación mecánica","FME301 (LFP) - 0162",2,6,200]
["FME301 (LFP)","Construcciones Metálicas","0163","Programación de la producción","FME301 (LFP) - 0163",2,5,167]
["FME301 (LFP)","Construcciones Metálicas","0246","Diseño de construcciones metálicas","FME301 (LFP) - 0246",2,11,367]
["FME301 (LFP)","Construcciones Metálicas","0250","Proyecto Intermodular de construcciones metálicas","FME301 (LFP) - 0250",2,2,67]
["FME301 (LFP)","Construcciones Metálicas","1708","Sostenibilidad aplicada al sistema productivo","FME301 (LFP) - 1708",2,1,33]
["FME301 (LFP)","Construcciones Metálicas","1710","Itinerario personal para la empleabilidad II","FME301 (LFP) - 1710",2,2,67]
["FME301 (LFP)","Construcciones Metálicas","0OPT","Módulo profesional optativo","FME301 (LFP) - 0OPT",2,3,100]
["FME302 (LFP)","Diseño en Fabricación Mecánica","0179","Inglés Profesional (GS)","FME302 (LFP) - 0179",1,2,67]
["FME302 (LFP)","Diseño en Fabricación Mecánica","0245","Representación Gráfica en Fabricación Mecánica","FME302 (LFP) - 0245",1,4,133]
["FME302 (LFP)","Diseño en Fabricación Mecánica","0427","Diseño de Productos Mecánicos","FME302 (LFP) - 0427",1,10,333]
["FME302 (LFP)","Diseño en Fabricación Mecánica","0429","Diseño de Moldes y Modelos de Fundición","FME302 (LFP) - 0429",1,4,133]
["FME302 (LFP)","Diseño en Fabricación Mecánica","0432","Técnicas de Fabricación Mecánica","FME302 (LFP) - 0432",1,6,200]
["FME302 (LFP)","Diseño en Fabricación Mecánica","1665","Digitalización aplicada a los sectores productivos (GS)","FME302 (LFP) - 1665",1,1,33]
["FME302 (LFP)","Diseño en Fabricación Mecánica","1709","Itinerario personal para la empleabilidad I","FME302 (LFP) - 1709",1,3,100]
["FME302 (LFP)","Diseño en Fabricación Mecánica","0428","Diseño de Útiles de Procesado de Chapa y Estampación","FME302 (LFP) - 0428",2,9,300]
["FME302 (LFP)","Diseño en Fabricación Mecánica","0430","Diseño de Moldes para Productos Poliméricos","FME302 (LFP) - 0430",2,5,167]
["FME302 (LFP)","Diseño en Fabricación Mecánica","0431","Automatización de la Fabricación","FME302 (LFP) - 0431",2,8,267]
["FME302 (LFP)","Diseño en Fabricación Mecánica","0433","Proyecto Intermodular de Diseño de Productos Mecánicos","FME302 (LFP) - 0433",2,2,67]
["FME302 (LFP)","Diseño en Fabricación Mecánica","1708","Sostenibilidad aplicada al sistema productivo","FME302 (LFP) - 1708",2,1,33]
["FME302 (LFP)","Diseño en Fabricación Mecánica","1710","Itinerario personal para la empleabilidad II","FME302 (LFP) - 1710",2,2,67]
["FME302 (LFP)","Diseño en Fabricación Mecánica","0OPT","Módulo profesional optativo","FME302 (LFP) - 0OPT",2,3,100]
["FME304 (LFP)","Programación de la Producción en Fabricación Mecánica","0007","Interpretación gráfica","FME304 (LFP) - 0007",1,4,133]
["FME304 (LFP)","Programación de la Producción en Fabricación Mecánica","0160","Definición de procesos de mecanizado, conformado y montaje","FME304 (LFP) - 0160",1,5,167]
["FME304 (LFP)","Programación de la Producción en Fabricación Mecánica","0164","Ejecución de procesos de fabricación","FME304 (LFP) - 0164",1,7,233]
["FME304 (LFP)","Programación de la Producción en Fabricación Mecánica","0165","Gestión de la calidad, prevención de riesgos laborales y protección ambiental","FME304 (LFP) - 0165",1,3,100]
["FME304 (LFP)","Programación de la Producción en Fabricación Mecánica","0166","Verificación de productos","FME304 (LFP) - 0166",1,5,167]
["FME304 (LFP)","Programación de la Producción en Fabricación Mecánica","0179","Inglés Profesional (GS)","FME304 (LFP) - 0179",1,2,67]
["FME304 (LFP)","Programación de la Producción en Fabricación Mecánica","1665","Digitalización aplicada a los sectores productivos (GS)","FME304 (LFP) - 1665",1,1,33]
["FME304 (LFP)","Programación de la Producción en Fabricación Mecánica","1709","Itinerario personal para la empleabilidad I","FME304 (LFP) - 1709",1,3,100]
["FME304 (LFP)","Programación de la Producción en Fabricación Mecánica","0002","Mecanizado por Control Numérico","FME304 (LFP) - 0002",2,9,300]
["FME304 (LFP)","Programación de la Producción en Fabricación Mecánica","0161","Fabricación asistida por ordenador (CAM)","FME304 (LFP) - 0161",2,3,100]
["FME304 (LFP)","Programación de la Producción en Fabricación Mecánica","0162","Programación de sistemas automáticos de fabricación mecánica","FME304 (LFP) - 0162",2,5,167]
["FME304 (LFP)","Programación de la Producción en Fabricación Mecánica","0163","Programación de la producción","FME304 (LFP) - 0163",2,5,167]
["FME304 (LFP)","Programación de la Producción en Fabricación Mecánica","0167","Proyecto Intermodular de fabricación de productos mecánicos","FME304 (LFP) - 0167",2,2,67]
["FME304 (LFP)","Programación de la Producción en Fabricación Mecánica","1708","Sostenibilidad aplicada al sistema productivo","FME304 (LFP) - 1708",2,1,33]
["FME304 (LFP)","Programación de la Producción en Fabricación Mecánica","1710","Itinerario personal para la empleabilidad II",{"$f":"CONCATENATE(A835,\" - \",C835)","v":"FME304 (LFP) - 1710"},2,2,67]
["FME304 (LFP)","Programación de la Producción en Fabricación Mecánica","0OPT","Módulo profesional optativo","FME304 (LFP) - 0OPT",2,3,100]
["FME305 (LFP)","Programación de la Producción en Moldeo de Metales y Polímeros","0007","Interpretación gráfica","FME305 (LFP) - 0007",1,4,133]
["FME305 (LFP)","Programación de la Producción en Moldeo de Metales y Polímeros","0162","Programación de sistemas automáticos de fabricación mecánica","FME305 (LFP) - 0162",1,5,167]
["FME305 (LFP)","Programación de la Producción en Moldeo de Metales y Polímeros","0165","Gestión de la calidad, prevención de riesgos laborales y protección ambiental","FME305 (LFP) - 0165",1,3,100]
["FME305 (LFP)","Programación de la Producción en Moldeo de Metales y Polímeros","0179","Inglés Profesional (GS)","FME305 (LFP) - 0179",1,2,67]
["FME305 (LFP)","Programación de la Producción en Moldeo de Metales y Polímeros","0530","Caracterización de materiales","FME305 (LFP) - 0530",1,3,100]
["FME305 (LFP)","Programación de la Producción en Moldeo de Metales y Polímeros","0531","Moldeo cerrado","FME305 (LFP) - 0531",1,9,300]
["FME305 (LFP)","Programación de la Producción en Moldeo de Metales y Polímeros","1665","Digitalización aplicada a los sectores productivos (GS)","FME305 (LFP) - 1665",1,1,33]
["FME305 (LFP)","Programación de la Producción en Moldeo de Metales y Polímeros","1709","Itinerario personal para la empleabilidad I","FME305 (LFP) - 1709",1,3,100]
["FME305 (LFP)","Programación de la Producción en Moldeo de Metales y Polímeros","0163","Programación de la producción","FME305 (LFP) - 0163",2,5,167]
["FME305 (LFP)","Programación de la Producción en Moldeo de Metales y Polímeros","0532","Moldeo abierto","FME305 (LFP) - 0532",2,13,433]
["FME305 (LFP)","Programación de la Producción en Moldeo de Metales y Polímeros","0533","Verificación de productos conformados","FME305 (LFP) - 0533",2,4,133]
["FME305 (LFP)","Programación de la Producción en Moldeo de Metales y Polímeros","0534","Proyecto Intermodular de programación de la producción en moldeo de metales y polímeros","FME305 (LFP) - 0534",2,2,67]
["FME305 (LFP)","Programación de la Producción en Moldeo de Metales y Polímeros","1708","Sostenibilidad aplicada al sistema productivo","FME305 (LFP) - 1708",2,1,33]
["FME305 (LFP)","Programación de la Producción en Moldeo de Metales y Polímeros","1710","Itinerario personal para la empleabilidad II","FME305 (LFP) - 1710",2,2,67]
["FME305 (LFP)","Programación de la Producción en Moldeo de Metales y Polímeros","0OPT","Módulo profesional optativo","FME305 (LFP) - 0OPT",2,3,100]
["FPB101 (LFP)","Servicios Administrativos","3001","Tratamiento informático de datos","FPB101 (LFP) - 3001",1,8,267]
["FPB101 (LFP)","Servicios Administrativos","3003","Técnicas administrativas básicas","FPB101 (LFP) - 3003",1,6,200]
["FPB101 (LFP)","Servicios Administrativos","3004","Archivo y comunicación","FPB101 (LFP) - 3004",1,3,100]
["FPB101 (LFP)","Servicios Administrativos","3159","Itinerario personal para la empleabilidad","FPB101 (LFP) - 3159",1,2,67]
["FPB101 (LFP)","Servicios Administrativos","3161","Ámbito de Comunicación y ciencias sociales I","FPB101 (LFP) - 3161",1,4,133]
["FPB101 (LFP)","Servicios Administrativos","3163","Ámbito de Ciencias Aplicadas I","FPB101 (LFP) - 3163",1,4,133]
["FPB101 (LFP)","Servicios Administrativos","A123","Prevención de riesgos laborales","FPB101 (LFP) - A123",1,1,33]
["FPB101 (LFP)","Servicios Administrativos","A998","Tutoría I","FPB101 (LFP) - A998",1,2,67]
["FPB101 (LFP)","Servicios Administrativos","3002","Aplicaciones básicas de ofimática","FPB101 (LFP) - 3002",2,11,367]
["FPB101 (LFP)","Servicios Administrativos","3005","Atención al cliente","FPB101 (LFP) - 3005",2,2,67]
["FPB101 (LFP)","Servicios Administrativos","3006","Preparación de pedidos y venta de productos","FPB101 (LFP) - 3006",2,5,167]
["FPB101 (LFP)","Servicios Administrativos","3160","Proyecto Intermodular de aprendizaje colaborativo","FPB101 (LFP) - 3160",2,2,67]
["FPB101 (LFP)","Servicios Administrativos","3162","Ámbito de Comunicación y ciencias sociales II","FPB101 (LFP) - 3162",2,4,133]
["FPB101 (LFP)","Servicios Administrativos","3164","Ámbito de Ciencias Aplicadas II","FPB101 (LFP) - 3164",2,4,133]
["FPB101 (LFP)","Servicios Administrativos","A999","Tutoría II","FPB101 (LFP) - A999",2,2,67]
["FPB102 (LFP)","Electricidad y Electrónica","3013","Instalaciones eléctricas y domóticas","FPB102 (LFP) - 3013",1,9,300]
["FPB102 (LFP)","Electricidad y Electrónica","3015","Equipos eléctricos y electrónicos","FPB102 (LFP) - 3015",1,5,167]
["FPB102 (LFP)","Electricidad y Electrónica","3159","Itinerario personal para la empleabilidad","FPB102 (LFP) - 3159",1,2,67]
["FPB102 (LFP)","Electricidad y Electrónica","3161","Ámbito de Comunicación y ciencias sociales I","FPB102 (LFP) - 3161",1,4,133]
["FPB102 (LFP)","Electricidad y Electrónica","3163","Ámbito de Ciencias Aplicadas I","FPB102 (LFP) - 3163",1,4,133]
["FPB102 (LFP)","Electricidad y Electrónica","A123","Prevención de riesgos laborales","FPB102 (LFP) - A123",1,1,33]
["FPB102 (LFP)","Electricidad y Electrónica","A130","Iniciación a la interpretación gráfica","FPB102 (LFP) - A130",1,3,100]
["FPB102 (LFP)","Electricidad y Electrónica","A998","Tutoría I","FPB102 (LFP) - A998",1,2,67]
["FPB102 (LFP)","Electricidad y Electrónica","3014","Instalaciones de telecomunicaciones","FPB102 (LFP) - 3014",2,7,233]
["FPB102 (LFP)","Electricidad y Electrónica","3016","Instalación y mantenimiento de redes para transmisión de datos","FPB102 (LFP) - 3016",2,8,267]
["FPB102 (LFP)","Electricidad y Electrónica","3160","Proyecto Intermodular de aprendizaje colaborativo","FPB102 (LFP) - 3160",2,2,67]
["FPB102 (LFP)","Electricidad y Electrónica","3162","Ámbito de Comunicación y ciencias sociales II","FPB102 (LFP) - 3162",2,4,133]
["FPB102 (LFP)","Electricidad y Electrónica","3164","Ámbito de Ciencias Aplicadas II","FPB102 (LFP) - 3164",2,4,133]
["FPB102 (LFP)","Electricidad y Electrónica","A124","Instalaciones de sistemas automáticos y fotovoltaicos","FPB102 (LFP) - A124",2,3,100]
["FPB102 (LFP)","Electricidad y Electrónica","A999","Tutoría II","FPB102 (LFP) - A999",2,2,67]
["FPB103 (LFP)","Fabricación y Montaje","3020","Operaciones básicas de fabricación","FPB103 (LFP) - 3020",1,5,167]
["FPB103 (LFP)","Fabricación y Montaje","3024","Fontanería y calefacción básica","FPB103 (LFP) - 3024",1,7,233]
["FPB103 (LFP)","Fabricación y Montaje","3025","Montaje de equipos de climatización","FPB103 (LFP) - 3025",1,2,67]
["FPB103 (LFP)","Fabricación y Montaje","3159","Itinerario personal para la empleabilidad","FPB103 (LFP) - 3159",1,2,67]
["FPB103 (LFP)","Fabricación y Montaje","3161","Ámbito de Comunicación y ciencias sociales I","FPB103 (LFP) - 3161",1,4,133]
["FPB103 (LFP)","Fabricación y Montaje","3163","Ámbito de Ciencias Aplicadas I","FPB103 (LFP) - 3163",1,4,133]
["FPB103 (LFP)","Fabricación y Montaje","A123","Prevención de riesgos laborales","FPB103 (LFP) - A123",1,1,33]
["FPB103 (LFP)","Fabricación y Montaje","A125","Iniciación a la calderería","FPB103 (LFP) - A125",1,3,100]
["FPB103 (LFP)","Fabricación y Montaje","A998","Tutoría I","FPB103 (LFP) - A998",1,2,67]
["FPB103 (LFP)","Fabricación y Montaje","3021","Soldadura y carpintería metálica","FPB103 (LFP) - 3021",2,6,200]
["FPB103 (LFP)","Fabricación y Montaje","3022","Carpintería de aluminio y PVC","FPB103 (LFP) - 3022",2,5,167]
["FPB103 (LFP)","Fabricación y Montaje","3023","Redes de evacuación","FPB103 (LFP) - 3023",2,5,167]
["FPB103 (LFP)","Fabricación y Montaje","3160","Proyecto Intermodular de aprendizaje colaborativo","FPB103 (LFP) - 3160",2,2,67]
["FPB103 (LFP)","Fabricación y Montaje","3162","Ámbito de Comunicación y ciencias sociales II","FPB103 (LFP) - 3162",2,4,133]
["FPB103 (LFP)","Fabricación y Montaje","3164","Ámbito de Ciencias Aplicadas II","FPB103 (LFP) - 3164",2,4,133]
["FPB103 (LFP)","Fabricación y Montaje","A126","Montaje de estructuras metálicas","FPB103 (LFP) - A126",2,2,67]
["FPB103 (LFP)","Fabricación y Montaje","A999","Tutoría II","FPB103 (LFP) - A999",2,2,67]
["FPB104 (LFP)","Informática y Comunicaciones","3015","Equipos eléctricos y electrónicos",{"$f":"CONCATENATE(A899,\" - \",C899)","v":"FPB104 (LFP) - 3015"},1,5,167]
["FPB104 (LFP)","Informática y Comunicaciones","3029","Montaje y mantenimiento de sistemas y componentes informáticos","FPB104 (LFP) - 3029",1,7,233]
["FPB104 (LFP)","Informática y Comunicaciones","3159","Itinerario personal para la empleabilidad","FPB104 (LFP) - 3159",1,2,67]
["FPB104 (LFP)","Informática y Comunicaciones","3161","Ámbito de Comunicación y ciencias sociales I","FPB104 (LFP) - 3161",1,4,133]
["FPB104 (LFP)","Informática y Comunicaciones","3163","Ámbito de Ciencias Aplicadas I","FPB104 (LFP) - 3163",1,4,133]
["FPB104 (LFP)","Informática y Comunicaciones","A123","Prevención de riesgos laborales","FPB104 (LFP) - A123",1,1,33]
["FPB104 (LFP)","Informática y Comunicaciones","A127","Taller de montaje de equipos informáticos","FPB104 (LFP) - A127",1,5,167]
["FPB104 (LFP)","Informática y Comunicaciones","A998","Tutoría I","FPB104 (LFP) - A998",1,2,67]
["FPB104 (LFP)","Informática y Comunicaciones","3016","Instalación y mantenimiento de redes para transmisión de datos","FPB104 (LFP) - 3016",2,8,267]
["FPB104 (LFP)","Informática y Comunicaciones","3030","Operaciones auxiliares para la configuración y la explotación","FPB104 (LFP) - 3030",2,10,333]
["FPB104 (LFP)","Informática y Comunicaciones","3160","Proyecto Intermodular de aprendizaje colaborativo","FPB104 (LFP) - 3160",2,2,67]
["FPB104 (LFP)","Informática y Comunicaciones","3162","Ámbito de Comunicación y ciencias sociales II","FPB104 (LFP) - 3162",2,4,133]
["FPB104 (LFP)","Informática y Comunicaciones","3164","Ámbito de Ciencias Aplicadas II","FPB104 (LFP) - 3164",2,4,133]
["FPB104 (LFP)","Informática y Comunicaciones","A999","Tutoría II","FPB104 (LFP) - A999",2,2,67]
["FPB105 (LFP)","Cocina y Restauración","3034","Técnicas elementales de preelaboración","FPB105 (LFP) - 3034",1,7,233]
["FPB105 (LFP)","Cocina y Restauración","3036","Aprovisionamiento y conservación de materias primas e higiene en la manipulación","FPB105 (LFP) - 3036",1,3,100]
["FPB105 (LFP)","Cocina y Restauración","3037","Técnicas elementales de servicio","FPB105 (LFP) - 3037",1,7,233]
["FPB105 (LFP)","Cocina y Restauración","3159","Itinerario personal para la empleabilidad","FPB105 (LFP) - 3159",1,2,67]
["FPB105 (LFP)","Cocina y Restauración","3161","Ámbito de Comunicación y ciencias sociales I","FPB105 (LFP) - 3161",1,4,133]
["FPB105 (LFP)","Cocina y Restauración","3163","Ámbito de Ciencias Aplicadas I","FPB105 (LFP) - 3163",1,4,133]
["FPB105 (LFP)","Cocina y Restauración","A123","Prevención de riesgos laborales","FPB105 (LFP) - A123",1,1,33]
["FPB105 (LFP)","Cocina y Restauración","A998","Tutoría I","FPB105 (LFP) - A998",1,2,67]
["FPB105 (LFP)","Cocina y Restauración","3005","Atención al cliente","FPB105 (LFP) - 3005",2,2,67]
["FPB105 (LFP)","Cocina y Restauración","3035","Procesos básicos de producción culinaria","FPB105 (LFP) - 3035",2,7,233]
["FPB105 (LFP)","Cocina y Restauración","3038","Procesos básicos de preparación de alimentos y bebidas","FPB105 (LFP) - 3038",2,6,200]
["FPB105 (LFP)","Cocina y Restauración","3039","Preparación y montaje de materiales para colectividades y catering","FPB105 (LFP) - 3039",2,3,100]
["FPB105 (LFP)","Cocina y Restauración","3160","Proyecto Intermodular de aprendizaje colaborativo","FPB105 (LFP) - 3160",2,2,67]
["FPB105 (LFP)","Cocina y Restauración","3162","Ámbito de Comunicación y ciencias sociales II","FPB105 (LFP) - 3162",2,4,133]
["FPB105 (LFP)","Cocina y Restauración","3164","Ámbito de Ciencias Aplicadas II","FPB105 (LFP) - 3164",2,4,133]
["FPB105 (LFP)","Cocina y Restauración","A999","Tutoría II","FPB105 (LFP) - A999",2,2,67]
["FPB106 (LFP)","Mantenimiento de Vehículos","3043","Mecanizado y soldadura","FPB106 (LFP) - 3043",1,5,167]
["FPB106 (LFP)","Mantenimiento de Vehículos","3046","Electricidad del vehículo","FPB106 (LFP) - 3046",1,4,133]
["FPB106 (LFP)","Mantenimiento de Vehículos","3047","Mecánica del vehículo","FPB106 (LFP) - 3047",1,8,267]
["FPB106 (LFP)","Mantenimiento de Vehículos","3159","Itinerario personal para la empleabilidad","FPB106 (LFP) - 3159",1,2,67]
["FPB106 (LFP)","Mantenimiento de Vehículos","3161","Ámbito de Comunicación y ciencias sociales I","FPB106 (LFP) - 3161",1,4,133]
["FPB106 (LFP)","Mantenimiento de Vehículos","3163","Ámbito de Ciencias Aplicadas I","FPB106 (LFP) - 3163",1,4,133]
["FPB106 (LFP)","Mantenimiento de Vehículos","A123","Prevención de riesgos laborales","FPB106 (LFP) - A123",1,1,33]
["FPB106 (LFP)","Mantenimiento de Vehículos","A998","Tutoría I","FPB106 (LFP) - A998",1,2,67]
["FPB106 (LFP)","Mantenimiento de Vehículos","3044","Amovibles","FPB106 (LFP) - 3044",2,7,233]
["FPB106 (LFP)","Mantenimiento de Vehículos","3045","Preparación de superficies","FPB106 (LFP) - 3045",2,11,367]
["FPB106 (LFP)","Mantenimiento de Vehículos","3160","Proyecto Intermodular de aprendizaje colaborativo","FPB106 (LFP) - 3160",2,2,67]
["FPB106 (LFP)","Mantenimiento de Vehículos","3162","Ámbito de Comunicación y ciencias sociales II","FPB106 (LFP) - 3162",2,4,133]
["FPB106 (LFP)","Mantenimiento de Vehículos","3164","Ámbito de Ciencias Aplicadas II","FPB106 (LFP) - 3164",2,4,133]
["FPB106 (LFP)","Mantenimiento de Vehículos","A999","Tutoría II","FPB106 (LFP) - A999",2,2,67]
["FPB107 (LFP)","Agrojardinería y Composiciones Florales","3051","Operaciones auxiliares de preparación del terreno, plantación y siembra de cultivos","FPB107 (LFP) - 3051",1,6,200]
["FPB107 (LFP)","Agrojardinería y Composiciones Florales","3053","Operaciones básicas de producción y mantenimiento de plantas en viveros y centros de jardinería","FPB107 (LFP) - 3053",1,5,167]
["FPB107 (LFP)","Agrojardinería y Composiciones Florales","3055","Operaciones básicas en instalación de jardines, parques y zonas verdes","FPB107 (LFP) - 3055",1,6,200]
["FPB107 (LFP)","Agrojardinería y Composiciones Florales","3159","Itinerario personal para la empleabilidad","FPB107 (LFP) - 3159",1,2,67]
["FPB107 (LFP)","Agrojardinería y Composiciones Florales","3161","Ámbito de Comunicación y ciencias sociales I","FPB107 (LFP) - 3161",1,4,133]
["FPB107 (LFP)","Agrojardinería y Composiciones Florales","3163","Ámbito de Ciencias Aplicadas I","FPB107 (LFP) - 3163",1,4,133]
["FPB107 (LFP)","Agrojardinería y Composiciones Florales","A123","Prevención de riesgos laborales","FPB107 (LFP) - A123",1,1,33]
["FPB107 (LFP)","Agrojardinería y Composiciones Florales","A998","Tutoría I","FPB107 (LFP) - A998",1,2,67]
["FPB107 (LFP)","Agrojardinería y Composiciones Florales","3050","Actividades de riego, abonado y tratamientos en cultivos","FPB107 (LFP) - 3050",2,5,167]
["FPB107 (LFP)","Agrojardinería y Composiciones Florales","3054","Operaciones auxiliares en la elaboración de composiciones con flores y plantas","FPB107 (LFP) - 3054",2,5,167]
["FPB107 (LFP)","Agrojardinería y Composiciones Florales","3056","Operaciones básicas para el mantenimiento de jardines, parques y zonas verdes","FPB107 (LFP) - 3056",2,5,167]
["FPB107 (LFP)","Agrojardinería y Composiciones Florales","3057","Materiales de floristería","FPB107 (LFP) - 3057",2,3,100]
["FPB107 (LFP)","Agrojardinería y Composiciones Florales","3160","Proyecto Intermodular de aprendizaje colaborativo","FPB107 (LFP) - 3160",2,2,67]
["FPB107 (LFP)","Agrojardinería y Composiciones Florales","3162","Ámbito de Comunicación y ciencias sociales II","FPB107 (LFP) - 3162",2,4,133]
["FPB107 (LFP)","Agrojardinería y Composiciones Florales","3164","Ámbito de Ciencias Aplicadas II","FPB107 (LFP) - 3164",2,4,133]
["FPB107 (LFP)","Agrojardinería y Composiciones Florales","A999","Tutoría II","FPB107 (LFP) - A999",2,2,67]
["FPB108 (LFP)","Peluquería y Estética","3005","Atención al cliente","FPB108 (LFP) - 3005",1,2,67]
["FPB108 (LFP)","Peluquería y Estética","3060","Preparación del entorno profesional","FPB108 (LFP) - 3060",1,3,100]
["FPB108 (LFP)","Peluquería y Estética","3061","Cuidados estéticos básicos de uñas","FPB108 (LFP) - 3061",1,5,167]
["FPB108 (LFP)","Peluquería y Estética","3064","Lavado y cambios de forma del cabello","FPB108 (LFP) - 3064",1,7,233]
["FPB108 (LFP)","Peluquería y Estética","3159","Itinerario personal para la empleabilidad",{"$f":"CONCATENATE(A963,\" - \",C963)","v":"FPB108 (LFP) - 3159"},1,2,67]
["FPB108 (LFP)","Peluquería y Estética","3161","Ámbito de Comunicación y ciencias sociales I","FPB108 (LFP) - 3161",1,4,133]
["FPB108 (LFP)","Peluquería y Estética","3163","Ámbito de Ciencias Aplicadas I","FPB108 (LFP) - 3163",1,4,133]
["FPB108 (LFP)","Peluquería y Estética","A123","Prevención de riesgos laborales","FPB108 (LFP) - A123",1,1,33]
["FPB108 (LFP)","Peluquería y Estética","A998","Tutoría I","FPB108 (LFP) - A998",1,2,67]
["FPB108 (LFP)","Peluquería y Estética","3062","Depilación mecánica y decoloración del vello superfluo","FPB108 (LFP) - 3062",2,5,167]
["FPB108 (LFP)","Peluquería y Estética","3063","Maquillaje","FPB108 (LFP) - 3063",2,6,200]
["FPB108 (LFP)","Peluquería y Estética","3065","Cambios de color del cabello","FPB108 (LFP) - 3065",2,7,233]
["FPB108 (LFP)","Peluquería y Estética","3160","Proyecto Intermodular de aprendizaje colaborativo","FPB108 (LFP) - 3160",2,2,67]
["FPB108 (LFP)","Peluquería y Estética","3162","Ámbito de Comunicación y ciencias sociales II","FPB108 (LFP) - 3162",2,4,133]
["FPB108 (LFP)","Peluquería y Estética","3164","Ámbito de Ciencias Aplicadas II","FPB108 (LFP) - 3164",2,4,133]
["FPB108 (LFP)","Peluquería y Estética","A999","Tutoría II","FPB108 (LFP) - A999",2,2,67]
["FPB109 (LFP)","Servicios Comerciales","3001","Tratamiento informático de datos","FPB109 (LFP) - 3001",1,8,267]
["FPB109 (LFP)","Servicios Comerciales","3069","Técnicas básicas de merchandising","FPB109 (LFP) - 3069",1,5,167]
["FPB109 (LFP)","Servicios Comerciales","3070","Operaciones auxiliares de almacenaje","FPB109 (LFP) - 3070",1,4,133]
["FPB109 (LFP)","Servicios Comerciales","3159","Itinerario personal para la empleabilidad","FPB109 (LFP) - 3159",1,2,67]
["FPB109 (LFP)","Servicios Comerciales","3161","Ámbito de Comunicación y ciencias sociales I","FPB109 (LFP) - 3161",1,4,133]
["FPB109 (LFP)","Servicios Comerciales","3163","Ámbito de Ciencias Aplicadas I","FPB109 (LFP) - 3163",1,4,133]
["FPB109 (LFP)","Servicios Comerciales","A123","Prevención de riesgos laborales","FPB109 (LFP) - A123",1,1,33]
["FPB109 (LFP)","Servicios Comerciales","A998","Tutoría I","FPB109 (LFP) - A998",1,2,67]
["FPB109 (LFP)","Servicios Comerciales","3002","Aplicaciones básicas de ofimática","FPB109 (LFP) - 3002",2,11,367]
["FPB109 (LFP)","Servicios Comerciales","3005","Atención al cliente","FPB109 (LFP) - 3005",2,2,67]
["FPB109 (LFP)","Servicios Comerciales","3006","Preparación de pedidos y venta de productos","FPB109 (LFP) - 3006",2,5,167]
["FPB109 (LFP)","Servicios Comerciales","3160","Proyecto Intermodular de aprendizaje colaborativo","FPB109 (LFP) - 3160",2,2,67]
["FPB109 (LFP)","Servicios Comerciales","3162","Ámbito de Comunicación y ciencias sociales II","FPB109 (LFP) - 3162",2,4,133]
["FPB109 (LFP)","Servicios Comerciales","3164","Ámbito de Ciencias Aplicadas II","FPB109 (LFP) - 3164",2,4,133]
["FPB109 (LFP)","Servicios Comerciales","A999","Tutoría II","FPB109 (LFP) - A999",2,2,67]
["FPB110 (LFP)","Carpintería y Mueble","3074","Operaciones básicas de mecanizado de madera y derivados","FPB110 (LFP) - 3074",1,11,367]
["FPB110 (LFP)","Carpintería y Mueble","3075","Instalación de elementos de carpintería y mueble","FPB110 (LFP) - 3075",1,6,200]
["FPB110 (LFP)","Carpintería y Mueble","3159","Itinerario personal para la empleabilidad","FPB110 (LFP) - 3159",1,2,67]
["FPB110 (LFP)","Carpintería y Mueble","3161","Ámbito de Comunicación y ciencias sociales I","FPB110 (LFP) - 3161",1,4,133]
["FPB110 (LFP)","Carpintería y Mueble","3163","Ámbito de Ciencias Aplicadas I","FPB110 (LFP) - 3163",1,4,133]
["FPB110 (LFP)","Carpintería y Mueble","A123","Prevención de riesgos laborales","FPB110 (LFP) - A123",1,1,33]
["FPB110 (LFP)","Carpintería y Mueble","A998","Tutoría I","FPB110 (LFP) - A998",1,2,67]
["FPB110 (LFP)","Carpintería y Mueble","3005","Atención al cliente","FPB110 (LFP) - 3005",2,2,67]
["FPB110 (LFP)","Carpintería y Mueble","3076","Acabados básicos de la madera","FPB110 (LFP) - 3076",2,5,167]
["FPB110 (LFP)","Carpintería y Mueble","3077","Materiales y productos textiles","FPB110 (LFP) - 3077",2,3,100]
["FPB110 (LFP)","Carpintería y Mueble","3078","Tapizado de muebles","FPB110 (LFP) - 3078",2,8,267]
["FPB110 (LFP)","Carpintería y Mueble","3160","Proyecto Intermodular de aprendizaje colaborativo","FPB110 (LFP) - 3160",2,2,67]
["FPB110 (LFP)","Carpintería y Mueble","3162","Ámbito de Comunicación y ciencias sociales II","FPB110 (LFP) - 3162",2,4,133]
["FPB110 (LFP)","Carpintería y Mueble","3164","Ámbito de Ciencias Aplicadas II","FPB110 (LFP) - 3164",2,4,133]
["FPB110 (LFP)","Carpintería y Mueble","A999","Tutoría II","FPB110 (LFP) - A999",2,2,67]
["FPB111 (LFP)","Reforma y Mantenimiento de Edificios","3082","Albañilería básica","FPB111 (LFP) - 3082",1,9,300]
["FPB111 (LFP)","Reforma y Mantenimiento de Edificios","3083","Guarnecidos y enlucidos","FPB111 (LFP) - 3083",1,3,100]
["FPB111 (LFP)","Reforma y Mantenimiento de Edificios","3085","Pintura y empapelado","FPB111 (LFP) - 3085",1,5,167]
["FPB111 (LFP)","Reforma y Mantenimiento de Edificios","3159","Itinerario personal para la empleabilidad","FPB111 (LFP) - 3159",1,2,67]
["FPB111 (LFP)","Reforma y Mantenimiento de Edificios","3161","Ámbito de Comunicación y ciencias sociales I","FPB111 (LFP) - 3161",1,4,133]
["FPB111 (LFP)","Reforma y Mantenimiento de Edificios","3163","Ámbito de Ciencias Aplicadas I","FPB111 (LFP) - 3163",1,4,133]
["FPB111 (LFP)","Reforma y Mantenimiento de Edificios","A123","Prevención de riesgos laborales","FPB111 (LFP) - A123",1,1,33]
["FPB111 (LFP)","Reforma y Mantenimiento de Edificios","A998","Tutoría I","FPB111 (LFP) - A998",1,2,67]
["FPB111 (LFP)","Reforma y Mantenimiento de Edificios","3084","Falsos techos","FPB111 (LFP) - 3084",2,4,133]
["FPB111 (LFP)","Reforma y Mantenimiento de Edificios","3086","Reformas y mantenimiento básico de edificios","FPB111 (LFP) - 3086",2,8,267]
["FPB111 (LFP)","Reforma y Mantenimiento de Edificios","3087","Trabajos de pavimentación exterior y de urbanización","FPB111 (LFP) - 3087",2,6,200]
["FPB111 (LFP)","Reforma y Mantenimiento de Edificios","3160","Proyecto Intermodular de aprendizaje colaborativo","FPB111 (LFP) - 3160",2,2,67]
["FPB111 (LFP)","Reforma y Mantenimiento de Edificios","3162","Ámbito de Comunicación y ciencias sociales II","FPB111 (LFP) - 3162",2,4,133]
["FPB111 (LFP)","Reforma y Mantenimiento de Edificios","3164","Ámbito de Ciencias Aplicadas II","FPB111 (LFP) - 3164",2,4,133]
["FPB111 (LFP)","Reforma y Mantenimiento de Edificios","A999","Tutoría II","FPB111 (LFP) - A999",2,2,67]
["FPB112 (LFP)","Arreglo y Reparación de Artículos Textiles y de Piel","3005","Atención al cliente","FPB112 (LFP) - 3005",1,2,67]
["FPB112 (LFP)","Arreglo y Reparación de Artículos Textiles y de Piel","3077","Materiales y productos textiles","FPB112 (LFP) - 3077",1,3,100]
["FPB112 (LFP)","Arreglo y Reparación de Artículos Textiles y de Piel","3091","Reparación de artículos de marroquinería y elaboración de pequeños artículos de guarnicionería","FPB112 (LFP) - 3091",1,4,133]
["FPB112 (LFP)","Arreglo y Reparación de Artículos Textiles y de Piel","3101","Confección de artículos textiles para decoración","FPB112 (LFP) - 3101",1,8,267]
["FPB112 (LFP)","Arreglo y Reparación de Artículos Textiles y de Piel","3159","Itinerario personal para la empleabilidad","FPB112 (LFP) - 3159",1,2,67]
["FPB112 (LFP)","Arreglo y Reparación de Artículos Textiles y de Piel","3161","Ámbito de Comunicación y ciencias sociales I","FPB112 (LFP) - 3161",1,4,133]
["FPB112 (LFP)","Arreglo y Reparación de Artículos Textiles y de Piel","3163","Ámbito de Ciencias Aplicadas I","FPB112 (LFP) - 3163",1,4,133]
["FPB112 (LFP)","Arreglo y Reparación de Artículos Textiles y de Piel","A123","Prevención de riesgos laborales",{"$f":"CONCATENATE(A1027,\" - \",C1027)","v":"FPB112 (LFP) - A123"},1,1,33]
["FPB112 (LFP)","Arreglo y Reparación de Artículos Textiles y de Piel","A998","Tutoría I","FPB112 (LFP) - A998",1,2,67]
["FPB112 (LFP)","Arreglo y Reparación de Artículos Textiles y de Piel","3092","Reparación de calzado y actividades complementarias","FPB112 (LFP) - 3092",2,9,300]
["FPB112 (LFP)","Arreglo y Reparación de Artículos Textiles y de Piel","3095","Arreglos y adaptaciones en prendas de vestir y ropa de hogar","FPB112 (LFP) - 3095",2,9,300]
["FPB112 (LFP)","Arreglo y Reparación de Artículos Textiles y de Piel","3160","Proyecto Intermodular de aprendizaje colaborativo","FPB112 (LFP) - 3160",2,2,67]
["FPB112 (LFP)","Arreglo y Reparación de Artículos Textiles y de Piel","3162","Ámbito de Comunicación y ciencias sociales II","FPB112 (LFP) - 3162",2,4,133]
["FPB112 (LFP)","Arreglo y Reparación de Artículos Textiles y de Piel","3164","Ámbito de Ciencias Aplicadas II","FPB112 (LFP) - 3164",2,4,133]
["FPB112 (LFP)","Arreglo y Reparación de Artículos Textiles y de Piel","A999","Tutoría II","FPB112 (LFP) - A999",2,2,67]
["FPB115 (LFP)","Actividades Agropecuarias","3051","Operaciones auxiliares de preparación del terreno, plantación y siembra de cultivos","FPB115 (LFP) - 3051",1,6,200]
["FPB115 (LFP)","Actividades Agropecuarias","3113","Operaciones auxiliares de cría y alimentación del ganado","FPB115 (LFP) - 3113",1,7,233]
["FPB115 (LFP)","Actividades Agropecuarias","3115","Operaciones auxiliares de mantenimiento e higiene en instalaciones ganaderas","FPB115 (LFP) - 3115",1,4,133]
["FPB115 (LFP)","Actividades Agropecuarias","3159","Itinerario personal para la empleabilidad","FPB115 (LFP) - 3159",1,2,67]
["FPB115 (LFP)","Actividades Agropecuarias","3161","Ámbito de Comunicación y ciencias sociales I","FPB115 (LFP) - 3161",1,4,133]
["FPB115 (LFP)","Actividades Agropecuarias","3163","Ámbito de Ciencias Aplicadas I","FPB115 (LFP) - 3163",1,4,133]
["FPB115 (LFP)","Actividades Agropecuarias","A123","Prevención de riesgos laborales","FPB115 (LFP) - A123",1,1,33]
["FPB115 (LFP)","Actividades Agropecuarias","A998","Tutoría I","FPB115 (LFP) - A998",1,2,67]
["FPB115 (LFP)","Actividades Agropecuarias","3052","Operaciones auxiliares de obtención y recolección de cultivos","FPB115 (LFP) - 3052",2,8,267]
["FPB115 (LFP)","Actividades Agropecuarias","3111","Envasado y distribución de materias primas agroalimentarias","FPB115 (LFP) - 3111",2,4,133]
["FPB115 (LFP)","Actividades Agropecuarias","3114","Operaciones básicas de manejo de la producción ganadera","FPB115 (LFP) - 3114",2,6,200]
["FPB115 (LFP)","Actividades Agropecuarias","3160","Proyecto Intermodular de aprendizaje colaborativo","FPB115 (LFP) - 3160",2,2,67]
["FPB115 (LFP)","Actividades Agropecuarias","3162","Ámbito de Comunicación y ciencias sociales II","FPB115 (LFP) - 3162",2,4,133]
["FPB115 (LFP)","Actividades Agropecuarias","3164","Ámbito de Ciencias Aplicadas II","FPB115 (LFP) - 3164",2,4,133]
["FPB115 (LFP)","Actividades Agropecuarias","A999","Tutoría II","FPB115 (LFP) - A999",2,2,67]
["FPB116 (LFP)","Aprovechamientos Forestales","3053","Operaciones básicas de producción y mantenimiento de plantas en viveros y centros de jardinería","FPB116 (LFP) - 3053",1,5,167]
["FPB116 (LFP)","Aprovechamientos Forestales","3118","Repoblación e infraestructuras forestales","FPB116 (LFP) - 3118",1,7,233]
["FPB116 (LFP)","Aprovechamientos Forestales","3121","Recolección de productos forestales","FPB116 (LFP) - 3121",1,5,167]
["FPB116 (LFP)","Aprovechamientos Forestales","3159","Itinerario personal para la empleabilidad","FPB116 (LFP) - 3159",1,2,67]
["FPB116 (LFP)","Aprovechamientos Forestales","3161","Ámbito de Comunicación y ciencias sociales I","FPB116 (LFP) - 3161",1,4,133]
["FPB116 (LFP)","Aprovechamientos Forestales","3163","Ámbito de Ciencias Aplicadas I","FPB116 (LFP) - 3163",1,4,133]
["FPB116 (LFP)","Aprovechamientos Forestales","A123","Prevención de riesgos laborales","FPB116 (LFP) - A123",1,1,33]
["FPB116 (LFP)","Aprovechamientos Forestales","A998","Tutoría I","FPB116 (LFP) - A998",1,2,67]
["FPB116 (LFP)","Aprovechamientos Forestales","3056","Operaciones básicas para el mantenimiento de jardines, parques y zonas verdes","FPB116 (LFP) - 3056",2,5,167]
["FPB116 (LFP)","Aprovechamientos Forestales","3119","Trabajos de aprovechamientos forestales","FPB116 (LFP) - 3119",2,7,233]
["FPB116 (LFP)","Aprovechamientos Forestales","3120","Silvicultura y plagas","FPB116 (LFP) - 3120",2,6,200]
["FPB116 (LFP)","Aprovechamientos Forestales","3160","Proyecto Intermodular de aprendizaje colaborativo","FPB116 (LFP) - 3160",2,2,67]
["FPB116 (LFP)","Aprovechamientos Forestales","3162","Ámbito de Comunicación y ciencias sociales II","FPB116 (LFP) - 3162",2,4,133]
["FPB116 (LFP)","Aprovechamientos Forestales","3164","Ámbito de Ciencias Aplicadas II","FPB116 (LFP) - 3164",2,4,133]
["FPB116 (LFP)","Aprovechamientos Forestales","A999","Tutoría II","FPB116 (LFP) - A999",2,2,67]
["FPB117 (LFP)","Artes Gráficas","3123","Informática básica aplicada en industrias gráficas","FPB117 (LFP) - 3123",1,5,167]
["FPB117 (LFP)","Artes Gráficas","3124","Trabajos de reprografía","FPB117 (LFP) - 3124",1,6,200]
["FPB117 (LFP)","Artes Gráficas","3125","Acabados en reprografía y finalización de productos gráficos","FPB117 (LFP) - 3125",1,6,200]
["FPB117 (LFP)","Artes Gráficas","3159","Itinerario personal para la empleabilidad","FPB117 (LFP) - 3159",1,2,67]
["FPB117 (LFP)","Artes Gráficas","3161","Ámbito de Comunicación y ciencias sociales I","FPB117 (LFP) - 3161",1,4,133]
["FPB117 (LFP)","Artes Gráficas","3163","Ámbito de Ciencias Aplicadas I","FPB117 (LFP) - 3163",1,4,133]
["FPB117 (LFP)","Artes Gráficas","A123","Prevención de riesgos laborales","FPB117 (LFP) - A123",1,1,33]
["FPB117 (LFP)","Artes Gráficas","A998","Tutoría I","FPB117 (LFP) - A998",1,2,67]
["FPB117 (LFP)","Artes Gráficas","3005","Atención al cliente","FPB117 (LFP) - 3005",2,2,67]
["FPB117 (LFP)","Artes Gráficas","3126","Operaciones de almacén en industrias gráficas","FPB117 (LFP) - 3126",2,3,100]
["FPB117 (LFP)","Artes Gráficas","3127","Operaciones de producción gráfica","FPB117 (LFP) - 3127",2,6,200]
["FPB117 (LFP)","Artes Gráficas","3128","Manipulados en industrias gráficas","FPB117 (LFP) - 3128",2,7,233]
["FPB117 (LFP)","Artes Gráficas","3160","Proyecto Intermodular de aprendizaje colaborativo","FPB117 (LFP) - 3160",2,2,67]
["FPB117 (LFP)","Artes Gráficas","3162","Ámbito de Comunicación y ciencias sociales II","FPB117 (LFP) - 3162",2,4,133]
["FPB117 (LFP)","Artes Gráficas","3164","Ámbito de Ciencias Aplicadas II","FPB117 (LFP) - 3164",2,4,133]
["FPB117 (LFP)","Artes Gráficas","A999","Tutoría II","FPB117 (LFP) - A999",2,2,67]
["FPB119 (LFP)","Industrias Alimentarias","3133","Operaciones auxiliares en la industria alimentaria","FPB119 (LFP) - 3133",1,4,133]
["FPB119 (LFP)","Industrias Alimentarias","3134","Elaboración de productos alimentarios","FPB119 (LFP) - 3134",1,8,267]
["FPB119 (LFP)","Industrias Alimentarias","3135","Limpieza y mantenimiento de instalaciones y equipos","FPB119 (LFP) - 3135",1,5,167]
["FPB119 (LFP)","Industrias Alimentarias","3159","Itinerario personal para la empleabilidad","FPB119 (LFP) - 3159",1,2,67]
["FPB119 (LFP)","Industrias Alimentarias","3161","Ámbito de Comunicación y ciencias sociales I","FPB119 (LFP) - 3161",1,4,133]
["FPB119 (LFP)","Industrias Alimentarias","3163","Ámbito de Ciencias Aplicadas I","FPB119 (LFP) - 3163",1,4,133]
["FPB119 (LFP)","Industrias Alimentarias","A123","Prevención de riesgos laborales","FPB119 (LFP) - A123",1,1,33]
["FPB119 (LFP)","Industrias Alimentarias","A998","Tutoría I","FPB119 (LFP) - A998",1,2,67]
["FPB119 (LFP)","Industrias Alimentarias","3070","Operaciones auxiliares de almacenaje","FPB119 (LFP) - 3070",2,4,133]
["FPB119 (LFP)","Industrias Alimentarias","3136","Operaciones básicas de laboratorio","FPB119 (LFP) - 3136",2,6,200]
["FPB119 (LFP)","Industrias Alimentarias","3160","Proyecto Intermodular de aprendizaje colaborativo",{"$f":"CONCATENATE(A1091,\" - \",C1091)","v":"FPB119 (LFP) - 3160"},2,2,67]
["FPB119 (LFP)","Industrias Alimentarias","3162","Ámbito de Comunicación y ciencias sociales II","FPB119 (LFP) - 3162",2,4,133]
["FPB119 (LFP)","Industrias Alimentarias","3164","Ámbito de Ciencias Aplicadas II","FPB119 (LFP) - 3164",2,4,133]
["FPB119 (LFP)","Industrias Alimentarias","A134","Elaboración de productos alimentarios propios de la Comunidad Autónoma de Aragón","FPB119 (LFP) - A134",2,8,267]
["FPB119 (LFP)","Industrias Alimentarias","A999","Tutoría II","FPB119 (LFP) - A999",2,2,67]
["FPB121 (LFP)","Informática de Oficina","3029","Montaje y mantenimiento de sistemas y componentes informáticos","FPB121 (LFP) - 3029",1,7,233]
["FPB121 (LFP)","Informática de Oficina","3031","Ofimática y archivo de documentos","FPB121 (LFP) - 3031",1,10,333]
["FPB121 (LFP)","Informática de Oficina","3159","Itinerario personal para la empleabilidad","FPB121 (LFP) - 3159",1,2,67]
["FPB121 (LFP)","Informática de Oficina","3161","Ámbito de Comunicación y ciencias sociales I","FPB121 (LFP) - 3161",1,4,133]
["FPB121 (LFP)","Informática de Oficina","3163","Ámbito de Ciencias Aplicadas I","FPB121 (LFP) - 3163",1,4,133]
["FPB121 (LFP)","Informática de Oficina","A123","Prevención de riesgos laborales","FPB121 (LFP) - A123",1,1,33]
["FPB121 (LFP)","Informática de Oficina","A998","Tutoría I","FPB121 (LFP) - A998",1,2,67]
["FPB121 (LFP)","Informática de Oficina","3016","Instalación y mantenimiento de redes para transmisión de datos","FPB121 (LFP) - 3016",2,8,267]
["FPB121 (LFP)","Informática de Oficina","3030","Operaciones auxiliares para la configuración y la explotación","FPB121 (LFP) - 3030",2,10,333]
["FPB121 (LFP)","Informática de Oficina","3160","Proyecto Intermodular de aprendizaje colaborativo","FPB121 (LFP) - 3160",2,2,67]
["FPB121 (LFP)","Informática de Oficina","3162","Ámbito de Comunicación y ciencias sociales II","FPB121 (LFP) - 3162",2,4,133]
["FPB121 (LFP)","Informática de Oficina","3164","Ámbito de Ciencias Aplicadas II","FPB121 (LFP) - 3164",2,4,133]
["FPB121 (LFP)","Informática de Oficina","A999","Tutoría II","FPB121 (LFP) - A999",2,2,67]
["FPB122 (LFP)","Actividades de Panadería y Pastelería","3007","Procesos básicos de panadería","FPB122 (LFP) - 3007",1,13,433]
["FPB122 (LFP)","Actividades de Panadería y Pastelería","3133","Operaciones auxiliares en la industria alimentaria","FPB122 (LFP) - 3133",1,4,133]
["FPB122 (LFP)","Actividades de Panadería y Pastelería","3159","Itinerario personal para la empleabilidad","FPB122 (LFP) - 3159",1,2,67]
["FPB122 (LFP)","Actividades de Panadería y Pastelería","3161","Ámbito de Comunicación y ciencias sociales I","FPB122 (LFP) - 3161",1,4,133]
["FPB122 (LFP)","Actividades de Panadería y Pastelería","3163","Ámbito de Ciencias Aplicadas I","FPB122 (LFP) - 3163",1,4,133]
["FPB122 (LFP)","Actividades de Panadería y Pastelería","A123","Prevención de riesgos laborales","FPB122 (LFP) - A123",1,1,33]
["FPB122 (LFP)","Actividades de Panadería y Pastelería","A998","Tutoría I","FPB122 (LFP) - A998",1,2,67]
["FPB122 (LFP)","Actividades de Panadería y Pastelería","3005","Atención al cliente","FPB122 (LFP) - 3005",2,2,67]
["FPB122 (LFP)","Actividades de Panadería y Pastelería","3017","Procesos básicos de pastelería","FPB122 (LFP) - 3017",2,12,400]
["FPB122 (LFP)","Actividades de Panadería y Pastelería","3026","Dispensación en panadería y pastelería","FPB122 (LFP) - 3026",2,4,133]
["FPB122 (LFP)","Actividades de Panadería y Pastelería","3160","Proyecto Intermodular de aprendizaje colaborativo","FPB122 (LFP) - 3160",2,2,67]
["FPB122 (LFP)","Actividades de Panadería y Pastelería","3162","Ámbito de Comunicación y ciencias sociales II","FPB122 (LFP) - 3162",2,4,133]
["FPB122 (LFP)","Actividades de Panadería y Pastelería","3164","Ámbito de Ciencias Aplicadas II","FPB122 (LFP) - 3164",2,4,133]
["FPB122 (LFP)","Actividades de Panadería y Pastelería","A999","Tutoría II","FPB122 (LFP) - A999",2,2,67]
["FPB124 (LFP)","Mantenimiento de Viviendas","3023","Redes de evacuación","FPB124 (LFP) - 3023",1,5,167]
["FPB124 (LFP)","Mantenimiento de Viviendas","3088","Mantenimiento básico de instalaciones electrotécnicas en viviendas","FPB124 (LFP) - 3088",1,4,133]
["FPB124 (LFP)","Mantenimiento de Viviendas","3090","Operaciones de conservación en la vivienda y montaje de accesorios","FPB124 (LFP) - 3090",1,8,267]
["FPB124 (LFP)","Mantenimiento de Viviendas","3159","Itinerario personal para la empleabilidad","FPB124 (LFP) - 3159",1,2,67]
["FPB124 (LFP)","Mantenimiento de Viviendas","3161","Ámbito de Comunicación y ciencias sociales I","FPB124 (LFP) - 3161",1,4,133]
["FPB124 (LFP)","Mantenimiento de Viviendas","3163","Ámbito de Ciencias Aplicadas I","FPB124 (LFP) - 3163",1,4,133]
["FPB124 (LFP)","Mantenimiento de Viviendas","A123","Prevención de riesgos laborales","FPB124 (LFP) - A123",1,1,33]
["FPB124 (LFP)","Mantenimiento de Viviendas","A998","Tutoría I","FPB124 (LFP) - A998",1,2,67]
["FPB124 (LFP)","Mantenimiento de Viviendas","3024","Fontanería y calefacción básica","FPB124 (LFP) - 3024",2,7,233]
["FPB124 (LFP)","Mantenimiento de Viviendas","3025","Montaje de equipos de climatización","FPB124 (LFP) - 3025",2,2,67]
["FPB124 (LFP)","Mantenimiento de Viviendas","3160","Proyecto Intermodular de aprendizaje colaborativo","FPB124 (LFP) - 3160",2,2,67]
["FPB124 (LFP)","Mantenimiento de Viviendas","3162","Ámbito de Comunicación y ciencias sociales II","FPB124 (LFP) - 3162",2,4,133]
["FPB124 (LFP)","Mantenimiento de Viviendas","3164","Ámbito de Ciencias Aplicadas II","FPB124 (LFP) - 3164",2,4,133]
["FPB124 (LFP)","Mantenimiento de Viviendas","A128","Energía solar en la edificación","FPB124 (LFP) - A128",2,3,100]
["FPB124 (LFP)","Mantenimiento de Viviendas","A129","Instalaciones básicas de telecomunicaciones","FPB124 (LFP) - A129",2,3,100]
["FPB124 (LFP)","Mantenimiento de Viviendas","A174","Soldadura y operaciones auxiliares básicas","FPB124 (LFP) - A174",2,3,100]
["FPB124 (LFP)","Mantenimiento de Viviendas","A999","Tutoría II","FPB124 (LFP) - A999",2,2,67]
["FPB125 (LFP)","Fabricación de elementos metálicos","3020","Operaciones básicas de fabricación","FPB125 (LFP) - 3020",1,5,167]
["FPB125 (LFP)","Fabricación de elementos metálicos","3073","Operaciones básicas de calderería ligera","FPB125 (LFP) - 3073",1,12,400]
["FPB125 (LFP)","Fabricación de elementos metálicos","3159","Itinerario personal para la empleabilidad","FPB125 (LFP) - 3159",1,2,67]
["FPB125 (LFP)","Fabricación de elementos metálicos","3161","Ámbito de Comunicación y ciencias sociales I","FPB125 (LFP) - 3161",1,4,133]
["FPB125 (LFP)","Fabricación de elementos metálicos","3163","Ámbito de Ciencias Aplicadas I","FPB125 (LFP) - 3163",1,4,133]
["FPB125 (LFP)","Fabricación de elementos metálicos","A123","Prevención de riesgos laborales","FPB125 (LFP) - A123",1,1,33]
["FPB125 (LFP)","Fabricación de elementos metálicos","A998","Tutoría I","FPB125 (LFP) - A998",1,2,67]
["FPB125 (LFP)","Fabricación de elementos metálicos","3015","Equipos eléctricos y electrónicos","FPB125 (LFP) - 3015",2,5,167]
["FPB125 (LFP)","Fabricación de elementos metálicos","3021","Soldadura y carpintería metálica","FPB125 (LFP) - 3021",2,6,200]
["FPB125 (LFP)","Fabricación de elementos metálicos","3022","Carpintería de aluminio y PVC","FPB125 (LFP) - 3022",2,5,167]
["FPB125 (LFP)","Fabricación de elementos metálicos","3160","Proyecto Intermodular de aprendizaje colaborativo","FPB125 (LFP) - 3160",2,2,67]
["FPB125 (LFP)","Fabricación de elementos metálicos","3162","Ámbito de Comunicación y ciencias sociales II","FPB125 (LFP) - 3162",2,4,133]
["FPB125 (LFP)","Fabricación de elementos metálicos","3164","Ámbito de Ciencias Aplicadas II","FPB125 (LFP) - 3164",2,4,133]
["FPB125 (LFP)","Fabricación de elementos metálicos","A126","Montaje de estructuras metálicas","FPB125 (LFP) - A126",2,2,67]
["FPB125 (LFP)","Fabricación de elementos metálicos","A999","Tutoría II","FPB125 (LFP) - A999",2,2,67]
["FPB126 (LFP)","Instalaciones Electrotécnicas y Mecánica","3013","Instalaciones eléctricas y domóticas",{"$f":"CONCATENATE(A1155,\" - \",C1155)","v":"FPB126 (LFP) - 3013"},1,9,300]
["FPB126 (LFP)","Instalaciones Electrotécnicas y Mecánica","3020","Operaciones básicas de fabricación","FPB126 (LFP) - 3020",1,5,167]
["FPB126 (LFP)","Instalaciones Electrotécnicas y Mecánica","3159","Itinerario personal para la empleabilidad","FPB126 (LFP) - 3159",1,2,67]
["FPB126 (LFP)","Instalaciones Electrotécnicas y Mecánica","3161","Ámbito de Comunicación y ciencias sociales I","FPB126 (LFP) - 3161",1,4,133]
["FPB126 (LFP)","Instalaciones Electrotécnicas y Mecánica","3163","Ámbito de Ciencias Aplicadas I","FPB126 (LFP) - 3163",1,4,133]
["FPB126 (LFP)","Instalaciones Electrotécnicas y Mecánica","A123","Prevención de riesgos laborales","FPB126 (LFP) - A123",1,1,33]
["FPB126 (LFP)","Instalaciones Electrotécnicas y Mecánica","A130","Iniciación a la interpretación gráfica","FPB126 (LFP) - A130",1,3,100]
["FPB126 (LFP)","Instalaciones Electrotécnicas y Mecánica","A998","Tutoría I","FPB126 (LFP) - A998",1,2,67]
["FPB126 (LFP)","Instalaciones Electrotécnicas y Mecánica","3014","Instalaciones de telecomunicaciones","FPB126 (LFP) - 3014",2,7,233]
["FPB126 (LFP)","Instalaciones Electrotécnicas y Mecánica","3021","Soldadura y carpintería metálica","FPB126 (LFP) - 3021",2,6,200]
["FPB126 (LFP)","Instalaciones Electrotécnicas y Mecánica","3022","Carpintería de aluminio y PVC","FPB126 (LFP) - 3022",2,5,167]
["FPB126 (LFP)","Instalaciones Electrotécnicas y Mecánica","3160","Proyecto Intermodular de aprendizaje colaborativo","FPB126 (LFP) - 3160",2,2,67]
["FPB126 (LFP)","Instalaciones Electrotécnicas y Mecánica","3162","Ámbito de Comunicación y ciencias sociales II","FPB126 (LFP) - 3162",2,4,133]
["FPB126 (LFP)","Instalaciones Electrotécnicas y Mecánica","3164","Ámbito de Ciencias Aplicadas II","FPB126 (LFP) - 3164",2,4,133]
["FPB126 (LFP)","Instalaciones Electrotécnicas y Mecánica","A999","Tutoría II","FPB126 (LFP) - A999",2,2,67]
["FPB127 (LFP)","Acceso y Conservación en Instalaciones Deportivas","3003","Técnicas administrativas básicas","FPB127 (LFP) - 3003",1,6,200]
["FPB127 (LFP)","Acceso y Conservación en Instalaciones Deportivas","3005","Atención al cliente","FPB127 (LFP) - 3005",1,2,67]
["FPB127 (LFP)","Acceso y Conservación en Instalaciones Deportivas","3148","Acceso de usuarios y organización de la instalación físico-deportiva","FPB127 (LFP) - 3148",1,2,67]
["FPB127 (LFP)","Acceso y Conservación en Instalaciones Deportivas","3150","Reparación de averías y reposición de enseres","FPB127 (LFP) - 3150",1,7,233]
["FPB127 (LFP)","Acceso y Conservación en Instalaciones Deportivas","3159","Itinerario personal para la empleabilidad","FPB127 (LFP) - 3159",1,2,67]
["FPB127 (LFP)","Acceso y Conservación en Instalaciones Deportivas","3161","Ámbito de Comunicación y ciencias sociales I","FPB127 (LFP) - 3161",1,4,133]
["FPB127 (LFP)","Acceso y Conservación en Instalaciones Deportivas","3163","Ámbito de Ciencias Aplicadas I","FPB127 (LFP) - 3163",1,4,133]
["FPB127 (LFP)","Acceso y Conservación en Instalaciones Deportivas","A123","Prevención de riesgos laborales","FPB127 (LFP) - A123",1,1,33]
["FPB127 (LFP)","Acceso y Conservación en Instalaciones Deportivas","A998","Tutoría I","FPB127 (LFP) - A998",1,2,67]
["FPB127 (LFP)","Acceso y Conservación en Instalaciones Deportivas","3004","Archivo y comunicación","FPB127 (LFP) - 3004",2,3,100]
["FPB127 (LFP)","Acceso y Conservación en Instalaciones Deportivas","3149","Asistencia en la organización de espacios, actividades y reparto de material en la instalación físico-deportiva","FPB127 (LFP) - 3149",2,8,267]
["FPB127 (LFP)","Acceso y Conservación en Instalaciones Deportivas","3151","Operaciones básicas de prevención en las instalaciones deportivas","FPB127 (LFP) - 3151",2,7,233]
["FPB127 (LFP)","Acceso y Conservación en Instalaciones Deportivas","3160","Proyecto Intermodular de aprendizaje colaborativo","FPB127 (LFP) - 3160",2,2,67]
["FPB127 (LFP)","Acceso y Conservación en Instalaciones Deportivas","3162","Ámbito de Comunicación y ciencias sociales II","FPB127 (LFP) - 3162",2,4,133]
["FPB127 (LFP)","Acceso y Conservación en Instalaciones Deportivas","3164","Ámbito de Ciencias Aplicadas II","FPB127 (LFP) - 3164",2,4,133]
["FPB127 (LFP)","Acceso y Conservación en Instalaciones Deportivas","A999","Tutoría II","FPB127 (LFP) - A999",2,2,67]
["FPB128 (LFP)","Actividades Domésticas y Limpiezas de Edificios","3102","Cocina doméstica","FPB128 (LFP) - 3102",1,7,233]
["FPB128 (LFP)","Actividades Domésticas y Limpiezas de Edificios","3104","Limpieza de domicilios particulares, edificios, oficinas y locales","FPB128 (LFP) - 3104",1,6,200]
["FPB128 (LFP)","Actividades Domésticas y Limpiezas de Edificios","3146","Seguridad en el ámbito doméstico","FPB128 (LFP) - 3146",1,4,133]
["FPB128 (LFP)","Actividades Domésticas y Limpiezas de Edificios","3159","Itinerario personal para la empleabilidad","FPB128 (LFP) - 3159",1,2,67]
["FPB128 (LFP)","Actividades Domésticas y Limpiezas de Edificios","3161","Ámbito de Comunicación y ciencias sociales I","FPB128 (LFP) - 3161",1,4,133]
["FPB128 (LFP)","Actividades Domésticas y Limpiezas de Edificios","3163","Ámbito de Ciencias Aplicadas I","FPB128 (LFP) - 3163",1,4,133]
["FPB128 (LFP)","Actividades Domésticas y Limpiezas de Edificios","A123","Prevención de riesgos laborales","FPB128 (LFP) - A123",1,1,33]
["FPB128 (LFP)","Actividades Domésticas y Limpiezas de Edificios","A998","Tutoría I","FPB128 (LFP) - A998",1,2,67]
["FPB128 (LFP)","Actividades Domésticas y Limpiezas de Edificios","3098","Mantenimiento de prendas de vestir y ropa de hogar","FPB128 (LFP) - 3098",2,7,233]
["FPB128 (LFP)","Actividades Domésticas y Limpiezas de Edificios","3116","Limpieza con máquinas","FPB128 (LFP) - 3116",2,5,167]
["FPB128 (LFP)","Actividades Domésticas y Limpiezas de Edificios","3145","Actividades de apoyo a personas no dependientes en la unidad convivencial","FPB128 (LFP) - 3145",2,6,200]
["FPB128 (LFP)","Actividades Domésticas y Limpiezas de Edificios","3160","Proyecto Intermodular de aprendizaje colaborativo","FPB128 (LFP) - 3160",2,2,67]
["FPB128 (LFP)","Actividades Domésticas y Limpiezas de Edificios","3162","Ámbito de Comunicación y ciencias sociales II","FPB128 (LFP) - 3162",2,4,133]
["FPB128 (LFP)","Actividades Domésticas y Limpiezas de Edificios","3164","Ámbito de Ciencias Aplicadas II","FPB128 (LFP) - 3164",2,4,133]
["FPB128 (LFP)","Actividades Domésticas y Limpiezas de Edificios","A999","Tutoría II","FPB128 (LFP) - A999",2,2,67]
["HOT201 (LFP)","Cocina y Gastronomía","0026","Procesos básicos de pastelería y repostería","HOT201 (LFP) - 0026",1,6,200]
["HOT201 (LFP)","Cocina y Gastronomía","0031","Seguridad e higiene en la manipulación de alimentos","HOT201 (LFP) - 0031",1,2,67]
["HOT201 (LFP)","Cocina y Gastronomía","0046","Preelaboración y conservación de alimentos","HOT201 (LFP) - 0046",1,7,233]
["HOT201 (LFP)","Cocina y Gastronomía","0047","Técnicas culinarias","HOT201 (LFP) - 0047",1,8,267]
["HOT201 (LFP)","Cocina y Gastronomía","0156","Inglés Profesional (GM)","HOT201 (LFP) - 0156",1,2,67]
["HOT201 (LFP)","Cocina y Gastronomía","1664","Digitalización aplicada a los sectores productivos (GM)","HOT201 (LFP) - 1664",1,1,33]
["HOT201 (LFP)","Cocina y Gastronomía","1709","Itinerario personal para la empleabilidad I","HOT201 (LFP) - 1709",1,3,100]
["HOT201 (LFP)","Cocina y Gastronomía","A997","Tutoría I","HOT201 (LFP) - A997",1,1,33]
["HOT201 (LFP)","Cocina y Gastronomía","0028","Postres en restauración","HOT201 (LFP) - 0028",2,5,167]
["HOT201 (LFP)","Cocina y Gastronomía","0045","Ofertas gastronómicas","HOT201 (LFP) - 0045",2,3,100]
["HOT201 (LFP)","Cocina y Gastronomía","0048","Productos culinarios","HOT201 (LFP) - 0048",2,13,433]
["HOT201 (LFP)","Cocina y Gastronomía","1708","Sostenibilidad aplicada al sistema productivo","HOT201 (LFP) - 1708",2,1,33]
["HOT201 (LFP)","Cocina y Gastronomía","1710","Itinerario personal para la empleabilidad II","HOT201 (LFP) - 1710",2,2,67]
["HOT201 (LFP)","Cocina y Gastronomía","1713","Proyecto Intermodular","HOT201 (LFP) - 1713",2,2,67]
["HOT201 (LFP)","Cocina y Gastronomía","A996","Tutoría II","HOT201 (LFP) - A996",2,1,33]
["HOT201 (LFP)","Cocina y Gastronomía","0OPT","Módulo profesional optativo","HOT201 (LFP) - 0OPT",2,3,100]
["HOT203 (LFP)","Servicios en Restauración","0031","Seguridad e higiene en la manipulación de alimentos","HOT203 (LFP) - 0031",1,2,67]
["HOT203 (LFP)","Servicios en Restauración","0150","Operaciones básicas en bar-cafetería","HOT203 (LFP) - 0150",1,8,267]
["HOT203 (LFP)","Servicios en Restauración","0151","Operaciones básicas en restaurante",{"$f":"CONCATENATE(A1219,\" - \",C1219)","v":"HOT203 (LFP) - 0151"},1,10,333]
["HOT203 (LFP)","Servicios en Restauración","0154","El vino y su servicio","HOT203 (LFP) - 0154",1,3,100]
["HOT203 (LFP)","Servicios en Restauración","0156","Inglés Profesional (GM)","HOT203 (LFP) - 0156",1,2,67]
["HOT203 (LFP)","Servicios en Restauración","1664","Digitalización aplicada a los sectores productivos (GM)","HOT203 (LFP) - 1664",1,1,33]
["HOT203 (LFP)","Servicios en Restauración","1709","Itinerario personal para la empleabilidad I","HOT203 (LFP) - 1709",1,3,100]
["HOT203 (LFP)","Servicios en Restauración","A997","Tutoría I","HOT203 (LFP) - A997",1,1,33]
["HOT203 (LFP)","Servicios en Restauración","0045","Ofertas gastronómicas","HOT203 (LFP) - 0045",2,3,100]
["HOT203 (LFP)","Servicios en Restauración","0152","Servicios en bar-cafetería","HOT203 (LFP) - 0152",2,6,200]
["HOT203 (LFP)","Servicios en Restauración","0153","Servicio en restaurante y eventos especiales","HOT203 (LFP) - 0153",2,10,333]
["HOT203 (LFP)","Servicios en Restauración","0155","Técnicas de comunicación en restauración","HOT203 (LFP) - 0155",2,2,67]
["HOT203 (LFP)","Servicios en Restauración","1708","Sostenibilidad aplicada al sistema productivo","HOT203 (LFP) - 1708",2,1,33]
["HOT203 (LFP)","Servicios en Restauración","1710","Itinerario personal para la empleabilidad II","HOT203 (LFP) - 1710",2,2,67]
["HOT203 (LFP)","Servicios en Restauración","1713","Proyecto Intermodular","HOT203 (LFP) - 1713",2,2,67]
["HOT203 (LFP)","Servicios en Restauración","A996","Tutoría II","HOT203 (LFP) - A996",2,1,33]
["HOT203 (LFP)","Servicios en Restauración","0OPT","Módulo profesional optativo","HOT203 (LFP) - 0OPT",2,3,100]
["HOT301 (LFP)","Agencias de Viajes y Gestión de Eventos","0171","Estructura del mercado turístico","HOT301 (LFP) - 0171",1,5,167]
["HOT301 (LFP)","Agencias de Viajes y Gestión de Eventos","0172","Protocolo y relaciones públicas","HOT301 (LFP) - 0172",1,4,133]
["HOT301 (LFP)","Agencias de Viajes y Gestión de Eventos","0179","Inglés Profesional (GS)","HOT301 (LFP) - 0179",1,2,67]
["HOT301 (LFP)","Agencias de Viajes y Gestión de Eventos","0383","Destinos turísticos","HOT301 (LFP) - 0383",1,6,200]
["HOT301 (LFP)","Agencias de Viajes y Gestión de Eventos","0384","Recursos turísticos","HOT301 (LFP) - 0384",1,5,167]
["HOT301 (LFP)","Agencias de Viajes y Gestión de Eventos","0399","Dirección de entidades de intermediación turística","HOT301 (LFP) - 0399",1,4,133]
["HOT301 (LFP)","Agencias de Viajes y Gestión de Eventos","1665","Digitalización aplicada a los sectores productivos (GS)","HOT301 (LFP) - 1665",1,1,33]
["HOT301 (LFP)","Agencias de Viajes y Gestión de Eventos","1709","Itinerario personal para la empleabilidad I","HOT301 (LFP) - 1709",1,3,100]
["HOT301 (LFP)","Agencias de Viajes y Gestión de Eventos","0173","Marketing turístico","HOT301 (LFP) - 0173",2,5,167]
["HOT301 (LFP)","Agencias de Viajes y Gestión de Eventos","0180","Segunda lengua extranjera","HOT301 (LFP) - 0180",2,4,133]
["HOT301 (LFP)","Agencias de Viajes y Gestión de Eventos","0397","Gestión de productos turísticos","HOT301 (LFP) - 0397",2,6,200]
["HOT301 (LFP)","Agencias de Viajes y Gestión de Eventos","0398","Venta de servicios turísticos","HOT301 (LFP) - 0398",2,7,233]
["HOT301 (LFP)","Agencias de Viajes y Gestión de Eventos","0400","Proyecto Intermodular de agencias de viajes y gestión de eventos","HOT301 (LFP) - 0400",2,2,67]
["HOT301 (LFP)","Agencias de Viajes y Gestión de Eventos","1708","Sostenibilidad aplicada al sistema productivo","HOT301 (LFP) - 1708",2,1,33]
["HOT301 (LFP)","Agencias de Viajes y Gestión de Eventos","1710","Itinerario personal para la empleabilidad II","HOT301 (LFP) - 1710",2,2,67]
["HOT301 (LFP)","Agencias de Viajes y Gestión de Eventos","0OPT","Módulo profesional optativo","HOT301 (LFP) - 0OPT",2,3,100]
["HOT302 (LFP)","Gestión de Alojamientos Turísticos","0171","Estructura del mercado turístico","HOT302 (LFP) - 0171",1,5,167]
["HOT302 (LFP)","Gestión de Alojamientos Turísticos","0172","Protocolo y relaciones públicas","HOT302 (LFP) - 0172",1,4,133]
["HOT302 (LFP)","Gestión de Alojamientos Turísticos","0175","Gestión del departamento de pisos","HOT302 (LFP) - 0175",1,5,167]
["HOT302 (LFP)","Gestión de Alojamientos Turísticos","0176","Recepción y reservas","HOT302 (LFP) - 0176",1,8,267]
["HOT302 (LFP)","Gestión de Alojamientos Turísticos","0177","Recursos humanos en el alojamiento","HOT302 (LFP) - 0177",1,2,67]
["HOT302 (LFP)","Gestión de Alojamientos Turísticos","0179","Inglés Profesional (GS)","HOT302 (LFP) - 0179",1,2,67]
["HOT302 (LFP)","Gestión de Alojamientos Turísticos","1665","Digitalización aplicada a los sectores productivos (GS)","HOT302 (LFP) - 1665",1,1,33]
["HOT302 (LFP)","Gestión de Alojamientos Turísticos","1709","Itinerario personal para la empleabilidad I","HOT302 (LFP) - 1709",1,3,100]
["HOT302 (LFP)","Gestión de Alojamientos Turísticos","0173","Marketing turístico","HOT302 (LFP) - 0173",2,5,167]
["HOT302 (LFP)","Gestión de Alojamientos Turísticos","0174","Dirección de alojamientos turísticos","HOT302 (LFP) - 0174",2,8,267]
["HOT302 (LFP)","Gestión de Alojamientos Turísticos","0178","Comercialización de eventos","HOT302 (LFP) - 0178",2,5,167]
["HOT302 (LFP)","Gestión de Alojamientos Turísticos","0180","Segunda lengua extranjera","HOT302 (LFP) - 0180",2,4,133]
["HOT302 (LFP)","Gestión de Alojamientos Turísticos","0181","Proyecto Intermodular de gestión de alojamiento turístico","HOT302 (LFP) - 0181",2,2,67]
["HOT302 (LFP)","Gestión de Alojamientos Turísticos","1708","Sostenibilidad aplicada al sistema productivo","HOT302 (LFP) - 1708",2,1,33]
["HOT302 (LFP)","Gestión de Alojamientos Turísticos","1710","Itinerario personal para la empleabilidad II","HOT302 (LFP) - 1710",2,2,67]
["HOT302 (LFP)","Gestión de Alojamientos Turísticos","0OPT","Módulo profesional optativo","HOT302 (LFP) - 0OPT",2,3,100]
["HOT303 (LFP)","Guía, Información y Asistencia Turísticas","0171","Estructura del mercado turístico","HOT303 (LFP) - 0171",1,5,167]
["HOT303 (LFP)","Guía, Información y Asistencia Turísticas","0172","Protocolo y relaciones públicas","HOT303 (LFP) - 0172",1,4,133]
["HOT303 (LFP)","Guía, Información y Asistencia Turísticas","0179","Inglés Profesional (GS)","HOT303 (LFP) - 0179",1,2,67]
["HOT303 (LFP)","Guía, Información y Asistencia Turísticas","0383","Destinos turísticos","HOT303 (LFP) - 0383",1,6,200]
["HOT303 (LFP)","Guía, Información y Asistencia Turísticas","0384","Recursos turísticos","HOT303 (LFP) - 0384",1,5,167]
["HOT303 (LFP)","Guía, Información y Asistencia Turísticas","0387","Diseño de productos turísticos","HOT303 (LFP) - 0387",1,4,133]
["HOT303 (LFP)","Guía, Información y Asistencia Turísticas","1665","Digitalización aplicada a los sectores productivos (GS)","HOT303 (LFP) - 1665",1,1,33]
["HOT303 (LFP)","Guía, Información y Asistencia Turísticas","1709","Itinerario personal para la empleabilidad I","HOT303 (LFP) - 1709",1,3,100]
["HOT303 (LFP)","Guía, Información y Asistencia Turísticas","0173","Marketing turístico","HOT303 (LFP) - 0173",2,5,167]
["HOT303 (LFP)","Guía, Información y Asistencia Turísticas","0180","Segunda lengua extranjera","HOT303 (LFP) - 0180",2,4,133]
["HOT303 (LFP)","Guía, Información y Asistencia Turísticas","0385","Servicios de información turística","HOT303 (LFP) - 0385",2,5,167]
["HOT303 (LFP)","Guía, Información y Asistencia Turísticas","0386","Procesos de guía y asistencia turística","HOT303 (LFP) - 0386",2,8,267]
["HOT303 (LFP)","Guía, Información y Asistencia Turísticas","0388","Proyecto Intermodular de guía, información y asistencia turísticas","HOT303 (LFP) - 0388",2,2,67]
["HOT303 (LFP)","Guía, Información y Asistencia Turísticas","1708","Sostenibilidad aplicada al sistema productivo","HOT303 (LFP) - 1708",2,1,33]
["HOT303 (LFP)","Guía, Información y Asistencia Turísticas","1710","Itinerario personal para la empleabilidad II","HOT303 (LFP) - 1710",2,2,67]
["HOT303 (LFP)","Guía, Información y Asistencia Turísticas","0OPT","Módulo profesional optativo","HOT303 (LFP) - 0OPT",2,3,100]
["HOT304 (LFP)","Dirección de Servicios en Restauración","0179","Inglés Profesional (GS)","HOT304 (LFP) - 0179",1,2,67]
["HOT304 (LFP)","Dirección de Servicios en Restauración","0496","Control del aprovisionamiento de materias primas",{"$f":"CONCATENATE(A1283,\" - \",C1283)","v":"HOT304 (LFP) - 0496"},1,2,67]
["HOT304 (LFP)","Dirección de Servicios en Restauración","0501","Gestión de la calidad y de la seguridad e higiene alimentaria","HOT304 (LFP) - 0501",1,2,67]
["HOT304 (LFP)","Dirección de Servicios en Restauración","0502","Gastronomía y nutrición","HOT304 (LFP) - 0502",1,2,67]
["HOT304 (LFP)","Dirección de Servicios en Restauración","0509","Procesos de servicios en bar-cafetería","HOT304 (LFP) - 0509",1,7,233]
["HOT304 (LFP)","Dirección de Servicios en Restauración","0510","Procesos de servicios en restaurante","HOT304 (LFP) - 0510",1,11,367]
["HOT304 (LFP)","Dirección de Servicios en Restauración","1665","Digitalización aplicada a los sectores productivos (GS)","HOT304 (LFP) - 1665",1,1,33]
["HOT304 (LFP)","Dirección de Servicios en Restauración","1709","Itinerario personal para la empleabilidad I","HOT304 (LFP) - 1709",1,3,100]
["HOT304 (LFP)","Dirección de Servicios en Restauración","0180","Segunda lengua extranjera","HOT304 (LFP) - 0180",2,4,133]
["HOT304 (LFP)","Dirección de Servicios en Restauración","0503","Gestión administrativa y comercial en restauración","HOT304 (LFP) - 0503",2,3,100]
["HOT304 (LFP)","Dirección de Servicios en Restauración","0504","Recursos humanos y dirección de equipos en restauración","HOT304 (LFP) - 0504",2,2,67]
["HOT304 (LFP)","Dirección de Servicios en Restauración","0511","Sumillería","HOT304 (LFP) - 0511",2,6,200]
["HOT304 (LFP)","Dirección de Servicios en Restauración","0512","Planificación y dirección de servicios y eventos en restauración","HOT304 (LFP) - 0512",2,7,233]
["HOT304 (LFP)","Dirección de Servicios en Restauración","0513","Proyecto Intermodular de dirección de servicios en restauración","HOT304 (LFP) - 0513",2,2,67]
["HOT304 (LFP)","Dirección de Servicios en Restauración","1708","Sostenibilidad aplicada al sistema productivo","HOT304 (LFP) - 1708",2,1,33]
["HOT304 (LFP)","Dirección de Servicios en Restauración","1710","Itinerario personal para la empleabilidad II","HOT304 (LFP) - 1710",2,2,67]
["HOT304 (LFP)","Dirección de Servicios en Restauración","0OPT","Módulo profesional optativo","HOT304 (LFP) - 0OPT",2,3,100]
["HOT305 (LFP)","Dirección de Cocina","0179","Inglés Profesional (GS)","HOT305 (LFP) - 0179",1,2,67]
["HOT305 (LFP)","Dirección de Cocina","0496","Control del aprovisionamiento de materias primas","HOT305 (LFP) - 0496",1,2,67]
["HOT305 (LFP)","Dirección de Cocina","0497","Procesos de preelaboración y conservación en cocina","HOT305 (LFP) - 0497",1,9,300]
["HOT305 (LFP)","Dirección de Cocina","0499","Procesos de elaboración culinaria","HOT305 (LFP) - 0499",1,9,300]
["HOT305 (LFP)","Dirección de Cocina","0501","Gestión de la calidad y de la seguridad e higiene alimentaria","HOT305 (LFP) - 0501",1,2,67]
["HOT305 (LFP)","Dirección de Cocina","0502","Gastronomía y nutrición","HOT305 (LFP) - 0502",1,2,67]
["HOT305 (LFP)","Dirección de Cocina","1665","Digitalización aplicada a los sectores productivos (GS)","HOT305 (LFP) - 1665",1,1,33]
["HOT305 (LFP)","Dirección de Cocina","1709","Itinerario personal para la empleabilidad I","HOT305 (LFP) - 1709",1,3,100]
["HOT305 (LFP)","Dirección de Cocina","0498","Elaboraciones de pastelería y repostería en cocina","HOT305 (LFP) - 0498",2,8,267]
["HOT305 (LFP)","Dirección de Cocina","0500","Gestión de la producción en cocina","HOT305 (LFP) - 0500",2,9,300]
["HOT305 (LFP)","Dirección de Cocina","0503","Gestión administrativa y comercial en restauración","HOT305 (LFP) - 0503",2,3,100]
["HOT305 (LFP)","Dirección de Cocina","0504","Recursos humanos y dirección de equipos en restauración","HOT305 (LFP) - 0504",2,2,67]
["HOT305 (LFP)","Dirección de Cocina","0505","Proyecto Intermodular de dirección de cocina","HOT305 (LFP) - 0505",2,2,67]
["HOT305 (LFP)","Dirección de Cocina","1708","Sostenibilidad aplicada al sistema productivo","HOT305 (LFP) - 1708",2,1,33]
["HOT305 (LFP)","Dirección de Cocina","1710","Itinerario personal para la empleabilidad II","HOT305 (LFP) - 1710",2,2,67]
["HOT305 (LFP)","Dirección de Cocina","0OPT","Módulo profesional optativo","HOT305 (LFP) - 0OPT",2,3,100]
["IEX201 (LFP)","Excavaciones y Sondeos","0156","Inglés Profesional (GM)","IEX201 (LFP) - 0156",1,2,67]
["IEX201 (LFP)","Excavaciones y Sondeos","0847","Sondeos","IEX201 (LFP) - 0847",1,4,133]
["IEX201 (LFP)","Excavaciones y Sondeos","0850","Trabajos geotécnicos","IEX201 (LFP) - 0850",1,4,133]
["IEX201 (LFP)","Excavaciones y Sondeos","0881","Perforaciones","IEX201 (LFP) - 0881",1,4,133]
["IEX201 (LFP)","Excavaciones y Sondeos","1078","Estabilización de taludes","IEX201 (LFP) - 1078",1,2,67]
["IEX201 (LFP)","Excavaciones y Sondeos","1081","Operaciones y manejo de maquinaria de excavación","IEX201 (LFP) - 1081",1,9,300]
["IEX201 (LFP)","Excavaciones y Sondeos","1664","Digitalización aplicada a los sectores productivos (GM)","IEX201 (LFP) - 1664",1,1,33]
["IEX201 (LFP)","Excavaciones y Sondeos","1709","Itinerario personal para la empleabilidad I","IEX201 (LFP) - 1709",1,3,100]
["IEX201 (LFP)","Excavaciones y Sondeos","A997","Tutoría I","IEX201 (LFP) - A997",1,1,33]
["IEX201 (LFP)","Excavaciones y Sondeos","1031","Técnicas de voladuras","IEX201 (LFP) - 1031",2,4,133]
["IEX201 (LFP)","Excavaciones y Sondeos","1077","Sostenimiento","IEX201 (LFP) - 1077",2,4,133]
["IEX201 (LFP)","Excavaciones y Sondeos","1079","Excavaciones con arranque selectivo","IEX201 (LFP) - 1079",2,6,200]
["IEX201 (LFP)","Excavaciones y Sondeos","1080","Operaciones de carga y transporte en excavaciones","IEX201 (LFP) - 1080",2,7,233]
["IEX201 (LFP)","Excavaciones y Sondeos","1708","Sostenibilidad aplicada al sistema productivo","IEX201 (LFP) - 1708",2,1,33]
["IEX201 (LFP)","Excavaciones y Sondeos","1710","Itinerario personal para la empleabilidad II","IEX201 (LFP) - 1710",2,2,67]
["IEX201 (LFP)","Excavaciones y Sondeos","1713","Proyecto Intermodular","IEX201 (LFP) - 1713",2,2,67]
["IEX201 (LFP)","Excavaciones y Sondeos","A996","Tutoría II","IEX201 (LFP) - A996",2,1,33]
["IEX201 (LFP)","Excavaciones y Sondeos","0OPT","Módulo profesional optativo","IEX201 (LFP) - 0OPT",2,3,100]
["IFC201 (LFP)","Sistemas Microinformáticos y Redes","0156","Inglés Profesional (GM)","IFC201 (LFP) - 0156",1,2,67]
["IFC201 (LFP)","Sistemas Microinformáticos y Redes","0221","Montaje y mantenimiento de equipos informáticos","IFC201 (LFP) - 0221",1,6,200]
["IFC201 (LFP)","Sistemas Microinformáticos y Redes","0222","Sistemas operativos monopuesto","IFC201 (LFP) - 0222",1,5,167]
["IFC201 (LFP)","Sistemas Microinformáticos y Redes","0223","Aplicaciones ofimáticas","IFC201 (LFP) - 0223",1,6,200]
["IFC201 (LFP)","Sistemas Microinformáticos y Redes","0225","Redes locales","IFC201 (LFP) - 0225",1,6,200]
["IFC201 (LFP)","Sistemas Microinformáticos y Redes","1664","Digitalización aplicada a los sectores productivos (GM)","IFC201 (LFP) - 1664",1,1,33]
["IFC201 (LFP)","Sistemas Microinformáticos y Redes","1709","Itinerario personal para la empleabilidad I","IFC201 (LFP) - 1709",1,3,100]
["IFC201 (LFP)","Sistemas Microinformáticos y Redes","A997","Tutoría I","IFC201 (LFP) - A997",1,1,33]
["IFC201 (LFP)","Sistemas Microinformáticos y Redes","0224","Sistemas operativos en red","IFC201 (LFP) - 0224",2,6,200]
["IFC201 (LFP)","Sistemas Microinformáticos y Redes","0226","Seguridad informática","IFC201 (LFP) - 0226",2,4,133]
["IFC201 (LFP)","Sistemas Microinformáticos y Redes","0227","Servicios en red","IFC201 (LFP) - 0227",2,5,167]
["IFC201 (LFP)","Sistemas Microinformáticos y Redes","0228","Aplicaciones web","IFC201 (LFP) - 0228",2,6,200]
["IFC201 (LFP)","Sistemas Microinformáticos y Redes","1708","Sostenibilidad aplicada al sistema productivo","IFC201 (LFP) - 1708",2,1,33]
["IFC201 (LFP)","Sistemas Microinformáticos y Redes","1710","Itinerario personal para la empleabilidad II","IFC201 (LFP) - 1710",2,2,67]
["IFC201 (LFP)","Sistemas Microinformáticos y Redes","1713","Proyecto Intermodular",{"$f":"CONCATENATE(A1347,\" - \",C1347)","v":"IFC201 (LFP) - 1713"},2,2,67]
["IFC201 (LFP)","Sistemas Microinformáticos y Redes","A996","Tutoría II","IFC201 (LFP) - A996",2,1,33]
["IFC201 (LFP)","Sistemas Microinformáticos y Redes","0OPT","Módulo profesional optativo","IFC201 (LFP) - 0OPT",2,3,100]
["IFC301 (LFP)","Administración de Sistemas Informáticos en Red","0179","Inglés Profesional (GS)","IFC301 (LFP) - 0179",1,2,67]
["IFC301 (LFP)","Administración de Sistemas Informáticos en Red","0369","Implantación de Sistemas Operativos","IFC301 (LFP) - 0369",1,6,200]
["IFC301 (LFP)","Administración de Sistemas Informáticos en Red","0370","Planificación y Administración de Redes","IFC301 (LFP) - 0370",1,7,233]
["IFC301 (LFP)","Administración de Sistemas Informáticos en Red","0371","Fundamentos de Hardware","IFC301 (LFP) - 0371",1,4,133]
["IFC301 (LFP)","Administración de Sistemas Informáticos en Red","0372","Gestión de Base de Datos","IFC301 (LFP) - 0372",1,5,167]
["IFC301 (LFP)","Administración de Sistemas Informáticos en Red","0373","Lenguajes de marcas y sistemas de gestión de información","IFC301 (LFP) - 0373",1,2,67]
["IFC301 (LFP)","Administración de Sistemas Informáticos en Red","1665","Digitalización aplicada a los sectores productivos (GS)","IFC301 (LFP) - 1665",1,1,33]
["IFC301 (LFP)","Administración de Sistemas Informáticos en Red","1709","Itinerario personal para la empleabilidad I","IFC301 (LFP) - 1709",1,3,100]
["IFC301 (LFP)","Administración de Sistemas Informáticos en Red","0374","Administración de Sistemas Operativos","IFC301 (LFP) - 0374",2,4,133]
["IFC301 (LFP)","Administración de Sistemas Informáticos en Red","0375","Servicios de Red e Internet","IFC301 (LFP) - 0375",2,6,200]
["IFC301 (LFP)","Administración de Sistemas Informáticos en Red","0376","Implantación de Aplicaciones Web","IFC301 (LFP) - 0376",2,4,133]
["IFC301 (LFP)","Administración de Sistemas Informáticos en Red","0377","Administración de Sistemas Gestores de Bases de Datos","IFC301 (LFP) - 0377",2,3,100]
["IFC301 (LFP)","Administración de Sistemas Informáticos en Red","0378","Seguridad y Alta Disponibilidad","IFC301 (LFP) - 0378",2,5,167]
["IFC301 (LFP)","Administración de Sistemas Informáticos en Red","0379","Proyecto Intermodular de Administración de Sistemas Informáticos en Red","IFC301 (LFP) - 0379",2,2,67]
["IFC301 (LFP)","Administración de Sistemas Informáticos en Red","1708","Sostenibilidad aplicada al sistema productivo","IFC301 (LFP) - 1708",2,1,33]
["IFC301 (LFP)","Administración de Sistemas Informáticos en Red","1710","Itinerario personal para la empleabilidad II","IFC301 (LFP) - 1710",2,2,67]
["IFC301 (LFP)","Administración de Sistemas Informáticos en Red","0OPT","Módulo profesional optativo","IFC301 (LFP) - 0OPT",2,3,100]
["IFC302 (LFP)","Desarrollo de Aplicaciones Multiplataforma","0179","Inglés Profesional (GS)","IFC302 (LFP) - 0179",1,2,67]
["IFC302 (LFP)","Desarrollo de Aplicaciones Multiplataforma","0373","Lenguajes de marcas y sistemas de gestión de información","IFC302 (LFP) - 0373",1,2,67]
["IFC302 (LFP)","Desarrollo de Aplicaciones Multiplataforma","0483","Sistemas informáticos","IFC302 (LFP) - 0483",1,5,167]
["IFC302 (LFP)","Desarrollo de Aplicaciones Multiplataforma","0484","Bases de datos","IFC302 (LFP) - 0484",1,6,200]
["IFC302 (LFP)","Desarrollo de Aplicaciones Multiplataforma","0485","Programación","IFC302 (LFP) - 0485",1,8,267]
["IFC302 (LFP)","Desarrollo de Aplicaciones Multiplataforma","0487","Entornos de desarrollo","IFC302 (LFP) - 0487",1,3,100]
["IFC302 (LFP)","Desarrollo de Aplicaciones Multiplataforma","1665","Digitalización aplicada a los sectores productivos (GS)","IFC302 (LFP) - 1665",1,1,33]
["IFC302 (LFP)","Desarrollo de Aplicaciones Multiplataforma","1709","Itinerario personal para la empleabilidad I","IFC302 (LFP) - 1709",1,3,100]
["IFC302 (LFP)","Desarrollo de Aplicaciones Multiplataforma","0486","Acceso a datos","IFC302 (LFP) - 0486",2,5,167]
["IFC302 (LFP)","Desarrollo de Aplicaciones Multiplataforma","0488","Desarrollo de interfaces","IFC302 (LFP) - 0488",2,5,167]
["IFC302 (LFP)","Desarrollo de Aplicaciones Multiplataforma","0489","Programación multimedia y dispositivos móviles","IFC302 (LFP) - 0489",2,6,200]
["IFC302 (LFP)","Desarrollo de Aplicaciones Multiplataforma","0490","Programación de servicios y procesos","IFC302 (LFP) - 0490",2,2,67]
["IFC302 (LFP)","Desarrollo de Aplicaciones Multiplataforma","0491","Sistemas de gestión empresarial","IFC302 (LFP) - 0491",2,4,133]
["IFC302 (LFP)","Desarrollo de Aplicaciones Multiplataforma","0492","Proyecto Intermodular de desarrollo de aplicaciones multiplataforma","IFC302 (LFP) - 0492",2,2,67]
["IFC302 (LFP)","Desarrollo de Aplicaciones Multiplataforma","1708","Sostenibilidad aplicada al sistema productivo","IFC302 (LFP) - 1708",2,1,33]
["IFC302 (LFP)","Desarrollo de Aplicaciones Multiplataforma","1710","Itinerario personal para la empleabilidad II","IFC302 (LFP) - 1710",2,2,67]
["IFC302 (LFP)","Desarrollo de Aplicaciones Multiplataforma","0OPT","Módulo profesional optativo","IFC302 (LFP) - 0OPT",2,3,100]
["IFC303 (LFP)","Desarrollo de Aplicaciones WEB","0179","Inglés Profesional (GS)","IFC303 (LFP) - 0179",1,2,67]
["IFC303 (LFP)","Desarrollo de Aplicaciones WEB","0373","Lenguajes de marcas y sistemas de gestión de información","IFC303 (LFP) - 0373",1,2,67]
["IFC303 (LFP)","Desarrollo de Aplicaciones WEB","0483","Sistemas informáticos","IFC303 (LFP) - 0483",1,5,167]
["IFC303 (LFP)","Desarrollo de Aplicaciones WEB","0484","Bases de datos","IFC303 (LFP) - 0484",1,6,200]
["IFC303 (LFP)","Desarrollo de Aplicaciones WEB","0485","Programación","IFC303 (LFP) - 0485",1,8,267]
["IFC303 (LFP)","Desarrollo de Aplicaciones WEB","0487","Entornos de desarrollo","IFC303 (LFP) - 0487",1,3,100]
["IFC303 (LFP)","Desarrollo de Aplicaciones WEB","1665","Digitalización aplicada a los sectores productivos (GS)","IFC303 (LFP) - 1665",1,1,33]
["IFC303 (LFP)","Desarrollo de Aplicaciones WEB","1709","Itinerario personal para la empleabilidad I","IFC303 (LFP) - 1709",1,3,100]
["IFC303 (LFP)","Desarrollo de Aplicaciones WEB","0612","Desarrollo web en entorno cliente","IFC303 (LFP) - 0612",2,5,167]
["IFC303 (LFP)","Desarrollo de Aplicaciones WEB","0613","Desarrollo web en entorno servidor","IFC303 (LFP) - 0613",2,8,267]
["IFC303 (LFP)","Desarrollo de Aplicaciones WEB","0614","Despliegue de aplicaciones web","IFC303 (LFP) - 0614",2,3,100]
["IFC303 (LFP)","Desarrollo de Aplicaciones WEB","0615","Diseño de interfaces web","IFC303 (LFP) - 0615",2,6,200]
["IFC303 (LFP)","Desarrollo de Aplicaciones WEB","0616","Proyecto Intermodular de desarrollo de aplicaciones Web","IFC303 (LFP) - 0616",2,2,67]
["IFC303 (LFP)","Desarrollo de Aplicaciones WEB","1708","Sostenibilidad aplicada al sistema productivo","IFC303 (LFP) - 1708",2,1,33]
["IFC303 (LFP)","Desarrollo de Aplicaciones WEB","1710","Itinerario personal para la empleabilidad II","IFC303 (LFP) - 1710",2,2,67]
["IFC303 (LFP)","Desarrollo de Aplicaciones WEB","0OPT","Módulo profesional optativo","IFC303 (LFP) - 0OPT",2,3,100]
["IMA201 (LFP)","Mantenimiento Electromecánico","0156","Inglés Profesional (GM)","IMA201 (LFP) - 0156",1,2,67]
["IMA201 (LFP)","Mantenimiento Electromecánico","0949","Técnicas de fabricación","IMA201 (LFP) - 0949",1,8,267]
["IMA201 (LFP)","Mantenimiento Electromecánico","0950","Técnicas de unión y montaje","IMA201 (LFP) - 0950",1,3,100]
["IMA201 (LFP)","Mantenimiento Electromecánico","0951","Electricidad y automatismos eléctricos","IMA201 (LFP) - 0951",1,5,167]
["IMA201 (LFP)","Mantenimiento Electromecánico","0952","Automatismos neumáticos e hidráulicos","IMA201 (LFP) - 0952",1,7,233]
["IMA201 (LFP)","Mantenimiento Electromecánico","1664","Digitalización aplicada a los sectores productivos (GM)","IMA201 (LFP) - 1664",1,1,33]
["IMA201 (LFP)","Mantenimiento Electromecánico","1709","Itinerario personal para la empleabilidad I","IMA201 (LFP) - 1709",1,3,100]
["IMA201 (LFP)","Mantenimiento Electromecánico","A997","Tutoría I","IMA201 (LFP) - A997",1,1,33]
["IMA201 (LFP)","Mantenimiento Electromecánico","0953","Montaje y mantenimiento mecánico","IMA201 (LFP) - 0953",2,8,267]
["IMA201 (LFP)","Mantenimiento Electromecánico","0954","Montaje y mantenimiento eléctrico-electrónico","IMA201 (LFP) - 0954",2,6,200]
["IMA201 (LFP)","Mantenimiento Electromecánico","0955","Montaje y mantenimiento de líneas automatizadas","IMA201 (LFP) - 0955",2,7,233]
["IMA201 (LFP)","Mantenimiento Electromecánico","1708","Sostenibilidad aplicada al sistema productivo",{"$f":"CONCATENATE(A1411,\" - \",C1411)","v":"IMA201 (LFP) - 1708"},2,1,33]
["IMA201 (LFP)","Mantenimiento Electromecánico","1710","Itinerario personal para la empleabilidad II","IMA201 (LFP) - 1710",2,2,67]
["IMA201 (LFP)","Mantenimiento Electromecánico","1713","Proyecto Intermodular","IMA201 (LFP) - 1713",2,2,67]
["IMA201 (LFP)","Mantenimiento Electromecánico","A996","Tutoría II","IMA201 (LFP) - A996",2,1,33]
["IMA201 (LFP)","Mantenimiento Electromecánico","0OPT","Módulo profesional optativo","IMA201 (LFP) - 0OPT",2,3,100]
["IMA202 (LFP)","Instalaciones Frigoríficas y de Climatización","0036","Máquinas y equipos térmicos","IMA202 (LFP) - 0036",1,8,267]
["IMA202 (LFP)","Instalaciones Frigoríficas y de Climatización","0037","Técnicas de montaje de instalaciones","IMA202 (LFP) - 0037",1,7,233]
["IMA202 (LFP)","Instalaciones Frigoríficas y de Climatización","0038","Instalaciones eléctricas y automatismos","IMA202 (LFP) - 0038",1,8,267]
["IMA202 (LFP)","Instalaciones Frigoríficas y de Climatización","0156","Inglés Profesional (GM)","IMA202 (LFP) - 0156",1,2,67]
["IMA202 (LFP)","Instalaciones Frigoríficas y de Climatización","1664","Digitalización aplicada a los sectores productivos (GM)","IMA202 (LFP) - 1664",1,1,33]
["IMA202 (LFP)","Instalaciones Frigoríficas y de Climatización","1709","Itinerario personal para la empleabilidad I","IMA202 (LFP) - 1709",1,3,100]
["IMA202 (LFP)","Instalaciones Frigoríficas y de Climatización","A997","Tutoría I","IMA202 (LFP) - A997",1,1,33]
["IMA202 (LFP)","Instalaciones Frigoríficas y de Climatización","0039","Configuración de instalaciones de frío y climatización","IMA202 (LFP) - 0039",2,2,67]
["IMA202 (LFP)","Instalaciones Frigoríficas y de Climatización","0040","Montaje y mantenimiento de equipos de refrigeración comercial","IMA202 (LFP) - 0040",2,4,133]
["IMA202 (LFP)","Instalaciones Frigoríficas y de Climatización","0041","Montaje y mantenimiento de instalaciones frigoríficas industriales","IMA202 (LFP) - 0041",2,6,200]
["IMA202 (LFP)","Instalaciones Frigoríficas y de Climatización","0042","Montaje y mantenimiento de instalaciones de climatización, ventilación y extracción","IMA202 (LFP) - 0042",2,9,300]
["IMA202 (LFP)","Instalaciones Frigoríficas y de Climatización","1708","Sostenibilidad aplicada al sistema productivo","IMA202 (LFP) - 1708",2,1,33]
["IMA202 (LFP)","Instalaciones Frigoríficas y de Climatización","1710","Itinerario personal para la empleabilidad II","IMA202 (LFP) - 1710",2,2,67]
["IMA202 (LFP)","Instalaciones Frigoríficas y de Climatización","1713","Proyecto Intermodular","IMA202 (LFP) - 1713",2,2,67]
["IMA202 (LFP)","Instalaciones Frigoríficas y de Climatización","A996","Tutoría II","IMA202 (LFP) - A996",2,1,33]
["IMA202 (LFP)","Instalaciones Frigoríficas y de Climatización","0OPT","Módulo profesional optativo","IMA202 (LFP) - 0OPT",2,3,100]
["IMA203 (LFP)","Instalaciones de Producción de Calor","0036","Máquinas y equipos térmicos","IMA203 (LFP) - 0036",1,8,267]
["IMA203 (LFP)","Instalaciones de Producción de Calor","0037","Técnicas de montaje de instalaciones","IMA203 (LFP) - 0037",1,7,233]
["IMA203 (LFP)","Instalaciones de Producción de Calor","0038","Instalaciones eléctricas y automatismos","IMA203 (LFP) - 0038",1,8,267]
["IMA203 (LFP)","Instalaciones de Producción de Calor","0156","Inglés Profesional (GM)","IMA203 (LFP) - 0156",1,2,67]
["IMA203 (LFP)","Instalaciones de Producción de Calor","1664","Digitalización aplicada a los sectores productivos (GM)","IMA203 (LFP) - 1664",1,1,33]
["IMA203 (LFP)","Instalaciones de Producción de Calor","1709","Itinerario personal para la empleabilidad I","IMA203 (LFP) - 1709",1,3,100]
["IMA203 (LFP)","Instalaciones de Producción de Calor","A997","Tutoría I","IMA203 (LFP) - A997",1,1,33]
["IMA203 (LFP)","Instalaciones de Producción de Calor","0266","Configuración de instalaciones caloríficas","IMA203 (LFP) - 0266",2,2,67]
["IMA203 (LFP)","Instalaciones de Producción de Calor","0302","Montaje y mantenimiento de instalaciones caloríficas","IMA203 (LFP) - 0302",2,7,233]
["IMA203 (LFP)","Instalaciones de Producción de Calor","0310","Montaje y mantenimiento de instalaciones de agua","IMA203 (LFP) - 0310",2,4,133]
["IMA203 (LFP)","Instalaciones de Producción de Calor","0392","Montaje y mantenimiento de instalaciones de energía solar","IMA203 (LFP) - 0392",2,3,100]
["IMA203 (LFP)","Instalaciones de Producción de Calor","0393","Montaje y mantenimiento de instalaciones de gas y combustibles líquidos","IMA203 (LFP) - 0393",2,5,167]
["IMA203 (LFP)","Instalaciones de Producción de Calor","1708","Sostenibilidad aplicada al sistema productivo","IMA203 (LFP) - 1708",2,1,33]
["IMA203 (LFP)","Instalaciones de Producción de Calor","1710","Itinerario personal para la empleabilidad II","IMA203 (LFP) - 1710",2,2,67]
["IMA203 (LFP)","Instalaciones de Producción de Calor","1713","Proyecto Intermodular","IMA203 (LFP) - 1713",2,2,67]
["IMA203 (LFP)","Instalaciones de Producción de Calor","A996","Tutoría II","IMA203 (LFP) - A996",2,1,33]
["IMA203 (LFP)","Instalaciones de Producción de Calor","0OPT","Módulo profesional optativo","IMA203 (LFP) - 0OPT",2,3,100]
["IMA301 (LFP)","Mantenimiento de Instalaciones Térmicas y de Fluidos","0120","Sistemas eléctricos y automáticos","IMA301 (LFP) - 0120",1,6,200]
["IMA301 (LFP)","Mantenimiento de Instalaciones Térmicas y de Fluidos","0121","Equipos e instalaciones térmicas","IMA301 (LFP) - 0121",1,8,267]
["IMA301 (LFP)","Mantenimiento de Instalaciones Térmicas y de Fluidos","0122","Procesos de montaje de instalaciones","IMA301 (LFP) - 0122",1,8,267]
["IMA301 (LFP)","Mantenimiento de Instalaciones Térmicas y de Fluidos","0123","Representación gráfica de instalaciones","IMA301 (LFP) - 0123",1,2,67]
["IMA301 (LFP)","Mantenimiento de Instalaciones Térmicas y de Fluidos","0179","Inglés Profesional (GS)","IMA301 (LFP) - 0179",1,2,67]
["IMA301 (LFP)","Mantenimiento de Instalaciones Térmicas y de Fluidos","1665","Digitalización aplicada a los sectores productivos (GS)","IMA301 (LFP) - 1665",1,1,33]
["IMA301 (LFP)","Mantenimiento de Instalaciones Térmicas y de Fluidos","1709","Itinerario personal para la empleabilidad I","IMA301 (LFP) - 1709",1,3,100]
["IMA301 (LFP)","Mantenimiento de Instalaciones Térmicas y de Fluidos","0124","Energías renovables y eficiencia energética","IMA301 (LFP) - 0124",2,2,67]
["IMA301 (LFP)","Mantenimiento de Instalaciones Térmicas y de Fluidos","0133","Gestión del montaje, de la calidad y del mantenimiento","IMA301 (LFP) - 0133",2,2,67]
["IMA301 (LFP)","Mantenimiento de Instalaciones Térmicas y de Fluidos","0134","Configuración de instalaciones térmicas y de fluidos","IMA301 (LFP) - 0134",2,4,133]
["IMA301 (LFP)","Mantenimiento de Instalaciones Térmicas y de Fluidos","0135","Mantenimiento de instalaciones frigoríficas y de climatización","IMA301 (LFP) - 0135",2,7,233]
["IMA301 (LFP)","Mantenimiento de Instalaciones Térmicas y de Fluidos","0136","Mantenimiento de Instalaciones caloríficas y de fluidos","IMA301 (LFP) - 0136",2,7,233]
["IMA301 (LFP)","Mantenimiento de Instalaciones Térmicas y de Fluidos","0137","Proyecto Intermodular de mantenimiento de instalaciones térmicas y de fluidos","IMA301 (LFP) - 0137",2,2,67]
["IMA301 (LFP)","Mantenimiento de Instalaciones Térmicas y de Fluidos","1708","Sostenibilidad aplicada al sistema productivo","IMA301 (LFP) - 1708",2,1,33]
["IMA301 (LFP)","Mantenimiento de Instalaciones Térmicas y de Fluidos","1710","Itinerario personal para la empleabilidad II","IMA301 (LFP) - 1710",2,2,67]
["IMA301 (LFP)","Mantenimiento de Instalaciones Térmicas y de Fluidos","0OPT","Módulo profesional optativo","IMA301 (LFP) - 0OPT",2,3,100]
["IMA302 (LFP)","Mecatrónica Industrial","0179","Inglés Profesional (GS)","IMA302 (LFP) - 0179",1,2,67]
["IMA302 (LFP)","Mecatrónica Industrial","0936","Sistemas hidráulicos y neumáticos","IMA302 (LFP) - 0936",1,5,167]
["IMA302 (LFP)","Mecatrónica Industrial","0937","Sistemas eléctricos y electrónicos","IMA302 (LFP) - 0937",1,5,167]
["IMA302 (LFP)","Mecatrónica Industrial","0938","Elementos de máquinas","IMA302 (LFP) - 0938",1,4,133]
["IMA302 (LFP)","Mecatrónica Industrial","0939","Procesos de fabricación","IMA302 (LFP) - 0939",1,6,200]
["IMA302 (LFP)","Mecatrónica Industrial","0940","Representación gráfica de sistemas mecatrónicos","IMA302 (LFP) - 0940",1,4,133]
["IMA302 (LFP)","Mecatrónica Industrial","1665","Digitalización aplicada a los sectores productivos (GS)","IMA302 (LFP) - 1665",1,1,33]
["IMA302 (LFP)","Mecatrónica Industrial","1709","Itinerario personal para la empleabilidad I","IMA302 (LFP) - 1709",1,3,100]
["IMA302 (LFP)","Mecatrónica Industrial","0935","Sistemas mecánicos","IMA302 (LFP) - 0935",2,5,167]
["IMA302 (LFP)","Mecatrónica Industrial","0941","Configuración de sistemas mecatrónicos","IMA302 (LFP) - 0941",2,5,167]
["IMA302 (LFP)","Mecatrónica Industrial","0942","Procesos y gestión del mantenimiento y de la calidad",{"$f":"CONCATENATE(A1475,\" - \",C1475)","v":"IMA302 (LFP) - 0942"},2,3,100]
["IMA302 (LFP)","Mecatrónica Industrial","0943","Integración de sistemas","IMA302 (LFP) - 0943",2,7,233]
["IMA302 (LFP)","Mecatrónica Industrial","0944","Simulación de sistemas mecatrónicos","IMA302 (LFP) - 0944",2,2,67]
["IMA302 (LFP)","Mecatrónica Industrial","0945","Proyecto Intermodular de mecatrónica industrial","IMA302 (LFP) - 0945",2,2,67]
["IMA302 (LFP)","Mecatrónica Industrial","1708","Sostenibilidad aplicada al sistema productivo","IMA302 (LFP) - 1708",2,1,33]
["IMA302 (LFP)","Mecatrónica Industrial","1710","Itinerario personal para la empleabilidad II","IMA302 (LFP) - 1710",2,2,67]
["IMA302 (LFP)","Mecatrónica Industrial","0OPT","Módulo profesional optativo","IMA302 (LFP) - 0OPT",2,3,100]
["IMA303 (LFP)","Desarrollo de Proyectos de Instalaciones Térmicas y de Fluidos","0120","Sistemas eléctricos y automáticos","IMA303 (LFP) - 0120",1,6,200]
["IMA303 (LFP)","Desarrollo de Proyectos de Instalaciones Térmicas y de Fluidos","0121","Equipos e instalaciones térmicas","IMA303 (LFP) - 0121",1,8,267]
["IMA303 (LFP)","Desarrollo de Proyectos de Instalaciones Térmicas y de Fluidos","0122","Procesos de montaje de instalaciones","IMA303 (LFP) - 0122",1,8,267]
["IMA303 (LFP)","Desarrollo de Proyectos de Instalaciones Térmicas y de Fluidos","0123","Representación gráfica de instalaciones","IMA303 (LFP) - 0123",1,2,67]
["IMA303 (LFP)","Desarrollo de Proyectos de Instalaciones Térmicas y de Fluidos","0179","Inglés Profesional (GS)","IMA303 (LFP) - 0179",1,2,67]
["IMA303 (LFP)","Desarrollo de Proyectos de Instalaciones Térmicas y de Fluidos","1665","Digitalización aplicada a los sectores productivos (GS)","IMA303 (LFP) - 1665",1,1,33]
["IMA303 (LFP)","Desarrollo de Proyectos de Instalaciones Térmicas y de Fluidos","1709","Itinerario personal para la empleabilidad I","IMA303 (LFP) - 1709",1,3,100]
["IMA303 (LFP)","Desarrollo de Proyectos de Instalaciones Térmicas y de Fluidos","0124","Energías renovables y eficiencia energética","IMA303 (LFP) - 0124",2,2,67]
["IMA303 (LFP)","Desarrollo de Proyectos de Instalaciones Térmicas y de Fluidos","0125","Configuración de instalaciones de climatización, calefacción y ACS","IMA303 (LFP) - 0125",2,6,200]
["IMA303 (LFP)","Desarrollo de Proyectos de Instalaciones Térmicas y de Fluidos","0126","Configuración de instalaciones frigoríficas","IMA303 (LFP) - 0126",2,6,200]
["IMA303 (LFP)","Desarrollo de Proyectos de Instalaciones Térmicas y de Fluidos","0127","Configuración de instalaciones de fluidos","IMA303 (LFP) - 0127",2,5,167]
["IMA303 (LFP)","Desarrollo de Proyectos de Instalaciones Térmicas y de Fluidos","0128","Planificación del montaje de instalaciones","IMA303 (LFP) - 0128",2,3,100]
["IMA303 (LFP)","Desarrollo de Proyectos de Instalaciones Térmicas y de Fluidos","0129","Proyecto Intermodular de instalaciones térmicas y de fluidos","IMA303 (LFP) - 0129",2,2,67]
["IMA303 (LFP)","Desarrollo de Proyectos de Instalaciones Térmicas y de Fluidos","1708","Sostenibilidad aplicada al sistema productivo","IMA303 (LFP) - 1708",2,1,33]
["IMA303 (LFP)","Desarrollo de Proyectos de Instalaciones Térmicas y de Fluidos","1710","Itinerario personal para la empleabilidad II","IMA303 (LFP) - 1710",2,2,67]
["IMA303 (LFP)","Desarrollo de Proyectos de Instalaciones Térmicas y de Fluidos","0OPT","Módulo profesional optativo","IMA303 (LFP) - 0OPT",2,3,100]
["IMP202 (LFP)","Estética y Belleza","0156","Inglés Profesional (GM)","IMP202 (LFP) - 0156",1,2,67]
["IMP202 (LFP)","Estética y Belleza","0633","Técnicas de higiene facial y corporal","IMP202 (LFP) - 0633",1,6,200]
["IMP202 (LFP)","Estética y Belleza","0634","Maquillaje","IMP202 (LFP) - 0634",1,6,200]
["IMP202 (LFP)","Estética y Belleza","0636","Estética de manos y pies","IMP202 (LFP) - 0636",1,3,100]
["IMP202 (LFP)","Estética y Belleza","0638","Análisis estético","IMP202 (LFP) - 0638",1,4,133]
["IMP202 (LFP)","Estética y Belleza","0641","Cosmetología para estética y belleza","IMP202 (LFP) - 0641",1,4,133]
["IMP202 (LFP)","Estética y Belleza","1664","Digitalización aplicada a los sectores productivos (GM)","IMP202 (LFP) - 1664",1,1,33]
["IMP202 (LFP)","Estética y Belleza","1709","Itinerario personal para la empleabilidad I","IMP202 (LFP) - 1709",1,3,100]
["IMP202 (LFP)","Estética y Belleza","A997","Tutoría I","IMP202 (LFP) - A997",1,1,33]
["IMP202 (LFP)","Estética y Belleza","0635","Depilación mecánica y decoloración del vello","IMP202 (LFP) - 0635",2,3,100]
["IMP202 (LFP)","Estética y Belleza","0637","Técnicas de uñas artificiales","IMP202 (LFP) - 0637",2,4,133]
["IMP202 (LFP)","Estética y Belleza","0639","Actividades en cabina de estética","IMP202 (LFP) - 0639",2,6,200]
["IMP202 (LFP)","Estética y Belleza","0640","Imagen corporal y hábitos saludables","IMP202 (LFP) - 0640",2,3,100]
["IMP202 (LFP)","Estética y Belleza","0642","Perfumería y cosmética natural","IMP202 (LFP) - 0642",2,3,100]
["IMP202 (LFP)","Estética y Belleza","0643","Marketing y venta en Imagen Personal","IMP202 (LFP) - 0643",2,2,67]
["IMP202 (LFP)","Estética y Belleza","1708","Sostenibilidad aplicada al sistema productivo","IMP202 (LFP) - 1708",2,1,33]
["IMP202 (LFP)","Estética y Belleza","1710","Itinerario personal para la empleabilidad II","IMP202 (LFP) - 1710",2,2,67]
["IMP202 (LFP)","Estética y Belleza","1713","Proyecto Intermodular","IMP202 (LFP) - 1713",2,2,67]
["IMP202 (LFP)","Estética y Belleza","A996","Tutoría II","IMP202 (LFP) - A996",2,1,33]
["IMP202 (LFP)","Estética y Belleza","0OPT","Módulo profesional optativo","IMP202 (LFP) - 0OPT",2,3,100]
["IMP203 (LFP)","Peluquería y Cosmética Capilar","0156","Inglés Profesional (GM)","IMP203 (LFP) - 0156",1,2,67]
["IMP203 (LFP)","Peluquería y Cosmética Capilar","0636","Estética de manos y pies","IMP203 (LFP) - 0636",1,3,100]
["IMP203 (LFP)","Peluquería y Cosmética Capilar","0842","Peinados y recogidos","IMP203 (LFP) - 0842",1,8,267]
["IMP203 (LFP)","Peluquería y Cosmética Capilar","0844","Cosmética para peluquería","IMP203 (LFP) - 0844",1,3,100]
["IMP203 (LFP)","Peluquería y Cosmética Capilar","0845","Técnicas de corte del cabello","IMP203 (LFP) - 0845",1,5,167]
["IMP203 (LFP)","Peluquería y Cosmética Capilar","0849","Análisis capilar","IMP203 (LFP) - 0849",1,4,133]
["IMP203 (LFP)","Peluquería y Cosmética Capilar","1664","Digitalización aplicada a los sectores productivos (GM)","IMP203 (LFP) - 1664",1,1,33]
["IMP203 (LFP)","Peluquería y Cosmética Capilar","1709","Itinerario personal para la empleabilidad I","IMP203 (LFP) - 1709",1,3,100]
["IMP203 (LFP)","Peluquería y Cosmética Capilar","A997","Tutoría I","IMP203 (LFP) - A997",1,1,33]
["IMP203 (LFP)","Peluquería y Cosmética Capilar","0640","Imagen corporal y hábitos saludables","IMP203 (LFP) - 0640",2,3,100]
["IMP203 (LFP)","Peluquería y Cosmética Capilar","0643","Marketing y venta en Imagen Personal","IMP203 (LFP) - 0643",2,2,67]
["IMP203 (LFP)","Peluquería y Cosmética Capilar","0843","Coloración capilar","IMP203 (LFP) - 0843",2,8,267]
["IMP203 (LFP)","Peluquería y Cosmética Capilar","0846","Cambios de forma permanente del cabello","IMP203 (LFP) - 0846",2,4,133]
["IMP203 (LFP)","Peluquería y Cosmética Capilar","0848","Peluquería y estilismo masculino","IMP203 (LFP) - 0848",2,4,133]
["IMP203 (LFP)","Peluquería y Cosmética Capilar","1708","Sostenibilidad aplicada al sistema productivo","IMP203 (LFP) - 1708",2,1,33]
["IMP203 (LFP)","Peluquería y Cosmética Capilar","1710","Itinerario personal para la empleabilidad II","IMP203 (LFP) - 1710",2,2,67]
["IMP203 (LFP)","Peluquería y Cosmética Capilar","1713","Proyecto Intermodular","IMP203 (LFP) - 1713",2,2,67]
["IMP203 (LFP)","Peluquería y Cosmética Capilar","A996","Tutoría II","IMP203 (LFP) - A996",2,1,33]
["IMP203 (LFP)","Peluquería y Cosmética Capilar","0OPT","Módulo profesional optativo","IMP203 (LFP) - 0OPT",2,3,100]
["IMP301 (LFP)","Asesoría de Imagen Personal y Corporativa","0179","Inglés Profesional (GS)","IMP301 (LFP) - 0179",1,2,67]
["IMP301 (LFP)","Asesoría de Imagen Personal y Corporativa","1181","Asesoría cosmética","IMP301 (LFP) - 1181",1,4,133]
["IMP301 (LFP)","Asesoría de Imagen Personal y Corporativa","1182","Diseño de imagen integral",{"$f":"CONCATENATE(A1539,\" - \",C1539)","v":"IMP301 (LFP) - 1182"},1,5,167]
["IMP301 (LFP)","Asesoría de Imagen Personal y Corporativa","1183","Estilismo en vestuario y complementos","IMP301 (LFP) - 1183",1,6,200]
["IMP301 (LFP)","Asesoría de Imagen Personal y Corporativa","1187","Asesoría estética","IMP301 (LFP) - 1187",1,6,200]
["IMP301 (LFP)","Asesoría de Imagen Personal y Corporativa","1188","Habilidades comunicativas","IMP301 (LFP) - 1188",1,3,100]
["IMP301 (LFP)","Asesoría de Imagen Personal y Corporativa","1665","Digitalización aplicada a los sectores productivos (GS)","IMP301 (LFP) - 1665",1,1,33]
["IMP301 (LFP)","Asesoría de Imagen Personal y Corporativa","1709","Itinerario personal para la empleabilidad I","IMP301 (LFP) - 1709",1,3,100]
["IMP301 (LFP)","Asesoría de Imagen Personal y Corporativa","1071","Dirección y comercialización","IMP301 (LFP) - 1071",2,3,100]
["IMP301 (LFP)","Asesoría de Imagen Personal y Corporativa","1184","Asesoría de peluquería","IMP301 (LFP) - 1184",2,7,233]
["IMP301 (LFP)","Asesoría de Imagen Personal y Corporativa","1185","Protocolo y organización de eventos","IMP301 (LFP) - 1185",2,7,233]
["IMP301 (LFP)","Asesoría de Imagen Personal y Corporativa","1186","Usos sociales","IMP301 (LFP) - 1186",2,2,67]
["IMP301 (LFP)","Asesoría de Imagen Personal y Corporativa","1189","Imagen corporativa","IMP301 (LFP) - 1189",2,3,100]
["IMP301 (LFP)","Asesoría de Imagen Personal y Corporativa","1190","Proyecto Intermodular de asesoría de imagen personal y corporativa","IMP301 (LFP) - 1190",2,2,67]
["IMP301 (LFP)","Asesoría de Imagen Personal y Corporativa","1708","Sostenibilidad aplicada al sistema productivo","IMP301 (LFP) - 1708",2,1,33]
["IMP301 (LFP)","Asesoría de Imagen Personal y Corporativa","1710","Itinerario personal para la empleabilidad II","IMP301 (LFP) - 1710",2,2,67]
["IMP301 (LFP)","Asesoría de Imagen Personal y Corporativa","0OPT","Módulo profesional optativo","IMP301 (LFP) - 0OPT",2,3,100]
["IMP302 (LFP)","Estética Integral y Bienestar","0179","Inglés Profesional (GS)","IMP302 (LFP) - 0179",1,2,67]
["IMP302 (LFP)","Estética Integral y Bienestar","0744","Aparatología estética","IMP302 (LFP) - 0744",1,4,133]
["IMP302 (LFP)","Estética Integral y Bienestar","0747","Masaje estético","IMP302 (LFP) - 0747",1,5,167]
["IMP302 (LFP)","Estética Integral y Bienestar","0749","Micropigmentación","IMP302 (LFP) - 0749",1,3,100]
["IMP302 (LFP)","Estética Integral y Bienestar","0750","Procesos fisiológicos y de higiene en imagen personal","IMP302 (LFP) - 0750",1,4,133]
["IMP302 (LFP)","Estética Integral y Bienestar","0751","Dermoestética","IMP302 (LFP) - 0751",1,4,133]
["IMP302 (LFP)","Estética Integral y Bienestar","0752","Cosmética aplicada a estética y bienestar","IMP302 (LFP) - 0752",1,4,133]
["IMP302 (LFP)","Estética Integral y Bienestar","1665","Digitalización aplicada a los sectores productivos (GS)","IMP302 (LFP) - 1665",1,1,33]
["IMP302 (LFP)","Estética Integral y Bienestar","1709","Itinerario personal para la empleabilidad I","IMP302 (LFP) - 1709",1,3,100]
["IMP302 (LFP)","Estética Integral y Bienestar","0745","Estética hidrotermal","IMP302 (LFP) - 0745",2,4,133]
["IMP302 (LFP)","Estética Integral y Bienestar","0746","Depilación avanzada","IMP302 (LFP) - 0746",2,6,200]
["IMP302 (LFP)","Estética Integral y Bienestar","0748","Drenaje estético y técnicas por presión","IMP302 (LFP) - 0748",2,5,167]
["IMP302 (LFP)","Estética Integral y Bienestar","0753","Tratamientos estéticos integrales","IMP302 (LFP) - 0753",2,7,233]
["IMP302 (LFP)","Estética Integral y Bienestar","0754","Proyecto Intermodular de estética integral y bienestar","IMP302 (LFP) - 0754",2,2,67]
["IMP302 (LFP)","Estética Integral y Bienestar","1708","Sostenibilidad aplicada al sistema productivo","IMP302 (LFP) - 1708",2,1,33]
["IMP302 (LFP)","Estética Integral y Bienestar","1710","Itinerario personal para la empleabilidad II","IMP302 (LFP) - 1710",2,2,67]
["IMP302 (LFP)","Estética Integral y Bienestar","0OPT","Módulo profesional optativo","IMP302 (LFP) - 0OPT",2,3,100]
["IMP303 (LFP)","Estilismo y Dirección de Peluquería","0179","Inglés Profesional (GS)","IMP303 (LFP) - 0179",1,2,67]
["IMP303 (LFP)","Estilismo y Dirección de Peluquería","0750","Procesos fisiológicos y de higiene en imagen personal","IMP303 (LFP) - 0750",1,4,133]
["IMP303 (LFP)","Estilismo y Dirección de Peluquería","1064","Dermotricología","IMP303 (LFP) - 1064",1,4,133]
["IMP303 (LFP)","Estilismo y Dirección de Peluquería","1065","Recursos técnicos y cosméticos","IMP303 (LFP) - 1065",1,5,167]
["IMP303 (LFP)","Estilismo y Dirección de Peluquería","1067","Procedimientos y técnicas de peluquería","IMP303 (LFP) - 1067",1,8,267]
["IMP303 (LFP)","Estilismo y Dirección de Peluquería","1072","Peluquería en cuidados especiales","IMP303 (LFP) - 1072",1,3,100]
["IMP303 (LFP)","Estilismo y Dirección de Peluquería","1665","Digitalización aplicada a los sectores productivos (GS)","IMP303 (LFP) - 1665",1,1,33]
["IMP303 (LFP)","Estilismo y Dirección de Peluquería","1709","Itinerario personal para la empleabilidad I","IMP303 (LFP) - 1709",1,3,100]
["IMP303 (LFP)","Estilismo y Dirección de Peluquería","1066","Tratamientos capilares","IMP303 (LFP) - 1066",2,5,167]
["IMP303 (LFP)","Estilismo y Dirección de Peluquería","1068","Peinados para producciones audiovisuales y de moda","IMP303 (LFP) - 1068",2,5,167]
["IMP303 (LFP)","Estilismo y Dirección de Peluquería","1069","Estilismo en peluquería","IMP303 (LFP) - 1069",2,6,200]
["IMP303 (LFP)","Estilismo y Dirección de Peluquería","1070","Estudio de la imagen","IMP303 (LFP) - 1070",2,3,100]
["IMP303 (LFP)","Estilismo y Dirección de Peluquería","1071","Dirección y comercialización","IMP303 (LFP) - 1071",2,3,100]
["IMP303 (LFP)","Estilismo y Dirección de Peluquería","1073","Proyecto Intermodular de estilismo y dirección de peluquería","IMP303 (LFP) - 1073",2,2,67]
["IMP303 (LFP)","Estilismo y Dirección de Peluquería","1708","Sostenibilidad aplicada al sistema productivo","IMP303 (LFP) - 1708",2,1,33]
["IMP303 (LFP)","Estilismo y Dirección de Peluquería","1710","Itinerario personal para la empleabilidad II","IMP303 (LFP) - 1710",2,2,67]
["IMP303 (LFP)","Estilismo y Dirección de Peluquería","0OPT","Módulo profesional optativo","IMP303 (LFP) - 0OPT",2,3,100]
["IMP304 (LFP)","Termalismo y bienestar","0179","Inglés Profesional (GS)","IMP304 (LFP) - 0179",1,2,67]
["IMP304 (LFP)","Termalismo y bienestar","0747","Masaje estético","IMP304 (LFP) - 0747",1,5,167]
["IMP304 (LFP)","Termalismo y bienestar","1123","Actividades de ocio y tiempo libre","IMP304 (LFP) - 1123",1,7,233]
["IMP304 (LFP)","Termalismo y bienestar","1136","Valoración de la condición física e intervención en accidentes","IMP304 (LFP) - 1136",1,6,200]
["IMP304 (LFP)","Termalismo y bienestar","1151","Acondicionamiento físico en el agua","IMP304 (LFP) - 1151",1,6,200]
["IMP304 (LFP)","Termalismo y bienestar","1665","Digitalización aplicada a los sectores productivos (GS)","IMP304 (LFP) - 1665",1,1,33]
["IMP304 (LFP)","Termalismo y bienestar","1709","Itinerario personal para la empleabilidad I","IMP304 (LFP) - 1709",1,3,100]
["IMP304 (LFP)","Termalismo y bienestar","0212","Características y necesidades de las personas en situación de dependencia","IMP304 (LFP) - 0212",2,10,333]
["IMP304 (LFP)","Termalismo y bienestar","0745","Estética hidrotermal","IMP304 (LFP) - 0745",2,4,133]
["IMP304 (LFP)","Termalismo y bienestar","1124","Dinamización grupal","IMP304 (LFP) - 1124",2,4,133]
["IMP304 (LFP)","Termalismo y bienestar","1152","Técnicas de hidrocinesia","IMP304 (LFP) - 1152",2,4,133]
["IMP304 (LFP)","Termalismo y bienestar","1647","Proyecto Intermodular de termalismo y bienestar","IMP304 (LFP) - 1647",2,2,67]
["IMP304 (LFP)","Termalismo y bienestar","1708","Sostenibilidad aplicada al sistema productivo","IMP304 (LFP) - 1708",2,1,33]
["IMP304 (LFP)","Termalismo y bienestar","1710","Itinerario personal para la empleabilidad II","IMP304 (LFP) - 1710",2,2,67]
["IMP304 (LFP)","Termalismo y bienestar","0OPT","Módulo profesional optativo","IMP304 (LFP) - 0OPT",2,3,100]
["IMS202 (LFP)","Vídeo Disc-Jockey y Sonido","0156","Inglés Profesional (GM)",{"$f":"CONCATENATE(A1603,\" - \",C1603)","v":"IMS202 (LFP) - 0156"},1,2,67]
["IMS202 (LFP)","Vídeo Disc-Jockey y Sonido","1298","Instalación y montaje de equipos de sonido","IMS202 (LFP) - 1298",1,6,200]
["IMS202 (LFP)","Vídeo Disc-Jockey y Sonido","1299","Captación y grabación de sonido","IMS202 (LFP) - 1299",1,6,200]
["IMS202 (LFP)","Vídeo Disc-Jockey y Sonido","1301","Preparación de sesiones de vídeo disc-jockey","IMS202 (LFP) - 1301",1,5,167]
["IMS202 (LFP)","Vídeo Disc-Jockey y Sonido","1304","Toma y edición digital de imagen","IMS202 (LFP) - 1304",1,6,200]
["IMS202 (LFP)","Vídeo Disc-Jockey y Sonido","1664","Digitalización aplicada a los sectores productivos (GM)","IMS202 (LFP) - 1664",1,1,33]
["IMS202 (LFP)","Vídeo Disc-Jockey y Sonido","1709","Itinerario personal para la empleabilidad I","IMS202 (LFP) - 1709",1,3,100]
["IMS202 (LFP)","Vídeo Disc-Jockey y Sonido","A997","Tutoría I","IMS202 (LFP) - A997",1,1,33]
["IMS202 (LFP)","Vídeo Disc-Jockey y Sonido","1300","Control, edición y mezcla de sonido","IMS202 (LFP) - 1300",2,8,267]
["IMS202 (LFP)","Vídeo Disc-Jockey y Sonido","1302","Animación musical en vivo","IMS202 (LFP) - 1302",2,7,233]
["IMS202 (LFP)","Vídeo Disc-Jockey y Sonido","1303","Animación visual en vivo","IMS202 (LFP) - 1303",2,6,200]
["IMS202 (LFP)","Vídeo Disc-Jockey y Sonido","1708","Sostenibilidad aplicada al sistema productivo","IMS202 (LFP) - 1708",2,1,33]
["IMS202 (LFP)","Vídeo Disc-Jockey y Sonido","1710","Itinerario personal para la empleabilidad II","IMS202 (LFP) - 1710",2,2,67]
["IMS202 (LFP)","Vídeo Disc-Jockey y Sonido","1713","Proyecto Intermodular","IMS202 (LFP) - 1713",2,2,67]
["IMS202 (LFP)","Vídeo Disc-Jockey y Sonido","A996","Tutoría II","IMS202 (LFP) - A996",2,1,33]
["IMS202 (LFP)","Vídeo Disc-Jockey y Sonido","0OPT","Módulo profesional optativo","IMS202 (LFP) - 0OPT",2,3,100]
["IMS301 (LFP)","Iluminación, Captación y Tratamiento de Imagen","0179","Inglés Profesional (GS)","IMS301 (LFP) - 0179",1,2,67]
["IMS301 (LFP)","Iluminación, Captación y Tratamiento de Imagen","1161","Luminotecnia","IMS301 (LFP) - 1161",1,3,100]
["IMS301 (LFP)","Iluminación, Captación y Tratamiento de Imagen","1162","Control de la iluminación","IMS301 (LFP) - 1162",1,4,133]
["IMS301 (LFP)","Iluminación, Captación y Tratamiento de Imagen","1163","Proyectos fotográficos","IMS301 (LFP) - 1163",1,3,100]
["IMS301 (LFP)","Iluminación, Captación y Tratamiento de Imagen","1164","Toma fotográfica","IMS301 (LFP) - 1164",1,7,233]
["IMS301 (LFP)","Iluminación, Captación y Tratamiento de Imagen","1165","Tratamiento fotográfico digital","IMS301 (LFP) - 1165",1,5,167]
["IMS301 (LFP)","Iluminación, Captación y Tratamiento de Imagen","1166","Procesos finales fotográficos","IMS301 (LFP) - 1166",1,2,67]
["IMS301 (LFP)","Iluminación, Captación y Tratamiento de Imagen","1665","Digitalización aplicada a los sectores productivos (GS)","IMS301 (LFP) - 1665",1,1,33]
["IMS301 (LFP)","Iluminación, Captación y Tratamiento de Imagen","1709","Itinerario personal para la empleabilidad I","IMS301 (LFP) - 1709",1,3,100]
["IMS301 (LFP)","Iluminación, Captación y Tratamiento de Imagen","1158","Planificación de cámara en audiovisuales","IMS301 (LFP) - 1158",2,5,167]
["IMS301 (LFP)","Iluminación, Captación y Tratamiento de Imagen","1159","Toma de imagen audiovisual","IMS301 (LFP) - 1159",2,7,233]
["IMS301 (LFP)","Iluminación, Captación y Tratamiento de Imagen","1160","Proyectos de iluminación","IMS301 (LFP) - 1160",2,4,133]
["IMS301 (LFP)","Iluminación, Captación y Tratamiento de Imagen","1167","Grabación y edición de reportajes audiovisuales","IMS301 (LFP) - 1167",2,6,200]
["IMS301 (LFP)","Iluminación, Captación y Tratamiento de Imagen","1168","Proyecto Intermodular de iluminación, captación y tratamiento de imagen","IMS301 (LFP) - 1168",2,2,67]
["IMS301 (LFP)","Iluminación, Captación y Tratamiento de Imagen","1708","Sostenibilidad aplicada al sistema productivo","IMS301 (LFP) - 1708",2,1,33]
["IMS301 (LFP)","Iluminación, Captación y Tratamiento de Imagen","1710","Itinerario personal para la empleabilidad II","IMS301 (LFP) - 1710",2,2,67]
["IMS301 (LFP)","Iluminación, Captación y Tratamiento de Imagen","0OPT","Módulo profesional optativo","IMS301 (LFP) - 0OPT",2,3,100]
["IMS302 (LFP)","Producción de Audiovisuales y Espectáculos","0179","Inglés Profesional (GS)","IMS302 (LFP) - 0179",1,2,67]
["IMS302 (LFP)","Producción de Audiovisuales y Espectáculos","0910","Medios técnicos audiovisuales y escénicos","IMS302 (LFP) - 0910",1,5,167]
["IMS302 (LFP)","Producción de Audiovisuales y Espectáculos","0915","Planificación de proyectos audiovisuales","IMS302 (LFP) - 0915",1,7,233]
["IMS302 (LFP)","Producción de Audiovisuales y Espectáculos","0918","Planificación de proyectos de espectáculos y eventos","IMS302 (LFP) - 0918",1,6,200]
["IMS302 (LFP)","Producción de Audiovisuales y Espectáculos","0920","Recursos expresivos audiovisuales y escénicos","IMS302 (LFP) - 0920",1,6,200]
["IMS302 (LFP)","Producción de Audiovisuales y Espectáculos","1665","Digitalización aplicada a los sectores productivos (GS)","IMS302 (LFP) - 1665",1,1,33]
["IMS302 (LFP)","Producción de Audiovisuales y Espectáculos","1709","Itinerario personal para la empleabilidad I","IMS302 (LFP) - 1709",1,3,100]
["IMS302 (LFP)","Producción de Audiovisuales y Espectáculos","0916","Gestión de proyectos de cine, vídeo y multimedia","IMS302 (LFP) - 0916",2,6,200]
["IMS302 (LFP)","Producción de Audiovisuales y Espectáculos","0917","Gestión de proyectos de televisión y radio","IMS302 (LFP) - 0917",2,5,167]
["IMS302 (LFP)","Producción de Audiovisuales y Espectáculos","0919","Gestión de proyectos de espectáculos y eventos","IMS302 (LFP) - 0919",2,5,167]
["IMS302 (LFP)","Producción de Audiovisuales y Espectáculos","0921","Administración y promoción de audiovisuales y espectáculos","IMS302 (LFP) - 0921",2,6,200]
["IMS302 (LFP)","Producción de Audiovisuales y Espectáculos","0922","Proyecto Intermodular de producción de audiovisuales y espectáculos","IMS302 (LFP) - 0922",2,2,67]
["IMS302 (LFP)","Producción de Audiovisuales y Espectáculos","1708","Sostenibilidad aplicada al sistema productivo","IMS302 (LFP) - 1708",2,1,33]
["IMS302 (LFP)","Producción de Audiovisuales y Espectáculos","1710","Itinerario personal para la empleabilidad II","IMS302 (LFP) - 1710",2,2,67]
["IMS302 (LFP)","Producción de Audiovisuales y Espectáculos","0OPT","Módulo profesional optativo","IMS302 (LFP) - 0OPT",2,3,100]
["IMS303 (LFP)","Realización de Proyectos de Audiovisuales y Espectáculos","0179","Inglés Profesional (GS)","IMS303 (LFP) - 0179",1,2,67]
["IMS303 (LFP)","Realización de Proyectos de Audiovisuales y Espectáculos","0902","Planificación de la realización en cine y vídeo","IMS303 (LFP) - 0902",1,3,100]
["IMS303 (LFP)","Realización de Proyectos de Audiovisuales y Espectáculos","0903","Procesos de realización en cine y vídeo","IMS303 (LFP) - 0903",1,6,200]
["IMS303 (LFP)","Realización de Proyectos de Audiovisuales y Espectáculos","0906","Planificación del montaje y postproducción de audiovisuales","IMS303 (LFP) - 0906",1,5,167]
["IMS303 (LFP)","Realización de Proyectos de Audiovisuales y Espectáculos","0908","Planificación de la regiduría de espectáculos y eventos","IMS303 (LFP) - 0908",1,5,167]
["IMS303 (LFP)","Realización de Proyectos de Audiovisuales y Espectáculos","0910","Medios técnicos audiovisuales y escénicos","IMS303 (LFP) - 0910",1,5,167]
["IMS303 (LFP)","Realización de Proyectos de Audiovisuales y Espectáculos","1665","Digitalización aplicada a los sectores productivos (GS)","IMS303 (LFP) - 1665",1,1,33]
["IMS303 (LFP)","Realización de Proyectos de Audiovisuales y Espectáculos","1709","Itinerario personal para la empleabilidad I","IMS303 (LFP) - 1709",1,3,100]
["IMS303 (LFP)","Realización de Proyectos de Audiovisuales y Espectáculos","0904","Planificación de la realización en televisión","IMS303 (LFP) - 0904",2,5,167]
["IMS303 (LFP)","Realización de Proyectos de Audiovisuales y Espectáculos","0905","Procesos de realización en televisión","IMS303 (LFP) - 0905",2,6,200]
["IMS303 (LFP)","Realización de Proyectos de Audiovisuales y Espectáculos","0907","Realización del montaje y postproducción de audiovisuales","IMS303 (LFP) - 0907",2,7,233]
["IMS303 (LFP)","Realización de Proyectos de Audiovisuales y Espectáculos","0909","Procesos de regiduría de espectáculos y eventos","IMS303 (LFP) - 0909",2,4,133]
["IMS303 (LFP)","Realización de Proyectos de Audiovisuales y Espectáculos","0911","Proyecto Intermodular de realización de proyectos de audiovisuales y espectáculos","IMS303 (LFP) - 0911",2,2,67]
["IMS303 (LFP)","Realización de Proyectos de Audiovisuales y Espectáculos","1708","Sostenibilidad aplicada al sistema productivo","IMS303 (LFP) - 1708",2,1,33]
["IMS303 (LFP)","Realización de Proyectos de Audiovisuales y Espectáculos","1710","Itinerario personal para la empleabilidad II","IMS303 (LFP) - 1710",2,2,67]
["IMS303 (LFP)","Realización de Proyectos de Audiovisuales y Espectáculos","0OPT","Módulo profesional optativo","IMS303 (LFP) - 0OPT",2,3,100]
["IMS304 (LFP)","Sonido para Audiovisuales y Espectáculos","0179","Inglés Profesional (GS)",{"$f":"CONCATENATE(A1667,\" - \",C1667)","v":"IMS304 (LFP) - 0179"},1,2,67]
["IMS304 (LFP)","Sonido para Audiovisuales y Espectáculos","1096","Planificación de proyectos de sonido","IMS304 (LFP) - 1096",1,4,133]
["IMS304 (LFP)","Sonido para Audiovisuales y Espectáculos","1097","Instalaciones de sonido","IMS304 (LFP) - 1097",1,6,200]
["IMS304 (LFP)","Sonido para Audiovisuales y Espectáculos","1098","Sonido para audiovisuales","IMS304 (LFP) - 1098",1,6,200]
["IMS304 (LFP)","Sonido para Audiovisuales y Espectáculos","1103","Electroacústica","IMS304 (LFP) - 1103",1,3,100]
["IMS304 (LFP)","Sonido para Audiovisuales y Espectáculos","1104","Comunicación y expresión sonora","IMS304 (LFP) - 1104",1,5,167]
["IMS304 (LFP)","Sonido para Audiovisuales y Espectáculos","1665","Digitalización aplicada a los sectores productivos (GS)","IMS304 (LFP) - 1665",1,1,33]
["IMS304 (LFP)","Sonido para Audiovisuales y Espectáculos","1709","Itinerario personal para la empleabilidad I","IMS304 (LFP) - 1709",1,3,100]
["IMS304 (LFP)","Sonido para Audiovisuales y Espectáculos","1099","Control de sonido en directo","IMS304 (LFP) - 1099",2,6,200]
["IMS304 (LFP)","Sonido para Audiovisuales y Espectáculos","1100","Grabación en estudio","IMS304 (LFP) - 1100",2,7,233]
["IMS304 (LFP)","Sonido para Audiovisuales y Espectáculos","1101","Ajustes de sistemas de sonorización","IMS304 (LFP) - 1101",2,3,100]
["IMS304 (LFP)","Sonido para Audiovisuales y Espectáculos","1102","Postproducción de sonido","IMS304 (LFP) - 1102",2,6,200]
["IMS304 (LFP)","Sonido para Audiovisuales y Espectáculos","1105","Proyecto Intermodular de sonido para audiovisuales y espectáculos","IMS304 (LFP) - 1105",2,2,67]
["IMS304 (LFP)","Sonido para Audiovisuales y Espectáculos","1708","Sostenibilidad aplicada al sistema productivo","IMS304 (LFP) - 1708",2,1,33]
["IMS304 (LFP)","Sonido para Audiovisuales y Espectáculos","1710","Itinerario personal para la empleabilidad II","IMS304 (LFP) - 1710",2,2,67]
["IMS304 (LFP)","Sonido para Audiovisuales y Espectáculos","0OPT","Módulo profesional optativo","IMS304 (LFP) - 0OPT",2,3,100]
["IMS305 (LFP)","Animaciones 3D, Juegos y Entornos Interactivos","0179","Inglés Profesional (GS)","IMS305 (LFP) - 0179",1,2,67]
["IMS305 (LFP)","Animaciones 3D, Juegos y Entornos Interactivos","1086","Diseño, dibujo y modelado para animación","IMS305 (LFP) - 1086",1,5,167]
["IMS305 (LFP)","Animaciones 3D, Juegos y Entornos Interactivos","1087","Animación de elementos 2d y 3d","IMS305 (LFP) - 1087",1,8,267]
["IMS305 (LFP)","Animaciones 3D, Juegos y Entornos Interactivos","1088","Color, iluminación y acabados 2d y 3d","IMS305 (LFP) - 1088",1,5,167]
["IMS305 (LFP)","Animaciones 3D, Juegos y Entornos Interactivos","1090","Realización de proyectos multimedia interactivos","IMS305 (LFP) - 1090",1,6,200]
["IMS305 (LFP)","Animaciones 3D, Juegos y Entornos Interactivos","1665","Digitalización aplicada a los sectores productivos (GS)","IMS305 (LFP) - 1665",1,1,33]
["IMS305 (LFP)","Animaciones 3D, Juegos y Entornos Interactivos","1709","Itinerario personal para la empleabilidad I","IMS305 (LFP) - 1709",1,3,100]
["IMS305 (LFP)","Animaciones 3D, Juegos y Entornos Interactivos","0907","Realización del montaje y postproducción de audiovisuales","IMS305 (LFP) - 0907",2,7,233]
["IMS305 (LFP)","Animaciones 3D, Juegos y Entornos Interactivos","1085","Proyectos de animación audiovisual 2d y 3d","IMS305 (LFP) - 1085",2,4,133]
["IMS305 (LFP)","Animaciones 3D, Juegos y Entornos Interactivos","1089","Proyectos de juegos y entornos interactivos","IMS305 (LFP) - 1089",2,3,100]
["IMS305 (LFP)","Animaciones 3D, Juegos y Entornos Interactivos","1091","Desarrollo de entornos interactivos multidispositivo","IMS305 (LFP) - 1091",2,8,267]
["IMS305 (LFP)","Animaciones 3D, Juegos y Entornos Interactivos","1093","Proyecto Intermodular de animaciones 3d, juegos y entornos interactivos","IMS305 (LFP) - 1093",2,2,67]
["IMS305 (LFP)","Animaciones 3D, Juegos y Entornos Interactivos","1708","Sostenibilidad aplicada al sistema productivo","IMS305 (LFP) - 1708",2,1,33]
["IMS305 (LFP)","Animaciones 3D, Juegos y Entornos Interactivos","1710","Itinerario personal para la empleabilidad II","IMS305 (LFP) - 1710",2,2,67]
["IMS305 (LFP)","Animaciones 3D, Juegos y Entornos Interactivos","0OPT","Módulo profesional optativo","IMS305 (LFP) - 0OPT",2,3,100]
["INA201 (LFP)","Elaboración de Productos Alimenticios","0031","Seguridad e higiene en la manipulación de alimentos","INA201 (LFP) - 0031",1,2,67]
["INA201 (LFP)","Elaboración de Productos Alimenticios","0141","Materias primas en la industria alimentaria","INA201 (LFP) - 0141",1,4,133]
["INA201 (LFP)","Elaboración de Productos Alimenticios","0142","Operaciones de acondicionado de materias primas","INA201 (LFP) - 0142",1,4,133]
["INA201 (LFP)","Elaboración de Productos Alimenticios","0143","Tratamientos de transformación y conservación","INA201 (LFP) - 0143",1,8,267]
["INA201 (LFP)","Elaboración de Productos Alimenticios","0145","Procesos tecnológicos en la industria alimentaria","INA201 (LFP) - 0145",1,5,167]
["INA201 (LFP)","Elaboración de Productos Alimenticios","0156","Inglés Profesional (GM)","INA201 (LFP) - 0156",1,2,67]
["INA201 (LFP)","Elaboración de Productos Alimenticios","1664","Digitalización aplicada a los sectores productivos (GM)","INA201 (LFP) - 1664",1,1,33]
["INA201 (LFP)","Elaboración de Productos Alimenticios","1709","Itinerario personal para la empleabilidad I","INA201 (LFP) - 1709",1,3,100]
["INA201 (LFP)","Elaboración de Productos Alimenticios","A997","Tutoría I","INA201 (LFP) - A997",1,1,33]
["INA201 (LFP)","Elaboración de Productos Alimenticios","0030","Operaciones y control de almacén en la industria alimentaria","INA201 (LFP) - 0030",2,2,67]
["INA201 (LFP)","Elaboración de Productos Alimenticios","0116","Principios de mantenimiento electromecánico","INA201 (LFP) - 0116",2,2,67]
["INA201 (LFP)","Elaboración de Productos Alimenticios","0144","Procesado de productos alimenticios","INA201 (LFP) - 0144",2,15,500]
["INA201 (LFP)","Elaboración de Productos Alimenticios","0146","Venta y comercialización de productos alimentarios","INA201 (LFP) - 0146",2,2,67]
["INA201 (LFP)","Elaboración de Productos Alimenticios","1708","Sostenibilidad aplicada al sistema productivo","INA201 (LFP) - 1708",2,1,33]
["INA201 (LFP)","Elaboración de Productos Alimenticios","1710","Itinerario personal para la empleabilidad II","INA201 (LFP) - 1710",2,2,67]
["INA201 (LFP)","Elaboración de Productos Alimenticios","1713","Proyecto Intermodular","INA201 (LFP) - 1713",2,2,67]
["INA201 (LFP)","Elaboración de Productos Alimenticios","A996","Tutoría II","INA201 (LFP) - A996",2,1,33]
["INA201 (LFP)","Elaboración de Productos Alimenticios","0OPT","Módulo profesional optativo","INA201 (LFP) - 0OPT",2,3,100]
["INA204 (LFP)","Aceites de Oliva y Vinos","0031","Seguridad e higiene en la manipulación de alimentos","INA204 (LFP) - 0031",1,2,67]
["INA204 (LFP)","Aceites de Oliva y Vinos","0146","Venta y comercialización de productos alimentarios","INA204 (LFP) - 0146",1,2,67]
["INA204 (LFP)","Aceites de Oliva y Vinos","0156","Inglés Profesional (GM)","INA204 (LFP) - 0156",1,2,67]
["INA204 (LFP)","Aceites de Oliva y Vinos","0316","Materias primas y productos en la industria oleícola, vinícola y de otras bebidas","INA204 (LFP) - 0316",1,8,267]
["INA204 (LFP)","Aceites de Oliva y Vinos","0317","Extracción de aceites de oliva","INA204 (LFP) - 0317",1,5,167]
["INA204 (LFP)","Aceites de Oliva y Vinos","0320","Elaboración de otras bebidas y derivados","INA204 (LFP) - 0320",1,6,200]
["INA204 (LFP)","Aceites de Oliva y Vinos","1664","Digitalización aplicada a los sectores productivos (GM)","INA204 (LFP) - 1664",1,1,33]
["INA204 (LFP)","Aceites de Oliva y Vinos","1709","Itinerario personal para la empleabilidad I","INA204 (LFP) - 1709",1,3,100]
["INA204 (LFP)","Aceites de Oliva y Vinos","A997","Tutoría I","INA204 (LFP) - A997",1,1,33]
["INA204 (LFP)","Aceites de Oliva y Vinos","0030","Operaciones y control de almacén en la industria alimentaria","INA204 (LFP) - 0030",2,2,67]
["INA204 (LFP)","Aceites de Oliva y Vinos","0116","Principios de mantenimiento electromecánico","INA204 (LFP) - 0116",2,2,67]
["INA204 (LFP)","Aceites de Oliva y Vinos","0318","Elaboración de vinos","INA204 (LFP) - 0318",2,8,267]
["INA204 (LFP)","Aceites de Oliva y Vinos","0319","Acondicionamiento de aceites de oliva","INA204 (LFP) - 0319",2,5,167]
["INA204 (LFP)","Aceites de Oliva y Vinos","0321","Análisis sensorial","INA204 (LFP) - 0321",2,4,133]
["INA204 (LFP)","Aceites de Oliva y Vinos","1708","Sostenibilidad aplicada al sistema productivo","INA204 (LFP) - 1708",2,1,33]
["INA204 (LFP)","Aceites de Oliva y Vinos","1710","Itinerario personal para la empleabilidad II",{"$f":"CONCATENATE(A1731,\" - \",C1731)","v":"INA204 (LFP) - 1710"},2,2,67]
["INA204 (LFP)","Aceites de Oliva y Vinos","1713","Proyecto Intermodular","INA204 (LFP) - 1713",2,2,67]
["INA204 (LFP)","Aceites de Oliva y Vinos","A996","Tutoría II","INA204 (LFP) - A996",2,1,33]
["INA204 (LFP)","Aceites de Oliva y Vinos","0OPT","Módulo profesional optativo","INA204 (LFP) - 0OPT",2,3,100]
["INA207 (LFP)","Panadería, Repostería y Confitería","0024","Materias primas y procesos en panadería, pastelería y repostería","INA207 (LFP) - 0024",1,3,100]
["INA207 (LFP)","Panadería, Repostería y Confitería","0025","Elaboraciones de panaderíabollería","INA207 (LFP) - 0025",1,10,333]
["INA207 (LFP)","Panadería, Repostería y Confitería","0026","Procesos básicos de pastelería y repostería","INA207 (LFP) - 0026",1,6,200]
["INA207 (LFP)","Panadería, Repostería y Confitería","0030","Operaciones y control de almacén en la industria alimentaria","INA207 (LFP) - 0030",1,2,67]
["INA207 (LFP)","Panadería, Repostería y Confitería","0031","Seguridad e higiene en la manipulación de alimentos","INA207 (LFP) - 0031",1,2,67]
["INA207 (LFP)","Panadería, Repostería y Confitería","0156","Inglés Profesional (GM)","INA207 (LFP) - 0156",1,2,67]
["INA207 (LFP)","Panadería, Repostería y Confitería","1664","Digitalización aplicada a los sectores productivos (GM)","INA207 (LFP) - 1664",1,1,33]
["INA207 (LFP)","Panadería, Repostería y Confitería","1709","Itinerario personal para la empleabilidad I","INA207 (LFP) - 1709",1,3,100]
["INA207 (LFP)","Panadería, Repostería y Confitería","A997","Tutoría I","INA207 (LFP) - A997",1,1,33]
["INA207 (LFP)","Panadería, Repostería y Confitería","0027","Elaboraciones de confitería y otras especialidades","INA207 (LFP) - 0027",2,8,267]
["INA207 (LFP)","Panadería, Repostería y Confitería","0028","Postres en restauración","INA207 (LFP) - 0028",2,5,167]
["INA207 (LFP)","Panadería, Repostería y Confitería","0029","Productos de obrador","INA207 (LFP) - 0029",2,6,200]
["INA207 (LFP)","Panadería, Repostería y Confitería","0032","Presentación y venta de productos de panadería y pastelería","INA207 (LFP) - 0032",2,2,67]
["INA207 (LFP)","Panadería, Repostería y Confitería","1708","Sostenibilidad aplicada al sistema productivo","INA207 (LFP) - 1708",2,1,33]
["INA207 (LFP)","Panadería, Repostería y Confitería","1710","Itinerario personal para la empleabilidad II","INA207 (LFP) - 1710",2,2,67]
["INA207 (LFP)","Panadería, Repostería y Confitería","1713","Proyecto Intermodular","INA207 (LFP) - 1713",2,2,67]
["INA207 (LFP)","Panadería, Repostería y Confitería","A996","Tutoría II","INA207 (LFP) - A996",2,1,33]
["INA207 (LFP)","Panadería, Repostería y Confitería","0OPT","Módulo profesional optativo","INA207 (LFP) - 0OPT",2,3,100]
["INA301 (LFP)","Procesos y Calidad en la Industria Alimentaria","0179","Inglés Profesional (GS)","INA301 (LFP) - 0179",1,2,67]
["INA301 (LFP)","Procesos y Calidad en la Industria Alimentaria","0462","Tecnología alimentaria","INA301 (LFP) - 0462",1,5,167]
["INA301 (LFP)","Procesos y Calidad en la Industria Alimentaria","0464","Análisis de alimentos","INA301 (LFP) - 0464",1,4,133]
["INA301 (LFP)","Procesos y Calidad en la Industria Alimentaria","0465","Tratamientos de preparación y conservación de los alimentos","INA301 (LFP) - 0465",1,7,233]
["INA301 (LFP)","Procesos y Calidad en la Industria Alimentaria","0467","Control microbiológico y sensorial de los alimentos","INA301 (LFP) - 0467",1,5,167]
["INA301 (LFP)","Procesos y Calidad en la Industria Alimentaria","0468","Nutrición y Seguridad Alimentaria","INA301 (LFP) - 0468",1,3,100]
["INA301 (LFP)","Procesos y Calidad en la Industria Alimentaria","1665","Digitalización aplicada a los sectores productivos (GS)","INA301 (LFP) - 1665",1,1,33]
["INA301 (LFP)","Procesos y Calidad en la Industria Alimentaria","1709","Itinerario personal para la empleabilidad I","INA301 (LFP) - 1709",1,3,100]
["INA301 (LFP)","Procesos y Calidad en la Industria Alimentaria","0084","Comercialización y logística en la industria alimentaria","INA301 (LFP) - 0084",2,3,100]
["INA301 (LFP)","Procesos y Calidad en la Industria Alimentaria","0086","Gestión de calidad y ambiental en la industria alimentaria","INA301 (LFP) - 0086",2,5,167]
["INA301 (LFP)","Procesos y Calidad en la Industria Alimentaria","0191","Mantenimiento electromecánico en industrias de proceso","INA301 (LFP) - 0191",2,3,100]
["INA301 (LFP)","Procesos y Calidad en la Industria Alimentaria","0463","Biotecnología alimentaria","INA301 (LFP) - 0463",2,2,67]
["INA301 (LFP)","Procesos y Calidad en la Industria Alimentaria","0466","Organización de la producción alimentaria","INA301 (LFP) - 0466",2,2,67]
["INA301 (LFP)","Procesos y Calidad en la Industria Alimentaria","0469","Procesos integrados en la industria alimentaria","INA301 (LFP) - 0469",2,5,167]
["INA301 (LFP)","Procesos y Calidad en la Industria Alimentaria","0470","Innovación alimentaria","INA301 (LFP) - 0470",2,2,67]
["INA301 (LFP)","Procesos y Calidad en la Industria Alimentaria","0471","Proyecto Intermodular de procesos y calidad en la Industria Alimentaria","INA301 (LFP) - 0471",2,2,67]
["INA301 (LFP)","Procesos y Calidad en la Industria Alimentaria","1708","Sostenibilidad aplicada al sistema productivo","INA301 (LFP) - 1708",2,1,33]
["INA301 (LFP)","Procesos y Calidad en la Industria Alimentaria","1710","Itinerario personal para la empleabilidad II","INA301 (LFP) - 1710",2,2,67]
["INA301 (LFP)","Procesos y Calidad en la Industria Alimentaria","0OPT","Módulo profesional optativo","INA301 (LFP) - 0OPT",2,3,100]
["INA302 (LFP)","Vitivinicultura","0077","Viticultura","INA302 (LFP) - 0077",1,5,167]
["INA302 (LFP)","Vitivinicultura","0078","Vinificaciones","INA302 (LFP) - 0078",1,6,200]
["INA302 (LFP)","Vitivinicultura","0079","Procesos bioquímicos","INA302 (LFP) - 0079",1,5,167]
["INA302 (LFP)","Vitivinicultura","0081","Análisis enológico","INA302 (LFP) - 0081",1,5,167]
["INA302 (LFP)","Vitivinicultura","0085","Legislación vitivinícola y seguridad alimentaria","INA302 (LFP) - 0085",1,3,100]
["INA302 (LFP)","Vitivinicultura","0179","Inglés Profesional (GS)","INA302 (LFP) - 0179",1,2,67]
["INA302 (LFP)","Vitivinicultura","1665","Digitalización aplicada a los sectores productivos (GS)","INA302 (LFP) - 1665",1,1,33]
["INA302 (LFP)","Vitivinicultura","1709","Itinerario personal para la empleabilidad I","INA302 (LFP) - 1709",1,3,100]
["INA302 (LFP)","Vitivinicultura","0080","Estabilización, crianza y envasado","INA302 (LFP) - 0080",2,6,200]
["INA302 (LFP)","Vitivinicultura","0082","Industrias derivadas","INA302 (LFP) - 0082",2,4,133]
["INA302 (LFP)","Vitivinicultura","0083","Cata y cultura vitivinícola","INA302 (LFP) - 0083",2,4,133]
["INA302 (LFP)","Vitivinicultura","0084","Comercialización y logística en la industria alimentaria","INA302 (LFP) - 0084",2,3,100]
["INA302 (LFP)","Vitivinicultura","0086","Gestión de calidad y ambiental en la industria alimentaria","INA302 (LFP) - 0086",2,5,167]
["INA302 (LFP)","Vitivinicultura","0087","Proyecto Intermodular de la industria vitivinícola","INA302 (LFP) - 0087",2,2,67]
["INA302 (LFP)","Vitivinicultura","1708","Sostenibilidad aplicada al sistema productivo","INA302 (LFP) - 1708",2,1,33]
["INA302 (LFP)","Vitivinicultura","1710","Itinerario personal para la empleabilidad II","INA302 (LFP) - 1710",2,2,67]
["INA302 (LFP)","Vitivinicultura","0OPT","Módulo profesional optativo","INA302 (LFP) - 0OPT",2,3,100]
["MAM201 (LFP)","Fabricación a Medida e Instalación de Carpintería y Mueble","0156","Inglés Profesional (GM)","MAM201 (LFP) - 0156",1,2,67]
["MAM201 (LFP)","Fabricación a Medida e Instalación de Carpintería y Mueble","0538","Materiales en carpintería y mueble","MAM201 (LFP) - 0538",1,3,100]
["MAM201 (LFP)","Fabricación a Medida e Instalación de Carpintería y Mueble","0539","Soluciones constructivas","MAM201 (LFP) - 0539",1,5,167]
["MAM201 (LFP)","Fabricación a Medida e Instalación de Carpintería y Mueble","0540","Operaciones básicas de carpintería","MAM201 (LFP) - 0540",1,7,233]
["MAM201 (LFP)","Fabricación a Medida e Instalación de Carpintería y Mueble","0541","Operaciones básicas de mobiliario","MAM201 (LFP) - 0541",1,7,233]
["MAM201 (LFP)","Fabricación a Medida e Instalación de Carpintería y Mueble","0542","Control de almacén","MAM201 (LFP) - 0542",1,1,33]
["MAM201 (LFP)","Fabricación a Medida e Instalación de Carpintería y Mueble","1664","Digitalización aplicada a los sectores productivos (GM)",{"$f":"CONCATENATE(A1795,\" - \",C1795)","v":"MAM201 (LFP) - 1664"},1,1,33]
["MAM201 (LFP)","Fabricación a Medida e Instalación de Carpintería y Mueble","1709","Itinerario personal para la empleabilidad I","MAM201 (LFP) - 1709",1,3,100]
["MAM201 (LFP)","Fabricación a Medida e Instalación de Carpintería y Mueble","A997","Tutoría I","MAM201 (LFP) - A997",1,1,33]
["MAM201 (LFP)","Fabricación a Medida e Instalación de Carpintería y Mueble","0778","Planificación de la instalación","MAM201 (LFP) - 0778",2,5,167]
["MAM201 (LFP)","Fabricación a Medida e Instalación de Carpintería y Mueble","0779","Instalación de mobiliario","MAM201 (LFP) - 0779",2,5,167]
["MAM201 (LFP)","Fabricación a Medida e Instalación de Carpintería y Mueble","0780","Instalación de carpintería","MAM201 (LFP) - 0780",2,6,200]
["MAM201 (LFP)","Fabricación a Medida e Instalación de Carpintería y Mueble","0781","Instalación de estructuras de madera","MAM201 (LFP) - 0781",2,5,167]
["MAM201 (LFP)","Fabricación a Medida e Instalación de Carpintería y Mueble","1708","Sostenibilidad aplicada al sistema productivo","MAM201 (LFP) - 1708",2,1,33]
["MAM201 (LFP)","Fabricación a Medida e Instalación de Carpintería y Mueble","1710","Itinerario personal para la empleabilidad II","MAM201 (LFP) - 1710",2,2,67]
["MAM201 (LFP)","Fabricación a Medida e Instalación de Carpintería y Mueble","1713","Proyecto Intermodular","MAM201 (LFP) - 1713",2,2,67]
["MAM201 (LFP)","Fabricación a Medida e Instalación de Carpintería y Mueble","A996","Tutoría II","MAM201 (LFP) - A996",2,1,33]
["MAM201 (LFP)","Fabricación a Medida e Instalación de Carpintería y Mueble","0OPT","Módulo profesional optativo","MAM201 (LFP) - 0OPT",2,3,100]
["MAM202 (LFP)","Carpintería y Mueble","0156","Inglés Profesional (GM)","MAM202 (LFP) - 0156",1,2,67]
["MAM202 (LFP)","Carpintería y Mueble","0538","Materiales en carpintería y mueble","MAM202 (LFP) - 0538",1,3,100]
["MAM202 (LFP)","Carpintería y Mueble","0539","Soluciones constructivas","MAM202 (LFP) - 0539",1,5,167]
["MAM202 (LFP)","Carpintería y Mueble","0540","Operaciones básicas de carpintería","MAM202 (LFP) - 0540",1,7,233]
["MAM202 (LFP)","Carpintería y Mueble","0541","Operaciones básicas de mobiliario","MAM202 (LFP) - 0541",1,7,233]
["MAM202 (LFP)","Carpintería y Mueble","0542","Control de almacén","MAM202 (LFP) - 0542",1,1,33]
["MAM202 (LFP)","Carpintería y Mueble","1664","Digitalización aplicada a los sectores productivos (GM)","MAM202 (LFP) - 1664",1,1,33]
["MAM202 (LFP)","Carpintería y Mueble","1709","Itinerario personal para la empleabilidad I","MAM202 (LFP) - 1709",1,3,100]
["MAM202 (LFP)","Carpintería y Mueble","A997","Tutoría I","MAM202 (LFP) - A997",1,1,33]
["MAM202 (LFP)","Carpintería y Mueble","0543","Documentación técnica","MAM202 (LFP) - 0543",2,4,133]
["MAM202 (LFP)","Carpintería y Mueble","0544","Mecanizado de madera y derivados","MAM202 (LFP) - 0544",2,6,200]
["MAM202 (LFP)","Carpintería y Mueble","0545","Mecanizado por control numérico en carpintería y mueble","MAM202 (LFP) - 0545",2,4,133]
["MAM202 (LFP)","Carpintería y Mueble","0546","Montaje de carpintería y mueble","MAM202 (LFP) - 0546",2,4,133]
["MAM202 (LFP)","Carpintería y Mueble","0547","Acabados en carpintería y mueble","MAM202 (LFP) - 0547",2,3,100]
["MAM202 (LFP)","Carpintería y Mueble","1708","Sostenibilidad aplicada al sistema productivo","MAM202 (LFP) - 1708",2,1,33]
["MAM202 (LFP)","Carpintería y Mueble","1710","Itinerario personal para la empleabilidad II","MAM202 (LFP) - 1710",2,2,67]
["MAM202 (LFP)","Carpintería y Mueble","1713","Proyecto Intermodular","MAM202 (LFP) - 1713",2,2,67]
["MAM202 (LFP)","Carpintería y Mueble","A996","Tutoría II","MAM202 (LFP) - A996",2,1,33]
["MAM202 (LFP)","Carpintería y Mueble","0OPT","Módulo profesional optativo","MAM202 (LFP) - 0OPT",2,3,100]
["MAM301 (LFP)","Diseño y Amueblamiento","0179","Inglés Profesional (GS)","MAM301 (LFP) - 0179",1,2,67]
["MAM301 (LFP)","Diseño y Amueblamiento","0982","Procesos en industrias de carpintería y mueble","MAM301 (LFP) - 0982",1,3,100]
["MAM301 (LFP)","Diseño y Amueblamiento","0983","Fabricación en carpintería y mueble","MAM301 (LFP) - 0983",1,6,200]
["MAM301 (LFP)","Diseño y Amueblamiento","0984","Representación en carpintería y mobiliario","MAM301 (LFP) - 0984",1,5,167]
["MAM301 (LFP)","Diseño y Amueblamiento","0985","Prototipos en carpintería y mueble","MAM301 (LFP) - 0985",1,5,167]
["MAM301 (LFP)","Diseño y Amueblamiento","0986","Desarrollo de producto en carpintería y mueble","MAM301 (LFP) - 0986",1,5,167]
["MAM301 (LFP)","Diseño y Amueblamiento","1665","Digitalización aplicada a los sectores productivos (GS)","MAM301 (LFP) - 1665",1,1,33]
["MAM301 (LFP)","Diseño y Amueblamiento","1709","Itinerario personal para la empleabilidad I","MAM301 (LFP) - 1709",1,3,100]
["MAM301 (LFP)","Diseño y Amueblamiento","0987","Automatización en carpintería y mueble","MAM301 (LFP) - 0987",2,8,267]
["MAM301 (LFP)","Diseño y Amueblamiento","0988","Instalaciones en carpintería y mobiliario","MAM301 (LFP) - 0988",2,5,167]
["MAM301 (LFP)","Diseño y Amueblamiento","0989","Diseño de carpintería y mueble","MAM301 (LFP) - 0989",2,5,167]
["MAM301 (LFP)","Diseño y Amueblamiento","0990","Gestión de la producción en carpintería y mueble","MAM301 (LFP) - 0990",2,4,133]
["MAM301 (LFP)","Diseño y Amueblamiento","0991","Proyecto Intermodular de diseño y amueblamiento","MAM301 (LFP) - 0991",2,2,67]
["MAM301 (LFP)","Diseño y Amueblamiento","1708","Sostenibilidad aplicada al sistema productivo","MAM301 (LFP) - 1708",2,1,33]
["MAM301 (LFP)","Diseño y Amueblamiento","1710","Itinerario personal para la empleabilidad II","MAM301 (LFP) - 1710",2,2,67]
["MAM301 (LFP)","Diseño y Amueblamiento","0OPT","Módulo profesional optativo","MAM301 (LFP) - 0OPT",2,3,100]
["QUI201 (LFP)","Operaciones de Laboratorio","0156","Inglés Profesional (GM)","QUI201 (LFP) - 0156",1,2,67]
["QUI201 (LFP)","Operaciones de Laboratorio","1249","Química aplicada","QUI201 (LFP) - 1249",1,7,233]
["QUI201 (LFP)","Operaciones de Laboratorio","1250","Muestreo y operaciones unitarias de laboratorio","QUI201 (LFP) - 1250",1,5,167]
["QUI201 (LFP)","Operaciones de Laboratorio","1251","Pruebas fisicoquímicas","QUI201 (LFP) - 1251",1,4,133]
["QUI201 (LFP)","Operaciones de Laboratorio","1253","Seguridad y organización en el laboratorio","QUI201 (LFP) - 1253",1,2,67]
["QUI201 (LFP)","Operaciones de Laboratorio","1254","Técnicas básicas de microbiología y bioquímica","QUI201 (LFP) - 1254",1,5,167]
["QUI201 (LFP)","Operaciones de Laboratorio","1664","Digitalización aplicada a los sectores productivos (GM)","QUI201 (LFP) - 1664",1,1,33]
["QUI201 (LFP)","Operaciones de Laboratorio","1709","Itinerario personal para la empleabilidad I","QUI201 (LFP) - 1709",1,3,100]
["QUI201 (LFP)","Operaciones de Laboratorio","A997","Tutoría I","QUI201 (LFP) - A997",1,1,33]
["QUI201 (LFP)","Operaciones de Laboratorio","0116","Principios de mantenimiento electromecánico","QUI201 (LFP) - 0116",2,2,67]
["QUI201 (LFP)","Operaciones de Laboratorio","1252","Servicios auxiliares en el laboratorio","QUI201 (LFP) - 1252",2,2,67]
["QUI201 (LFP)","Operaciones de Laboratorio","1255","Operaciones de análisis químico","QUI201 (LFP) - 1255",2,10,333]
["QUI201 (LFP)","Operaciones de Laboratorio","1256","Ensayos de materiales","QUI201 (LFP) - 1256",2,5,167]
["QUI201 (LFP)","Operaciones de Laboratorio","1257","Almacenamiento y distribución en el laboratorio","QUI201 (LFP) - 1257",2,2,67]
["QUI201 (LFP)","Operaciones de Laboratorio","1708","Sostenibilidad aplicada al sistema productivo","QUI201 (LFP) - 1708",2,1,33]
["QUI201 (LFP)","Operaciones de Laboratorio","1710","Itinerario personal para la empleabilidad II","QUI201 (LFP) - 1710",2,2,67]
["QUI201 (LFP)","Operaciones de Laboratorio","1713","Proyecto Intermodular","QUI201 (LFP) - 1713",2,2,67]
["QUI201 (LFP)","Operaciones de Laboratorio","A996","Tutoría II",{"$f":"CONCATENATE(A1859,\" - \",C1859)","v":"QUI201 (LFP) - A996"},2,1,33]
["QUI201 (LFP)","Operaciones de Laboratorio","0OPT","Módulo profesional optativo","QUI201 (LFP) - 0OPT",2,3,100]
["QUI204 (LFP)","Planta Química","0109","Parámetros químicos","QUI204 (LFP) - 0109",1,5,167]
["QUI204 (LFP)","Planta Química","0110","Operaciones unitarias en planta química","QUI204 (LFP) - 0110",1,7,233]
["QUI204 (LFP)","Planta Química","0111","Operaciones de reacción en planta química","QUI204 (LFP) - 0111",1,5,167]
["QUI204 (LFP)","Planta Química","0114","Transporte de materiales en la industria química","QUI204 (LFP) - 0114",1,6,200]
["QUI204 (LFP)","Planta Química","0156","Inglés Profesional (GM)","QUI204 (LFP) - 0156",1,2,67]
["QUI204 (LFP)","Planta Química","1664","Digitalización aplicada a los sectores productivos (GM)","QUI204 (LFP) - 1664",1,1,33]
["QUI204 (LFP)","Planta Química","1709","Itinerario personal para la empleabilidad I","QUI204 (LFP) - 1709",1,3,100]
["QUI204 (LFP)","Planta Química","A997","Tutoría I","QUI204 (LFP) - A997",1,1,33]
["QUI204 (LFP)","Planta Química","0112","Control de procesos químicos industriales","QUI204 (LFP) - 0112",2,7,233]
["QUI204 (LFP)","Planta Química","0113","Operaciones de generación y transferencia de energía en proceso químico","QUI204 (LFP) - 0113",2,7,233]
["QUI204 (LFP)","Planta Química","0115","Tratamiento de aguas","QUI204 (LFP) - 0115",2,5,167]
["QUI204 (LFP)","Planta Química","0116","Principios de mantenimiento electromecánico","QUI204 (LFP) - 0116",2,2,67]
["QUI204 (LFP)","Planta Química","1708","Sostenibilidad aplicada al sistema productivo","QUI204 (LFP) - 1708",2,1,33]
["QUI204 (LFP)","Planta Química","1710","Itinerario personal para la empleabilidad II","QUI204 (LFP) - 1710",2,2,67]
["QUI204 (LFP)","Planta Química","1713","Proyecto Intermodular","QUI204 (LFP) - 1713",2,2,67]
["QUI204 (LFP)","Planta Química","A996","Tutoría II","QUI204 (LFP) - A996",2,1,33]
["QUI204 (LFP)","Planta Química","0OPT","Módulo profesional optativo","QUI204 (LFP) - 0OPT",2,3,100]
["QUI301 (LFP)","Laboratorio de Análisis y de Control de Calidad","0065","Muestreo y preparación de la muestra","QUI301 (LFP) - 0065",1,5,167]
["QUI301 (LFP)","Laboratorio de Análisis y de Control de Calidad","0066","Análisis químicos","QUI301 (LFP) - 0066",1,10,333]
["QUI301 (LFP)","Laboratorio de Análisis y de Control de Calidad","0069","Ensayos fisicoquímicos","QUI301 (LFP) - 0069",1,4,133]
["QUI301 (LFP)","Laboratorio de Análisis y de Control de Calidad","0070","Ensayos microbiológicos","QUI301 (LFP) - 0070",1,5,167]
["QUI301 (LFP)","Laboratorio de Análisis y de Control de Calidad","0179","Inglés Profesional (GS)","QUI301 (LFP) - 0179",1,2,67]
["QUI301 (LFP)","Laboratorio de Análisis y de Control de Calidad","1665","Digitalización aplicada a los sectores productivos (GS)","QUI301 (LFP) - 1665",1,1,33]
["QUI301 (LFP)","Laboratorio de Análisis y de Control de Calidad","1709","Itinerario personal para la empleabilidad I","QUI301 (LFP) - 1709",1,3,100]
["QUI301 (LFP)","Laboratorio de Análisis y de Control de Calidad","0067","Análisis instrumental","QUI301 (LFP) - 0067",2,9,300]
["QUI301 (LFP)","Laboratorio de Análisis y de Control de Calidad","0068","Ensayos físicos","QUI301 (LFP) - 0068",2,4,133]
["QUI301 (LFP)","Laboratorio de Análisis y de Control de Calidad","0071","Ensayos biotecnológicos","QUI301 (LFP) - 0071",2,4,133]
["QUI301 (LFP)","Laboratorio de Análisis y de Control de Calidad","0072","Calidad y seguridad en el laboratorio","QUI301 (LFP) - 0072",2,5,167]
["QUI301 (LFP)","Laboratorio de Análisis y de Control de Calidad","0073","Proyecto Intermodular de laboratorio de análisis y de control de calidad","QUI301 (LFP) - 0073",2,2,67]
["QUI301 (LFP)","Laboratorio de Análisis y de Control de Calidad","1708","Sostenibilidad aplicada al sistema productivo","QUI301 (LFP) - 1708",2,1,33]
["QUI301 (LFP)","Laboratorio de Análisis y de Control de Calidad","1710","Itinerario personal para la empleabilidad II","QUI301 (LFP) - 1710",2,2,67]
["QUI301 (LFP)","Laboratorio de Análisis y de Control de Calidad","0OPT","Módulo profesional optativo","QUI301 (LFP) - 0OPT",2,3,100]
["QUI302 (LFP)","Fabricación de Productos Farmacéuticos, Biotecnológicos y Afines","0179","Inglés Profesional (GS)","QUI302 (LFP) - 0179",1,2,67]
["QUI302 (LFP)","Fabricación de Productos Farmacéuticos, Biotecnológicos y Afines","1387","Organización y gestión de la fabricación de productos farmacéuticos, biotecnológicos y afines","QUI302 (LFP) - 1387",1,2,67]
["QUI302 (LFP)","Fabricación de Productos Farmacéuticos, Biotecnológicos y Afines","1388","Control de calidad de productos farmacéuticos, biotecnológicos y afines","QUI302 (LFP) - 1388",1,5,167]
["QUI302 (LFP)","Fabricación de Productos Farmacéuticos, Biotecnológicos y Afines","1389","Operaciones básicas en la industria farmacéutica, biotecnológica y afines","QUI302 (LFP) - 1389",1,6,200]
["QUI302 (LFP)","Fabricación de Productos Farmacéuticos, Biotecnológicos y Afines","1390","Principios de biotecnología","QUI302 (LFP) - 1390",1,5,167]
["QUI302 (LFP)","Fabricación de Productos Farmacéuticos, Biotecnológicos y Afines","1391","Seguridad en la industria farmacéutica, biotecnológica y afines","QUI302 (LFP) - 1391",1,2,67]
["QUI302 (LFP)","Fabricación de Productos Farmacéuticos, Biotecnológicos y Afines","1392","Áreas y servicios auxiliares en la industria farmacéutica, biotecnológica y afines","QUI302 (LFP) - 1392",1,4,133]
["QUI302 (LFP)","Fabricación de Productos Farmacéuticos, Biotecnológicos y Afines","1665","Digitalización aplicada a los sectores productivos (GS)","QUI302 (LFP) - 1665",1,1,33]
["QUI302 (LFP)","Fabricación de Productos Farmacéuticos, Biotecnológicos y Afines","1709","Itinerario personal para la empleabilidad I","QUI302 (LFP) - 1709",1,3,100]
["QUI302 (LFP)","Fabricación de Productos Farmacéuticos, Biotecnológicos y Afines","0191","Mantenimiento electromecánico en industrias de proceso","QUI302 (LFP) - 0191",2,3,100]
["QUI302 (LFP)","Fabricación de Productos Farmacéuticos, Biotecnológicos y Afines","1393","Técnicas de producción biotecnológica","QUI302 (LFP) - 1393",2,6,200]
["QUI302 (LFP)","Fabricación de Productos Farmacéuticos, Biotecnológicos y Afines","1394","Técnicas de producción farmacéutica y afines","QUI302 (LFP) - 1394",2,6,200]
["QUI302 (LFP)","Fabricación de Productos Farmacéuticos, Biotecnológicos y Afines","1395","Regulación y control en la industria farmacéutica, biotecnológica y afines","QUI302 (LFP) - 1395",2,5,167]
["QUI302 (LFP)","Fabricación de Productos Farmacéuticos, Biotecnológicos y Afines","1396","Acondicionamiento y almacenamiento de productos farmacéuticos, biotecnológicos y afines","QUI302 (LFP) - 1396",2,2,67]
["QUI302 (LFP)","Fabricación de Productos Farmacéuticos, Biotecnológicos y Afines","1397","Proyecto Intermodular de fabricación de productos farmacéuticos, biotecnológicos y afines","QUI302 (LFP) - 1397",2,2,67]
["QUI302 (LFP)","Fabricación de Productos Farmacéuticos, Biotecnológicos y Afines","1708","Sostenibilidad aplicada al sistema productivo","QUI302 (LFP) - 1708",2,1,33]
["QUI302 (LFP)","Fabricación de Productos Farmacéuticos, Biotecnológicos y Afines","1710","Itinerario personal para la empleabilidad II","QUI302 (LFP) - 1710",2,2,67]
["QUI302 (LFP)","Fabricación de Productos Farmacéuticos, Biotecnológicos y Afines","0OPT","Módulo profesional optativo","QUI302 (LFP) - 0OPT",2,3,100]
["QUI304 (LFP)","Química Industrial","0179","Inglés Profesional (GS)","QUI304 (LFP) - 0179",1,2,67]
["QUI304 (LFP)","Química Industrial","0186","Transporte de sólidos y fluidos","QUI304 (LFP) - 0186",1,5,167]
["QUI304 (LFP)","Química Industrial","0188","Operaciones básicas en la industria química","QUI304 (LFP) - 0188",1,7,233]
["QUI304 (LFP)","Química Industrial","0189","Reactores químicos","QUI304 (LFP) - 0189",1,5,167]
["QUI304 (LFP)","Química Industrial","0192","Formulación y preparación de mezclas","QUI304 (LFP) - 0192",1,3,100]
["QUI304 (LFP)","Química Industrial","0193","Acondicionado y almacenamiento de productos químicos","QUI304 (LFP) - 0193",1,2,67]
["QUI304 (LFP)","Química Industrial","0194","Prevención de riesgos en industrias químicas","QUI304 (LFP) - 0194",1,2,67]
["QUI304 (LFP)","Química Industrial","1665","Digitalización aplicada a los sectores productivos (GS)","QUI304 (LFP) - 1665",1,1,33]
["QUI304 (LFP)","Química Industrial","1709","Itinerario personal para la empleabilidad I","QUI304 (LFP) - 1709",1,3,100]
["QUI304 (LFP)","Química Industrial","0185","Organización y gestión en industrias químicas","QUI304 (LFP) - 0185",2,3,100]
["QUI304 (LFP)","Química Industrial","0187","Generación y recuperación de energía","QUI304 (LFP) - 0187",2,6,200]
["QUI304 (LFP)","Química Industrial","0190","Regulación y control de proceso químico","QUI304 (LFP) - 0190",2,10,333]
["QUI304 (LFP)","Química Industrial","0191","Mantenimiento electromecánico en industrias de proceso",{"$f":"CONCATENATE(A1923,\" - \",C1923)","v":"QUI304 (LFP) - 0191"},2,3,100]
["QUI304 (LFP)","Química Industrial","0195","Proyecto Intermodular de industrias de proceso químico","QUI304 (LFP) - 0195",2,2,67]
["QUI304 (LFP)","Química Industrial","1708","Sostenibilidad aplicada al sistema productivo","QUI304 (LFP) - 1708",2,1,33]
["QUI304 (LFP)","Química Industrial","1710","Itinerario personal para la empleabilidad II","QUI304 (LFP) - 1710",2,2,67]
["QUI304 (LFP)","Química Industrial","0OPT","Módulo profesional optativo","QUI304 (LFP) - 0OPT",2,3,100]
["SAN201 (LFP)","Cuidados Auxiliares de Enfermería","C001","Técnicas Básicas de Enfermería","SAN201 (LFP) - C001",1,11,350]
["SAN201 (LFP)","Cuidados Auxiliares de Enfermería","C002","Higiene del Medio Hospitalario y Limpieza de Material","SAN201 (LFP) - C002",1,5,155]
["SAN201 (LFP)","Cuidados Auxiliares de Enfermería","C003","Promoción de la Salud y Apoyo Psicológico al Paciente","SAN201 (LFP) - C003",1,4,130]
["SAN201 (LFP)","Cuidados Auxiliares de Enfermería","C004","Técnicas de Ayuda Odontológica/Estomatológica","SAN201 (LFP) - C004",1,4,130]
["SAN201 (LFP)","Cuidados Auxiliares de Enfermería","C005","Operaciones Administrativas y Documentación Sanitaria","SAN201 (LFP) - C005",1,2,65]
["SAN201 (LFP)","Cuidados Auxiliares de Enfermería","C006","Relaciones en el Equipo de Trabajo (transversal)","SAN201 (LFP) - C006",1,2,65]
["SAN201 (LFP)","Cuidados Auxiliares de Enfermería","C007","Formación y Orientación Laboral (GM)","SAN201 (LFP) - C007",1,2,65]
["SAN201 (LFP)","Cuidados Auxiliares de Enfermería","C008","Formación en Centro de Trabajo (GM)","SAN201 (LFP) - C008","No especificado",0,440]
["SAN202 (LFP)","Farmacia y Parafarmacia","0020","Primeros auxilios","SAN202 (LFP) - 0020",1,1,33]
["SAN202 (LFP)","Farmacia y Parafarmacia","0061","Anatomofisiología y patología básicas","SAN202 (LFP) - 0061",1,4,133]
["SAN202 (LFP)","Farmacia y Parafarmacia","0099","Disposición y venta de productos","SAN202 (LFP) - 0099",1,2,67]
["SAN202 (LFP)","Farmacia y Parafarmacia","0100","Oficina de farmacia","SAN202 (LFP) - 0100",1,5,167]
["SAN202 (LFP)","Farmacia y Parafarmacia","0101","Dispensación de productos farmacéuticos","SAN202 (LFP) - 0101",1,6,200]
["SAN202 (LFP)","Farmacia y Parafarmacia","0103","Operaciones básicas de laboratorio","SAN202 (LFP) - 0103",1,5,167]
["SAN202 (LFP)","Farmacia y Parafarmacia","0156","Inglés Profesional (GM)","SAN202 (LFP) - 0156",1,2,67]
["SAN202 (LFP)","Farmacia y Parafarmacia","1664","Digitalización aplicada a los sectores productivos (GM)","SAN202 (LFP) - 1664",1,1,33]
["SAN202 (LFP)","Farmacia y Parafarmacia","1709","Itinerario personal para la empleabilidad I","SAN202 (LFP) - 1709",1,3,100]
["SAN202 (LFP)","Farmacia y Parafarmacia","A997","Tutoría I","SAN202 (LFP) - A997",1,1,33]
["SAN202 (LFP)","Farmacia y Parafarmacia","0102","Dispensación de productos parafarmacéuticos","SAN202 (LFP) - 0102",2,9,300]
["SAN202 (LFP)","Farmacia y Parafarmacia","0104","Formulación magistral","SAN202 (LFP) - 0104",2,7,233]
["SAN202 (LFP)","Farmacia y Parafarmacia","0105","Promoción de la salud","SAN202 (LFP) - 0105",2,5,167]
["SAN202 (LFP)","Farmacia y Parafarmacia","1708","Sostenibilidad aplicada al sistema productivo","SAN202 (LFP) - 1708",2,1,33]
["SAN202 (LFP)","Farmacia y Parafarmacia","1710","Itinerario personal para la empleabilidad II","SAN202 (LFP) - 1710",2,2,67]
["SAN202 (LFP)","Farmacia y Parafarmacia","1713","Proyecto Intermodular","SAN202 (LFP) - 1713",2,2,67]
["SAN202 (LFP)","Farmacia y Parafarmacia","A996","Tutoría II","SAN202 (LFP) - A996",2,1,33]
["SAN202 (LFP)","Farmacia y Parafarmacia","0OPT","Módulo profesional optativo","SAN202 (LFP) - 0OPT",2,3,100]
["SAN203 (LFP)","Emergencias Sanitarias","0052","Mantenimiento mecánico preventivo del vehículo","SAN203 (LFP) - 0052",1,2,66]
["SAN203 (LFP)","Emergencias Sanitarias","0052","Mantenimiento mecánico preventivo del vehículo","SAN203 (LFP) - 0052",1,2,67]
["SAN203 (LFP)","Emergencias Sanitarias","0054","Dotación sanitaria","SAN203 (LFP) - 0054",1,2,66]
["SAN203 (LFP)","Emergencias Sanitarias","0054","Dotación sanitaria","SAN203 (LFP) - 0054",1,2,67]
["SAN203 (LFP)","Emergencias Sanitarias","0055","Atención sanitaria inicial en situaciones de emergencia","SAN203 (LFP) - 0055",1,7,233]
["SAN203 (LFP)","Emergencias Sanitarias","0057","Evacuación y traslado de pacientes","SAN203 (LFP) - 0057",1,6,200]
["SAN203 (LFP)","Emergencias Sanitarias","0057","Evacuación y traslado de pacientes","SAN203 (LFP) - 0057",1,6,197]
["SAN203 (LFP)","Emergencias Sanitarias","0058","Apoyo psicológico en situaciones de emergencia","SAN203 (LFP) - 0058",1,2,67]
["SAN203 (LFP)","Emergencias Sanitarias","0061","Anatomofisiología y patología básicas","SAN203 (LFP) - 0061",1,4,133]
["SAN203 (LFP)","Emergencias Sanitarias","0061","Anatomofisiología y patología básicas","SAN203 (LFP) - 0061",1,4,131]
["SAN203 (LFP)","Emergencias Sanitarias","0156","Inglés Profesional (GM)","SAN203 (LFP) - 0156",1,2,67]
["SAN203 (LFP)","Emergencias Sanitarias","0156","Inglés Profesional (GM)","SAN203 (LFP) - 0156",1,2,66]
["SAN203 (LFP)","Emergencias Sanitarias","1664","Digitalización aplicada a los sectores productivos (GM)","SAN203 (LFP) - 1664",1,1,33]
["SAN203 (LFP)","Emergencias Sanitarias","1709","Itinerario personal para la empleabilidad I","SAN203 (LFP) - 1709",1,3,98]
["SAN203 (LFP)","Emergencias Sanitarias","1709","Itinerario personal para la empleabilidad I","SAN203 (LFP) - 1709",1,3,100]
["SAN203 (LFP)","Emergencias Sanitarias","A997","Tutoría I","SAN203 (LFP) - A997",1,1,33]
["SAN203 (LFP)","Emergencias Sanitarias","0053","Logística sanitaria en emergencias","SAN203 (LFP) - 0053",2,5,164]
["SAN203 (LFP)","Emergencias Sanitarias","0053","Logística sanitaria en emergencias","SAN203 (LFP) - 0053",2,5,167]
["SAN203 (LFP)","Emergencias Sanitarias","0055","Atención sanitaria inicial en situaciones de emergencia","SAN203 (LFP) - 0055",2,7,230]
["SAN203 (LFP)","Emergencias Sanitarias","0056","Atención sanitaria especial en situaciones de emergencia","SAN203 (LFP) - 0056",2,11,367]
["SAN203 (LFP)","Emergencias Sanitarias","0058","Apoyo psicológico en situaciones de emergencia","SAN203 (LFP) - 0058",2,2,66]
["SAN203 (LFP)","Emergencias Sanitarias","0059","Planes de emergencias y dispositivos de riesgos previsibles","SAN203 (LFP) - 0059",2,3,100]
["SAN203 (LFP)","Emergencias Sanitarias","0060","Teleemergencia","SAN203 (LFP) - 0060",2,2,67]
["SAN203 (LFP)","Emergencias Sanitarias","0060","Teleemergencia","SAN203 (LFP) - 0060",2,2,66]
["SAN203 (LFP)","Emergencias Sanitarias","1708","Sostenibilidad aplicada al sistema productivo","SAN203 (LFP) - 1708",2,1,33]
["SAN203 (LFP)","Emergencias Sanitarias","1710","Itinerario personal para la empleabilidad II","SAN203 (LFP) - 1710",2,2,67]
["SAN203 (LFP)","Emergencias Sanitarias","1710","Itinerario personal para la empleabilidad II","SAN203 (LFP) - 1710",2,2,66]
["SAN203 (LFP)","Emergencias Sanitarias","1713","Proyecto Intermodular","SAN203 (LFP) - 1713",2,2,67]
["SAN203 (LFP)","Emergencias Sanitarias","A996","Tutoría II","SAN203 (LFP) - A996",2,1,33]
["SAN203 (LFP)","Emergencias Sanitarias","0OPT","Módulo profesional optativo","SAN203 (LFP) - 0OPT",2,3,100]
["SAN203 (LFP)","Emergencias Sanitarias","0056","Atención sanitaria especial en situaciones de emergencia","SAN203 (LFP) - 0056",3,11,361]
["SAN203 (LFP)","Emergencias Sanitarias","0059","Planes de emergencias y dispositivos de riesgos previsibles","SAN203 (LFP) - 0059",3,3,98]
["SAN203 (LFP)","Emergencias Sanitarias","1713","Proyecto Intermodular","SAN203 (LFP) - 1713",3,2,66]
["SAN203 (LFP)","Emergencias Sanitarias","A995","Tutoría III",{"$f":"CONCATENATE(A1987,\" - \",C1987)","v":"SAN203 (LFP) - A995"},3,1,33]
["SAN203 (LFP)","Emergencias Sanitarias","0OPT","Módulo profesional optativo","SAN203 (LFP) - 0OPT",3,3,98]
["SAN301 (LFP)","Anatomía Patológica y Citodiagnóstico","0179","Inglés Profesional (GS)","SAN301 (LFP) - 0179",1,2,67]
["SAN301 (LFP)","Anatomía Patológica y Citodiagnóstico","1367","Gestión de muestras biológicas","SAN301 (LFP) - 1367",1,4,133]
["SAN301 (LFP)","Anatomía Patológica y Citodiagnóstico","1368","Técnicas generales de laboratorio","SAN301 (LFP) - 1368",1,7,233]
["SAN301 (LFP)","Anatomía Patológica y Citodiagnóstico","1369","Biología molecular y citogenética","SAN301 (LFP) - 1369",1,7,233]
["SAN301 (LFP)","Anatomía Patológica y Citodiagnóstico","1370","Fisiopatología general","SAN301 (LFP) - 1370",1,6,200]
["SAN301 (LFP)","Anatomía Patológica y Citodiagnóstico","1665","Digitalización aplicada a los sectores productivos (GS)","SAN301 (LFP) - 1665",1,1,33]
["SAN301 (LFP)","Anatomía Patológica y Citodiagnóstico","1709","Itinerario personal para la empleabilidad I","SAN301 (LFP) - 1709",1,3,100]
["SAN301 (LFP)","Anatomía Patológica y Citodiagnóstico","1379","Necropsias","SAN301 (LFP) - 1379",2,2,67]
["SAN301 (LFP)","Anatomía Patológica y Citodiagnóstico","1380","Procesamiento citológico y tisular","SAN301 (LFP) - 1380",2,9,300]
["SAN301 (LFP)","Anatomía Patológica y Citodiagnóstico","1381","Citología ginecológica","SAN301 (LFP) - 1381",2,5,167]
["SAN301 (LFP)","Anatomía Patológica y Citodiagnóstico","1382","Citología general","SAN301 (LFP) - 1382",2,6,200]
["SAN301 (LFP)","Anatomía Patológica y Citodiagnóstico","1383","Proyecto Intermodular de laboratorio de patología y citodiagnóstico","SAN301 (LFP) - 1383",2,2,67]
["SAN301 (LFP)","Anatomía Patológica y Citodiagnóstico","1708","Sostenibilidad aplicada al sistema productivo","SAN301 (LFP) - 1708",2,1,33]
["SAN301 (LFP)","Anatomía Patológica y Citodiagnóstico","1710","Itinerario personal para la empleabilidad II","SAN301 (LFP) - 1710",2,2,67]
["SAN301 (LFP)","Anatomía Patológica y Citodiagnóstico","0OPT","Módulo profesional optativo","SAN301 (LFP) - 0OPT",2,3,100]
["SAN302 (LFP)","Dietética","D001","Alimentación Equilibrada","SAN302 (LFP) - D001",1,10,320]
["SAN302 (LFP)","Dietética","D002","Fisiopatología Aplicada a la Dietética (transversal)","SAN302 (LFP) - D002",1,10,225]
["SAN302 (LFP)","Dietética","D003","Control Alimentario","SAN302 (LFP) - D003",1,6,190]
["SAN302 (LFP)","Dietética","D004","Organización y Gestión del Área de Trabajo Asignada en la Unidad-Gabinete de Dietética","SAN302 (LFP) - D004",1,3,95]
["SAN302 (LFP)","Dietética","D005","Relaciones en el Entorno de Trabajo (transversal)","SAN302 (LFP) - D005",1,2,65]
["SAN302 (LFP)","Dietética","D006","Formación y Orientación Laboral (GS)","SAN302 (LFP) - D006",1,2,65]
["SAN302 (LFP)","Dietética","D007","Dietoterapia","SAN302 (LFP) - D007",2,11,240]
["SAN302 (LFP)","Dietética","D008","Microbiología e Higiene Alimentaria","SAN302 (LFP) - D008",2,11,240]
["SAN302 (LFP)","Dietética","D009","Educación Sanitaria y Promoción de la Salud","SAN302 (LFP) - D009",2,8,160]
["SAN302 (LFP)","Dietética","D010","Formación en Centro de Trabajo (GS)","SAN302 (LFP) - D010","No especificado",0,400]
["SAN303 (LFP)","Documentación y Administración Sanitarias","0179","Inglés Profesional (GS)","SAN303 (LFP) - 0179",1,2,67]
["SAN303 (LFP)","Documentación y Administración Sanitarias","0649","Ofimática y proceso de la información","SAN303 (LFP) - 0649",1,7,233]
["SAN303 (LFP)","Documentación y Administración Sanitarias","1515","Gestión de pacientes","SAN303 (LFP) - 1515",1,2,67]
["SAN303 (LFP)","Documentación y Administración Sanitarias","1516","Terminología clínica y patología","SAN303 (LFP) - 1516",1,4,133]
["SAN303 (LFP)","Documentación y Administración Sanitarias","1517","Extracción de diagnósticos y procedimientos","SAN303 (LFP) - 1517",1,5,167]
["SAN303 (LFP)","Documentación y Administración Sanitarias","1518","Archivo y documentación sanitarios","SAN303 (LFP) - 1518",1,2,67]
["SAN303 (LFP)","Documentación y Administración Sanitarias","1519","Sistemas de información y clasificación sanitarios","SAN303 (LFP) - 1519",1,4,133]
["SAN303 (LFP)","Documentación y Administración Sanitarias","1665","Digitalización aplicada a los sectores productivos (GS)","SAN303 (LFP) - 1665",1,1,33]
["SAN303 (LFP)","Documentación y Administración Sanitarias","1709","Itinerario personal para la empleabilidad I","SAN303 (LFP) - 1709",1,3,100]
["SAN303 (LFP)","Documentación y Administración Sanitarias","1520","Codificación sanitaria","SAN303 (LFP) - 1520",2,8,267]
["SAN303 (LFP)","Documentación y Administración Sanitarias","1521","Atención psicosocial al paciente-usuario","SAN303 (LFP) - 1521",2,3,100]
["SAN303 (LFP)","Documentación y Administración Sanitarias","1522","Validación y explotación de datos","SAN303 (LFP) - 1522",2,5,167]
["SAN303 (LFP)","Documentación y Administración Sanitarias","1523","Gestión administrativa sanitaria","SAN303 (LFP) - 1523",2,6,200]
["SAN303 (LFP)","Documentación y Administración Sanitarias","1524","Proyecto Intermodular de documentación y administración sanitarias","SAN303 (LFP) - 1524",2,2,67]
["SAN303 (LFP)","Documentación y Administración Sanitarias","1708","Sostenibilidad aplicada al sistema productivo","SAN303 (LFP) - 1708",2,1,33]
["SAN303 (LFP)","Documentación y Administración Sanitarias","1710","Itinerario personal para la empleabilidad II","SAN303 (LFP) - 1710",2,2,67]
["SAN303 (LFP)","Documentación y Administración Sanitarias","0OPT","Módulo profesional optativo","SAN303 (LFP) - 0OPT",2,3,100]
["SAN304 (LFP)","Higiene Bucodental","0020","Primeros auxilios","SAN304 (LFP) - 0020",1,1,33]
["SAN304 (LFP)","Higiene Bucodental","0179","Inglés Profesional (GS)","SAN304 (LFP) - 0179",1,2,67]
["SAN304 (LFP)","Higiene Bucodental","0730","Recepción y logística en la clínica dental","SAN304 (LFP) - 0730",1,2,67]
["SAN304 (LFP)","Higiene Bucodental","0731","Estudio de la cavidad oral","SAN304 (LFP) - 0731",1,5,167]
["SAN304 (LFP)","Higiene Bucodental","0732","Exploración de la cavidad oral","SAN304 (LFP) - 0732",1,4,133]
["SAN304 (LFP)","Higiene Bucodental","0733","Intervención bucodental","SAN304 (LFP) - 0733",1,6,200]
["SAN304 (LFP)","Higiene Bucodental","1370","Fisiopatología general","SAN304 (LFP) - 1370",1,6,200]
["SAN304 (LFP)","Higiene Bucodental","1665","Digitalización aplicada a los sectores productivos (GS)","SAN304 (LFP) - 1665",1,1,33]
["SAN304 (LFP)","Higiene Bucodental","1709","Itinerario personal para la empleabilidad I","SAN304 (LFP) - 1709",1,3,100]
["SAN304 (LFP)","Higiene Bucodental","0734","Epidemiología en salud oral","SAN304 (LFP) - 0734",2,4,133]
["SAN304 (LFP)","Higiene Bucodental","0735","Educación para la salud oral","SAN304 (LFP) - 0735",2,5,167]
["SAN304 (LFP)","Higiene Bucodental","0736","Conservadora, periodoncia, cirugía e implantes","SAN304 (LFP) - 0736",2,7,233]
["SAN304 (LFP)","Higiene Bucodental","0737","Prótesis y ortodoncia","SAN304 (LFP) - 0737",2,6,200]
["SAN304 (LFP)","Higiene Bucodental","0738","Proyecto Intermodular de higiene bucodental","SAN304 (LFP) - 0738",2,2,67]
["SAN304 (LFP)","Higiene Bucodental","1708","Sostenibilidad aplicada al sistema productivo","SAN304 (LFP) - 1708",2,1,33]
["SAN304 (LFP)","Higiene Bucodental","1710","Itinerario personal para la empleabilidad II","SAN304 (LFP) - 1710",2,2,67]
["SAN304 (LFP)","Higiene Bucodental","0OPT","Módulo profesional optativo","SAN304 (LFP) - 0OPT",2,3,100]
["SAN305 (LFP)","Imagen para el Diagnóstico y Medicina Nuclear","0179","Inglés Profesional (GS)","SAN305 (LFP) - 0179",1,2,67]
["SAN305 (LFP)","Imagen para el Diagnóstico y Medicina Nuclear","1345","Atención al paciente","SAN305 (LFP) - 1345",1,5,167]
["SAN305 (LFP)","Imagen para el Diagnóstico y Medicina Nuclear","1346","Fundamentos físicos y equipos","SAN305 (LFP) - 1346",1,8,267]
["SAN305 (LFP)","Imagen para el Diagnóstico y Medicina Nuclear","1347","Anatomía por la imagen",{"$f":"CONCATENATE(A2051,\" - \",C2051)","v":"SAN305 (LFP) - 1347"},1,8,267]
["SAN305 (LFP)","Imagen para el Diagnóstico y Medicina Nuclear","1348","Protección radiológica","SAN305 (LFP) - 1348",1,3,100]
["SAN305 (LFP)","Imagen para el Diagnóstico y Medicina Nuclear","1665","Digitalización aplicada a los sectores productivos (GS)","SAN305 (LFP) - 1665",1,1,33]
["SAN305 (LFP)","Imagen para el Diagnóstico y Medicina Nuclear","1709","Itinerario personal para la empleabilidad I","SAN305 (LFP) - 1709",1,3,100]
["SAN305 (LFP)","Imagen para el Diagnóstico y Medicina Nuclear","1349","Técnicas de radiología simple","SAN305 (LFP) - 1349",2,6,200]
["SAN305 (LFP)","Imagen para el Diagnóstico y Medicina Nuclear","1350","Técnicas de radiología especial","SAN305 (LFP) - 1350",2,3,100]
["SAN305 (LFP)","Imagen para el Diagnóstico y Medicina Nuclear","1351","Técnicas de tomografía computarizada y ecografía","SAN305 (LFP) - 1351",2,3,100]
["SAN305 (LFP)","Imagen para el Diagnóstico y Medicina Nuclear","1352","Técnicas de imagen por resonancia magnética","SAN305 (LFP) - 1352",2,3,100]
["SAN305 (LFP)","Imagen para el Diagnóstico y Medicina Nuclear","1353","Técnicas de imagen en medicina nuclear","SAN305 (LFP) - 1353",2,5,167]
["SAN305 (LFP)","Imagen para el Diagnóstico y Medicina Nuclear","1354","Técnicas de radiofarmacia","SAN305 (LFP) - 1354",2,2,67]
["SAN305 (LFP)","Imagen para el Diagnóstico y Medicina Nuclear","1355","Proyecto Intermodular de imagen para el diagnóstico y medicina nuclear","SAN305 (LFP) - 1355",2,2,67]
["SAN305 (LFP)","Imagen para el Diagnóstico y Medicina Nuclear","1708","Sostenibilidad aplicada al sistema productivo","SAN305 (LFP) - 1708",2,1,33]
["SAN305 (LFP)","Imagen para el Diagnóstico y Medicina Nuclear","1710","Itinerario personal para la empleabilidad II","SAN305 (LFP) - 1710",2,2,67]
["SAN305 (LFP)","Imagen para el Diagnóstico y Medicina Nuclear","0OPT","Módulo profesional optativo","SAN305 (LFP) - 0OPT",2,3,100]
["SAN306 (LFP)","Laboratorio Clínico y Biomédico","0179","Inglés Profesional (GS)","SAN306 (LFP) - 0179",1,2,67]
["SAN306 (LFP)","Laboratorio Clínico y Biomédico","1367","Gestión de muestras biológicas","SAN306 (LFP) - 1367",1,4,133]
["SAN306 (LFP)","Laboratorio Clínico y Biomédico","1368","Técnicas generales de laboratorio","SAN306 (LFP) - 1368",1,7,233]
["SAN306 (LFP)","Laboratorio Clínico y Biomédico","1369","Biología molecular y citogenética","SAN306 (LFP) - 1369",1,7,233]
["SAN306 (LFP)","Laboratorio Clínico y Biomédico","1370","Fisiopatología general","SAN306 (LFP) - 1370",1,6,200]
["SAN306 (LFP)","Laboratorio Clínico y Biomédico","1665","Digitalización aplicada a los sectores productivos (GS)","SAN306 (LFP) - 1665",1,1,33]
["SAN306 (LFP)","Laboratorio Clínico y Biomédico","1709","Itinerario personal para la empleabilidad I","SAN306 (LFP) - 1709",1,3,100]
["SAN306 (LFP)","Laboratorio Clínico y Biomédico","1371","Análisis bioquímico","SAN306 (LFP) - 1371",2,7,233]
["SAN306 (LFP)","Laboratorio Clínico y Biomédico","1372","Técnicas de inmunodiagnóstico","SAN306 (LFP) - 1372",2,3,100]
["SAN306 (LFP)","Laboratorio Clínico y Biomédico","1373","Microbiología clínica","SAN306 (LFP) - 1373",2,6,200]
["SAN306 (LFP)","Laboratorio Clínico y Biomédico","1374","Técnicas de análisis hematológico","SAN306 (LFP) - 1374",2,6,200]
["SAN306 (LFP)","Laboratorio Clínico y Biomédico","1375","Proyecto Intermodular de laboratorio clínico y biomédico","SAN306 (LFP) - 1375",2,2,67]
["SAN306 (LFP)","Laboratorio Clínico y Biomédico","1708","Sostenibilidad aplicada al sistema productivo","SAN306 (LFP) - 1708",2,1,33]
["SAN306 (LFP)","Laboratorio Clínico y Biomédico","1710","Itinerario personal para la empleabilidad II","SAN306 (LFP) - 1710",2,2,67]
["SAN306 (LFP)","Laboratorio Clínico y Biomédico","0OPT","Módulo profesional optativo","SAN306 (LFP) - 0OPT",2,3,100]
["SAN308 (LFP)","Prótesis Dentales","0179","Inglés Profesional (GS)","SAN308 (LFP) - 0179",1,2,67]
["SAN308 (LFP)","Prótesis Dentales","0821","Laboratorio de prótesis dentales","SAN308 (LFP) - 0821",1,3,100]
["SAN308 (LFP)","Prótesis Dentales","0854","Diseño funcional de prótesis","SAN308 (LFP) - 0854",1,6,200]
["SAN308 (LFP)","Prótesis Dentales","0855","Prótesis completas","SAN308 (LFP) - 0855",1,8,267]
["SAN308 (LFP)","Prótesis Dentales","0856","Aparatos de ortodoncia y férulas oclusales","SAN308 (LFP) - 0856",1,7,233]
["SAN308 (LFP)","Prótesis Dentales","1665","Digitalización aplicada a los sectores productivos (GS)","SAN308 (LFP) - 1665",1,1,33]
["SAN308 (LFP)","Prótesis Dentales","1709","Itinerario personal para la empleabilidad I","SAN308 (LFP) - 1709",1,3,100]
["SAN308 (LFP)","Prótesis Dentales","0857","Restauraciones y estructuras metálicas en prótesis fija","SAN308 (LFP) - 0857",2,6,200]
["SAN308 (LFP)","Prótesis Dentales","0858","Prótesis parciales y removibles metálicas, de resina y mixta","SAN308 (LFP) - 0858",2,6,200]
["SAN308 (LFP)","Prótesis Dentales","0859","Restauraciones y recubrimientos estéticos","SAN308 (LFP) - 0859",2,6,200]
["SAN308 (LFP)","Prótesis Dentales","0860","Prótesis sobre implantes","SAN308 (LFP) - 0860",2,4,133]
["SAN308 (LFP)","Prótesis Dentales","0861","Proyecto Intermodular de prótesis dentales","SAN308 (LFP) - 0861",2,2,67]
["SAN308 (LFP)","Prótesis Dentales","1708","Sostenibilidad aplicada al sistema productivo","SAN308 (LFP) - 1708",2,1,33]
["SAN308 (LFP)","Prótesis Dentales","1710","Itinerario personal para la empleabilidad II","SAN308 (LFP) - 1710",2,2,67]
["SAN308 (LFP)","Prótesis Dentales","0OPT","Módulo profesional optativo","SAN308 (LFP) - 0OPT",2,3,100]
["SAN309 (LFP)","Radioterapia y Dosimetría","0179","Inglés Profesional (GS)","SAN309 (LFP) - 0179",1,2,67]
["SAN309 (LFP)","Radioterapia y Dosimetría","1345","Atención al paciente","SAN309 (LFP) - 1345",1,5,167]
["SAN309 (LFP)","Radioterapia y Dosimetría","1346","Fundamentos físicos y equipos","SAN309 (LFP) - 1346",1,8,267]
["SAN309 (LFP)","Radioterapia y Dosimetría","1347","Anatomía por la imagen","SAN309 (LFP) - 1347",1,8,267]
["SAN309 (LFP)","Radioterapia y Dosimetría","1348","Protección radiológica","SAN309 (LFP) - 1348",1,3,100]
["SAN309 (LFP)","Radioterapia y Dosimetría","1665","Digitalización aplicada a los sectores productivos (GS)","SAN309 (LFP) - 1665",1,1,33]
["SAN309 (LFP)","Radioterapia y Dosimetría","1709","Itinerario personal para la empleabilidad I","SAN309 (LFP) - 1709",1,3,100]
["SAN309 (LFP)","Radioterapia y Dosimetría","1359","Simulación del tratamiento","SAN309 (LFP) - 1359",2,6,200]
["SAN309 (LFP)","Radioterapia y Dosimetría","1360","Dosimetría física y clínica","SAN309 (LFP) - 1360",2,4,133]
["SAN309 (LFP)","Radioterapia y Dosimetría","1361","Tratamientos con teleterapia","SAN309 (LFP) - 1361",2,7,233]
["SAN309 (LFP)","Radioterapia y Dosimetría","1362","Tratamientos con braquiterapia","SAN309 (LFP) - 1362",2,5,167]
["SAN309 (LFP)","Radioterapia y Dosimetría","1363","Proyecto Intermodular de radioterapia y dosimetría","SAN309 (LFP) - 1363",2,2,67]
["SAN309 (LFP)","Radioterapia y Dosimetría","1708","Sostenibilidad aplicada al sistema productivo","SAN309 (LFP) - 1708",2,1,33]
["SAN309 (LFP)","Radioterapia y Dosimetría","1710","Itinerario personal para la empleabilidad II","SAN309 (LFP) - 1710",2,2,67]
["SAN309 (LFP)","Radioterapia y Dosimetría","0OPT","Módulo profesional optativo","SAN309 (LFP) - 0OPT",2,3,100]
["SAN311 (LFP)","Ortoprótesis y Productos de Apoyo","0061","Anatomofisiología y patología básicas","SAN311 (LFP) - 0061",1,4,133]
["SAN311 (LFP)","Ortoprótesis y Productos de Apoyo","0179","Inglés Profesional (GS)","SAN311 (LFP) - 0179",1,2,67]
["SAN311 (LFP)","Ortoprótesis y Productos de Apoyo","0325","Tecnología industrial aplicada a la actividad ortoprotésica","SAN311 (LFP) - 0325",1,4,133]
["SAN311 (LFP)","Ortoprótesis y Productos de Apoyo","0326","Diseño y moldeado anatómico","SAN311 (LFP) - 0326",1,4,133]
["SAN311 (LFP)","Ortoprótesis y Productos de Apoyo","0328","Elaboración y adaptación de productos ortésicos a medida","SAN311 (LFP) - 0328",1,6,200]
["SAN311 (LFP)","Ortoprótesis y Productos de Apoyo","0331","Biomecánica y patología aplicada",{"$f":"CONCATENATE(A2115,\" - \",C2115)","v":"SAN311 (LFP) - 0331"},1,6,200]
["SAN311 (LFP)","Ortoprótesis y Productos de Apoyo","1665","Digitalización aplicada a los sectores productivos (GS)","SAN311 (LFP) - 1665",1,1,33]
["SAN311 (LFP)","Ortoprótesis y Productos de Apoyo","1709","Itinerario personal para la empleabilidad I","SAN311 (LFP) - 1709",1,3,100]
["SAN311 (LFP)","Ortoprótesis y Productos de Apoyo","0327","Adaptación de ortesis prefabricadas","SAN311 (LFP) - 0327",2,5,167]
["SAN311 (LFP)","Ortoprótesis y Productos de Apoyo","0329","Elaboración y adaptación de prótesis externas","SAN311 (LFP) - 0329",2,9,300]
["SAN311 (LFP)","Ortoprótesis y Productos de Apoyo","0330","Adaptación de productos de apoyo","SAN311 (LFP) - 0330",2,5,167]
["SAN311 (LFP)","Ortoprótesis y Productos de Apoyo","0332","Atención psicosocial","SAN311 (LFP) - 0332",2,3,100]
["SAN311 (LFP)","Ortoprótesis y Productos de Apoyo","0333","Proyecto Intermodular de ortoprótesis y productos de apoyo","SAN311 (LFP) - 0333",2,2,67]
["SAN311 (LFP)","Ortoprótesis y Productos de Apoyo","1708","Sostenibilidad aplicada al sistema productivo","SAN311 (LFP) - 1708",2,1,33]
["SAN311 (LFP)","Ortoprótesis y Productos de Apoyo","1710","Itinerario personal para la empleabilidad II","SAN311 (LFP) - 1710",2,2,67]
["SAN311 (LFP)","Ortoprótesis y Productos de Apoyo","0OPT","Módulo profesional optativo","SAN311 (LFP) - 0OPT",2,3,100]
["SEA201 (LFP)","Emergencias y Protección Civil","0055","Atención sanitaria inicial en situaciones de emergencia","SEA201 (LFP) - 0055",1,7,233]
["SEA201 (LFP)","Emergencias y Protección Civil","0058","Apoyo psicológico en situaciones de emergencia","SEA201 (LFP) - 0058",1,2,67]
["SEA201 (LFP)","Emergencias y Protección Civil","0156","Inglés Profesional (GM)","SEA201 (LFP) - 0156",1,2,67]
["SEA201 (LFP)","Emergencias y Protección Civil","1529","Vigilancia e intervención operativa en incendios forestales","SEA201 (LFP) - 1529",1,5,167]
["SEA201 (LFP)","Emergencias y Protección Civil","1530","Intervención operativa en extinción de incendios urbanos","SEA201 (LFP) - 1530",1,5,167]
["SEA201 (LFP)","Emergencias y Protección Civil","1534","Coordinación de equipos y unidades de emergencias","SEA201 (LFP) - 1534",1,4,133]
["SEA201 (LFP)","Emergencias y Protección Civil","1664","Digitalización aplicada a los sectores productivos (GM)","SEA201 (LFP) - 1664",1,1,33]
["SEA201 (LFP)","Emergencias y Protección Civil","1709","Itinerario personal para la empleabilidad I","SEA201 (LFP) - 1709",1,3,100]
["SEA201 (LFP)","Emergencias y Protección Civil","A997","Tutoría I","SEA201 (LFP) - A997",1,1,33]
["SEA201 (LFP)","Emergencias y Protección Civil","1528","Mantenimiento y comprobación del funcionamiento de los medios materiales empleados en la prevención de riesgos de incendios y emergencias","SEA201 (LFP) - 1528",2,4,133]
["SEA201 (LFP)","Emergencias y Protección Civil","1531","Intervención operativa en sucesos de origen natural, tecnológico y antrópico","SEA201 (LFP) - 1531",2,7,233]
["SEA201 (LFP)","Emergencias y Protección Civil","1532","Intervención operativa en actividades de salvamento y rescate","SEA201 (LFP) - 1532",2,8,267]
["SEA201 (LFP)","Emergencias y Protección Civil","1533","Inspección de establecimientos, eventos e instalaciones para la prevención de incendios y emergencias","SEA201 (LFP) - 1533",2,2,67]
["SEA201 (LFP)","Emergencias y Protección Civil","1708","Sostenibilidad aplicada al sistema productivo","SEA201 (LFP) - 1708",2,1,33]
["SEA201 (LFP)","Emergencias y Protección Civil","1710","Itinerario personal para la empleabilidad II","SEA201 (LFP) - 1710",2,2,67]
["SEA201 (LFP)","Emergencias y Protección Civil","1713","Proyecto Intermodular","SEA201 (LFP) - 1713",2,2,67]
["SEA201 (LFP)","Emergencias y Protección Civil","A996","Tutoría II","SEA201 (LFP) - A996",2,1,33]
["SEA201 (LFP)","Emergencias y Protección Civil","0OPT","Módulo profesional optativo","SEA201 (LFP) - 0OPT",2,3,100]
["SEA202 (LFP)","Seguridad","0020","Primeros auxilios","SEA202 (LFP) - 0020",1,1,33]
["SEA202 (LFP)","Seguridad","0156","Inglés Profesional (GM)","SEA202 (LFP) - 0156",1,2,67]
["SEA202 (LFP)","Seguridad","1664","Digitalización aplicada a los sectores productivos (GM)","SEA202 (LFP) - 1664",1,1,33]
["SEA202 (LFP)","Seguridad","1674","Ordenamiento jurídico en seguridad","SEA202 (LFP) - 1674",1,8,267]
["SEA202 (LFP)","Seguridad","1676","Tecnología aplicada a la seguridad","SEA202 (LFP) - 1676",1,4,133]
["SEA202 (LFP)","Seguridad","1678","Vigilancia e intervención operativa básica en incendios","SEA202 (LFP) - 1678",1,4,133]
["SEA202 (LFP)","Seguridad","1680","Guarderío rural, cinegético, fluvial y marítimo","SEA202 (LFP) - 1680",1,6,200]
["SEA202 (LFP)","Seguridad","1709","Itinerario personal para la empleabilidad I","SEA202 (LFP) - 1709",1,3,100]
["SEA202 (LFP)","Seguridad","A997","Tutoría I","SEA202 (LFP) - A997",1,1,33]
["SEA202 (LFP)","Seguridad","1675","Habilidades Sociopersonales","SEA202 (LFP) - 1675",2,6,200]
["SEA202 (LFP)","Seguridad","1677","Acondicionamiento físico y defensa personal","SEA202 (LFP) - 1677",2,4,133]
["SEA202 (LFP)","Seguridad","1679","Vigilancia y protección","SEA202 (LFP) - 1679",2,11,367]
["SEA202 (LFP)","Seguridad","1708","Sostenibilidad aplicada al sistema productivo","SEA202 (LFP) - 1708",2,1,33]
["SEA202 (LFP)","Seguridad","1710","Itinerario personal para la empleabilidad II","SEA202 (LFP) - 1710",2,2,67]
["SEA202 (LFP)","Seguridad","1713","Proyecto Intermodular","SEA202 (LFP) - 1713",2,2,67]
["SEA202 (LFP)","Seguridad","A996","Tutoría II","SEA202 (LFP) - A996",2,1,33]
["SEA202 (LFP)","Seguridad","0OPT","Módulo profesional optativo","SEA202 (LFP) - 0OPT",2,3,100]
["SEA301 (LFP)","Educación y Control Ambiental","0179","Inglés Profesional (GS)","SEA301 (LFP) - 0179",1,2,67]
["SEA301 (LFP)","Educación y Control Ambiental","0785","Estructura y dinámica del medio ambiente","SEA301 (LFP) - 0785",1,5,167]
["SEA301 (LFP)","Educación y Control Ambiental","0786","Medio natural","SEA301 (LFP) - 0786",1,6,200]
["SEA301 (LFP)","Educación y Control Ambiental","0788","Gestión ambiental","SEA301 (LFP) - 0788",1,6,200]
["SEA301 (LFP)","Educación y Control Ambiental","0789","Métodos y productos cartográficos","SEA301 (LFP) - 0789",1,3,100]
["SEA301 (LFP)","Educación y Control Ambiental","0791","Programas de educación ambiental","SEA301 (LFP) - 0791",1,4,133]
["SEA301 (LFP)","Educación y Control Ambiental","1665","Digitalización aplicada a los sectores productivos (GS)","SEA301 (LFP) - 1665",1,1,33]
["SEA301 (LFP)","Educación y Control Ambiental","1709","Itinerario personal para la empleabilidad I","SEA301 (LFP) - 1709",1,3,100]
["SEA301 (LFP)","Educación y Control Ambiental","0017","Habilidades sociales","SEA301 (LFP) - 0017",2,4,133]
["SEA301 (LFP)","Educación y Control Ambiental","0787","Actividades humanas y problemática ambiental","SEA301 (LFP) - 0787",2,6,200]
["SEA301 (LFP)","Educación y Control Ambiental","0790","Técnicas de educación ambiental","SEA301 (LFP) - 0790",2,4,133]
["SEA301 (LFP)","Educación y Control Ambiental","0792","Actividades de uso público","SEA301 (LFP) - 0792",2,5,167]
["SEA301 (LFP)","Educación y Control Ambiental","0793","Desenvolvimiento en el medio","SEA301 (LFP) - 0793",2,3,100]
["SEA301 (LFP)","Educación y Control Ambiental","0794","Proyecto Intermodular de educación y control ambiental","SEA301 (LFP) - 0794",2,2,67]
["SEA301 (LFP)","Educación y Control Ambiental","1708","Sostenibilidad aplicada al sistema productivo","SEA301 (LFP) - 1708",2,1,33]
["SEA301 (LFP)","Educación y Control Ambiental","1710","Itinerario personal para la empleabilidad II","SEA301 (LFP) - 1710",2,2,67]
["SEA301 (LFP)","Educación y Control Ambiental","0OPT","Módulo profesional optativo","SEA301 (LFP) - 0OPT",2,3,100]
["SEA302 (LFP)","Coordinación de Emergencias y Protección Civil","0179","Inglés Profesional (GS)","SEA302 (LFP) - 0179",1,2,67]
["SEA302 (LFP)","Coordinación de Emergencias y Protección Civil","1501","Planificación en emergencias y protección civil",{"$f":"CONCATENATE(A2179,\" - \",C2179)","v":"SEA302 (LFP) - 1501"},1,5,167]
["SEA302 (LFP)","Coordinación de Emergencias y Protección Civil","1502","Evaluación de riesgos y medidas preventivas","SEA302 (LFP) - 1502",1,5,167]
["SEA302 (LFP)","Coordinación de Emergencias y Protección Civil","1506","Supervisión de la intervención en incendios forestales y quemas prescritas","SEA302 (LFP) - 1506",1,5,167]
["SEA302 (LFP)","Coordinación de Emergencias y Protección Civil","1507","Supervisión de la intervención en operaciones de incendios urbanos y emergencias ordinarias","SEA302 (LFP) - 1507",1,5,167]
["SEA302 (LFP)","Coordinación de Emergencias y Protección Civil","1510","Gestión de recursos de emergencias y protección civil","SEA302 (LFP) - 1510",1,4,133]
["SEA302 (LFP)","Coordinación de Emergencias y Protección Civil","1665","Digitalización aplicada a los sectores productivos (GS)","SEA302 (LFP) - 1665",1,1,33]
["SEA302 (LFP)","Coordinación de Emergencias y Protección Civil","1709","Itinerario personal para la empleabilidad I","SEA302 (LFP) - 1709",1,3,100]
["SEA302 (LFP)","Coordinación de Emergencias y Protección Civil","1503","Planificación y desarrollo de acciones formativas, informativas y divulgativas en protección civil y emergencias","SEA302 (LFP) - 1503",2,3,100]
["SEA302 (LFP)","Coordinación de Emergencias y Protección Civil","1504","Supervisión de la intervención en riesgos producidos por fenómenos naturales","SEA302 (LFP) - 1504",2,4,133]
["SEA302 (LFP)","Coordinación de Emergencias y Protección Civil","1505","Supervisión de la intervención en riesgos tecnológicos y antrópicos","SEA302 (LFP) - 1505",2,4,133]
["SEA302 (LFP)","Coordinación de Emergencias y Protección Civil","1508","Supervisión de la intervención en operaciones de salvamento y rescate","SEA302 (LFP) - 1508",2,8,267]
["SEA302 (LFP)","Coordinación de Emergencias y Protección Civil","1509","Supervisión de las acciones de apoyo a las personas afectadas por desastres y catástrofes","SEA302 (LFP) - 1509",2,3,100]
["SEA302 (LFP)","Coordinación de Emergencias y Protección Civil","1511","Proyecto Intermodular de coordinación de emergencias y protección civil","SEA302 (LFP) - 1511",2,2,67]
["SEA302 (LFP)","Coordinación de Emergencias y Protección Civil","1708","Sostenibilidad aplicada al sistema productivo","SEA302 (LFP) - 1708",2,1,33]
["SEA302 (LFP)","Coordinación de Emergencias y Protección Civil","1710","Itinerario personal para la empleabilidad II","SEA302 (LFP) - 1710",2,2,67]
["SEA302 (LFP)","Coordinación de Emergencias y Protección Civil","0OPT","Módulo profesional optativo","SEA302 (LFP) - 0OPT",2,3,100]
["SEA303 (LFP)","Química y Salud Ambiental","0179","Inglés Profesional (GS)","SEA303 (LFP) - 0179",1,2,67]
["SEA303 (LFP)","Química y Salud Ambiental","1546","Sistemas de gestión ambiental","SEA303 (LFP) - 1546",1,4,133]
["SEA303 (LFP)","Química y Salud Ambiental","1548","Control de aguas","SEA303 (LFP) - 1548",1,10,333]
["SEA303 (LFP)","Química y Salud Ambiental","1549","Control de residuos","SEA303 (LFP) - 1549",1,3,100]
["SEA303 (LFP)","Química y Salud Ambiental","1552","Contaminación ambiental y atmosférica","SEA303 (LFP) - 1552",1,4,133]
["SEA303 (LFP)","Química y Salud Ambiental","1554","Unidad de salud ambiental","SEA303 (LFP) - 1554",1,3,100]
["SEA303 (LFP)","Química y Salud Ambiental","1665","Digitalización aplicada a los sectores productivos (GS)","SEA303 (LFP) - 1665",1,1,33]
["SEA303 (LFP)","Química y Salud Ambiental","1709","Itinerario personal para la empleabilidad I","SEA303 (LFP) - 1709",1,3,100]
["SEA303 (LFP)","Química y Salud Ambiental","1547","Educación para la salud y el medio ambiente","SEA303 (LFP) - 1547",2,3,100]
["SEA303 (LFP)","Química y Salud Ambiental","1550","Salud y riesgos del medio construido","SEA303 (LFP) - 1550",2,3,100]
["SEA303 (LFP)","Química y Salud Ambiental","1551","Control y seguridad alimentaria","SEA303 (LFP) - 1551",2,10,333]
["SEA303 (LFP)","Química y Salud Ambiental","1553","Control de organismos nocivos","SEA303 (LFP) - 1553",2,6,200]
["SEA303 (LFP)","Química y Salud Ambiental","1555","Proyecto Intermodular de química y salud ambiental","SEA303 (LFP) - 1555",2,2,67]
["SEA303 (LFP)","Química y Salud Ambiental","1708","Sostenibilidad aplicada al sistema productivo","SEA303 (LFP) - 1708",2,1,33]
["SEA303 (LFP)","Química y Salud Ambiental","1710","Itinerario personal para la empleabilidad II","SEA303 (LFP) - 1710",2,2,67]
["SEA303 (LFP)","Química y Salud Ambiental","0OPT","Módulo profesional optativo","SEA303 (LFP) - 0OPT",2,3,100]
["SSC201 (LFP)","Atención a Personas en situación de Dependencia","0020","Primeros auxilios","SSC201 (LFP) - 0020",1,1,33]
["SSC201 (LFP)","Atención a Personas en situación de Dependencia","0156","Inglés Profesional (GM)","SSC201 (LFP) - 0156",1,2,66]
["SSC201 (LFP)","Atención a Personas en situación de Dependencia","0156","Inglés Profesional (GM)","SSC201 (LFP) - 0156",1,2,67]
["SSC201 (LFP)","Atención a Personas en situación de Dependencia","0211","Destrezas sociales","SSC201 (LFP) - 0211",1,4,133]
["SSC201 (LFP)","Atención a Personas en situación de Dependencia","0212","Características y necesidades de las personas en situación de dependencia","SSC201 (LFP) - 0212",1,5,164]
["SSC201 (LFP)","Atención a Personas en situación de Dependencia","0212","Características y necesidades de las personas en situación de dependencia","SSC201 (LFP) - 0212",1,5,167]
["SSC201 (LFP)","Atención a Personas en situación de Dependencia","0213","Atención y apoyo psicosocial","SSC201 (LFP) - 0213",1,6,200]
["SSC201 (LFP)","Atención a Personas en situación de Dependencia","0216","Atención sanitaria","SSC201 (LFP) - 0216",1,7,230]
["SSC201 (LFP)","Atención a Personas en situación de Dependencia","0216","Atención sanitaria","SSC201 (LFP) - 0216",1,7,233]
["SSC201 (LFP)","Atención a Personas en situación de Dependencia","1664","Digitalización aplicada a los sectores productivos (GM)","SSC201 (LFP) - 1664",1,1,33]
["SSC201 (LFP)","Atención a Personas en situación de Dependencia","1709","Itinerario personal para la empleabilidad I","SSC201 (LFP) - 1709",1,3,98]
["SSC201 (LFP)","Atención a Personas en situación de Dependencia","1709","Itinerario personal para la empleabilidad I","SSC201 (LFP) - 1709",1,3,100]
["SSC201 (LFP)","Atención a Personas en situación de Dependencia","A997","Tutoría I","SSC201 (LFP) - A997",1,1,33]
["SSC201 (LFP)","Atención a Personas en situación de Dependencia","0210","Organización de la atención a las personas en situación de dependencia","SSC201 (LFP) - 0210",2,4,133]
["SSC201 (LFP)","Atención a Personas en situación de Dependencia","0211","Destrezas sociales","SSC201 (LFP) - 0211",2,4,131]
["SSC201 (LFP)","Atención a Personas en situación de Dependencia","0213","Atención y apoyo psicosocial","SSC201 (LFP) - 0213",2,6,197]
["SSC201 (LFP)","Atención a Personas en situación de Dependencia","0214","Apoyo a la comunicación","SSC201 (LFP) - 0214",2,2,67]
["SSC201 (LFP)","Atención a Personas en situación de Dependencia","0215","Apoyo domiciliario","SSC201 (LFP) - 0215",2,7,230]
["SSC201 (LFP)","Atención a Personas en situación de Dependencia","0215","Apoyo domiciliario","SSC201 (LFP) - 0215",2,7,233]
["SSC201 (LFP)","Atención a Personas en situación de Dependencia","0217","Atención higiénica","SSC201 (LFP) - 0217",2,4,133]
["SSC201 (LFP)","Atención a Personas en situación de Dependencia","0831","Teleasistencia","SSC201 (LFP) - 0831",2,4,133]
["SSC201 (LFP)","Atención a Personas en situación de Dependencia","1708","Sostenibilidad aplicada al sistema productivo","SSC201 (LFP) - 1708",2,1,33]
["SSC201 (LFP)","Atención a Personas en situación de Dependencia","1710","Itinerario personal para la empleabilidad II","SSC201 (LFP) - 1710",2,2,67]
["SSC201 (LFP)","Atención a Personas en situación de Dependencia","1710","Itinerario personal para la empleabilidad II","SSC201 (LFP) - 1710",2,2,66]
["SSC201 (LFP)","Atención a Personas en situación de Dependencia","1713","Proyecto Intermodular","SSC201 (LFP) - 1713",2,2,67]
["SSC201 (LFP)","Atención a Personas en situación de Dependencia","A996","Tutoría II","SSC201 (LFP) - A996",2,1,33]
["SSC201 (LFP)","Atención a Personas en situación de Dependencia","0OPT","Módulo profesional optativo","SSC201 (LFP) - 0OPT",2,3,100]
["SSC201 (LFP)","Atención a Personas en situación de Dependencia","0210","Organización de la atención a las personas en situación de dependencia","SSC201 (LFP) - 0210",3,4,131]
["SSC201 (LFP)","Atención a Personas en situación de Dependencia","0214","Apoyo a la comunicación","SSC201 (LFP) - 0214",3,2,66]
["SSC201 (LFP)","Atención a Personas en situación de Dependencia","0217","Atención higiénica","SSC201 (LFP) - 0217",3,4,131]
["SSC201 (LFP)","Atención a Personas en situación de Dependencia","0831","Teleasistencia","SSC201 (LFP) - 0831",3,4,131]
["SSC201 (LFP)","Atención a Personas en situación de Dependencia","1713","Proyecto Intermodular","SSC201 (LFP) - 1713",3,2,66]
["SSC201 (LFP)","Atención a Personas en situación de Dependencia","A995","Tutoría III",{"$f":"CONCATENATE(A2243,\" - \",C2243)","v":"SSC201 (LFP) - A995"},3,1,33]
["SSC201 (LFP)","Atención a Personas en situación de Dependencia","0OPT","Módulo profesional optativo","SSC201 (LFP) - 0OPT",3,3,98]
["SSC301 (LFP)","Animación Sociocultural y Turística","0020","Primeros auxilios","SSC301 (LFP) - 0020",1,1,33]
["SSC301 (LFP)","Animación Sociocultural y Turística","0179","Inglés Profesional (GS)","SSC301 (LFP) - 0179",1,2,67]
["SSC301 (LFP)","Animación Sociocultural y Turística","0344","Metodología de la intervención social","SSC301 (LFP) - 0344",1,4,133]
["SSC301 (LFP)","Animación Sociocultural y Turística","1123","Actividades de ocio y tiempo libre","SSC301 (LFP) - 1123",1,7,233]
["SSC301 (LFP)","Animación Sociocultural y Turística","1124","Dinamización grupal","SSC301 (LFP) - 1124",1,4,133]
["SSC301 (LFP)","Animación Sociocultural y Turística","1128","Desarrollo comunitario","SSC301 (LFP) - 1128",1,4,133]
["SSC301 (LFP)","Animación Sociocultural y Turística","1131","Contexto de la animación sociocultural","SSC301 (LFP) - 1131",1,4,133]
["SSC301 (LFP)","Animación Sociocultural y Turística","1665","Digitalización aplicada a los sectores productivos (GS)","SSC301 (LFP) - 1665",1,1,33]
["SSC301 (LFP)","Animación Sociocultural y Turística","1709","Itinerario personal para la empleabilidad I","SSC301 (LFP) - 1709",1,3,100]
["SSC301 (LFP)","Animación Sociocultural y Turística","1125","Animación y gestión cultural","SSC301 (LFP) - 1125",2,6,200]
["SSC301 (LFP)","Animación Sociocultural y Turística","1126","Animación turística","SSC301 (LFP) - 1126",2,6,200]
["SSC301 (LFP)","Animación Sociocultural y Turística","1129","Información juvenil","SSC301 (LFP) - 1129",2,5,167]
["SSC301 (LFP)","Animación Sociocultural y Turística","1130","Intervención socioeducativa con jóvenes","SSC301 (LFP) - 1130",2,5,167]
["SSC301 (LFP)","Animación Sociocultural y Turística","1132","Proyecto Intermodular de animación sociocultural y turística","SSC301 (LFP) - 1132",2,2,67]
["SSC301 (LFP)","Animación Sociocultural y Turística","1708","Sostenibilidad aplicada al sistema productivo","SSC301 (LFP) - 1708",2,1,33]
["SSC301 (LFP)","Animación Sociocultural y Turística","1710","Itinerario personal para la empleabilidad II","SSC301 (LFP) - 1710",2,2,67]
["SSC301 (LFP)","Animación Sociocultural y Turística","0OPT","Módulo profesional optativo","SSC301 (LFP) - 0OPT",2,3,100]
["SSC302 (LFP)","Educación Infantil","0011","Didáctica de la Educación Infantil","SSC302 (LFP) - 0011",1,7,233]
["SSC302 (LFP)","Educación Infantil","0012","Autonomía personal y salud infantil","SSC302 (LFP) - 0012",1,6,200]
["SSC302 (LFP)","Educación Infantil","0015","Desarrollo cognitivo y motor","SSC302 (LFP) - 0015",1,6,200]
["SSC302 (LFP)","Educación Infantil","0017","Habilidades sociales","SSC302 (LFP) - 0017",1,4,133]
["SSC302 (LFP)","Educación Infantil","0020","Primeros auxilios","SSC302 (LFP) - 0020",1,1,33]
["SSC302 (LFP)","Educación Infantil","0179","Inglés Profesional (GS)","SSC302 (LFP) - 0179",1,2,67]
["SSC302 (LFP)","Educación Infantil","1665","Digitalización aplicada a los sectores productivos (GS)","SSC302 (LFP) - 1665",1,1,33]
["SSC302 (LFP)","Educación Infantil","1709","Itinerario personal para la empleabilidad I","SSC302 (LFP) - 1709",1,3,100]
["SSC302 (LFP)","Educación Infantil","0013","El juego infantil y su metodología","SSC302 (LFP) - 0013",2,7,233]
["SSC302 (LFP)","Educación Infantil","0014","Expresión y comunicación","SSC302 (LFP) - 0014",2,6,200]
["SSC302 (LFP)","Educación Infantil","0016","Desarrollo socioafectivo","SSC302 (LFP) - 0016",2,6,200]
["SSC302 (LFP)","Educación Infantil","0018","Intervención con familias y atención a menores en riesgo social","SSC302 (LFP) - 0018",2,3,100]
["SSC302 (LFP)","Educación Infantil","0019","Proyecto Intermodular de atención a la infancia","SSC302 (LFP) - 0019",2,2,67]
["SSC302 (LFP)","Educación Infantil","1708","Sostenibilidad aplicada al sistema productivo","SSC302 (LFP) - 1708",2,1,33]
["SSC302 (LFP)","Educación Infantil","1710","Itinerario personal para la empleabilidad II","SSC302 (LFP) - 1710",2,2,67]
["SSC302 (LFP)","Educación Infantil","0OPT","Módulo profesional optativo","SSC302 (LFP) - 0OPT",2,3,100]
["SSC303 (LFP)","Integración Social","0017","Habilidades sociales","SSC303 (LFP) - 0017",1,4,133]
["SSC303 (LFP)","Integración Social","0020","Primeros auxilios","SSC303 (LFP) - 0020",1,1,33]
["SSC303 (LFP)","Integración Social","0179","Inglés Profesional (GS)","SSC303 (LFP) - 0179",1,2,67]
["SSC303 (LFP)","Integración Social","0337","Contexto de la intervención social","SSC303 (LFP) - 0337",1,5,167]
["SSC303 (LFP)","Integración Social","0338","Inserción sociolaboral","SSC303 (LFP) - 0338",1,5,167]
["SSC303 (LFP)","Integración Social","0342","Promoción de la autonomía personal","SSC303 (LFP) - 0342",1,5,167]
["SSC303 (LFP)","Integración Social","0344","Metodología de la intervención social","SSC303 (LFP) - 0344",1,4,133]
["SSC303 (LFP)","Integración Social","1665","Digitalización aplicada a los sectores productivos (GS)","SSC303 (LFP) - 1665",1,1,33]
["SSC303 (LFP)","Integración Social","1709","Itinerario personal para la empleabilidad I","SSC303 (LFP) - 1709",1,3,100]
["SSC303 (LFP)","Integración Social","0339","Atención a las unidades de convivencia","SSC303 (LFP) - 0339",2,6,200]
["SSC303 (LFP)","Integración Social","0340","Mediación comunitaria","SSC303 (LFP) - 0340",2,7,233]
["SSC303 (LFP)","Integración Social","0341","Apoyo a la intervención educativa","SSC303 (LFP) - 0341",2,4,133]
["SSC303 (LFP)","Integración Social","0343","Sistemas aumentativos y alternativos de comunicación","SSC303 (LFP) - 0343",2,5,167]
["SSC303 (LFP)","Integración Social","0345","Proyecto Intermodular de integración social","SSC303 (LFP) - 0345",2,2,67]
["SSC303 (LFP)","Integración Social","1708","Sostenibilidad aplicada al sistema productivo","SSC303 (LFP) - 1708",2,1,33]
["SSC303 (LFP)","Integración Social","1710","Itinerario personal para la empleabilidad II","SSC303 (LFP) - 1710",2,2,67]
["SSC303 (LFP)","Integración Social","0OPT","Módulo profesional optativo","SSC303 (LFP) - 0OPT",2,3,100]
["SSC304 (LFP)","Mediación Comunicativa","0017","Habilidades sociales","SSC304 (LFP) - 0017",1,4,133]
["SSC304 (LFP)","Mediación Comunicativa","0020","Primeros auxilios","SSC304 (LFP) - 0020",1,1,33]
["SSC304 (LFP)","Mediación Comunicativa","0179","Inglés Profesional (GS)","SSC304 (LFP) - 0179",1,2,67]
["SSC304 (LFP)","Mediación Comunicativa","1111","Metodología de la integración social de las personas con dificultades de comunicación, lenguaje y habla","SSC304 (LFP) - 1111",1,4,133]
["SSC304 (LFP)","Mediación Comunicativa","1114","Contexto de la mediación comunicativa con personas sordociegas","SSC304 (LFP) - 1114",1,5,167]
["SSC304 (LFP)","Mediación Comunicativa","1115","Lengua de signos","SSC304 (LFP) - 1115",1,5,167]
["SSC304 (LFP)","Mediación Comunicativa","1118","Técnicas de intervención comunicativa","SSC304 (LFP) - 1118",1,5,167]
["SSC304 (LFP)","Mediación Comunicativa","1665","Digitalización aplicada a los sectores productivos (GS)","SSC304 (LFP) - 1665",1,1,33]
["SSC304 (LFP)","Mediación Comunicativa","1709","Itinerario personal para la empleabilidad I","SSC304 (LFP) - 1709",1,3,100]
["SSC304 (LFP)","Mediación Comunicativa","0343","Sistemas aumentativos y alternativos de comunicación","SSC304 (LFP) - 0343",2,5,167]
["SSC304 (LFP)","Mediación Comunicativa","1112","Sensibilización social y participación","SSC304 (LFP) - 1112",2,3,100]
["SSC304 (LFP)","Mediación Comunicativa","1113","Intervención socioeducativa con personas sordociegas","SSC304 (LFP) - 1113",2,5,167]
["SSC304 (LFP)","Mediación Comunicativa","1116","Ámbitos de aplicación de la lengua de signos",{"$f":"CONCATENATE(A2307,\" - \",C2307)","v":"SSC304 (LFP) - 1116"},2,5,167]
["SSC304 (LFP)","Mediación Comunicativa","1117","Intervención con personas con dificultades de comunicación","SSC304 (LFP) - 1117",2,4,133]
["SSC304 (LFP)","Mediación Comunicativa","1119","Proyecto Intermodular de mediación comunicativa","SSC304 (LFP) - 1119",2,2,67]
["SSC304 (LFP)","Mediación Comunicativa","1708","Sostenibilidad aplicada al sistema productivo","SSC304 (LFP) - 1708",2,1,33]
["SSC304 (LFP)","Mediación Comunicativa","1710","Itinerario personal para la empleabilidad II","SSC304 (LFP) - 1710",2,2,67]
["SSC304 (LFP)","Mediación Comunicativa","0OPT","Módulo profesional optativo","SSC304 (LFP) - 0OPT",2,3,100]
["SSC305 (LFP)","Promoción de Igualdad de Género","0017","Habilidades sociales","SSC305 (LFP) - 0017",1,4,133]
["SSC305 (LFP)","Promoción de Igualdad de Género","0020","Primeros auxilios","SSC305 (LFP) - 0020",1,1,33]
["SSC305 (LFP)","Promoción de Igualdad de Género","0179","Inglés Profesional (GS)","SSC305 (LFP) - 0179",1,2,67]
["SSC305 (LFP)","Promoción de Igualdad de Género","0344","Metodología de la intervención social","SSC305 (LFP) - 0344",1,4,133]
["SSC305 (LFP)","Promoción de Igualdad de Género","1128","Desarrollo comunitario","SSC305 (LFP) - 1128",1,4,133]
["SSC305 (LFP)","Promoción de Igualdad de Género","1401","Información y comunicación con perspectiva de género","SSC305 (LFP) - 1401",1,6,200]
["SSC305 (LFP)","Promoción de Igualdad de Género","1404","Ámbitos de intervención para la promoción de igualdad","SSC305 (LFP) - 1404",1,5,167]
["SSC305 (LFP)","Promoción de Igualdad de Género","1665","Digitalización aplicada a los sectores productivos (GS)","SSC305 (LFP) - 1665",1,1,33]
["SSC305 (LFP)","Promoción de Igualdad de Género","1709","Itinerario personal para la empleabilidad I","SSC305 (LFP) - 1709",1,3,100]
["SSC305 (LFP)","Promoción de Igualdad de Género","1402","Prevención de la violencia de género","SSC305 (LFP) - 1402",2,6,200]
["SSC305 (LFP)","Promoción de Igualdad de Género","1403","Promoción del empleo femenino","SSC305 (LFP) - 1403",2,6,200]
["SSC305 (LFP)","Promoción de Igualdad de Género","1405","Participación social de las mujeres","SSC305 (LFP) - 1405",2,5,167]
["SSC305 (LFP)","Promoción de Igualdad de Género","1406","Intervención socioeducativa para la igualdad","SSC305 (LFP) - 1406",2,5,167]
["SSC305 (LFP)","Promoción de Igualdad de Género","1407","Proyecto Intermodular de promoción de igualdad de género","SSC305 (LFP) - 1407",2,2,67]
["SSC305 (LFP)","Promoción de Igualdad de Género","1708","Sostenibilidad aplicada al sistema productivo","SSC305 (LFP) - 1708",2,1,33]
["SSC305 (LFP)","Promoción de Igualdad de Género","1710","Itinerario personal para la empleabilidad II","SSC305 (LFP) - 1710",2,2,67]
["SSC305 (LFP)","Promoción de Igualdad de Género","0OPT","Módulo profesional optativo","SSC305 (LFP) - 0OPT",2,3,100]
["SSC306 (LFP)","Formación para la movilidad segura y sostenible","0020","Primeros auxilios","SSC306 (LFP) - 0020",1,1,33]
["SSC306 (LFP)","Formación para la movilidad segura y sostenible","0179","Inglés Profesional (GS)","SSC306 (LFP) - 0179",1,2,67]
["SSC306 (LFP)","Formación para la movilidad segura y sostenible","1651","Tráfico, circulación de vehículos y transporte por carretera","SSC306 (LFP) - 1651",1,6,200]
["SSC306 (LFP)","Formación para la movilidad segura y sostenible","1653","Técnicas de conducción","SSC306 (LFP) - 1653",1,3,100]
["SSC306 (LFP)","Formación para la movilidad segura y sostenible","1654","Tecnología básica del automóvil","SSC306 (LFP) - 1654",1,2,67]
["SSC306 (LFP)","Formación para la movilidad segura y sostenible","1656","Educación vial","SSC306 (LFP) - 1656",1,5,167]
["SSC306 (LFP)","Formación para la movilidad segura y sostenible","1657","Seguridad vial","SSC306 (LFP) - 1657",1,7,233]
["SSC306 (LFP)","Formación para la movilidad segura y sostenible","1665","Digitalización aplicada a los sectores productivos (GS)","SSC306 (LFP) - 1665",1,1,33]
["SSC306 (LFP)","Formación para la movilidad segura y sostenible","1709","Itinerario personal para la empleabilidad I","SSC306 (LFP) - 1709",1,3,100]
["SSC306 (LFP)","Formación para la movilidad segura y sostenible","1652","Organización de la formación de las personas conductoras","SSC306 (LFP) - 1652",2,3,100]
["SSC306 (LFP)","Formación para la movilidad segura y sostenible","1655","Didáctica de la enseñanza práctica de la conducción","SSC306 (LFP) - 1655",2,11,367]
["SSC306 (LFP)","Formación para la movilidad segura y sostenible","1658","Didáctica de la formación para la seguridad vial","SSC306 (LFP) - 1658",2,4,133]
["SSC306 (LFP)","Formación para la movilidad segura y sostenible","1659","Movilidad segura y sostenible","SSC306 (LFP) - 1659",2,4,133]
["SSC306 (LFP)","Formación para la movilidad segura y sostenible","1660","Proyecto Intermodular de formación para la movilidad segura y sostenible","SSC306 (LFP) - 1660",2,2,67]
["SSC306 (LFP)","Formación para la movilidad segura y sostenible","1708","Sostenibilidad aplicada al sistema productivo","SSC306 (LFP) - 1708",2,1,33]
["SSC306 (LFP)","Formación para la movilidad segura y sostenible","1710","Itinerario personal para la empleabilidad II","SSC306 (LFP) - 1710",2,2,67]
["SSC306 (LFP)","Formación para la movilidad segura y sostenible","0OPT","Módulo profesional optativo","SSC306 (LFP) - 0OPT",2,3,100]
["TCP202 (LFP)","Confección y Moda","0116","Principios de mantenimiento electromecánico","TCP202 (LFP) - 0116",1,2,67]
["TCP202 (LFP)","Confección y Moda","0156","Inglés Profesional (GM)","TCP202 (LFP) - 0156",1,2,67]
["TCP202 (LFP)","Confección y Moda","0264","Moda y tendencias","TCP202 (LFP) - 0264",1,4,133]
["TCP202 (LFP)","Confección y Moda","0265","Patrones","TCP202 (LFP) - 0265",1,6,200]
["TCP202 (LFP)","Confección y Moda","0268","Confección a medida","TCP202 (LFP) - 0268",1,7,233]
["TCP202 (LFP)","Confección y Moda","0275","Materias textiles y piel","TCP202 (LFP) - 0275",1,4,133]
["TCP202 (LFP)","Confección y Moda","1664","Digitalización aplicada a los sectores productivos (GM)","TCP202 (LFP) - 1664",1,1,33]
["TCP202 (LFP)","Confección y Moda","1709","Itinerario personal para la empleabilidad I","TCP202 (LFP) - 1709",1,3,100]
["TCP202 (LFP)","Confección y Moda","A997","Tutoría I","TCP202 (LFP) - A997",1,1,33]
["TCP202 (LFP)","Confección y Moda","0267","Corte de materiales","TCP202 (LFP) - 0267",2,5,167]
["TCP202 (LFP)","Confección y Moda","0269","Confección industrial","TCP202 (LFP) - 0269",2,9,300]
["TCP202 (LFP)","Confección y Moda","0270","Acabados en confección","TCP202 (LFP) - 0270",2,4,133]
["TCP202 (LFP)","Confección y Moda","0271","Información y atención al cliente","TCP202 (LFP) - 0271",2,3,100]
["TCP202 (LFP)","Confección y Moda","1708","Sostenibilidad aplicada al sistema productivo","TCP202 (LFP) - 1708",2,1,33]
["TCP202 (LFP)","Confección y Moda","1710","Itinerario personal para la empleabilidad II","TCP202 (LFP) - 1710",2,2,67]
["TCP202 (LFP)","Confección y Moda","1713","Proyecto Intermodular","TCP202 (LFP) - 1713",2,2,67]
["TCP202 (LFP)","Confección y Moda","A996","Tutoría II","TCP202 (LFP) - A996",2,1,33]
["TCP202 (LFP)","Confección y Moda","0OPT","Módulo profesional optativo","TCP202 (LFP) - 0OPT",2,3,100]
["TCP301 (LFP)","Patronaje y Moda","0179","Inglés Profesional (GS)","TCP301 (LFP) - 0179",1,2,67]
["TCP301 (LFP)","Patronaje y Moda","0264","Moda y tendencias","TCP301 (LFP) - 0264",1,4,133]
["TCP301 (LFP)","Patronaje y Moda","0276","Materiales en textil, confección y piel","TCP301 (LFP) - 0276",1,4,133]
["TCP301 (LFP)","Patronaje y Moda","0277","Técnicas en confección","TCP301 (LFP) - 0277",1,4,133]
["TCP301 (LFP)","Patronaje y Moda","0278","Procesos en confección industrial","TCP301 (LFP) - 0278",1,3,100]
["TCP301 (LFP)","Patronaje y Moda","0285","Patronaje industrial en textil y piel","TCP301 (LFP) - 0285",1,9,300]
["TCP301 (LFP)","Patronaje y Moda","1665","Digitalización aplicada a los sectores productivos (GS)",{"$f":"CONCATENATE(A2371,\" - \",C2371)","v":"TCP301 (LFP) - 1665"},1,1,33]
["TCP301 (LFP)","Patronaje y Moda","1709","Itinerario personal para la empleabilidad I","TCP301 (LFP) - 1709",1,3,100]
["TCP301 (LFP)","Patronaje y Moda","0165","Gestión de la calidad, prevención de riesgos laborales y protección ambiental","TCP301 (LFP) - 0165",2,4,133]
["TCP301 (LFP)","Patronaje y Moda","0280","Organización de la producción en confección industrial","TCP301 (LFP) - 0280",2,4,133]
["TCP301 (LFP)","Patronaje y Moda","0283","Análisis de diseños en textil y piel","TCP301 (LFP) - 0283",2,4,133]
["TCP301 (LFP)","Patronaje y Moda","0284","Elaboración de prototipos","TCP301 (LFP) - 0284",2,5,167]
["TCP301 (LFP)","Patronaje y Moda","0286","Industrialización y escalado de patrones","TCP301 (LFP) - 0286",2,5,167]
["TCP301 (LFP)","Patronaje y Moda","0287","Proyecto Intermodular de Patronaje y Moda","TCP301 (LFP) - 0287",2,2,67]
["TCP301 (LFP)","Patronaje y Moda","1708","Sostenibilidad aplicada al sistema productivo","TCP301 (LFP) - 1708",2,1,33]
["TCP301 (LFP)","Patronaje y Moda","1710","Itinerario personal para la empleabilidad II","TCP301 (LFP) - 1710",2,2,67]
["TCP301 (LFP)","Patronaje y Moda","0OPT","Módulo profesional optativo","TCP301 (LFP) - 0OPT",2,3,100]
["TMV201 (LFP)","Carrocería","0156","Inglés Profesional (GM)","TMV201 (LFP) - 0156",1,2,67]
["TMV201 (LFP)","Carrocería","0254","Elementos amovibles","TMV201 (LFP) - 0254",1,7,233]
["TMV201 (LFP)","Carrocería","0255","Elementos metálicos y sintéticos","TMV201 (LFP) - 0255",1,7,233]
["TMV201 (LFP)","Carrocería","0256","Elementos fijos","TMV201 (LFP) - 0256",1,7,233]
["TMV201 (LFP)","Carrocería","0260","Mecanizado básico","TMV201 (LFP) - 0260",1,2,67]
["TMV201 (LFP)","Carrocería","1664","Digitalización aplicada a los sectores productivos (GM)","TMV201 (LFP) - 1664",1,1,33]
["TMV201 (LFP)","Carrocería","1709","Itinerario personal para la empleabilidad I","TMV201 (LFP) - 1709",1,3,100]
["TMV201 (LFP)","Carrocería","A997","Tutoría I","TMV201 (LFP) - A997",1,1,33]
["TMV201 (LFP)","Carrocería","0257","Preparación de superficies","TMV201 (LFP) - 0257",2,8,267]
["TMV201 (LFP)","Carrocería","0258","Elementos estructurales del vehículo","TMV201 (LFP) - 0258",2,5,167]
["TMV201 (LFP)","Carrocería","0259","Embellecimiento de superficies","TMV201 (LFP) - 0259",2,8,267]
["TMV201 (LFP)","Carrocería","1708","Sostenibilidad aplicada al sistema productivo","TMV201 (LFP) - 1708",2,1,33]
["TMV201 (LFP)","Carrocería","1710","Itinerario personal para la empleabilidad II","TMV201 (LFP) - 1710",2,2,67]
["TMV201 (LFP)","Carrocería","1713","Proyecto Intermodular","TMV201 (LFP) - 1713",2,2,67]
["TMV201 (LFP)","Carrocería","A996","Tutoría II","TMV201 (LFP) - A996",2,1,33]
["TMV201 (LFP)","Carrocería","0OPT","Módulo profesional optativo","TMV201 (LFP) - 0OPT",2,3,100]
["TMV202 (LFP)","Electromecánica de Vehículos Automóviles","0156","Inglés Profesional (GM)","TMV202 (LFP) - 0156",1,2,67]
["TMV202 (LFP)","Electromecánica de Vehículos Automóviles","0260","Mecanizado básico","TMV202 (LFP) - 0260",1,2,67]
["TMV202 (LFP)","Electromecánica de Vehículos Automóviles","0452","Motores","TMV202 (LFP) - 0452",1,5,167]
["TMV202 (LFP)","Electromecánica de Vehículos Automóviles","0454","Circuitos de fluidos. Suspensión y dirección","TMV202 (LFP) - 0454",1,6,200]
["TMV202 (LFP)","Electromecánica de Vehículos Automóviles","0455","Sistemas de transmisión y frenado","TMV202 (LFP) - 0455",1,4,133]
["TMV202 (LFP)","Electromecánica de Vehículos Automóviles","0456","Sistemas de carga y arranque","TMV202 (LFP) - 0456",1,6,200]
["TMV202 (LFP)","Electromecánica de Vehículos Automóviles","1664","Digitalización aplicada a los sectores productivos (GM)","TMV202 (LFP) - 1664",1,1,33]
["TMV202 (LFP)","Electromecánica de Vehículos Automóviles","1709","Itinerario personal para la empleabilidad I","TMV202 (LFP) - 1709",1,3,100]
["TMV202 (LFP)","Electromecánica de Vehículos Automóviles","A997","Tutoría I","TMV202 (LFP) - A997",1,1,33]
["TMV202 (LFP)","Electromecánica de Vehículos Automóviles","0453","Sistemas auxiliares del motor","TMV202 (LFP) - 0453",2,9,300]
["TMV202 (LFP)","Electromecánica de Vehículos Automóviles","0457","Circuitos eléctricos auxiliares del vehículo","TMV202 (LFP) - 0457",2,7,233]
["TMV202 (LFP)","Electromecánica de Vehículos Automóviles","0458","Sistemas de seguridad y confortabilidad","TMV202 (LFP) - 0458",2,5,167]
["TMV202 (LFP)","Electromecánica de Vehículos Automóviles","1708","Sostenibilidad aplicada al sistema productivo","TMV202 (LFP) - 1708",2,1,33]
["TMV202 (LFP)","Electromecánica de Vehículos Automóviles","1710","Itinerario personal para la empleabilidad II","TMV202 (LFP) - 1710",2,2,67]
["TMV202 (LFP)","Electromecánica de Vehículos Automóviles","1713","Proyecto Intermodular","TMV202 (LFP) - 1713",2,2,67]
["TMV202 (LFP)","Electromecánica de Vehículos Automóviles","A996","Tutoría II","TMV202 (LFP) - A996",2,1,33]
["TMV202 (LFP)","Electromecánica de Vehículos Automóviles","0OPT","Módulo profesional optativo","TMV202 (LFP) - 0OPT",2,3,100]
["TMV203 (LFP)","Técnico en Conducción de Vehículos de Transporte por Carretera","0156","Inglés Profesional (GM)","TMV203 (LFP) - 0156",1,2,67]
["TMV203 (LFP)","Técnico en Conducción de Vehículos de Transporte por Carretera","1204","Conducción inicial","TMV203 (LFP) - 1204",1,6,200]
["TMV203 (LFP)","Técnico en Conducción de Vehículos de Transporte por Carretera","1206","Entorno normativo, económico y social del transporte","TMV203 (LFP) - 1206",1,4,133]
["TMV203 (LFP)","Técnico en Conducción de Vehículos de Transporte por Carretera","1208","Servicios de transporte de viajeros","TMV203 (LFP) - 1208",1,4,133]
["TMV203 (LFP)","Técnico en Conducción de Vehículos de Transporte por Carretera","1209","Operaciones de almacenaje","TMV203 (LFP) - 1209",1,4,133]
["TMV203 (LFP)","Técnico en Conducción de Vehículos de Transporte por Carretera","1210","Mantenimiento básico de vehículos","TMV203 (LFP) - 1210",1,5,167]
["TMV203 (LFP)","Técnico en Conducción de Vehículos de Transporte por Carretera","1664","Digitalización aplicada a los sectores productivos (GM)","TMV203 (LFP) - 1664",1,1,33]
["TMV203 (LFP)","Técnico en Conducción de Vehículos de Transporte por Carretera","1709","Itinerario personal para la empleabilidad I","TMV203 (LFP) - 1709",1,3,100]
["TMV203 (LFP)","Técnico en Conducción de Vehículos de Transporte por Carretera","A997","Tutoría I","TMV203 (LFP) - A997",1,1,33]
["TMV203 (LFP)","Técnico en Conducción de Vehículos de Transporte por Carretera","0020","Primeros auxilios","TMV203 (LFP) - 0020",2,1,33]
["TMV203 (LFP)","Técnico en Conducción de Vehículos de Transporte por Carretera","1205","Conducción racional y segura","TMV203 (LFP) - 1205",2,11,367]
["TMV203 (LFP)","Técnico en Conducción de Vehículos de Transporte por Carretera","1207","Servicios de transporte de mercancías","TMV203 (LFP) - 1207",2,9,300]
["TMV203 (LFP)","Técnico en Conducción de Vehículos de Transporte por Carretera","1708","Sostenibilidad aplicada al sistema productivo","TMV203 (LFP) - 1708",2,1,33]
["TMV203 (LFP)","Técnico en Conducción de Vehículos de Transporte por Carretera","1710","Itinerario personal para la empleabilidad II","TMV203 (LFP) - 1710",2,2,67]
["TMV203 (LFP)","Técnico en Conducción de Vehículos de Transporte por Carretera","1713","Proyecto Intermodular","TMV203 (LFP) - 1713",2,2,67]
["TMV203 (LFP)","Técnico en Conducción de Vehículos de Transporte por Carretera","A996","Tutoría II","TMV203 (LFP) - A996",2,1,33]
["TMV203 (LFP)","Técnico en Conducción de Vehículos de Transporte por Carretera","0OPT","Módulo profesional optativo","TMV203 (LFP) - 0OPT",2,3,100]
["TMV204 (LFP)","Electromecánica de Maquinaria","0156","Inglés Profesional (GM)","TMV204 (LFP) - 0156",1,2,67]
["TMV204 (LFP)","Electromecánica de Maquinaria","0260","Mecanizado básico","TMV204 (LFP) - 0260",1,2,67]
["TMV204 (LFP)","Electromecánica de Maquinaria","0452","Motores","TMV204 (LFP) - 0452",1,5,167]
["TMV204 (LFP)","Electromecánica de Maquinaria","0456","Sistemas de carga y arranque",{"$f":"CONCATENATE(A2435,\" - \",C2435)","v":"TMV204 (LFP) - 0456"},1,6,200]
["TMV204 (LFP)","Electromecánica de Maquinaria","0714","Sistemas de suspensión y guiado","TMV204 (LFP) - 0714",1,6,200]
["TMV204 (LFP)","Electromecánica de Maquinaria","0717","Equipos y aperos","TMV204 (LFP) - 0717",1,4,133]
["TMV204 (LFP)","Electromecánica de Maquinaria","1664","Digitalización aplicada a los sectores productivos (GM)","TMV204 (LFP) - 1664",1,1,33]
["TMV204 (LFP)","Electromecánica de Maquinaria","1709","Itinerario personal para la empleabilidad I","TMV204 (LFP) - 1709",1,3,100]
["TMV204 (LFP)","Electromecánica de Maquinaria","A997","Tutoría I","TMV204 (LFP) - A997",1,1,33]
["TMV204 (LFP)","Electromecánica de Maquinaria","0715","Sistemas de fuerza y detención","TMV204 (LFP) - 0715",2,7,233]
["TMV204 (LFP)","Electromecánica de Maquinaria","0716","Sistemas de accionamiento de equipos y aperos","TMV204 (LFP) - 0716",2,5,167]
["TMV204 (LFP)","Electromecánica de Maquinaria","0718","Circuitos eléctricos, electrónicos y de confortabilidad","TMV204 (LFP) - 0718",2,4,133]
["TMV204 (LFP)","Electromecánica de Maquinaria","0742","Sistemas auxiliares del motor diésel","TMV204 (LFP) - 0742",2,5,167]
["TMV204 (LFP)","Electromecánica de Maquinaria","1708","Sostenibilidad aplicada al sistema productivo","TMV204 (LFP) - 1708",2,1,33]
["TMV204 (LFP)","Electromecánica de Maquinaria","1710","Itinerario personal para la empleabilidad II","TMV204 (LFP) - 1710",2,2,67]
["TMV204 (LFP)","Electromecánica de Maquinaria","1713","Proyecto Intermodular","TMV204 (LFP) - 1713",2,2,67]
["TMV204 (LFP)","Electromecánica de Maquinaria","A996","Tutoría II","TMV204 (LFP) - A996",2,1,33]
["TMV204 (LFP)","Electromecánica de Maquinaria","0OPT","Módulo profesional optativo","TMV204 (LFP) - 0OPT",2,3,100]
["TMV205 (LFP)","Montaje de Estructuras e Instalación de Sistemas Aeronáuticos","0156","Inglés Profesional (GM)","TMV205 (LFP) - 0156",1,2,67]
["TMV205 (LFP)","Montaje de Estructuras e Instalación de Sistemas Aeronáuticos","0260","Mecanizado básico","TMV205 (LFP) - 0260",1,2,67]
["TMV205 (LFP)","Montaje de Estructuras e Instalación de Sistemas Aeronáuticos","0801","Montaje estructural aeronáutico","TMV205 (LFP) - 0801",1,9,300]
["TMV205 (LFP)","Montaje de Estructuras e Instalación de Sistemas Aeronáuticos","1444","Instalaciones eléctricas y electrónicas","TMV205 (LFP) - 1444",1,5,167]
["TMV205 (LFP)","Montaje de Estructuras e Instalación de Sistemas Aeronáuticos","1445","Preparación y sellado de superficies","TMV205 (LFP) - 1445",1,2,67]
["TMV205 (LFP)","Montaje de Estructuras e Instalación de Sistemas Aeronáuticos","1599","Sistemas mecánicos y de fluidos","TMV205 (LFP) - 1599",1,5,167]
["TMV205 (LFP)","Montaje de Estructuras e Instalación de Sistemas Aeronáuticos","1664","Digitalización aplicada a los sectores productivos (GM)","TMV205 (LFP) - 1664",1,1,33]
["TMV205 (LFP)","Montaje de Estructuras e Instalación de Sistemas Aeronáuticos","1709","Itinerario personal para la empleabilidad I","TMV205 (LFP) - 1709",1,3,100]
["TMV205 (LFP)","Montaje de Estructuras e Instalación de Sistemas Aeronáuticos","A997","Tutoría I","TMV205 (LFP) - A997",1,1,33]
["TMV205 (LFP)","Montaje de Estructuras e Instalación de Sistemas Aeronáuticos","1600","Protección y pintado de aeronaves","TMV205 (LFP) - 1600",2,4,133]
["TMV205 (LFP)","Montaje de Estructuras e Instalación de Sistemas Aeronáuticos","1601","Sistemas de distribución de corriente, telecomunicaciones y aviónica","TMV205 (LFP) - 1601",2,8,267]
["TMV205 (LFP)","Montaje de Estructuras e Instalación de Sistemas Aeronáuticos","1602","Sistemas de mandos de vuelo, trenes de aterrizaje y de propulsión","TMV205 (LFP) - 1602",2,9,300]
["TMV205 (LFP)","Montaje de Estructuras e Instalación de Sistemas Aeronáuticos","1708","Sostenibilidad aplicada al sistema productivo","TMV205 (LFP) - 1708",2,1,33]
["TMV205 (LFP)","Montaje de Estructuras e Instalación de Sistemas Aeronáuticos","1710","Itinerario personal para la empleabilidad II","TMV205 (LFP) - 1710",2,2,67]
["TMV205 (LFP)","Montaje de Estructuras e Instalación de Sistemas Aeronáuticos","1713","Proyecto Intermodular","TMV205 (LFP) - 1713",2,2,67]
["TMV205 (LFP)","Montaje de Estructuras e Instalación de Sistemas Aeronáuticos","A996","Tutoría II","TMV205 (LFP) - A996",2,1,33]
["TMV205 (LFP)","Montaje de Estructuras e Instalación de Sistemas Aeronáuticos","0OPT","Módulo profesional optativo","TMV205 (LFP) - 0OPT",2,3,100]
["TMV301 (LFP)","Automoción","0179","Inglés Profesional (GS)","TMV301 (LFP) - 0179",1,2,67]
["TMV301 (LFP)","Automoción","0291","Sistemas eléctricos y de seguridad y confortabilidad","TMV301 (LFP) - 0291",1,8,267]
["TMV301 (LFP)","Automoción","0292","Sistemas de transmisión de fuerza y trenes de rodaje","TMV301 (LFP) - 0292",1,6,200]
["TMV301 (LFP)","Automoción","0294","Elementos amovibles y fijos no estructurales","TMV301 (LFP) - 0294",1,7,233]
["TMV301 (LFP)","Automoción","0297","Gestión y logística del mantenimiento de vehículos","TMV301 (LFP) - 0297",1,3,100]
["TMV301 (LFP)","Automoción","1665","Digitalización aplicada a los sectores productivos (GS)","TMV301 (LFP) - 1665",1,1,33]
["TMV301 (LFP)","Automoción","1709","Itinerario personal para la empleabilidad I","TMV301 (LFP) - 1709",1,3,100]
["TMV301 (LFP)","Automoción","0293","Motores térmicos y sus sistemas auxiliares","TMV301 (LFP) - 0293",2,8,267]
["TMV301 (LFP)","Automoción","0295","Tratamiento y recubrimiento de superficies","TMV301 (LFP) - 0295",2,9,300]
["TMV301 (LFP)","Automoción","0296","Estructuras del vehículo","TMV301 (LFP) - 0296",2,4,133]
["TMV301 (LFP)","Automoción","0298","Proyecto Intermodular de automoción","TMV301 (LFP) - 0298",2,2,67]
["TMV301 (LFP)","Automoción","0309","Técnicas de comunicación y de relaciones","TMV301 (LFP) - 0309",2,1,33]
["TMV301 (LFP)","Automoción","1708","Sostenibilidad aplicada al sistema productivo","TMV301 (LFP) - 1708",2,1,33]
["TMV301 (LFP)","Automoción","1710","Itinerario personal para la empleabilidad II","TMV301 (LFP) - 1710",2,2,67]
["TMV301 (LFP)","Automoción","0OPT","Módulo profesional optativo","TMV301 (LFP) - 0OPT",2,3,100]
["TMV302 (LFP)","Mantenimiento Aeromecánico de Aviones con Motor de Turbina","0179","Inglés Profesional (GS)","TMV302 (LFP) - 0179",1,2,67]
["TMV302 (LFP)","Mantenimiento Aeromecánico de Aviones con Motor de Turbina","1425","Fundamentos de electricidad","TMV302 (LFP) - 1425",1,4,135]
["TMV302 (LFP)","Mantenimiento Aeromecánico de Aviones con Motor de Turbina","1426","Fundamentos de electrónica en aeromecánica","TMV302 (LFP) - 1426",1,3,105]
["TMV302 (LFP)","Mantenimiento Aeromecánico de Aviones con Motor de Turbina","1430","Materiales, equipos y herramientas en aeromecánica","TMV302 (LFP) - 1430",1,4,135]
["TMV302 (LFP)","Mantenimiento Aeromecánico de Aviones con Motor de Turbina","1435","Aerodinámica básica","TMV302 (LFP) - 1435",1,2,67]
["TMV302 (LFP)","Mantenimiento Aeromecánico de Aviones con Motor de Turbina","1436","Factores humanos","TMV302 (LFP) - 1436",1,3,105]
["TMV302 (LFP)","Mantenimiento Aeromecánico de Aviones con Motor de Turbina","1437","Legislación aeronáutica","TMV302 (LFP) - 1437",1,2,67]
["TMV302 (LFP)","Mantenimiento Aeromecánico de Aviones con Motor de Turbina","1441","Aerodinámica, estructuras y sistemas de oxígeno, aguas y protección de aviones","TMV302 (LFP) - 1441",1,3,105]
["TMV302 (LFP)","Mantenimiento Aeromecánico de Aviones con Motor de Turbina","1457","Hélices","TMV302 (LFP) - 1457",1,2,67]
["TMV302 (LFP)","Mantenimiento Aeromecánico de Aviones con Motor de Turbina","1665","Digitalización aplicada a los sectores productivos (GS)","TMV302 (LFP) - 1665",1,1,33]
["TMV302 (LFP)","Mantenimiento Aeromecánico de Aviones con Motor de Turbina","1432","Prácticas de mantenimiento con elementos mecánicos de la aeronave","TMV302 (LFP) - 1432",2,10,333]
["TMV302 (LFP)","Mantenimiento Aeromecánico de Aviones con Motor de Turbina","1439","Aerodinámica, estructuras y sistemas de mandos de vuelo de aviones con motor de turbina","TMV302 (LFP) - 1439",2,7,233]
["TMV302 (LFP)","Mantenimiento Aeromecánico de Aviones con Motor de Turbina","1440","Aerodinámica, estructuras y sistemas hidráulicos, neumáticos y tren de aterrizaje del avión","TMV302 (LFP) - 1440",2,7,233]
["TMV302 (LFP)","Mantenimiento Aeromecánico de Aviones con Motor de Turbina","1708","Sostenibilidad aplicada al sistema productivo","TMV302 (LFP) - 1708",2,1,33]
["TMV302 (LFP)","Mantenimiento Aeromecánico de Aviones con Motor de Turbina","0OPT","Módulo profesional optativo","TMV302 (LFP) - 0OPT",2,3,105]
["TMV302 (LFP)","Mantenimiento Aeromecánico de Aviones con Motor de Turbina","1428","Técnicas digitales y sistemas de instrumentos electrónicos en aeromecánica","TMV302 (LFP) - 1428",3,6,200]
["TMV302 (LFP)","Mantenimiento Aeromecánico de Aviones con Motor de Turbina","1433","Prácticas de mantenimiento con elementos de aviónica y servicios de las aeronaves","TMV302 (LFP) - 1433",3,5,167]
["TMV302 (LFP)","Mantenimiento Aeromecánico de Aviones con Motor de Turbina","1438","Aerodinámica, estructuras y sistemas eléctricos y de aviónica de aviones con motor de turbina",{"$f":"CONCATENATE(A2499,\" - \",C2499)","v":"TMV302 (LFP) - 1438"},3,5,167]
["TMV302 (LFP)","Mantenimiento Aeromecánico de Aviones con Motor de Turbina","1455","Motores de turbinas de gas","TMV302 (LFP) - 1455",3,8,272]
["TMV302 (LFP)","Mantenimiento Aeromecánico de Aviones con Motor de Turbina","1458","Proyecto Intermodular de mantenimiento aeromecánico de aviones con motor de turbina","TMV302 (LFP) - 1458",3,2,67]
["TMV302 (LFP)","Mantenimiento Aeromecánico de Aviones con Motor de Turbina","1710","Itinerario personal para la empleabilidad II","TMV302 (LFP) - 1710",3,2,67]